Workbook

Sheet Cover
B4: Driver UK Eight

Sheet InitialInformation
A1: =Deal_Name&" : Issue Information" -> Driver UK Eight : Issue Information
B3: Initial Information
B4: Issue Date | C4: 2024-03-25 | F4: Clean Up Call Conditions: | G4: 0.1
B5: First Interest Payment Date | C5: 2024-04-25 | F5: ="Aggregate Discounted Receivables Balance is less than " & TEXT(CleanUpCall_Perc,"0.00%") & " of the Aggregate Discounted Receivables Balance at the Initial Cut-Off Date" -> Aggregate Discounted Receivables Balance is less than 10.00% of the Aggregate Discounted Receivables Balance at the Initial Cut-Off Date
B6: Payment Frequency | C6: Monthly
B7: Initial Discounted Receivables Balance | C7: 625007501.5
B8: Revolving Period Scheduled End Date | C8: 2024-09-25
B10: Notes | C10: A | D10: B | F10: Subordinated Loan
B11: Opening Balance | C11: 444600000 | D11: 68100000 | F11: 74750897.18
B12: Margin | C12: 0.006 | D12: 0.0135 | F12: 0.07342
B13: Interest Rate | C13: Compounded Daily SONIA | D13: Compounded Daily SONIA | F13: Fixed
B14: Date System | C14: Actual/365 | D14: Actual/365 | F14: Actual/365
B15: Scheduled Repayment Date | C15: 2030-09-25 | D15: 2030-09-25
B16: Final Maturity Date | C16: 2031-09-25 | D16: =FinalMaturityDate -> 2031-09-25
B17: Expected Ratings (S&P/Fitch/KBRA) | C17: AAA(sf)/AAA(sf)/AAA(sf) | D17: A+(sf)/AA-(sf)/AA-(sf)
B19: General Cash Collateral Amount | F19: Swaps | G19: Fixed Percentages
B20: Opening Balance | C20: =SUM(C11:D11)*GeneralCashCollateralAccount_Percentage -> 7434150 | F20: Class A | G20: 0.04903
B21: Ongoing, the greater of: | F21: Class B | G21: 0.05644
B22: (a) Amortising Percentage, and | C22: 0.0145 | D22: of Nominal Amount of Notes outstanding
B23: (b) The lesser of:
B24: (i) | C24: 0.01 | D24: of Initial Nominal Amount of the Notes
B25: (ii) - Nominal Amount of the Notes Outstanding
B27: Other Information
B28: Aggregate Discounted Receivables Balance (overcollateralisation) | C28: 37556604.34
B29: Replenished Receivables Overcollateralisation Percentage | C29: 0.03402
B30: Discount Rate | C30: 0.072293
B31: Interest Compensation Ledger Opening Balance | C31: 4000000
B32: Interest Compensation Ledger: Target Balance | C32: 4000000
B33: Interest Compensation Rate | C33: 0.009
B35: Triggers & Conditions
B36: Credit Enhancement Increase Condition (a) | C36: Wavg Seasoning (months) | E36: Dynamic Loss Ratio 3 consecutive Payment Dates
C37: Lower Range | D37: Upper Range
B38: (i) | D38: 12 | E38: 0.003
B39: (ii) | C39: =D38 -> 12 | D39: 22 | E39: 0.0075
B40: (iii) | C40: =D39 -> 22 | D40: 34 | E40: 0.02
B41: (iv) | C41: =D40 -> 34 | E41: Not applicable
B43: Credit Enhancement Increase Condition (b) | C43: Prior to or on | D43: Cumulative Net Loss Ratio
B44: (i) | C44: =EOMONTH(IssueDate,5) -> 2024-08-31 | D44: 0.008
B45: (ii) | C45: =EOMONTH(IssueDate,11) -> 2025-02-28 | D45: 0.018
B46: (iii) | C46: Any other time | D46: 0.04
B48: Credit Enhancement Increase Condition (c) | C48: Prior to or on | D48: Late Delinquency Ratio
B49: Late Delinquency Ratio Test | C49: =EDATE(IssueDate,12) -> 2025-03-25 | D49: 0.013
B51: Targeted Overcollateralisation Percentages | C51: Class A | D51: Class B
B52: In Revolving Period with no Credit Enhancement Increase Condition | C52: 0.311 | D52: 0.203
B53: After Revolving Period with no Credit Enhancement Increase Condition | C53: 0.331 | D53: 0.223
B54: Credit Enhancement Increase Condition in effect | C54: 1 | D54: 1
B56: Early Amortisation Events | C56: Trigger Level
A57: (a) | B57: Servicer Replacement Event
A58: (b) | B58: Accumulation Account on two consecutive Payment Dates | C58: 0.15 | D58: of Discounted Receivables Balances
A59: (c) | B59: Class A Actual Overcollateralisation Percentage (after 3 Payment Dates following the Closing Date) | C59: 0.2861
A60: (d) | B60: (d) VWFS ceases to be an Affiliate of the Parent
A61: (e) | B61: Seller fails to repurchase the required Redelivery Purchased Receivables | C61: Two consecutive Payment Dates
A62: (f) | B62: Issuer fails to replace Swap within 30 calendar days of Swap Termination
A63: (f) | B63: Swap Counterparty fails to post collateral within specified time period
A64: (g) | B64: The Credit Enhancement Increase Condition is in effect
A65: (h) | B65: Insolvency Event with respect to VWFS
A66: (i) | B66: Foreclosure Event
A67: (j) | B67: Cash Collateral Account < Specified General Cash Collateral Account Balance | C67: Two consecutive Payment Dates
B68: * Events (a), (d), (e), (f), (g) and (h) can be modelled via UserInputs cells G4:G12

Sheet UserInputs
A1: =Deal_Name&" : User Inputs" -> Driver UK Eight : User Inputs
K2: Charge-Off Receivables, Cash Recovery Profile (months)
E3: Dates | J3: 0 | K3: 0.5 | L3: =K9 -> 0 | O3: More Dates
E4: Issuer Insolvency Date | J4: 1 | K4: 0.2 | L4: =K8 -> 0 | O4: Earliest Clean-Up Call Date | Q4: =IssueDate -> 2024-03-25
E5: Enforcement Date | J5: 2 | K5: 0.2 | L5: =K7 -> 0
E6: VWFS Change of Control Date | J6: 3 | K6: 0.1 | L6: =K6 -> 0.1 | BE6: =UserInputs!BH17+UserInputs!BI17+UserInputs!BD17 -> 0
E7: VWFS Insolvency Date | J7: 4 | K7: 0 | L7: =K5 -> 0.2 | O7: Fees
E8: Servicer Replacement Event Date | J8: 5 | K8: 0 | L8: =K4 -> 0.2 | O8: Third Party Fees Percentage | Q8: 0.0003
E9: Seller: Repurchase Failure Event Date | J9: 6 | K9: 0 | L9: =K3 -> 0.5 | O9: Servicer Fee Percentage | Q9: 0.01
E10: Issuer Swap Default Date | J10: Shortfall | K10: =MAX(MIN(1,1-SUM(K3:K9)),0) -> 1.110223025e-16
E11: Swap Counterparty Default Date
E12: Issuer fails to replace Swap within 30 days of termination
AE13: Amounts due in period as Senior Fees & Expenses | AY13: Swap Counterparty Downgrade Collateral Account | BT13: Calculation to include Additional Receivables in Scheduled Amortisation Profile
E14: Assets and Asset Cash Flows | AA14: Late Delinquent Receivables (>180 days) | AE14: Servicing Fee | AI14: Other Fees & Expenses | AT14: Interest Rates | AY14: Swap Counterparty Downgrade Collateral | BD14: Payments following Swap Termination | BT14: Prepayment | BV14: Monthly Amortisation Profiles (Run-Off Schedules) | CF14: Scheduled Balances | CQ14: Weightings by Period | DA14: Contributions by Period
A15: Period | B15: Payment Date | C15: Monthly Period end date | E15: Initial Scheduled Redemption Profile | F15: Cut-Off Date Discounted Receivables Balance | G15: Period Start Discounted Receivables Balance | H15: Scheduled Redemption Profile | I15: CPR Assumption (% annualised) | J15: Charged Off Receivables % annualised (Discounted Balance) | K15: Charged Off Receivables (Discounted Balance) | L15: Recoveries (Cash) | M15: Scheduled Discounted Balance Received | N15: Prepaid Discounted Balance | O15: Prepaid Principal Cash Received | P15: Total Discounted Balance Received | Q15: Pre-Replenishment Discounted Receivables Balance | R15: Interest | S15: Total Collections | U15: Discounted Balance of Receivables Available for Purchase | W15: Other Amounts Received | Y15: Weighted Average Seasoning (months) | AA15: Late Delinquent Receivables (Discounted Balance) | AB15: Defaulted Receivables (Discounted Balance) | AC15: Late Delinquency Ratio | AE15: Day Factor (act/365) | AF15: Servicer Fee Rate | AG15: Servicer Fee Due | AI15: Admin Cost and Fees | AJ15: Specified Third Party Fees Due | AK15: Any other Issuer Expenses and Admin Costs | AM15: Taxes (a) | AN15: Security Trustee (b) | AO15: Servicer (c) | AP15: Fees, Costs & Expenses (d) | AR15: Fees, cost & expenses of any Administrative Receiver or similar | AT15: Compounded Daily SONIA | AU15: Class A Swap Rate | AV15: Class B Swap Rate | AW15: Issuer Accounts Interest Rate | AY15: Counterparty Downgrade Collateral Requirement | AZ15: Counterparty Downgrade Collateral Posted with Issuer | BA15: Counterparty Downgrade Collateral Returned | BB15: Swap Counterparty Downgrade Collateral Account | BD15: Excess Swap Termination Payment (released to Issuer) | BE15: Class A Termination Payment due to Counterparty | BF15: Class B Termination Payment due to Counterparty | BH15: Class A Amount Withdrawn | BI15: Class B Amount Withdrawn | BJ15: Amount not needed in Priority of Payments | BK15: Amount Released back to Swap Counterparty | BM15: Future Discounted Receivables Balance (period start) | BN15: Interest Compensation Required Amount | BO15: Buffer Top-Up Shortfall Rate | BP15: Buffer Release Rate | BT15: SMM | BV15: 0 | BW15: 1 | BX15: 2 | BY15: 3 | BZ15: 4 | CA15: 5 | CB15: 6 | CC15: 7 | CD15: 8 | CF15: 0 | CG15: 1 | CH15: 2 | CI15: 3 | CJ15: 4 | CK15: 5 | CL15: 6 | CM15: 7 | CN15: 8 | CQ15: 0 | CR15: 1 | CS15: 2 | CT15: 3 | CU15: 4 | CV15: 5 | CW15: 6 | CX15: 7 | CY15: 8 | DA15: 0 | DB15: 1 | DC15: 2 | DD15: 3 | DE15: 4 | DF15: 5 | DG15: 6 | DH15: 7 | DI15: 8
A16: 0 | B16: =Timing!$F16 -> 2024-03-25 | C16: =Timing!B16 -> 2024-02-29 | Y16: 9.58 | AT16: 0.0519 | AU16: =ClassASwap -> 0.04903 | AV16: =ClassBSwap -> 0.05644 | AW16: =AT16-0.25% -> 0.0494 | AY16: 0 | BB16: 0 | BH16: 0 | BI16: 0 | BJ16: 0 | BK16: 0
A17: 1 | B17: =Timing!$F17 -> 2024-04-25 | C17: =Timing!B17 -> 2024-03-31 | E17: ='Pool Run Out Schedule 0% CPR'!D4 -> 0.01100662908 | F17: =CashFlowsLedgers!CM16 -> 625007501.5 | G17: =CashFlowsLedgers!CP16 -> 625007501.5 | H17: =SUM(DA17:DI17) -> 0.01100662908 | I17: 0 | J17: 0 | K17: =ROUND(MIN(G17,G17*(1-(1-J17)^(1/12))),2) -> 0 | L17: =ROUND(SUMPRODUCT(K$16:K17,$L$8:$L$9),2) -> 0 | M17: =ROUND(MIN(G17-K17,G17*H17),2) -> 6879225.74 | N17: =ROUND(MIN(G17-K17-M17,(G17-M17)*(1-(1-I17)^(1/12))),2) -> 0 | O17: =N17*(1-0.092*MAX(1-A17/60,0)) -> 0 | P17: =SUM(M17:N17) -> 6879225.74 | Q17: =ROUND(G17-K17-M17-N17,2) -> 618128275.8 | R17: =ROUND(G17*DiscountRate*Timing!I17,2) -> 3837516.95 | S17: =ROUND(L17+M17+O17+R17,2) -> 10716742.69 | U17: 40000000 | W17: 0 | Y17: =IF(Q17<0.01,0,(($Y$16+($A17-$CF$15))*(CF17/$CO17))+(($Y$16+($A17-$CG$15))*(CG17/$CO17))+(($Y$16+($A17-$CH$15))*(CH17/$CO17))+(($Y$16+($A17-$CI$15))*(CI17/$CO17))+(($Y$16+($A17-$CJ$15))*(CJ17/$CO17))+(($Y$16+($A17-$CK$15))*(CK17/$CO17))+(($Y$16+($A17-$CL$15))*(CL17/$CO17))+(($Y$16+($A17-$CM$15))*(CM17/$CO17))+(($Y$16+($A17-$CN$15))*(CN17/$CO17))) -> 10.58 | AA17: 0 | AB17: 0 | AC17: =IF(Q17<0.01,0,AA17/(G17-AB17)) -> 0 | AE17: =Timing!I17 -> 0.08493150685 | AF17: =ServicerFeePercentage -> 0.01 | AG17: =G17*AF17*AE17 -> 530828.289 | AI17: =ThirdPartyFeePercentage -> 0.0003 | AJ17: =G17*AI17*AE17 -> 15924.84867 | AM17: =$AJ17/11 -> 1447.713515 | AN17: =$AJ17/11 -> 1447.713515 | AO17: =AG17 -> 530828.289 | AP17: =MAX(0,AJ17-AM17-AN17)+AK17 -> 13029.42164 | AT17: 0.0519 | AU17: 0.04903 | AV17: 0.05644 | AW17: =AT17-0.25% -> 0.0494 | AY17: 0 | AZ17: 0 | BA17: =MAX(0,BB16-AY17) -> 0 | BB17: =MAX(0,BB16+AZ17-BA17+IF(Triggers!BH16,BJ16-BH16-BI16-BK16,0)) -> 0 | BH17: =IF(Triggers!$BH17,MIN(Swap!I17,BB17),0) -> 0 | BI17: =IF(Triggers!$BH17,MIN(Swap!Q17,BB17-BH17),0) -> 0 | BJ17: =IF(CashFlowsLedgers!$C17="End",NA(),IF(CashFlowsLedgers!$D17,0,IF(CashFlowsLedgers!$C17="Post-Foreclosure",PostForeclosure!BR17,PreForeclosure!CG17))) -> 0 | BK17: =IF(CashFlowsLedgers!BB16+CashFlowsLedgers!BF16<0.01,BB17-BH17-BI17+BJ17,0) -> 0 | BM17: =G17 -> 625007501.5 | BN17: =N17-O17 -> 0 | BO17: =IFERROR(MAX((((CashFlowsLedgers!BB16/(CashFlowsLedgers!BB16+CashFlowsLedgers!BF16+CashFlowsLedgers!BJ16)*ClassASwap))+((CashFlowsLedgers!BF16/(CashFlowsLedgers!BB16+CashFlowsLedgers!BF16+CashFlowsLedgers!BJ16)*ClassBSwap))+((CashFlowsLedgers!BJ16/(CashFlowsLedgers!BB16+CashFlowsLedgers!BF16+CashFlowsLedgers!BJ16)*SubLoan_Rate))+ServicerFeePercentage+ThirdPartyFeePercentage+InterestCompensationRate-DiscountRate)/12,0),0) -> 0 | BP17: =IFERROR(MAX((DiscountRate-(((CashFlowsLedgers!BB16/(CashFlowsLedgers!BB16+CashFlowsLedgers!BF16+CashFlowsLedgers!BJ16)*ClassASwap))+((CashFlowsLedgers!BF16/(CashFlowsLedgers!BB16+CashFlowsLedgers!BF16+CashFlowsLedgers!BJ16)*ClassBSwap))+((CashFlowsLedgers!BJ16/(CashFlowsLedgers!BB16+CashFlowsLedgers!BF16+CashFlowsLedgers!BJ16)*SubLoan_Rate))+ServicerFeePercentage+ThirdPartyFeePercentage+InterestCompensationRate))/12,0),0) -> 3.865901892e-08 | BT17: =1-(1-I17)^(1/12) -> 0 | BV17: =E17 -> 0.01100662908 | CF17: =$F17 -> 625007501.5 | CO17: =SUM($CF17:$CN17) -> 625007501.5 | CQ17: =IF($CO17>0,CF17/$CO17,0) -> 1 | DA17: =CQ17*BV17 -> 0.01100662908
A18: 2 | B18: =Timing!$F18 -> 2024-05-28 | C18: =Timing!B18 -> 2024-04-30 | E18: ='Pool Run Out Schedule 0% CPR'!D5 -> 0.0112034493 | F18: =CashFlowsLedgers!CM17 -> 7817163.646 | G18: =CashFlowsLedgers!CP17 -> 625945439.4 | H18: 0.0112009913 | I18: 0 | J18: 0 | K18: =ROUND(MIN(G18,G18*(1-(1-J18)^(1/12))),2) -> 0 | L18: =ROUND(SUMPRODUCT(K$16:K18,$L$7:$L$9),2) -> 0 | M18: =ROUND(MIN(G18-K18,G18*H18),2) -> 7011209.42 | N18: =ROUND(MIN(G18-K18-M18,(G18-M18)*(1-(1-I18)^(1/12))),2) -> 0 | O18: 0 | P18: =SUM(M18:N18) -> 7011209.42 | Q18: =ROUND(G18-K18-M18-N18,2) -> 618934230 | R18: =ROUND(G18*DiscountRate*Timing!I18,2) -> 4091229.12 | S18: 11102438.54 | U18: 40000000 | W18: 0 | Y18: =IF(Q18<0.01,0,(($Y$16+($A18-$CF$15))*(CF18/$CO18))+(($Y$16+($A18-$CG$15))*(CG18/$CO18))+(($Y$16+($A18-$CH$15))*(CH18/$CO18))+(($Y$16+($A18-$CI$15))*(CI18/$CO18))+(($Y$16+($A18-$CJ$15))*(CJ18/$CO18))+(($Y$16+($A18-$CK$15))*(CK18/$CO18))+(($Y$16+($A18-$CL$15))*(CL18/$CO18))+(($Y$16+($A18-$CM$15))*(CM18/$CO18))+(($Y$16+($A18-$CN$15))*(CN18/$CO18))) -> 11.56751143 | AA18: 0 | AB18: 0 | AC18: =IF(Q18<0.01,0,AA18/(G18-AB18)) -> 0 | AE18: =Timing!I18 -> 0.0904109589 | AF18: 0.01 | AG18: =G18*AF18*AE18 -> 565923.274 | AI18: 0.0003 | AJ18: =G18*AI18*AE18 -> 16977.69822 | AM18: =$AJ18/11 -> 1543.427111 | AN18: 1543.427111 | AO18: =AG18 -> 565923.274 | AP18: =MAX(0,AJ18-AM18-AN18)+AK18 -> 13890.844 | AT18: 0.0519 | AU18: 0.04903 | AV18: 0.05644 | AW18: 0.0494 | AY18: 0 | AZ18: 0 | BA18: =MAX(0,BB17-AY18) -> 0 | BB18: =MAX(0,BB17+AZ18-BA18+IF(Triggers!BH17,BJ17-BH17-BI17-BK17,0)) -> 0 | BH18: =IF(Triggers!$BH18,MIN(Swap!I18,BB18),0) -> 0 | BI18: =IF(Triggers!$BH18,MIN(Swap!Q18,BB18-BH18),0) -> 0 | BJ18: =IF(CashFlowsLedgers!$C18="End",NA(),IF(CashFlowsLedgers!$D18,0,IF(CashFlowsLedgers!$C18="Post-Foreclosure",PostForeclosure!BR18,PreForeclosure!CG18))) -> 0 | BK18: =IF(CashFlowsLedgers!BB17+CashFlowsLedgers!BF17<0.01,BB18-BH18-BI18+BJ18,0) -> 0 | BM18: =G18 -> 625945439.4 | BN18: =N18-O18 -> 0 | BO18: =IFERROR(MAX((((CashFlowsLedgers!BB17/(CashFlowsLedgers!BB17+CashFlowsLedgers!BF17+CashFlowsLedgers!BJ17)*ClassASwap))+((CashFlowsLedgers!BF17/(CashFlowsLedgers!BB17+CashFlowsLedgers!BF17+CashFlowsLedgers!BJ17)*ClassBSwap))+((CashFlowsLedgers!BJ17/(CashFlowsLedgers!BB17+CashFlowsLedgers!BF17+CashFlowsLedgers!BJ17)*SubLoan_Rate))+ServicerFeePercentage+ThirdPartyFeePercentage+InterestCompensationRate-DiscountRate)/12,0),0) -> 0 | BP18: =IFERROR(MAX((DiscountRate-(((CashFlowsLedgers!BB17/(CashFlowsLedgers!BB17+CashFlowsLedgers!BF17+CashFlowsLedgers!BJ17)*ClassASwap))+((CashFlowsLedgers!BF17/(CashFlowsLedgers!BB17+CashFlowsLedgers!BF17+CashFlowsLedgers!BJ17)*ClassBSwap))+((CashFlowsLedgers!BJ17/(CashFlowsLedgers!BB17+CashFlowsLedgers!BF17+CashFlowsLedgers!BJ17)*SubLoan_Rate))+ServicerFeePercentage+ThirdPartyFeePercentage+InterestCompensationRate))/12,0),0) -> 3.865901892e-08 | BT18: =1-(1-I18)^(1/12) -> 0 | BV18: 0.0112034493 | BW18: =BV17 -> 0.01100662908 | CF18: =CF17*(1-BV17)*(1-$BT17) -> 618128275.8 | CG18: =$F18 -> 7817163.646 | CO18: 625945439.4 | CQ18: 0.9875114297 | CR18: =IF($CO18>0,CG18/$CO18,0) -> 0.01248857033 | DA18: 0.01106353424 | DB18: =CR18*BW18 -> 0.0001374570614
A19: 3 | B19: =Timing!$F19 -> 2024-06-25 | C19: =Timing!B19 -> 2024-05-31 | E19: ='Pool Run Out Schedule 0% CPR'!D6 -> 0.01141143327 | F19: =CashFlowsLedgers!CM18 -> 8035591.646 | G19: =CashFlowsLedgers!CP18 -> 626969821.7 | H19: 0.01140368044 | I19: 0 | J19: 0 | K19: =ROUND(MIN(G19,G19*(1-(1-J19)^(1/12))),2) -> 0 | L19: =ROUND(SUMPRODUCT(K$16:K19,$L$6:$L$9),2) -> 0 | M19: =ROUND(MIN(G19-K19,G19*H19),2) -> 7149763.49 | N19: =ROUND(MIN(G19-K19-M19,(G19-M19)*(1-(1-I19)^(1/12))),2) -> 0 | O19: 0 | P19: =SUM(M19:N19) -> 7149763.49 | Q19: 619820058.2 | R19: =ROUND(G19*DiscountRate*Timing!I19,2) -> 3477026.91 | S19: 10626790.4 | U19: 40000000 | W19: 0 | Y19: 12.54203596 | AA19: 0 | AB19: 0 | AC19: =IF(Q19<0.01,0,AA19/(G19-AB19)) -> 0 | AE19: =Timing!I19 -> 0.07671232877 | AF19: 0.01 | AG19: 480963.1509 | AI19: 0.0003 | AJ19: =G19*AI19*AE19 -> 14428.89453 | AM19: =$AJ19/11 -> 1311.717684 | AN19: 1311.717684 | AO19: =AG19 -> 480963.1509 | AP19: 11805.45916 | AT19: 0.0519 | AU19: 0.04903 | AV19: 0.05644 | AW19: 0.0494 | AY19: 0 | AZ19: 0 | BA19: 0 | BB19: =MAX(0,BB18+AZ19-BA19+IF(Triggers!BH18,BJ18-BH18-BI18-BK18,0)) -> 0 | BH19: =IF(Triggers!$BH19,MIN(Swap!I19,BB19),0) -> 0 | BI19: =IF(Triggers!$BH19,MIN(Swap!Q19,BB19-BH19),0) -> 0 | BJ19: =IF(CashFlowsLedgers!$C19="End",NA(),IF(CashFlowsLedgers!$D19,0,IF(CashFlowsLedgers!$C19="Post-Foreclosure",PostForeclosure!BR19,PreForeclosure!CG19))) -> 0 | BK19: =IF(CashFlowsLedgers!BB18+CashFlowsLedgers!BF18<0.01,BB19-BH19-BI19+BJ19,0) -> 0 | BM19: 626969821.7 | BN19: =N19-O19 -> 0 | BO19: =IFERROR(MAX((((CashFlowsLedgers!BB18/(CashFlowsLedgers!BB18+CashFlowsLedgers!BF18+CashFlowsLedgers!BJ18)*ClassASwap))+((CashFlowsLedgers!BF18/(CashFlowsLedgers!BB18+CashFlowsLedgers!BF18+CashFlowsLedgers!BJ18)*ClassBSwap))+((CashFlowsLedgers!BJ18/(CashFlowsLedgers!BB18+CashFlowsLedgers!BF18+CashFlowsLedgers!BJ18)*SubLoan_Rate))+ServicerFeePercentage+ThirdPartyFeePercentage+InterestCompensationRate-DiscountRate)/12,0),0) -> 0 | BP19: =IFERROR(MAX((DiscountRate-(((CashFlowsLedgers!BB18/(CashFlowsLedgers!BB18+CashFlowsLedgers!BF18+CashFlowsLedgers!BJ18)*ClassASwap))+((CashFlowsLedgers!BF18/(CashFlowsLedgers!BB18+CashFlowsLedgers!BF18+CashFlowsLedgers!BJ18)*ClassBSwap))+((CashFlowsLedgers!BJ18/(CashFlowsLedgers!BB18+CashFlowsLedgers!BF18+CashFlowsLedgers!BJ18)*SubLoan_Rate))+ServicerFeePercentage+ThirdPartyFeePercentage+InterestCompensationRate))/12,0),0) -> 3.865901892e-08 | BT19: 0 | BV19: 0.01141143327 | BW19: =BV18 -> 0.0112034493 | BX19: =BW18 -> 0.01100662908 | CF19: =CF18*(1-BV18)*(1-$BT18) -> 611203107 | CG19: =CG18*(1-BW18)*(1-$BT18) -> 7731123.025 | CH19: =$F19 -> 8035591.646 | CO19: 626969821.7 | CQ19: 0.9748525142 | CR19: 0.01233093326 | CS19: =IF($CO19>0,CH19/$CO19,0) -> 0.01281655252 | DA19: 0.01112446441 | DB19: 0.0001381489856 | DC19: =CS19*BX19 -> 0.0001410670396
A20: 4 | B20: =Timing!$F20 -> 2024-07-25 | C20: =Timing!B20 -> 2024-06-30 | E20: ='Pool Run Out Schedule 0% CPR'!D7 -> 0.01161269823 | F20: =CashFlowsLedgers!CM19 -> 7990904.002 | G20: =CashFlowsLedgers!CP19 -> 627810962.2 | H20: 0.01159735289 | I20: 0 | J20: 0 | K20: =ROUND(MIN(G20,G20*(1-(1-J20)^(1/12))),2) -> 0 | L20: =ROUND(SUMPRODUCT(K$16:K20,$L$5:$L$9),2) -> 0 | M20: =ROUND(MIN(G20-K20,G20*H20),2) -> 7280945.27 | N20: 0 | O20: 0 | P20: 7280945.27 | Q20: 620530016.9 | R20: =ROUND(G20*DiscountRate*Timing!I20,2) -> 3730383.94 | S20: 11011329.21 | U20: 40000000 | W20: 0 | Y20: 13.50432194 | AA20: 0 | AB20: 0 | AC20: 0 | AE20: =Timing!I20 -> 0.08219178082 | AF20: 0.01 | AG20: 516009.01 | AI20: 0.0003 | AJ20: =G20*AI20*AE20 -> 15480.2703 | AM20: 1407.2973 | AN20: 1407.2973 | AO20: 516009.01 | AP20: 12665.6757 | AT20: 0.0519 | AU20: 0.04903 | AV20: 0.05644 | AW20: 0.0494 | AY20: 0 | AZ20: 0 | BA20: 0 | BB20: =MAX(0,BB19+AZ20-BA20+IF(Triggers!BH19,BJ19-BH19-BI19-BK19,0)) -> 0 | BH20: =IF(Triggers!$BH20,MIN(Swap!I20,BB20),0) -> 0 | BI20: =IF(Triggers!$BH20,MIN(Swap!Q20,BB20-BH20),0) -> 0 | BJ20: =IF(CashFlowsLedgers!$C20="End",NA(),IF(CashFlowsLedgers!$D20,0,IF(CashFlowsLedgers!$C20="Post-Foreclosure",PostForeclosure!BR20,PreForeclosure!CG20))) -> 0 | BK20: =IF(CashFlowsLedgers!BB19+CashFlowsLedgers!BF19<0.01,BB20-BH20-BI20+BJ20,0) -> 0 | BM20: 627810962.2 | BN20: 0 | BO20: =IFERROR(MAX((((CashFlowsLedgers!BB19/(CashFlowsLedgers!BB19+CashFlowsLedgers!BF19+CashFlowsLedgers!BJ19)*ClassASwap))+((CashFlowsLedgers!BF19/(CashFlowsLedgers!BB19+CashFlowsLedgers!BF19+CashFlowsLedgers!BJ19)*ClassBSwap))+((CashFlowsLedgers!BJ19/(CashFlowsLedgers!BB19+CashFlowsLedgers!BF19+CashFlowsLedgers!BJ19)*SubLoan_Rate))+ServicerFeePercentage+ThirdPartyFeePercentage+InterestCompensationRate-DiscountRate)/12,0),0) -> 0 | BP20: =IFERROR(MAX((DiscountRate-(((CashFlowsLedgers!BB19/(CashFlowsLedgers!BB19+CashFlowsLedgers!BF19+CashFlowsLedgers!BJ19)*ClassASwap))+((CashFlowsLedgers!BF19/(CashFlowsLedgers!BB19+CashFlowsLedgers!BF19+CashFlowsLedgers!BJ19)*ClassBSwap))+((CashFlowsLedgers!BJ19/(CashFlowsLedgers!BB19+CashFlowsLedgers!BF19+CashFlowsLedgers!BJ19)*SubLoan_Rate))+ServicerFeePercentage+ThirdPartyFeePercentage+InterestCompensationRate))/12,0),0) -> 3.865901892e-08 | BT20: 0 | BV20: 0.01161269823 | BW20: 0.01141143327 | BX20: 0.0112034493 | BY20: =BX19 -> 0.01100662908 | CF20: =CF19*(1-BV19)*(1-$BT19) -> 604228403.5 | CG20: =CG19*(1-BW19)*(1-$BT19) -> 7644507.78 | CH20: =CH19*(1-BX19)*(1-$BT19) -> 7947146.869 | CI20: =$F20 -> 7990904.002 | CO20: 627810962.2 | CQ20: 0.9624368479 | CR20: 0.01217644839 | CS20: 0.01265850287 | CT20: =IF($CO20>0,CI20/$CO20,0) -> 0.01272820082 | DA20: 0.01117648868 | DB20: 0.0001389507283 | DC20: 0.0001418188952 | DD20: =CT20*BY20 -> 0.0001400945852
A21: 5 | B21: =Timing!$F21 -> 2024-08-27 | C21: =Timing!B21 -> 2024-07-31 | E21: ='Pool Run Out Schedule 0% CPR'!D8 -> 0.01181992014 | F21: =CashFlowsLedgers!CM20 -> 8208165.65 | G21: =CashFlowsLedgers!CP20 -> 628738182.5 | H21: 0.01179395777 | I21: 0 | J21: 0 | K21: =ROUND(MIN(G21,G21*(1-(1-J21)^(1/12))),2) -> 0 | L21: =ROUND(SUMPRODUCT(K$16:K21,$L$4:$L$9),2) -> 0 | M21: 7415311.57 | N21: 0 | O21: 0 | P21: 7415311.57 | Q21: 621322871 | R21: =ROUND(G21*DiscountRate*Timing!I21,2) -> 4109482.72 | S21: 11524794.29 | U21: 40000000 | W21: 0 | Y21: 14.45305525 | AA21: 0 | AB21: 0 | AC21: 0 | AE21: =Timing!I21 -> 0.0904109589 | AF21: 0.01 | AG21: 568448.2198 | AI21: 0.0003 | AJ21: 17053.4466 | AM21: =$AJ21/11 -> 1550.313327 | AN21: 1550.313327 | AO21: 568448.2198 | AP21: 13952.81994 | AT21: 0.0519 | AU21: 0.04903 | AV21: 0.05644 | AW21: 0.0494 | AY21: 0 | AZ21: 0 | BA21: 0 | BB21: =MAX(0,BB20+AZ21-BA21+IF(Triggers!BH20,BJ20-BH20-BI20-BK20,0)) -> 0 | BH21: =IF(Triggers!$BH21,MIN(Swap!I21,BB21),0) -> 0 | BI21: =IF(Triggers!$BH21,MIN(Swap!Q21,BB21-BH21),0) -> 0 | BJ21: =IF(CashFlowsLedgers!$C21="End",NA(),IF(CashFlowsLedgers!$D21,0,IF(CashFlowsLedgers!$C21="Post-Foreclosure",PostForeclosure!BR21,PreForeclosure!CG21))) -> 0 | BK21: =IF(CashFlowsLedgers!BB20+CashFlowsLedgers!BF20<0.01,BB21-BH21-BI21+BJ21,0) -> 0 | BM21: 628738182.5 | BN21: 0 | BO21: =IFERROR(MAX((((CashFlowsLedgers!BB20/(CashFlowsLedgers!BB20+CashFlowsLedgers!BF20+CashFlowsLedgers!BJ20)*ClassASwap))+((CashFlowsLedgers!BF20/(CashFlowsLedgers!BB20+CashFlowsLedgers!BF20+CashFlowsLedgers!BJ20)*ClassBSwap))+((CashFlowsLedgers!BJ20/(CashFlowsLedgers!BB20+CashFlowsLedgers!BF20+CashFlowsLedgers!BJ20)*SubLoan_Rate))+ServicerFeePercentage+ThirdPartyFeePercentage+InterestCompensationRate-DiscountRate)/12,0),0) -> 0 | BP21: =IFERROR(MAX((DiscountRate-(((CashFlowsLedgers!BB20/(CashFlowsLedgers!BB20+CashFlowsLedgers!BF20+CashFlowsLedgers!BJ20)*ClassASwap))+((CashFlowsLedgers!BF20/(CashFlowsLedgers!BB20+CashFlowsLedgers!BF20+CashFlowsLedgers!BJ20)*ClassBSwap))+((CashFlowsLedgers!BJ20/(CashFlowsLedgers!BB20+CashFlowsLedgers!BF20+CashFlowsLedgers!BJ20)*SubLoan_Rate))+ServicerFeePercentage+ThirdPartyFeePercentage+InterestCompensationRate))/12,0),0) -> 3.865901892e-08 | BT21: 0 | BV21: 0.01181992014 | BW21: 0.01161269823 | BX21: 0.01141143327 | BY21: 0.0112034493 | BZ21: =BY20 -> 0.01100662908 | CF21: 597211681.4 | CG21: 7557272.99 | CH21: =CH20*(1-BX20)*(1-$BT20) -> 7858111.412 | CI21: =CI20*(1-BY20)*(1-$BT20) -> 7902951.086 | CJ21: =$F21 -> 8208165.65 | CO21: 628738182.5 | CQ21: 0.9498575051 | CR21: 0.01201974558 | CS21: 0.01249822522 | CT21: 0.01256954215 | CU21: =IF($CO21>0,CJ21/$CO21,0) -> 0.01305498199 | DA21: 0.01122723985 | DB21: 0.0001395816782 | DC21: 0.0001426226631 | DD21: 0.0001408222282 | DE21: =CU21*BZ21 -> 0.0001436913444
A22: 6 | B22: =Timing!$F22 -> 2024-09-25 | C22: =Timing!B22 -> 2024-08-31 | E22: ='Pool Run Out Schedule 0% CPR'!D9 -> 0.01597475658 | F22: =CashFlowsLedgers!CM21 -> 8468937.651 | G22: =CashFlowsLedgers!CP21 -> 629791808.6 | H22: 0.01568674386 | I22: 0 | J22: 0 | K22: =ROUND(MIN(G22,G22*(1-(1-J22)^(1/12))),2) -> 0 | L22: =ROUND(SUMPRODUCT(K$16:K22,$L$3:$L$9),2) -> 0 | M22: 9879382.79 | N22: 0 | O22: 0 | P22: 9879382.79 | Q22: 619912425.8 | R22: =ROUND(G22*DiscountRate*Timing!I22,2) -> 3617415.44 | S22: 13496798.23 | U22: 40000000 | W22: 0 | Y22: 15.3874513 | AA22: 0 | AB22: 0 | AC22: 0 | AE22: =Timing!I22 -> 0.07945205479 | AF22: 0.01 | AG22: 500382.5329 | AI22: 0.0003 | AJ22: 15011.47599 | AM22: =$AJ22/11 -> 1364.679635 | AN22: 1364.679635 | AO22: 500382.5329 | AP22: 12282.11672 | AT22: 0.0519 | AU22: 0.04903 | AV22: 0.05644 | AW22: 0.0494 | AY22: 0 | AZ22: 0 | BA22: 0 | BB22: =MAX(0,BB21+AZ22-BA22+IF(Triggers!BH21,BJ21-BH21-BI21-BK21,0)) -> 0 | BH22: =IF(Triggers!$BH22,MIN(Swap!I22,BB22),0) -> 0 | BI22: =IF(Triggers!$BH22,MIN(Swap!Q22,BB22-BH22),0) -> 0 | BJ22: =IF(CashFlowsLedgers!$C22="End",NA(),IF(CashFlowsLedgers!$D22,0,IF(CashFlowsLedgers!$C22="Post-Foreclosure",PostForeclosure!BR22,PreForeclosure!CG22))) -> 0 | BK22: =IF(CashFlowsLedgers!BB21+CashFlowsLedgers!BF21<0.01,BB22-BH22-BI22+BJ22,0) -> 0 | BM22: 629791808.6 | BN22: 0 | BO22: =IFERROR(MAX((((CashFlowsLedgers!BB21/(CashFlowsLedgers!BB21+CashFlowsLedgers!BF21+CashFlowsLedgers!BJ21)*ClassASwap))+((CashFlowsLedgers!BF21/(CashFlowsLedgers!BB21+CashFlowsLedgers!BF21+CashFlowsLedgers!BJ21)*ClassBSwap))+((CashFlowsLedgers!BJ21/(CashFlowsLedgers!BB21+CashFlowsLedgers!BF21+CashFlowsLedgers!BJ21)*SubLoan_Rate))+ServicerFeePercentage+ThirdPartyFeePercentage+InterestCompensationRate-DiscountRate)/12,0),0) -> 0 | BP22: =IFERROR(MAX((DiscountRate-(((CashFlowsLedgers!BB21/(CashFlowsLedgers!BB21+CashFlowsLedgers!BF21+CashFlowsLedgers!BJ21)*ClassASwap))+((CashFlowsLedgers!BF21/(CashFlowsLedgers!BB21+CashFlowsLedgers!BF21+CashFlowsLedgers!BJ21)*ClassBSwap))+((CashFlowsLedgers!BJ21/(CashFlowsLedgers!BB21+CashFlowsLedgers!BF21+CashFlowsLedgers!BJ21)*SubLoan_Rate))+ServicerFeePercentage+ThirdPartyFeePercentage+InterestCompensationRate))/12,0),0) -> 3.865901892e-08 | BT22: 0 | BV22: 0.01597475658 | BW22: 0.01181992014 | BX22: 0.01161269823 | BY22: 0.01141143327 | BZ22: 0.0112034493 | CA22: =BZ21 -> 0.01100662908 | CF22: 590152687 | CG22: 7469512.659 | CH22: 7768439.098 | CI22: =CI21*(1-BY21)*(1-$BT21) -> 7814410.774 | CJ22: =CJ21*(1-BZ21)*(1-$BT21) -> 8117821.415 | CK22: =$F22 -> 8468937.651 | CO22: 629791808.6 | CQ22: 0.93705996 | CR22: 0.01186028868 | CS22: 0.01233493194 | CT22: 0.01240792698 | CU22: 0.01288969038 | CV22: =IF($CO22>0,CK22/$CO22,0) -> 0.01344720197 | DA22: 0.01496930476 | DB22: 0.000140187665 | DC22: 0.0001432418423 | DD22: 0.0001415922308 | DE22: 0.0001444089927 | DF22: =CV22*CA22 -> 0.0001480083642
A23: 7 | B23: =Timing!$F23 -> 2024-10-25 | C23: =Timing!B23 -> 2024-09-30 | E23: ='Pool Run Out Schedule 0% CPR'!D10 -> 0.01674790176 | F23: =CashFlowsLedgers!CM22 -> 10873118.01 | G23: =CashFlowsLedgers!CP22 -> 630785543.9 | H23: 0.01637548505 | I23: 0 | J23: 0 | K23: 0 | L23: =ROUND(SUMPRODUCT(K17:K23,$L$3:$L$9),2) -> 0 | M23: 10329419.25 | N23: 0 | O23: 0 | P23: 10329419.25 | Q23: =ROUND(G23-K23-M23-N23,2) -> 620456124.6 | R23: =ROUND(G23*DiscountRate*Timing!I23,2) -> 3748058.57 | S23: 14077477.82 | W23: 0 | Y23: 16.2864958 | AA23: 0 | AB23: 0 | AC23: 0 | AE23: =Timing!I23 -> 0.08219178082 | AF23: 0.01 | AG23: 518453.8717 | AI23: 0.0003 | AJ23: 15553.61615 | AM23: =$AJ23/11 -> 1413.965105 | AN23: 1413.965105 | AO23: 518453.8717 | AP23: 12725.68594 | AT23: 0.0519 | AU23: 0.04903 | AV23: 0.05644 | AW23: 0.0494 | AY23: 0 | AZ23: 0 | BA23: 0 | BB23: =MAX(0,BB22+AZ23-BA23+IF(Triggers!BH22,BJ22-BH22-BI22-BK22,0)) -> 0 | BH23: =IF(Triggers!$BH23,MIN(Swap!I23,BB23),0) -> 0 | BI23: =IF(Triggers!$BH23,MIN(Swap!Q23,BB23-BH23),0) -> 0 | BJ23: =IF(CashFlowsLedgers!$C23="End",NA(),IF(CashFlowsLedgers!$D23,0,IF(CashFlowsLedgers!$C23="Post-Foreclosure",PostForeclosure!BR23,PreForeclosure!CG23))) -> 0 | BK23: =IF(CashFlowsLedgers!BB22+CashFlowsLedgers!BF22<0.01,BB23-BH23-BI23+BJ23,0) -> 0 | BM23: 630785543.9 | BN23: 0 | BO23: =IFERROR(MAX((((CashFlowsLedgers!BB22/(CashFlowsLedgers!BB22+CashFlowsLedgers!BF22+CashFlowsLedgers!BJ22)*ClassASwap))+((CashFlowsLedgers!BF22/(CashFlowsLedgers!BB22+CashFlowsLedgers!BF22+CashFlowsLedgers!BJ22)*ClassBSwap))+((CashFlowsLedgers!BJ22/(CashFlowsLedgers!BB22+CashFlowsLedgers!BF22+CashFlowsLedgers!BJ22)*SubLoan_Rate))+ServicerFeePercentage+ThirdPartyFeePercentage+InterestCompensationRate-DiscountRate)/12,0),0) -> 0 | BP23: =IFERROR(MAX((DiscountRate-(((CashFlowsLedgers!BB22/(CashFlowsLedgers!BB22+CashFlowsLedgers!BF22+CashFlowsLedgers!BJ22)*ClassASwap))+((CashFlowsLedgers!BF22/(CashFlowsLedgers!BB22+CashFlowsLedgers!BF22+CashFlowsLedgers!BJ22)*ClassBSwap))+((CashFlowsLedgers!BJ22/(CashFlowsLedgers!BB22+CashFlowsLedgers!BF22+CashFlowsLedgers!BJ22)*SubLoan_Rate))+ServicerFeePercentage+ThirdPartyFeePercentage+InterestCompensationRate))/12,0),0) -> 3.865901892e-08 | BT23: 0 | BV23: 0.01674790176 | BW23: 0.01597475658 | BX23: 0.01181992014 | BY23: 0.01161269823 | BZ23: 0.01141143327 | CA23: 0.0112034493 | CB23: =CA22 -> 0.01100662908 | CF23: 580725141.5 | CG23: 7381223.616 | CH23: 7678226.559 | CI23: 7725237.147 | CJ23: =CJ22*(1-BZ22)*(1-$BT22) -> 8026873.814 | CK23: =CK22*(1-CA22)*(1-$BT22) -> 8375723.196 | CL23: =$F23 -> 10873118.01 | CO23: 630785543.8 | CQ23: 0.920638 | CR23: 0.01170163725 | CS23: 0.0121724834 | CT23: 0.01224701045 | CU23: 0.01272520256 | CV23: 0.01327824215 | CW23: =IF($CO23>0,CL23/$CO23,0) -> 0.01723742422 | DA23: 0.01541875478 | DB23: 0.0001869308066 | DC23: 0.0001438777816 | DD23: 0.0001422208365 | DE23: 0.0001452127998 | DF23: 0.0001487621128 | DG23: =CW23*CB23 -> 0.0001897259347
A24: 8 | B24: =Timing!$F24 -> 2024-11-25 | C24: =Timing!B24 -> 2024-10-31 | E24: ='Pool Run Out Schedule 0% CPR'!D11 -> 0.01886040253 | F24: =CashFlowsLedgers!CM23 -> 0 | G24: =CashFlowsLedgers!CP23 -> 620456124.6 | H24: 0.0183889124 | I24: 0 | J24: 0 | K24: 0 | L24: 0 | M24: 11409513.33 | N24: 0 | O24: 0 | P24: 11409513.33 | Q24: 609046611.3 | R24: =ROUND(G24*DiscountRate*Timing!I24,2) -> 3809571.71 | S24: 15219085.04 | W24: 0 | Y24: 17.28502989 | AA24: 0 | AB24: 0 | AC24: 0 | AE24: =Timing!I24 -> 0.08493150685 | AF24: 0.01 | AG24: 526962.736 | AI24: 0.0003 | AJ24: 15808.88208 | AM24: 1437.171098 | AN24: 1437.171098 | AO24: 526962.736 | AP24: 12934.53988 | AT24: 0.0519 | AU24: 0.04903 | AV24: 0.05644 | AW24: 0.0494 | AY24: 0 | AZ24: 0 | BA24: 0 | BB24: =MAX(0,BB23+AZ24-BA24+IF(Triggers!BH23,BJ23-BH23-BI23-BK23,0)) -> 0 | BH24: =IF(Triggers!$BH24,MIN(Swap!I24,BB24),0) -> 0 | BI24: =IF(Triggers!$BH24,MIN(Swap!Q24,BB24-BH24),0) -> 0 | BJ24: =IF(CashFlowsLedgers!$C24="End",NA(),IF(CashFlowsLedgers!$D24,0,IF(CashFlowsLedgers!$C24="Post-Foreclosure",PostForeclosure!BR24,PreForeclosure!CG24))) -> 0 | BK24: =IF(CashFlowsLedgers!BB23+CashFlowsLedgers!BF23<0.01,BB24-BH24-BI24+BJ24,0) -> 0 | BM24: 620456124.6 | BN24: 0 | BO24: =IFERROR(MAX((((CashFlowsLedgers!BB23/(CashFlowsLedgers!BB23+CashFlowsLedgers!BF23+CashFlowsLedgers!BJ23)*ClassASwap))+((CashFlowsLedgers!BF23/(CashFlowsLedgers!BB23+CashFlowsLedgers!BF23+CashFlowsLedgers!BJ23)*ClassBSwap))+((CashFlowsLedgers!BJ23/(CashFlowsLedgers!BB23+CashFlowsLedgers!BF23+CashFlowsLedgers!BJ23)*SubLoan_Rate))+ServicerFeePercentage+ThirdPartyFeePercentage+InterestCompensationRate-DiscountRate)/12,0),0) -> 6.260512522e-06 | BP24: =IFERROR(MAX((DiscountRate-(((CashFlowsLedgers!BB23/(CashFlowsLedgers!BB23+CashFlowsLedgers!BF23+CashFlowsLedgers!BJ23)*ClassASwap))+((CashFlowsLedgers!BF23/(CashFlowsLedgers!BB23+CashFlowsLedgers!BF23+CashFlowsLedgers!BJ23)*ClassBSwap))+((CashFlowsLedgers!BJ23/(CashFlowsLedgers!BB23+CashFlowsLedgers!BF23+CashFlowsLedgers!BJ23)*SubLoan_Rate))+ServicerFeePercentage+ThirdPartyFeePercentage+InterestCompensationRate))/12,0),0) -> 0 | BT24: 0 | BV24: 0.01886040253 | BW24: 0.01674790176 | BX24: 0.01597475658 | BY24: 0.01181992014 | BZ24: 0.01161269823 | CA24: 0.01141143327 | CB24: =CA23 -> 0.0112034493 | CC24: =CB23 -> 0.01100662908 | CF24: 570999213.9 | CG24: 7263310.365 | CH24: 7587470.534 | CI24: 7635526.299 | CJ24: 7935275.679 | CK24: =CK23*(1-CA23)*(1-$BT23) -> 8281886.206 | CL24: =CL23*(1-CB23)*(1-$BT23) -> 10753441.64 | CM24: =$F24 -> 0 | CO24: 620456124.6 | CQ24: 0.920289431 | CR24: 0.01170640449 | CS24: 0.01222885911 | CT24: 0.01230631143 | CU24: 0.01278942276 | CV24: 0.01334806101 | CW24: 0.01733151017 | CX24: =IF($CO24>0,CM24/$CO24,0) -> 0 | DA24: 0.01735702912 | DB24: 0.0001960577124 | DC24: 0.0001953530476 | DD24: 0.0001454596183 | DE24: 0.000148519707 | DF24: 0.0001523205075 | DG24: 0.0001941726956 | DH24: =CX24*CC24 -> 0
A25: 9 | B25: =Timing!$F25 -> 2024-12-27 | C25: =Timing!B25 -> 2024-11-30 | E25: ='Pool Run Out Schedule 0% CPR'!D12 -> 0.01688191831 | F25: =CashFlowsLedgers!CM24 -> 0 | G25: =CashFlowsLedgers!CP24 -> 609046611.3 | H25: 0.01666070998 | I25: 0 | J25: 0 | K25: 0 | L25: 0 | M25: 10147148.95 | N25: 0 | O25: 0 | P25: 10147148.95 | Q25: 598899462.3 | R25: =ROUND(G25*DiscountRate*Timing!I25,2) -> 3860147.43 | S25: 14007296.38 | W25: 0 | Y25: 18.28311434 | AA25: 0 | AB25: 0 | AC25: 0 | AE25: =Timing!I25 -> 0.08767123288 | AF25: 0.01 | AG25: 533958.6729 | AI25: 0.0003 | AJ25: 16018.76019 | AM25: =$AJ25/11 -> 1456.250926 | AN25: 1456.250926 | AO25: 533958.6729 | AP25: 13106.25833 | AT25: 0.0519 | AU25: 0.04903 | AV25: 0.05644 | AW25: 0.0494 | AY25: 0 | AZ25: 0 | BA25: 0 | BB25: =MAX(0,BB24+AZ25-BA25+IF(Triggers!BH24,BJ24-BH24-BI24-BK24,0)) -> 0 | BH25: =IF(Triggers!$BH25,MIN(Swap!I25,BB25),0) -> 0 | BI25: =IF(Triggers!$BH25,MIN(Swap!Q25,BB25-BH25),0) -> 0 | BJ25: =IF(CashFlowsLedgers!$C25="End",NA(),IF(CashFlowsLedgers!$D25,0,IF(CashFlowsLedgers!$C25="Post-Foreclosure",PostForeclosure!BR25,PreForeclosure!CG25))) -> 0 | BK25: =IF(CashFlowsLedgers!BB24+CashFlowsLedgers!BF24<0.01,BB25-BH25-BI25+BJ25,0) -> 0 | BM25: 609046611.3 | BN25: 0 | BO25: =IFERROR(MAX((((CashFlowsLedgers!BB24/(CashFlowsLedgers!BB24+CashFlowsLedgers!BF24+CashFlowsLedgers!BJ24)*ClassASwap))+((CashFlowsLedgers!BF24/(CashFlowsLedgers!BB24+CashFlowsLedgers!BF24+CashFlowsLedgers!BJ24)*ClassBSwap))+((CashFlowsLedgers!BJ24/(CashFlowsLedgers!BB24+CashFlowsLedgers!BF24+CashFlowsLedgers!BJ24)*SubLoan_Rate))+ServicerFeePercentage+ThirdPartyFeePercentage+InterestCompensationRate-DiscountRate)/12,0),0) -> 1.348998505e-05 | BP25: =IFERROR(MAX((DiscountRate-(((CashFlowsLedgers!BB24/(CashFlowsLedgers!BB24+CashFlowsLedgers!BF24+CashFlowsLedgers!BJ24)*ClassASwap))+((CashFlowsLedgers!BF24/(CashFlowsLedgers!BB24+CashFlowsLedgers!BF24+CashFlowsLedgers!BJ24)*ClassBSwap))+((CashFlowsLedgers!BJ24/(CashFlowsLedgers!BB24+CashFlowsLedgers!BF24+CashFlowsLedgers!BJ24)*SubLoan_Rate))+ServicerFeePercentage+ThirdPartyFeePercentage+InterestCompensationRate))/12,0),0) -> 0 | BT25: 0 | BV25: 0.01688191831 | BW25: 0.01886040253 | BX25: 0.01674790176 | BY25: 0.01597475658 | BZ25: 0.01181992014 | CA25: 0.01161269823 | CB25: 0.01141143327 | CC25: 0.0112034493 | CD25: =CC24 -> 0.01100662908 | CF25: 560229938.9 | CG25: 7141665.157 | CH25: 7466262.54 | CI25: 7545274.988 | CJ25: 7843125.718 | CK25: 8187378.014 | CL25: =CL24*(1-CB24)*(1-$BT24) -> 10632966 | CM25: =CM24*(1-CC24)*(1-$BT24) -> 0 | CN25: =$F25 -> 0 | CO25: 609046611.3 | CQ25: 0.9198473951 | CR25: 0.0117259747 | CS25: 0.01225893454 | CT25: 0.01238866591 | CU25: 0.01287771013 | CV25: 0.01344294158 | CW25: 0.01745837806 | CX25: 0 | CY25: =IF($CO25>0,CN25/$CO25,0) -> 0 | DA25: 0.01552878858 | DB25: 0.000221156603 | DC25: 0.0002053114314 | DD25: 0.0001979059222 | DE25: 0.0001522135053 | DF25: 0.0001561088238 | DG25: 0.0001992251163 | DH25: 0 | DI25: =CY25*CD25 -> 0
A26: 10 | B26: =Timing!$F26 -> 2025-01-27 | C26: =Timing!B26 -> 2024-12-31 | E26: ='Pool Run Out Schedule 0% CPR'!D13 -> 0.01624097367 | F26: =CashFlowsLedgers!CM25 -> 0 | G26: =CashFlowsLedgers!CP25 -> 598899462.3 | H26: 0.01614244994 | I26: 0 | J26: 0 | K26: 0 | L26: 0 | M26: 9667704.59 | N26: 0 | O26: 0 | P26: 9667704.59 | Q26: 589231757.7 | R26: =ROUND(G26*DiscountRate*Timing!I26,2) -> 3677214.8 | S26: 13344919.39 | W26: 0 | Y26: 19.28195901 | AA26: 0 | AB26: 0 | AC26: 0 | AE26: =Timing!I26 -> 0.08493150685 | AF26: 0.01 | AG26: 508654.3379 | AI26: 0.0003 | AJ26: 15259.63014 | AM26: 1387.239103 | AN26: 1387.239103 | AO26: 508654.3379 | AP26: 12485.15193 | AT26: 0.0519 | AU26: 0.04903 | AV26: 0.05644 | AW26: 0.0494 | AY26: 0 | AZ26: 0 | BA26: 0 | BB26: =MAX(0,BB25+AZ26-BA26+IF(Triggers!BH25,BJ25-BH25-BI25-BK25,0)) -> 0 | BH26: =IF(Triggers!$BH26,MIN(Swap!I26,BB26),0) -> 0 | BI26: =IF(Triggers!$BH26,MIN(Swap!Q26,BB26-BH26),0) -> 0 | BJ26: =IF(CashFlowsLedgers!$C26="End",NA(),IF(CashFlowsLedgers!$D26,0,IF(CashFlowsLedgers!$C26="Post-Foreclosure",PostForeclosure!BR26,PreForeclosure!CG26))) -> 0 | BK26: =IF(CashFlowsLedgers!BB25+CashFlowsLedgers!BF25<0.01,BB26-BH26-BI26+BJ26,0) -> 0 | BM26: 598899462.3 | BN26: 0 | BO26: =IFERROR(MAX((((CashFlowsLedgers!BB25/(CashFlowsLedgers!BB25+CashFlowsLedgers!BF25+CashFlowsLedgers!BJ25)*ClassASwap))+((CashFlowsLedgers!BF25/(CashFlowsLedgers!BB25+CashFlowsLedgers!BF25+CashFlowsLedgers!BJ25)*ClassBSwap))+((CashFlowsLedgers!BJ25/(CashFlowsLedgers!BB25+CashFlowsLedgers!BF25+CashFlowsLedgers!BJ25)*SubLoan_Rate))+ServicerFeePercentage+ThirdPartyFeePercentage+InterestCompensationRate-DiscountRate)/12,0),0) -> 2.026252074e-05 | BP26: =IFERROR(MAX((DiscountRate-(((CashFlowsLedgers!BB25/(CashFlowsLedgers!BB25+CashFlowsLedgers!BF25+CashFlowsLedgers!BJ25)*ClassASwap))+((CashFlowsLedgers!BF25/(CashFlowsLedgers!BB25+CashFlowsLedgers!BF25+CashFlowsLedgers!BJ25)*ClassBSwap))+((CashFlowsLedgers!BJ25/(CashFlowsLedgers!BB25+CashFlowsLedgers!BF25+CashFlowsLedgers!BJ25)*SubLoan_Rate))+ServicerFeePercentage+ThirdPartyFeePercentage+InterestCompensationRate))/12,0),0) -> 0 | BT26: 0 | BV26: 0.01624097367 | BW26: 0.01688191831 | BX26: 0.01886040253 | BY26: 0.01674790176 | BZ26: 0.01597475658 | CA26: 0.01181992014 | CB26: 0.01161269823 | CC26: 0.01141143327 | CD26: 0.0112034493 | CF26: 550772182.8 | CG26: 7006970.477 | CH26: 7341218.308 | CI26: 7424741.057 | CJ26: 7750420.598 | CK26: 8092300.464 | CL26: 10511628.62 | CM26: =CM25*(1-CC25)*(1-$BT25) -> 0 | CN26: =CN25*(1-CD25)*(1-$BT25) -> 0 | CO26: 598899462.3 | CQ26: 0.9196404696 | CR26: 0.01169974414 | CS26: 0.01225784755 | CT26: 0.01239730794 | CU26: 0.01294110462 | CV26: 0.01351195146 | CW26: 0.01755157464 | CX26: 0 | CY26: 0 | DA26: 0.01493585666 | DB26: 0.0001975141248 | DC26: 0.000231187939 | DD26: 0.0002076288954 | DE26: 0.0002067309962 | DF26: 0.0001597101872 | DG26: 0.0002038211397 | DH26: 0 | DI26: 0
A27: 11 | B27: =Timing!$F27 -> 2025-02-25 | C27: =Timing!B27 -> 2025-01-31 | E27: ='Pool Run Out Schedule 0% CPR'!D14 -> 0.01609507141 | F27: =CashFlowsLedgers!CM26 -> 0 | G27: =CashFlowsLedgers!CP26 -> 589231757.7 | H27: 0.01607209297 | I27: 0 | J27: 0 | K27: 0 | L27: 0 | M27: 9470187.59 | N27: 0 | O27: 0 | P27: 9470187.59 | Q27: 579761570.1 | R27: =ROUND(G27*DiscountRate*Timing!I27,2) -> 3384445.51 | S27: 12854633.1 | W27: 0 | Y27: 20.28126792 | AA27: 0 | AB27: 0 | AC27: 0 | AE27: =Timing!I27 -> 0.07945205479 | AF27: 0.01 | AG27: 468156.739 | AI27: 0.0003 | AJ27: 14044.70217 | AM27: 1276.791106 | AN27: 1276.791106 | AO27: 468156.739 | AP27: 11491.11996 | AT27: 0.0519 | AU27: 0.04903 | AV27: 0.05644 | AW27: 0.0494 | AY27: 0 | AZ27: 0 | BA27: 0 | BB27: =MAX(0,BB26+AZ27-BA27+IF(Triggers!BH26,BJ26-BH26-BI26-BK26,0)) -> 0 | BH27: =IF(Triggers!$BH27,MIN(Swap!I27,BB27),0) -> 0 | BI27: =IF(Triggers!$BH27,MIN(Swap!Q27,BB27-BH27),0) -> 0 | BJ27: =IF(CashFlowsLedgers!$C27="End",NA(),IF(CashFlowsLedgers!$D27,0,IF(CashFlowsLedgers!$C27="Post-Foreclosure",PostForeclosure!BR27,PreForeclosure!CG27))) -> 0 | BK27: =IF(CashFlowsLedgers!BB26+CashFlowsLedgers!BF26<0.01,BB27-BH27-BI27+BJ27,0) -> 0 | BM27: 589231757.7 | BN27: 0 | BO27: =IFERROR(MAX((((CashFlowsLedgers!BB26/(CashFlowsLedgers!BB26+CashFlowsLedgers!BF26+CashFlowsLedgers!BJ26)*ClassASwap))+((CashFlowsLedgers!BF26/(CashFlowsLedgers!BB26+CashFlowsLedgers!BF26+CashFlowsLedgers!BJ26)*ClassBSwap))+((CashFlowsLedgers!BJ26/(CashFlowsLedgers!BB26+CashFlowsLedgers!BF26+CashFlowsLedgers!BJ26)*SubLoan_Rate))+ServicerFeePercentage+ThirdPartyFeePercentage+InterestCompensationRate-DiscountRate)/12,0),0) -> 2.697087383e-05 | BP27: =IFERROR(MAX((DiscountRate-(((CashFlowsLedgers!BB26/(CashFlowsLedgers!BB26+CashFlowsLedgers!BF26+CashFlowsLedgers!BJ26)*ClassASwap))+((CashFlowsLedgers!BF26/(CashFlowsLedgers!BB26+CashFlowsLedgers!BF26+CashFlowsLedgers!BJ26)*ClassBSwap))+((CashFlowsLedgers!BJ26/(CashFlowsLedgers!BB26+CashFlowsLedgers!BF26+CashFlowsLedgers!BJ26)*SubLoan_Rate))+ServicerFeePercentage+ThirdPartyFeePercentage+InterestCompensationRate))/12,0),0) -> 0 | BT27: 0 | BV27: 0.01609507141 | BW27: 0.01624097367 | BX27: 0.01688191831 | BY27: 0.01886040253 | BZ27: 0.01674790176 | CA27: 0.01597475658 | CB27: 0.01181992014 | CC27: 0.01161269823 | CD27: 0.01141143327 | CF27: 541827106.3 | CG27: 6888679.374 | CH27: 7202759.976 | CI27: 7300392.223 | CJ27: 7626609.515 | CK27: 7996650.119 | CL27: 10389560.25 | CM27: 0 | CN27: =CN26*(1-CD26)*(1-$BT26) -> 0 | CO27: 589231757.7 | CQ27: 0.9195483766 | CR27: 0.0116909506 | CS27: 0.01222398467 | CT27: 0.01238967881 | CU27: 0.01294331036 | CV27: 0.01357131555 | CW27: 0.01763238337 | CX27: 0 | CY27: 0 | DA27: 0.01480019679 | DB27: 0.000189872421 | DC27: 0.0002063643106 | DD27: 0.0002336743296 | DE27: 0.0002167732904 | DF27: 0.0002167984624 | DG27: 0.0002084133633 | DH27: 0 | DI27: 0
A28: 12 | B28: =Timing!$F28 -> 2025-03-25 | C28: =Timing!B28 -> 2025-02-28 | E28: ='Pool Run Out Schedule 0% CPR'!D15 -> 0.01536832717 | F28: =CashFlowsLedgers!CM27 -> 0 | G28: =CashFlowsLedgers!CP27 -> 579761570.1 | H28: 0.01548081171 | I28: 0 | J28: 0 | K28: 0 | L28: 0 | M28: 8975179.71 | N28: 0 | O28: 0 | P28: 8975179.71 | Q28: 570786390.4 | R28: =ROUND(G28*DiscountRate*Timing!I28,2) -> 3215221.07 | S28: 12190400.78 | W28: 0 | Y28: 21.28096703 | AA28: 0 | AB28: 0 | AC28: 0 | AE28: =Timing!I28 -> 0.07671232877 | AF28: 0.01 | AG28: 444748.6018 | AI28: 0.0003 | AJ28: 13342.45805 | AM28: 1212.950732 | AN28: 1212.950732 | AO28: 444748.6018 | AP28: 10916.55659 | AT28: 0.0519 | AU28: 0.04903 | AV28: 0.05644 | AW28: 0.0494 | AY28: 0 | AZ28: 0 | BA28: 0 | BB28: =MAX(0,BB27+AZ28-BA28+IF(Triggers!BH27,BJ27-BH27-BI27-BK27,0)) -> 0 | BH28: =IF(Triggers!$BH28,MIN(Swap!I28,BB28),0) -> 0 | BI28: =IF(Triggers!$BH28,MIN(Swap!Q28,BB28-BH28),0) -> 0 | BJ28: =IF(CashFlowsLedgers!$C28="End",NA(),IF(CashFlowsLedgers!$D28,0,IF(CashFlowsLedgers!$C28="Post-Foreclosure",PostForeclosure!BR28,PreForeclosure!CG28))) -> 0 | BK28: =IF(CashFlowsLedgers!BB27+CashFlowsLedgers!BF27<0.01,BB28-BH28-BI28+BJ28,0) -> 0 | BM28: 579761570.1 | BN28: 0 | BO28: =IFERROR(MAX((((CashFlowsLedgers!BB27/(CashFlowsLedgers!BB27+CashFlowsLedgers!BF27+CashFlowsLedgers!BJ27)*ClassASwap))+((CashFlowsLedgers!BF27/(CashFlowsLedgers!BB27+CashFlowsLedgers!BF27+CashFlowsLedgers!BJ27)*ClassBSwap))+((CashFlowsLedgers!BJ27/(CashFlowsLedgers!BB27+CashFlowsLedgers!BF27+CashFlowsLedgers!BJ27)*SubLoan_Rate))+ServicerFeePercentage+ThirdPartyFeePercentage+InterestCompensationRate-DiscountRate)/12,0),0) -> 3.375980915e-05 | BP28: =IFERROR(MAX((DiscountRate-(((CashFlowsLedgers!BB27/(CashFlowsLedgers!BB27+CashFlowsLedgers!BF27+CashFlowsLedgers!BJ27)*ClassASwap))+((CashFlowsLedgers!BF27/(CashFlowsLedgers!BB27+CashFlowsLedgers!BF27+CashFlowsLedgers!BJ27)*ClassBSwap))+((CashFlowsLedgers!BJ27/(CashFlowsLedgers!BB27+CashFlowsLedgers!BF27+CashFlowsLedgers!BJ27)*SubLoan_Rate))+ServicerFeePercentage+ThirdPartyFeePercentage+InterestCompensationRate))/12,0),0) -> 0 | BT28: 0 | BV28: 0.01536832717 | BW28: 0.01609507141 | BX28: 0.01624097367 | BY28: 0.01688191831 | BZ28: 0.01886040253 | CA28: =BZ27 -> 0.01674790176 | CB28: 0.01597475658 | CC28: 0.01181992014 | CD28: 0.01161269823 | CF28: 533106360.3 | CG28: 6776800.514 | CH28: 7081163.57 | CI28: 7162703.887 | CJ28: 7498879.809 | CK28: 7868905.58 | CL28: 10266756.47 | CM28: 0 | CN28: 0 | CO28: 579761570.1 | CQ28: 0.9195269017 | CR28: 0.01168894398 | CS28: 0.01221392368 | CT28: 0.01235456825 | CU28: 0.01293442028 | CV28: 0.01357265811 | CW28: 0.01770858401 | CX28: 0 | CY28: 0 | DA28: 0.01413159026 | DB28: 0.0001881343881 | DC28: 0.0001983660129 | DD28: 0.0002085688119 | DE28: 0.000243948373 | DF28: 0.0002273135447 | DG28: 0.000282890319 | DH28: 0 | DI28: 0
A29: 13 | B29: =Timing!$F29 -> 2025-04-25 | C29: =Timing!B29 -> 2025-03-31 | E29: ='Pool Run Out Schedule 0% CPR'!D16 -> 0.01713764622 | F29: =CashFlowsLedgers!CM28 -> 0 | G29: =CashFlowsLedgers!CP28 -> 570786390.4 | H29: 0.01710634891 | I29: 0 | J29: 0 | K29: 0 | L29: 0 | M29: 9764071.15 | N29: 0 | O29: 0 | P29: 9764071.15 | Q29: 561022319.3 | R29: =ROUND(G29*DiscountRate*Timing!I29,2) -> 3504601.85 | S29: 13268673 | W29: 0 | Y29: 22.28136418 | AA29: 0 | AB29: 0 | AC29: 0 | AE29: =Timing!I29 -> 0.08493150685 | AF29: 0.01 | AG29: 484777.4823 | AI29: 0.0003 | AJ29: 14543.32447 | AM29: 1322.120406 | AN29: 1322.120406 | AO29: 484777.4823 | AP29: 11899.08366 | AT29: 0.0519 | AU29: 0.04903 | AV29: 0.05644 | AW29: 0.0494 | AY29: 0 | AZ29: 0 | BA29: 0 | BB29: =MAX(0,BB28+AZ29-BA29+IF(Triggers!BH28,BJ28-BH28-BI28-BK28,0)) -> 0 | BH29: =IF(Triggers!$BH29,MIN(Swap!I29,BB29),0) -> 0 | BI29: =IF(Triggers!$BH29,MIN(Swap!Q29,BB29-BH29),0) -> 0 | BJ29: =IF(CashFlowsLedgers!$C29="End",NA(),IF(CashFlowsLedgers!$D29,0,IF(CashFlowsLedgers!$C29="Post-Foreclosure",PostForeclosure!BR29,PreForeclosure!CG29))) -> 0 | BK29: =IF(CashFlowsLedgers!BB28+CashFlowsLedgers!BF28<0.01,BB29-BH29-BI29+BJ29,0) -> 0 | BM29: 570786390.4 | BN29: 0 | BO29: =IFERROR(MAX((((CashFlowsLedgers!BB28/(CashFlowsLedgers!BB28+CashFlowsLedgers!BF28+CashFlowsLedgers!BJ28)*ClassASwap))+((CashFlowsLedgers!BF28/(CashFlowsLedgers!BB28+CashFlowsLedgers!BF28+CashFlowsLedgers!BJ28)*ClassBSwap))+((CashFlowsLedgers!BJ28/(CashFlowsLedgers!BB28+CashFlowsLedgers!BF28+CashFlowsLedgers!BJ28)*SubLoan_Rate))+ServicerFeePercentage+ThirdPartyFeePercentage+InterestCompensationRate-DiscountRate)/12,0),0) -> 3.878314767e-05 | BP29: =IFERROR(MAX((DiscountRate-(((CashFlowsLedgers!BB28/(CashFlowsLedgers!BB28+CashFlowsLedgers!BF28+CashFlowsLedgers!BJ28)*ClassASwap))+((CashFlowsLedgers!BF28/(CashFlowsLedgers!BB28+CashFlowsLedgers!BF28+CashFlowsLedgers!BJ28)*ClassBSwap))+((CashFlowsLedgers!BJ28/(CashFlowsLedgers!BB28+CashFlowsLedgers!BF28+CashFlowsLedgers!BJ28)*SubLoan_Rate))+ServicerFeePercentage+ThirdPartyFeePercentage+InterestCompensationRate))/12,0),0) -> 0 | BT29: 0 | BV29: 0.01713764622 | BW29: 0.01536832717 | BX29: 0.01609507141 | BY29: 0.01624097367 | BZ29: 0.01688191831 | CA29: 0.01886040253 | CB29: 0.01674790176 | CC29: 0.01597475658 | CD29: 0.01181992014 | CF29: 524913407.4 | CG29: 6667727.425 | CH29: 6966158.579 | CI29: 7041783.705 | CJ29: 7357447.917 | CK29: 7737117.922 | CL29: 10102747.54 | CM29: 0 | CN29: 0 | CO29: 570786390.4 | CQ29: 0.9196319607 | CR29: 0.01168165103 | CS29: 0.01220449313 | CT29: 0.012336986 | CU29: 0.01289001987 | CV29: 0.01355518991 | CW29: 0.01769969941 | CX29: 0 | CY29: 0 | DA29: 0.01576032719 | DB29: 0.0001795274349 | DC29: 0.0001964321885 | DD29: 0.0002003646647 | DE29: 0.0002176082625 | DF29: 0.0002556563382 | DG29: 0.0002964328269 | DH29: 0 | DI29: 0
A30: 14 | B30: =Timing!$F30 -> 2025-05-27 | C30: =Timing!B30 -> 2025-04-30 | E30: ='Pool Run Out Schedule 0% CPR'!D17 -> 0.02112557369 | F30: =CashFlowsLedgers!CM29 -> 0 | G30: =CashFlowsLedgers!CP29 -> 561022319.3 | H30: 0.02078594796 | I30: 0 | J30: 0 | K30: 0 | L30: 0 | M30: 11661380.73 | N30: 0 | O30: 0 | P30: 11661380.73 | Q30: 549360938.5 | R30: =ROUND(G30*DiscountRate*Timing!I30,2) -> 3555768.68 | S30: 15217149.41 | W30: 0 | Y30: 23.28135627 | AA30: 0 | AB30: 0 | AC30: 0 | AE30: =Timing!I30 -> 0.08767123288 | AF30: 0.01 | AG30: 491855.184 | AI30: 0.0003 | AJ30: 14755.65552 | AM30: 1341.423229 | AN30: 1341.423229 | AO30: 491855.184 | AP30: 12072.80906 | AT30: 0.0519 | AU30: 0.04903 | AV30: 0.05644 | AW30: 0.0494 | AY30: 0 | AZ30: 0 | BA30: 0 | BB30: =MAX(0,BB29+AZ30-BA30+IF(Triggers!BH29,BJ29-BH29-BI29-BK29,0)) -> 0 | BH30: =IF(Triggers!$BH30,MIN(Swap!I30,BB30),0) -> 0 | BI30: =IF(Triggers!$BH30,MIN(Swap!Q30,BB30-BH30),0) -> 0 | BJ30: =IF(CashFlowsLedgers!$C30="End",NA(),IF(CashFlowsLedgers!$D30,0,IF(CashFlowsLedgers!$C30="Post-Foreclosure",PostForeclosure!BR30,PreForeclosure!CG30))) -> 0 | BK30: =IF(CashFlowsLedgers!BB29+CashFlowsLedgers!BF29<0.01,BB30-BH30-BI30+BJ30,0) -> 0 | BM30: 561022319.3 | BN30: 0 | BO30: =IFERROR(MAX((((CashFlowsLedgers!BB29/(CashFlowsLedgers!BB29+CashFlowsLedgers!BF29+CashFlowsLedgers!BJ29)*ClassASwap))+((CashFlowsLedgers!BF29/(CashFlowsLedgers!BB29+CashFlowsLedgers!BF29+CashFlowsLedgers!BJ29)*ClassBSwap))+((CashFlowsLedgers!BJ29/(CashFlowsLedgers!BB29+CashFlowsLedgers!BF29+CashFlowsLedgers!BJ29)*SubLoan_Rate))+ServicerFeePercentage+ThirdPartyFeePercentage+InterestCompensationRate-DiscountRate)/12,0),0) -> 4.155747518e-05 | BP30: =IFERROR(MAX((DiscountRate-(((CashFlowsLedgers!BB29/(CashFlowsLedgers!BB29+CashFlowsLedgers!BF29+CashFlowsLedgers!BJ29)*ClassASwap))+((CashFlowsLedgers!BF29/(CashFlowsLedgers!BB29+CashFlowsLedgers!BF29+CashFlowsLedgers!BJ29)*ClassBSwap))+((CashFlowsLedgers!BJ29/(CashFlowsLedgers!BB29+CashFlowsLedgers!BF29+CashFlowsLedgers!BJ29)*SubLoan_Rate))+ServicerFeePercentage+ThirdPartyFeePercentage+InterestCompensationRate))/12,0),0) -> 0 | BT30: 0 | BV30: 0.02112557369 | BW30: 0.01713764622 | BX30: 0.01536832717 | BY30: 0.01609507141 | BZ30: 0.01624097367 | CA30: 0.01688191831 | CB30: 0.01886040253 | CC30: 0.01674790176 | CD30: 0.01597475658 | CF30: 515917627.1 | CG30: 6565255.609 | CH30: 6854037.759 | CI30: 6927418.281 | CJ30: 7233240.082 | CK30: 7591192.763 | CL30: 9933547.714 | CM30: 0 | CN30: 0 | CO30: 561022319.3 | CQ30: 0.9196026777 | CR30: 0.01170230735 | CS30: 0.01221705006 | CT30: 0.01234784793 | CU30: 0.01289296314 | CV30: 0.01353099957 | CW30: 0.01770615423 | CX30: 0 | CY30: 0 | DA30: 0.01942713414 | DB30: 0.0002005500032 | DC30: 0.0001877556223 | DD30: 0.0001987394942 | DE30: 0.0002093942749 | DF30: 0.0002284292294 | DG30: 0.0003339451962 | DH30: 0 | DI30: 0
A31: 15 | B31: =Timing!$F31 -> 2025-06-25 | C31: =Timing!B31 -> 2025-05-31 | E31: ='Pool Run Out Schedule 0% CPR'!D18 -> 0.02065578972 | F31: =CashFlowsLedgers!CM30 -> 0 | G31: =CashFlowsLedgers!CP30 -> 549360938.5 | H31: 0.02036648579 | I31: 0 | J31: 0 | K31: 0 | L31: 0 | M31: 11188551.75 | N31: 0 | O31: 0 | P31: 11188551.75 | Q31: 538172386.8 | R31: =ROUND(G31*DiscountRate*Timing!I31,2) -> 3155434.41 | S31: 14343986.16 | W31: 0 | Y31: 24.28028202 | AA31: 0 | AB31: 0 | AC31: 0 | AE31: =Timing!I31 -> 0.07945205479 | AF31: 0.01 | AG31: 436478.5539 | AI31: 0.0003 | AJ31: 13094.35662 | AM31: 1190.396056 | AN31: 1190.396056 | AO31: 436478.5539 | AP31: 10713.56451 | AT31: 0.0519 | AU31: 0.04903 | AV31: 0.05644 | AW31: 0.0494 | AY31: 0 | AZ31: 0 | BA31: 0 | BB31: =MAX(0,BB30+AZ31-BA31+IF(Triggers!BH30,BJ30-BH30-BI30-BK30,0)) -> 0 | BH31: =IF(Triggers!$BH31,MIN(Swap!I31,BB31),0) -> 0 | BI31: =IF(Triggers!$BH31,MIN(Swap!Q31,BB31-BH31),0) -> 0 | BJ31: =IF(CashFlowsLedgers!$C31="End",NA(),IF(CashFlowsLedgers!$D31,0,IF(CashFlowsLedgers!$C31="Post-Foreclosure",PostForeclosure!BR31,PreForeclosure!CG31))) -> 0 | BK31: =IF(CashFlowsLedgers!BB30+CashFlowsLedgers!BF30<0.01,BB31-BH31-BI31+BJ31,0) -> 0 | BM31: 549360938.5 | BN31: 0 | BO31: =IFERROR(MAX((((CashFlowsLedgers!BB30/(CashFlowsLedgers!BB30+CashFlowsLedgers!BF30+CashFlowsLedgers!BJ30)*ClassASwap))+((CashFlowsLedgers!BF30/(CashFlowsLedgers!BB30+CashFlowsLedgers!BF30+CashFlowsLedgers!BJ30)*ClassBSwap))+((CashFlowsLedgers!BJ30/(CashFlowsLedgers!BB30+CashFlowsLedgers!BF30+CashFlowsLedgers!BJ30)*SubLoan_Rate))+ServicerFeePercentage+ThirdPartyFeePercentage+InterestCompensationRate-DiscountRate)/12,0),0) -> 4.567991539e-05 | BP31: =IFERROR(MAX((DiscountRate-(((CashFlowsLedgers!BB30/(CashFlowsLedgers!BB30+CashFlowsLedgers!BF30+CashFlowsLedgers!BJ30)*ClassASwap))+((CashFlowsLedgers!BF30/(CashFlowsLedgers!BB30+CashFlowsLedgers!BF30+CashFlowsLedgers!BJ30)*ClassBSwap))+((CashFlowsLedgers!BJ30/(CashFlowsLedgers!BB30+CashFlowsLedgers!BF30+CashFlowsLedgers!BJ30)*SubLoan_Rate))+ServicerFeePercentage+ThirdPartyFeePercentage+InterestCompensationRate))/12,0),0) -> 0 | BT31: 0 | BV31: 0.02065578972 | BW31: 0.02112557369 | BX31: 0.01713764622 | BY31: 0.01536832717 | BZ31: 0.01609507141 | CA31: 0.01624097367 | CB31: 0.01688191831 | CC31: 0.01886040253 | CD31: 0.01674790176 | CF31: 505018571.2 | CG31: 6452742.581 | CH31: 6748702.665 | CI31: 6815920.989 | CJ31: 7115765.22 | CK31: 7463038.867 | CL31: 9746197.006 | CM31: 0 | CN31: 0 | CO31: 549360938.6 | CQ31: 0.9192837273 | CR31: 0.01174590716 | CS31: 0.01228464237 | CT31: 0.01240699968 | CU31: 0.0129528052 | CV31: 0.01358494633 | CW31: 0.01774097196 | CX31: 0 | CY31: 0 | DA31: 0.01898853136 | DB31: 0.0002481390273 | DC31: 0.0002105298549 | DD31: 0.0001906748303 | DE31: 0.0002084763247 | DF31: 0.0002206327557 | DG31: 0.0002995016392 | DH31: 0 | DI31: 0
A32: 16 | B32: =Timing!$F32 -> 2025-07-25 | C32: =Timing!B32 -> 2025-06-30 | E32: ='Pool Run Out Schedule 0% CPR'!D19 -> 0.02206128522 | F32: =CashFlowsLedgers!CM31 -> 0 | G32: =CashFlowsLedgers!CP31 -> 538172386.8 | H32: 0.02169976929 | I32: 0 | J32: 0 | K32: 0 | L32: 0 | M32: 11678216.63 | N32: 0 | O32: 0 | P32: 11678216.63 | Q32: 526494170.2 | R32: =ROUND(G32*DiscountRate*Timing!I32,2) -> 3197761.34 | S32: 14875977.97 | W32: 0 | Y32: 25.27912966 | AA32: 0 | AB32: 0 | AC32: 0 | AE32: =Timing!I32 -> 0.08219178082 | AF32: 0.01 | AG32: 442333.4686 | AI32: 0.0003 | AJ32: 13270.00406 | AM32: 1206.364005 | AN32: 1206.364005 | AO32: 442333.4686 | AP32: 10857.27605 | AT32: 0.0519 | AU32: 0.04903 | AV32: 0.05644 | AW32: 0.0494 | AY32: 0 | AZ32: 0 | BA32: 0 | BB32: =MAX(0,BB31+AZ32-BA32+IF(Triggers!BH31,BJ31-BH31-BI31-BK31,0)) -> 0 | BH32: =IF(Triggers!$BH32,MIN(Swap!I32,BB32),0) -> 0 | BI32: =IF(Triggers!$BH32,MIN(Swap!Q32,BB32-BH32),0) -> 0 | BJ32: =IF(CashFlowsLedgers!$C32="End",NA(),IF(CashFlowsLedgers!$D32,0,IF(CashFlowsLedgers!$C32="Post-Foreclosure",PostForeclosure!BR32,PreForeclosure!CG32))) -> 0 | BK32: =IF(CashFlowsLedgers!BB31+CashFlowsLedgers!BF31<0.01,BB32-BH32-BI32+BJ32,0) -> 0 | BM32: 538172386.8 | BN32: 0 | BO32: =IFERROR(MAX((((CashFlowsLedgers!BB31/(CashFlowsLedgers!BB31+CashFlowsLedgers!BF31+CashFlowsLedgers!BJ31)*ClassASwap))+((CashFlowsLedgers!BF31/(CashFlowsLedgers!BB31+CashFlowsLedgers!BF31+CashFlowsLedgers!BJ31)*ClassBSwap))+((CashFlowsLedgers!BJ31/(CashFlowsLedgers!BB31+CashFlowsLedgers!BF31+CashFlowsLedgers!BJ31)*SubLoan_Rate))+ServicerFeePercentage+ThirdPartyFeePercentage+InterestCompensationRate-DiscountRate)/12,0),0) -> 5.079642685e-05 | BP32: =IFERROR(MAX((DiscountRate-(((CashFlowsLedgers!BB31/(CashFlowsLedgers!BB31+CashFlowsLedgers!BF31+CashFlowsLedgers!BJ31)*ClassASwap))+((CashFlowsLedgers!BF31/(CashFlowsLedgers!BB31+CashFlowsLedgers!BF31+CashFlowsLedgers!BJ31)*ClassBSwap))+((CashFlowsLedgers!BJ31/(CashFlowsLedgers!BB31+CashFlowsLedgers!BF31+CashFlowsLedgers!BJ31)*SubLoan_Rate))+ServicerFeePercentage+ThirdPartyFeePercentage+InterestCompensationRate))/12,0),0) -> 0 | BT32: 0 | BV32: 0.02206128522 | BW32: 0.02065578972 | BX32: 0.02112557369 | BY32: 0.01713764622 | BZ32: 0.01536832717 | CA32: 0.01609507141 | CB32: 0.01624097367 | CC32: 0.01688191831 | CD32: 0.01886040253 | CF32: 494587013.8 | CG32: 6316424.692 | CH32: 6633045.786 | CI32: 6711171.686 | CJ32: 7001236.471 | CK32: 7341831.85 | CL32: 9581662.504 | CM32: 0 | CN32: 0 | CO32: 538172386.8 | CQ32: 0.9190122458 | CR32: 0.01173680562 | CS32: 0.01232513215 | CT32: 0.01247030106 | CU32: 0.01300928223 | CV32: 0.01364215636 | CW32: 0.0178040768 | CX32: 0 | CY32: 0 | DA32: 0.02027459128 | DB32: 0.0002424329887 | DC32: 0.0002603754875 | DD32: 0.0002137116078 | DE32: 0.0001999309056 | DF32: 0.0002195714809 | DG32: 0.0002891555425 | DH32: 0 | DI32: 0
A33: 17 | B33: =Timing!$F33 -> 2025-08-26 | C33: =Timing!B33 -> 2025-07-31 | E33: ='Pool Run Out Schedule 0% CPR'!D20 -> 0.02384975813 | F33: =CashFlowsLedgers!CM32 -> 0 | G33: =CashFlowsLedgers!CP32 -> 526494170.2 | H33: 0.02341213757 | I33: 0 | J33: 0 | K33: 0 | L33: 0 | M33: 12326353.94 | N33: 0 | O33: 0 | P33: 12326353.94 | Q33: 514167816.2 | R33: =ROUND(G33*DiscountRate*Timing!I33,2) -> 3336928.71 | S33: 15663282.65 | W33: 0 | Y33: 26.27760458 | AA33: 0 | AB33: 0 | AC33: 0 | AE33: =Timing!I33 -> 0.08767123288 | AF33: 0.01 | AG33: 461583.93 | AI33: 0.0003 | AJ33: 13847.5179 | AM33: 1258.865264 | AN33: 1258.865264 | AO33: 461583.93 | AP33: 11329.78737 | AT33: 0.0519 | AU33: 0.04903 | AV33: 0.05644 | AW33: 0.0494 | AY33: 0 | AZ33: 0 | BA33: 0 | BB33: =MAX(0,BB32+AZ33-BA33+IF(Triggers!BH32,BJ32-BH32-BI32-BK32,0)) -> 0 | BH33: =IF(Triggers!$BH33,MIN(Swap!I33,BB33),0) -> 0 | BI33: =IF(Triggers!$BH33,MIN(Swap!Q33,BB33-BH33),0) -> 0 | BJ33: =IF(CashFlowsLedgers!$C33="End",NA(),IF(CashFlowsLedgers!$D33,0,IF(CashFlowsLedgers!$C33="Post-Foreclosure",PostForeclosure!BR33,PreForeclosure!CG33))) -> 0 | BK33: =IF(CashFlowsLedgers!BB32+CashFlowsLedgers!BF32<0.01,BB33-BH33-BI33+BJ33,0) -> 0 | BM33: 526494170.2 | BN33: 0 | BO33: =IFERROR(MAX((((CashFlowsLedgers!BB32/(CashFlowsLedgers!BB32+CashFlowsLedgers!BF32+CashFlowsLedgers!BJ32)*ClassASwap))+((CashFlowsLedgers!BF32/(CashFlowsLedgers!BB32+CashFlowsLedgers!BF32+CashFlowsLedgers!BJ32)*ClassBSwap))+((CashFlowsLedgers!BJ32/(CashFlowsLedgers!BB32+CashFlowsLedgers!BF32+CashFlowsLedgers!BJ32)*SubLoan_Rate))+ServicerFeePercentage+ThirdPartyFeePercentage+InterestCompensationRate-DiscountRate)/12,0),0) -> 4.852908426e-05 | BP33: =IFERROR(MAX((DiscountRate-(((CashFlowsLedgers!BB32/(CashFlowsLedgers!BB32+CashFlowsLedgers!BF32+CashFlowsLedgers!BJ32)*ClassASwap))+((CashFlowsLedgers!BF32/(CashFlowsLedgers!BB32+CashFlowsLedgers!BF32+CashFlowsLedgers!BJ32)*ClassBSwap))+((CashFlowsLedgers!BJ32/(CashFlowsLedgers!BB32+CashFlowsLedgers!BF32+CashFlowsLedgers!BJ32)*SubLoan_Rate))+ServicerFeePercentage+ThirdPartyFeePercentage+InterestCompensationRate))/12,0),0) -> 0 | BT33: 0 | BV33: 0.02384975813 | BW33: 0.02206128522 | BX33: 0.02065578972 | BY33: 0.02112557369 | BZ33: 0.01713764622 | CA33: 0.01536832717 | CB33: 0.01609507141 | CC33: 0.01624097367 | CD33: 0.01688191831 | CF33: 483675788.6 | CG33: 6185953.952 | CH33: 6492918.888 | CI33: 6596158 | CJ33: 6893639.178 | CK33: 7223664.542 | CL33: 9426046.976 | CM33: 0 | CN33: 0 | CO33: 526494170.2 | CQ33: 0.9186726388 | CR33: 0.01174933039 | CS33: 0.01233236616 | CT33: 0.01252845401 | CU33: 0.01309347675 | CV33: 0.0137203125 | CW33: 0.01790342137 | CX33: 0 | CY33: 0 | DA33: 0.02191012023 | DB33: 0.0002592053288 | DC33: 0.0002547347621 | DD33: 0.0002646707785 | DE33: 0.0002243913724 | DF33: 0.0002108582513 | DG33: 0.0002881568455 | DH33: 0 | DI33: 0
A34: 18 | B34: =Timing!$F34 -> 2025-09-25 | C34: =Timing!B34 -> 2025-08-31 | E34: ='Pool Run Out Schedule 0% CPR'!D21 -> 0.02066430347 | F34: =CashFlowsLedgers!CM33 -> 0 | G34: =CashFlowsLedgers!CP33 -> 514167816.2 | H34: 0.02058071855 | I34: 0 | J34: 0 | K34: 0 | L34: 0 | M34: 10581943.11 | N34: 0 | O34: 0 | P34: 10581943.11 | Q34: 503585873.1 | R34: =ROUND(G34*DiscountRate*Timing!I34,2) -> 3055128.82 | S34: 13637071.93 | W34: 0 | Y34: 27.27572432 | AA34: 0 | AB34: 0 | AC34: 0 | AE34: =Timing!I34 -> 0.08219178082 | AF34: 0.01 | AG34: 422603.6846 | AI34: 0.0003 | AJ34: 12678.11054 | AM34: 1152.555503 | AN34: 1152.555503 | AO34: 422603.6846 | AP34: 10372.99953 | AT34: 0.0519 | AU34: 0.04903 | AV34: 0.05644 | AW34: 0.0494 | AY34: 0 | AZ34: 0 | BA34: 0 | BB34: =MAX(0,BB33+AZ34-BA34+IF(Triggers!BH33,BJ33-BH33-BI33-BK33,0)) -> 0 | BH34: =IF(Triggers!$BH34,MIN(Swap!I34,BB34),0) -> 0 | BI34: =IF(Triggers!$BH34,MIN(Swap!Q34,BB34-BH34),0) -> 0 | BJ34: =IF(CashFlowsLedgers!$C34="End",NA(),IF(CashFlowsLedgers!$D34,0,IF(CashFlowsLedgers!$C34="Post-Foreclosure",PostForeclosure!BR34,PreForeclosure!CG34))) -> 0 | BK34: =IF(CashFlowsLedgers!BB33+CashFlowsLedgers!BF33<0.01,BB34-BH34-BI34+BJ34,0) -> 0 | BM34: 514167816.2 | BN34: 0 | BO34: =IFERROR(MAX((((CashFlowsLedgers!BB33/(CashFlowsLedgers!BB33+CashFlowsLedgers!BF33+CashFlowsLedgers!BJ33)*ClassASwap))+((CashFlowsLedgers!BF33/(CashFlowsLedgers!BB33+CashFlowsLedgers!BF33+CashFlowsLedgers!BJ33)*ClassBSwap))+((CashFlowsLedgers!BJ33/(CashFlowsLedgers!BB33+CashFlowsLedgers!BF33+CashFlowsLedgers!BJ33)*SubLoan_Rate))+ServicerFeePercentage+ThirdPartyFeePercentage+InterestCompensationRate-DiscountRate)/12,0),0) -> 4.315894947e-05 | BP34: =IFERROR(MAX((DiscountRate-(((CashFlowsLedgers!BB33/(CashFlowsLedgers!BB33+CashFlowsLedgers!BF33+CashFlowsLedgers!BJ33)*ClassASwap))+((CashFlowsLedgers!BF33/(CashFlowsLedgers!BB33+CashFlowsLedgers!BF33+CashFlowsLedgers!BJ33)*ClassBSwap))+((CashFlowsLedgers!BJ33/(CashFlowsLedgers!BB33+CashFlowsLedgers!BF33+CashFlowsLedgers!BJ33)*SubLoan_Rate))+ServicerFeePercentage+ThirdPartyFeePercentage+InterestCompensationRate))/12,0),0) -> 0 | BT34: 0 | BV34: 0.02066430347 | BW34: 0.02384975813 | BX34: 0.02206128522 | BY34: 0.02065578972 | BZ34: 0.02112557369 | CA34: 0.01713764622 | CB34: 0.01536832717 | CC34: 0.01609507141 | CD34: 0.01624097367 | CF34: 472140238.1 | CG34: 6049483.857 | CH34: 6358802.521 | CI34: 6456810.378 | CJ34: 6775498.429 | CK34: 7112648.902 | CL34: 9274334.076 | CM34: 0 | CN34: 0 | CO34: 514167816.2 | CQ34: 0.9182609708 | CR34: 0.01176558249 | CS34: 0.01236717336 | CT34: 0.01255778789 | CU34: 0.01317760119 | CV34: 0.01383332188 | CW34: 0.01803756241 | CX34: 0 | CY34: 0 | DA34: 0.01897522336 | DB34: 0.0002806062967 | DC34: 0.000272835739 | DD34: 0.000259391026 | DE34: 0.0002783843851 | DF34: 0.0002370705764 | DG34: 0.0002772071605 | DH34: 0 | DI34: 0
A35: 19 | B35: =Timing!$F35 -> 2025-10-27 | C35: =Timing!B35 -> 2025-09-30 | E35: ='Pool Run Out Schedule 0% CPR'!D22 -> 0.02285451479 | F35: =CashFlowsLedgers!CM34 -> 0 | G35: =CashFlowsLedgers!CP34 -> 503585873.1 | H35: 0.02267453494 | I35: 0 | J35: 0 | K35: 0 | L35: 0 | M35: 11418575.47 | N35: 0 | O35: 0 | P35: 11418575.47 | Q35: 492167297.6 | R35: =ROUND(G35*DiscountRate*Timing!I35,2) -> 3191735.54 | S35: 14610311.01 | W35: 0 | Y35: 28.27501407 | AA35: 0 | AB35: 0 | AC35: 0 | AE35: =Timing!I35 -> 0.08767123288 | AF35: 0.01 | AG35: 441499.9436 | AI35: 0.0003 | AJ35: 13244.99831 | AM35: 1204.090755 | AN35: 1204.090755 | AO35: 441499.9436 | AP35: 10836.8168 | AT35: 0.0519 | AU35: 0.04903 | AV35: 0.05644 | AW35: 0.0494 | AY35: 0 | AZ35: 0 | BA35: 0 | BB35: =MAX(0,BB34+AZ35-BA35+IF(Triggers!BH34,BJ34-BH34-BI34-BK34,0)) -> 0 | BH35: =IF(Triggers!$BH35,MIN(Swap!I35,BB35),0) -> 0 | BI35: =IF(Triggers!$BH35,MIN(Swap!Q35,BB35-BH35),0) -> 0 | BJ35: =IF(CashFlowsLedgers!$C35="End",NA(),IF(CashFlowsLedgers!$D35,0,IF(CashFlowsLedgers!$C35="Post-Foreclosure",PostForeclosure!BR35,PreForeclosure!CG35))) -> 0 | BK35: =IF(CashFlowsLedgers!BB34+CashFlowsLedgers!BF34<0.01,BB35-BH35-BI35+BJ35,0) -> 0 | BM35: 503585873.1 | BN35: 0 | BO35: =IFERROR(MAX((((CashFlowsLedgers!BB34/(CashFlowsLedgers!BB34+CashFlowsLedgers!BF34+CashFlowsLedgers!BJ34)*ClassASwap))+((CashFlowsLedgers!BF34/(CashFlowsLedgers!BB34+CashFlowsLedgers!BF34+CashFlowsLedgers!BJ34)*ClassBSwap))+((CashFlowsLedgers!BJ34/(CashFlowsLedgers!BB34+CashFlowsLedgers!BF34+CashFlowsLedgers!BJ34)*SubLoan_Rate))+ServicerFeePercentage+ThirdPartyFeePercentage+InterestCompensationRate-DiscountRate)/12,0),0) -> 3.82180758e-05 | BP35: =IFERROR(MAX((DiscountRate-(((CashFlowsLedgers!BB34/(CashFlowsLedgers!BB34+CashFlowsLedgers!BF34+CashFlowsLedgers!BJ34)*ClassASwap))+((CashFlowsLedgers!BF34/(CashFlowsLedgers!BB34+CashFlowsLedgers!BF34+CashFlowsLedgers!BJ34)*ClassBSwap))+((CashFlowsLedgers!BJ34/(CashFlowsLedgers!BB34+CashFlowsLedgers!BF34+CashFlowsLedgers!BJ34)*SubLoan_Rate))+ServicerFeePercentage+ThirdPartyFeePercentage+InterestCompensationRate))/12,0),0) -> 0 | BT35: 0 | BV35: 0.02285451479 | BW35: 0.02066430347 | BX35: 0.02384975813 | BY35: 0.02206128522 | BZ35: 0.02065578972 | CA35: 0.02112557369 | CB35: 0.01713764622 | CC35: 0.01536832717 | CD35: 0.01609507141 | CF35: 462383788.9 | CG35: 5905205.131 | CH35: 6218519.165 | CI35: 6323439.86 | CJ35: 6632362.138 | CK35: 6990754.841 | CL35: 9131803.076 | CM35: 0 | CN35: 0 | CO35: 503585873.1 | CQ35: 0.9181826052 | CR35: 0.01172631213 | CS35: 0.01234847818 | CT35: 0.01255682536 | CU35: 0.01317027044 | CV35: 0.01388195185 | CW35: 0.01813355688 | CX35: 0 | CY35: 0 | DA35: 0.02098461793 | DB35: 0.0002423160724 | DC35: 0.0002945082178 | DD35: 0.0002770197057 | DE35: 0.0002720423367 | DF35: 0.0002932641967 | DG35: 0.0003107664825 | DH35: 0 | DI35: 0
A36: 20 | B36: =Timing!$F36 -> 2025-11-25 | C36: =Timing!B36 -> 2025-10-31 | E36: ='Pool Run Out Schedule 0% CPR'!D23 -> 0.02608664125 | F36: =CashFlowsLedgers!CM35 -> 0 | G36: =CashFlowsLedgers!CP35 -> 492167297.6 | H36: 0.02573457319 | I36: 0 | J36: 0 | K36: 0 | L36: 0 | M36: 12665715.34 | N36: 0 | O36: 0 | P36: 12665715.34 | Q36: 479501582.3 | R36: =ROUND(G36*DiscountRate*Timing!I36,2) -> 2826924.01 | S36: 15492639.35 | W36: 0 | Y36: 29.27416079 | AA36: 0 | AB36: 0 | AC36: 0 | AE36: =Timing!I36 -> 0.07945205479 | AF36: 0.01 | AG36: 391037.031 | AI36: 0.0003 | AJ36: 11731.11093 | AM36: 1066.46463 | AN36: 1066.46463 | AO36: 391037.031 | AP36: 9598.18167 | AT36: 0.0519 | AU36: 0.04903 | AV36: 0.05644 | AW36: 0.0494 | AY36: 0 | AZ36: 0 | BA36: 0 | BB36: =MAX(0,BB35+AZ36-BA36+IF(Triggers!BH35,BJ35-BH35-BI35-BK35,0)) -> 0 | BH36: =IF(Triggers!$BH36,MIN(Swap!I36,BB36),0) -> 0 | BI36: =IF(Triggers!$BH36,MIN(Swap!Q36,BB36-BH36),0) -> 0 | BJ36: =IF(CashFlowsLedgers!$C36="End",NA(),IF(CashFlowsLedgers!$D36,0,IF(CashFlowsLedgers!$C36="Post-Foreclosure",PostForeclosure!BR36,PreForeclosure!CG36))) -> 0 | BK36: =IF(CashFlowsLedgers!BB35+CashFlowsLedgers!BF35<0.01,BB36-BH36-BI36+BJ36,0) -> 0 | BM36: 492167297.6 | BN36: 0 | BO36: =IFERROR(MAX((((CashFlowsLedgers!BB35/(CashFlowsLedgers!BB35+CashFlowsLedgers!BF35+CashFlowsLedgers!BJ35)*ClassASwap))+((CashFlowsLedgers!BF35/(CashFlowsLedgers!BB35+CashFlowsLedgers!BF35+CashFlowsLedgers!BJ35)*ClassBSwap))+((CashFlowsLedgers!BJ35/(CashFlowsLedgers!BB35+CashFlowsLedgers!BF35+CashFlowsLedgers!BJ35)*SubLoan_Rate))+ServicerFeePercentage+ThirdPartyFeePercentage+InterestCompensationRate-DiscountRate)/12,0),0) -> 3.265550116e-05 | BP36: =IFERROR(MAX((DiscountRate-(((CashFlowsLedgers!BB35/(CashFlowsLedgers!BB35+CashFlowsLedgers!BF35+CashFlowsLedgers!BJ35)*ClassASwap))+((CashFlowsLedgers!BF35/(CashFlowsLedgers!BB35+CashFlowsLedgers!BF35+CashFlowsLedgers!BJ35)*ClassBSwap))+((CashFlowsLedgers!BJ35/(CashFlowsLedgers!BB35+CashFlowsLedgers!BF35+CashFlowsLedgers!BJ35)*SubLoan_Rate))+ServicerFeePercentage+ThirdPartyFeePercentage+InterestCompensationRate))/12,0),0) -> 0 | BT36: 0 | BV36: 0.02608664125 | BW36: 0.02285451479 | BX36: 0.02066430347 | BY36: 0.02384975813 | BZ36: 0.02206128522 | CA36: 0.02065578972 | CB36: 0.02112557369 | CC36: 0.01713764622 | CD36: 0.01536832717 | CF36: 451816231.8 | CG36: 5783178.18 | CH36: 6070208.987 | CI36: 6183936.65 | CJ36: 6495365.46 | CK36: 6843071.135 | CL36: 8975305.466 | CM36: 0 | CN36: 0 | CO36: 492167297.6 | CQ36: 0.9180135168 | CR36: 0.01175043163 | CS36: 0.01233362927 | CT36: 0.01256470448 | CU36: 0.0131974747 | CV36: 0.01390395333 | CW36: 0.01823628979 | CX36: 0 | CY36: 0 | DA36: 0.02394788928 | DB36: 0.0002685504133 | DC36: 0.0002548658581 | DD36: 0.0002996651628 | DE36: 0.0002911532536 | DF36: 0.0002871971361 | DG36: 0.0003852520839 | DH36: 0 | DI36: 0
A37: 21 | B37: =Timing!$F37 -> 2025-12-29 | C37: =Timing!B37 -> 2025-11-30 | E37: ='Pool Run Out Schedule 0% CPR'!D24 -> 0.02623118252 | F37: =CashFlowsLedgers!CM36 -> 0 | G37: =CashFlowsLedgers!CP36 -> 479501582.3 | H37: 0.02592555121 | I37: 0 | J37: 0 | K37: 0 | L37: 0 | M37: 12431342.83 | N37: 0 | O37: 0 | P37: 12431342.83 | Q37: 467070239.5 | R37: =ROUND(G37*DiscountRate*Timing!I37,2) -> 3229031.97 | S37: 15660374.8 | W37: 0 | Y37: 30.2728457 | AA37: 0 | AB37: 0 | AC37: 0 | AE37: =Timing!I37 -> 0.09315068493 | AF37: 0.01 | AG37: 446659.0082 | AI37: 0.0003 | AJ37: 13399.77025 | AM37: 1218.160931 | AN37: 1218.160931 | AO37: 446659.0082 | AP37: 10963.44838 | AT37: 0.0519 | AU37: 0.04903 | AV37: 0.05644 | AW37: 0.0494 | AY37: 0 | AZ37: 0 | BA37: 0 | BB37: =MAX(0,BB36+AZ37-BA37+IF(Triggers!BH36,BJ36-BH36-BI36-BK36,0)) -> 0 | BH37: =IF(Triggers!$BH37,MIN(Swap!I37,BB37),0) -> 0 | BI37: =IF(Triggers!$BH37,MIN(Swap!Q37,BB37-BH37),0) -> 0 | BJ37: =IF(CashFlowsLedgers!$C37="End",NA(),IF(CashFlowsLedgers!$D37,0,IF(CashFlowsLedgers!$C37="Post-Foreclosure",PostForeclosure!BR37,PreForeclosure!CG37))) -> 0 | BK37: =IF(CashFlowsLedgers!BB36+CashFlowsLedgers!BF36<0.01,BB37-BH37-BI37+BJ37,0) -> 0 | BM37: 479501582.3 | BN37: 0 | BO37: =IFERROR(MAX((((CashFlowsLedgers!BB36/(CashFlowsLedgers!BB36+CashFlowsLedgers!BF36+CashFlowsLedgers!BJ36)*ClassASwap))+((CashFlowsLedgers!BF36/(CashFlowsLedgers!BB36+CashFlowsLedgers!BF36+CashFlowsLedgers!BJ36)*ClassBSwap))+((CashFlowsLedgers!BJ36/(CashFlowsLedgers!BB36+CashFlowsLedgers!BF36+CashFlowsLedgers!BJ36)*SubLoan_Rate))+ServicerFeePercentage+ThirdPartyFeePercentage+InterestCompensationRate-DiscountRate)/12,0),0) -> 2.652633643e-05 | BP37: =IFERROR(MAX((DiscountRate-(((CashFlowsLedgers!BB36/(CashFlowsLedgers!BB36+CashFlowsLedgers!BF36+CashFlowsLedgers!BJ36)*ClassASwap))+((CashFlowsLedgers!BF36/(CashFlowsLedgers!BB36+CashFlowsLedgers!BF36+CashFlowsLedgers!BJ36)*ClassBSwap))+((CashFlowsLedgers!BJ36/(CashFlowsLedgers!BB36+CashFlowsLedgers!BF36+CashFlowsLedgers!BJ36)*SubLoan_Rate))+ServicerFeePercentage+ThirdPartyFeePercentage+InterestCompensationRate))/12,0),0) -> 0 | BT37: 0 | BV37: 0.02623118252 | BW37: 0.02608664125 | BX37: 0.02285451479 | BY37: 0.02066430347 | BZ37: 0.02384975813 | CA37: 0.02206128522 | CB37: 0.02065578972 | CC37: 0.02112557369 | CD37: 0.01713764622 | CF37: 440029863.8 | CG37: 5651006.448 | CH37: 5944772.346 | CI37: 6036451.257 | CJ37: 6352069.35 | CK37: 6701722.096 | CL37: 8785696.989 | CM37: 0 | CN37: 0 | CO37: 479501582.3 | CQ37: 0.9176817764 | CR37: 0.01178516747 | CS37: 0.01239781591 | CT37: 0.01258901217 | CU37: 0.01324723334 | CV37: 0.01397643375 | CW37: 0.01832256099 | CX37: 0 | CY37: 0 | DA37: 0.02407187817 | DB37: 0.0003074354358 | DC37: 0.000283346067 | DD37: 0.0002601431679 | DE37: 0.0003159433111 | DF37: 0.0003083380913 | DG37: 0.0003784669669 | DH37: 0 | DI37: 0
A38: 22 | B38: =Timing!$F38 -> 2026-01-26 | C38: =Timing!B38 -> 2025-12-31 | E38: ='Pool Run Out Schedule 0% CPR'!D25 -> 0.02651467328 | F38: =CashFlowsLedgers!CM37 -> 0 | G38: =CashFlowsLedgers!CP37 -> 467070239.5 | H38: 0.02626258374 | I38: 0 | J38: 0 | K38: 0 | L38: 0 | M38: 12266471.28 | N38: 0 | O38: 0 | P38: 12266471.28 | Q38: 454803768.2 | R38: =ROUND(G38*DiscountRate*Timing!I38,2) -> 2590261.5 | S38: 14856732.78 | W38: 0 | Y38: 31.27158058 | AA38: 0 | AB38: 0 | AC38: 0 | AE38: =Timing!I38 -> 0.07671232877 | AF38: 0.01 | AG38: 358300.4577 | AI38: 0.0003 | AJ38: 10749.01373 | AM38: 977.1830664 | AN38: 977.1830664 | AO38: 358300.4577 | AP38: 8794.647598 | AT38: 0.0519 | AU38: 0.04903 | AV38: 0.05644 | AW38: 0.0494 | AY38: 0 | AZ38: 0 | BA38: 0 | BB38: =MAX(0,BB37+AZ38-BA38+IF(Triggers!BH37,BJ37-BH37-BI37-BK37,0)) -> 0 | BH38: =IF(Triggers!$BH38,MIN(Swap!I38,BB38),0) -> 0 | BI38: =IF(Triggers!$BH38,MIN(Swap!Q38,BB38-BH38),0) -> 0 | BJ38: =IF(CashFlowsLedgers!$C38="End",NA(),IF(CashFlowsLedgers!$D38,0,IF(CashFlowsLedgers!$C38="Post-Foreclosure",PostForeclosure!BR38,PreForeclosure!CG38))) -> 0 | BK38: =IF(CashFlowsLedgers!BB37+CashFlowsLedgers!BF37<0.01,BB38-BH38-BI38+BJ38,0) -> 0 | BM38: 467070239.5 | BN38: 0 | BO38: =IFERROR(MAX((((CashFlowsLedgers!BB37/(CashFlowsLedgers!BB37+CashFlowsLedgers!BF37+CashFlowsLedgers!BJ37)*ClassASwap))+((CashFlowsLedgers!BF37/(CashFlowsLedgers!BB37+CashFlowsLedgers!BF37+CashFlowsLedgers!BJ37)*ClassBSwap))+((CashFlowsLedgers!BJ37/(CashFlowsLedgers!BB37+CashFlowsLedgers!BF37+CashFlowsLedgers!BJ37)*SubLoan_Rate))+ServicerFeePercentage+ThirdPartyFeePercentage+InterestCompensationRate-DiscountRate)/12,0),0) -> 1.964617704e-05 | BP38: =IFERROR(MAX((DiscountRate-(((CashFlowsLedgers!BB37/(CashFlowsLedgers!BB37+CashFlowsLedgers!BF37+CashFlowsLedgers!BJ37)*ClassASwap))+((CashFlowsLedgers!BF37/(CashFlowsLedgers!BB37+CashFlowsLedgers!BF37+CashFlowsLedgers!BJ37)*ClassBSwap))+((CashFlowsLedgers!BJ37/(CashFlowsLedgers!BB37+CashFlowsLedgers!BF37+CashFlowsLedgers!BJ37)*SubLoan_Rate))+ServicerFeePercentage+ThirdPartyFeePercentage+InterestCompensationRate))/12,0),0) -> 0 | BT38: 0 | BV38: 0.02651467328 | BW38: 0.02623118252 | BX38: 0.02608664125 | BY38: 0.02285451479 | BZ38: 0.02066430347 | CA38: 0.02384975813 | CB38: 0.02206128522 | CC38: 0.02065578972 | CD38: 0.02112557369 | CF38: 428487360.1 | CG38: 5503590.671 | CH38: 5808907.459 | CI38: 5911712.196 | CJ38: 6200574.032 | CK38: 6553873.494 | CL38: 8604221.479 | CM38: 0 | CN38: 0 | CO38: 467070239.5 | CQ38: 0.9173938392 | CR38: 0.01178321847 | CS38: 0.01243690342 | CT38: 0.01265700894 | CU38: 0.01327546375 | CV38: 0.01403187987 | CW38: 0.0184216864 | CX38: 0 | CY38: 0 | DA38: 0.02432439792 | DB38: 0.0003090877542 | DC38: 0.0003244370378 | DD38: 0.0002892697979 | DE38: 0.0002743282116 | DF38: 0.0003346569411 | DG38: 0.000406406078 | DH38: 0 | DI38: 0
A39: 23 | B39: =Timing!$F39 -> 2026-02-25 | C39: =Timing!B39 -> 2026-01-31 | E39: ='Pool Run Out Schedule 0% CPR'!D26 -> 0.02489256578 | F39: =CashFlowsLedgers!CM38 -> 0 | G39: =CashFlowsLedgers!CP38 -> 454803768.2 | H39: 0.02483751535 | I39: 0 | J39: 0 | K39: 0 | L39: 0 | M39: 11296195.57 | N39: 0 | O39: 0 | P39: 11296195.57 | Q39: 443507572.6 | R39: =ROUND(G39*DiscountRate*Timing!I39,2) -> 2702394.15 | S39: 13998589.72 | W39: 0 | Y39: 32.27048676 | AA39: 0 | AB39: 0 | AC39: 0 | AE39: =Timing!I39 -> 0.08219178082 | AF39: 0.01 | AG39: 373811.3163 | AI39: 0.0003 | AJ39: 11214.33949 | AM39: 1019.485408 | AN39: 1019.485408 | AO39: 373811.3163 | AP39: 9175.368674 | AT39: 0.0519 | AU39: 0.04903 | AV39: 0.05644 | AW39: 0.0494 | AY39: 0 | AZ39: 0 | BA39: 0 | BB39: =MAX(0,BB38+AZ39-BA39+IF(Triggers!BH38,BJ38-BH38-BI38-BK38,0)) -> 0 | BH39: =IF(Triggers!$BH39,MIN(Swap!I39,BB39),0) -> 0 | BI39: =IF(Triggers!$BH39,MIN(Swap!Q39,BB39-BH39),0) -> 0 | BJ39: =IF(CashFlowsLedgers!$C39="End",NA(),IF(CashFlowsLedgers!$D39,0,IF(CashFlowsLedgers!$C39="Post-Foreclosure",PostForeclosure!BR39,PreForeclosure!CG39))) -> 0 | BK39: =IF(CashFlowsLedgers!BB38+CashFlowsLedgers!BF38<0.01,BB39-BH39-BI39+BJ39,0) -> 0 | BM39: 454803768.2 | BN39: 0 | BO39: =IFERROR(MAX((((CashFlowsLedgers!BB38/(CashFlowsLedgers!BB38+CashFlowsLedgers!BF38+CashFlowsLedgers!BJ38)*ClassASwap))+((CashFlowsLedgers!BF38/(CashFlowsLedgers!BB38+CashFlowsLedgers!BF38+CashFlowsLedgers!BJ38)*ClassBSwap))+((CashFlowsLedgers!BJ38/(CashFlowsLedgers!BB38+CashFlowsLedgers!BF38+CashFlowsLedgers!BJ38)*SubLoan_Rate))+ServicerFeePercentage+ThirdPartyFeePercentage+InterestCompensationRate-DiscountRate)/12,0),0) -> 1.294139066e-05 | BP39: =IFERROR(MAX((DiscountRate-(((CashFlowsLedgers!BB38/(CashFlowsLedgers!BB38+CashFlowsLedgers!BF38+CashFlowsLedgers!BJ38)*ClassASwap))+((CashFlowsLedgers!BF38/(CashFlowsLedgers!BB38+CashFlowsLedgers!BF38+CashFlowsLedgers!BJ38)*ClassBSwap))+((CashFlowsLedgers!BJ38/(CashFlowsLedgers!BB38+CashFlowsLedgers!BF38+CashFlowsLedgers!BJ38)*SubLoan_Rate))+ServicerFeePercentage+ThirdPartyFeePercentage+InterestCompensationRate))/12,0),0) -> 0 | BT39: 0 | BV39: 0.02489256578 | BW39: 0.02651467328 | BX39: 0.02623118252 | BY39: 0.02608664125 | BZ39: 0.02285451479 | CA39: 0.02066430347 | CB39: 0.02384975813 | CC39: 0.02206128522 | CD39: 0.02065578972 | CF39: 417126157.8 | CG39: 5359224.979 | CH39: 5657372.574 | CI39: 5776602.882 | CJ39: 6072443.489 | CK39: 6397565.196 | CL39: 8414401.295 | CM39: 0 | CN39: 0 | CO39: 454803768.2 | CQ39: 0.9171563363 | CR39: 0.01178359845 | CS39: 0.01243915062 | CT39: 0.01270130831 | CU39: 0.01335178799 | CV39: 0.01406664949 | CW39: 0.01850116882 | CX39: 0 | CY39: 0 | DA39: 0.02283037443 | DB39: 0.0003124382631 | DC39: 0.0003262936302 | DD39: 0.0003313344734 | DE39: 0.000305148636 | DF39: 0.000290677514 | DG39: 0.0004412484014 | DH39: 0 | DI39: 0
A40: 24 | B40: =Timing!$F40 -> 2026-03-25 | C40: =Timing!B40 -> 2026-02-28 | E40: ='Pool Run Out Schedule 0% CPR'!D27 -> 0.02375431871 | F40: =CashFlowsLedgers!CM39 -> 0 | G40: =CashFlowsLedgers!CP39 -> 443507572.6 | H40: 0.0237946806 | I40: 0 | J40: 0 | K40: 0 | L40: 0 | M40: 10553121.04 | N40: 0 | O40: 0 | P40: 10553121.04 | Q40: 432954451.6 | R40: =ROUND(G40*DiscountRate*Timing!I40,2) -> 2459588.5 | S40: 13012709.54 | W40: 0 | Y40: 33.27006936 | AA40: 0 | AB40: 0 | AC40: 0 | AE40: =Timing!I40 -> 0.07671232877 | AF40: 0.01 | AG40: 340224.9872 | AI40: 0.0003 | AJ40: 10206.74962 | AM40: 927.8863288 | AN40: 927.8863288 | AO40: 340224.9872 | AP40: 8350.976959 | AT40: 0.0519 | AU40: 0.04903 | AV40: 0.05644 | AW40: 0.0494 | AY40: 0 | AZ40: 0 | BA40: 0 | BB40: =MAX(0,BB39+AZ40-BA40+IF(Triggers!BH39,BJ39-BH39-BI39-BK39,0)) -> 0 | BH40: =IF(Triggers!$BH40,MIN(Swap!I40,BB40),0) -> 0 | BI40: =IF(Triggers!$BH40,MIN(Swap!Q40,BB40-BH40),0) -> 0 | BJ40: =IF(CashFlowsLedgers!$C40="End",NA(),IF(CashFlowsLedgers!$D40,0,IF(CashFlowsLedgers!$C40="Post-Foreclosure",PostForeclosure!BR40,PreForeclosure!CG40))) -> 0 | BK40: =IF(CashFlowsLedgers!BB39+CashFlowsLedgers!BF39<0.01,BB40-BH40-BI40+BJ40,0) -> 0 | BM40: 443507572.6 | BN40: 0 | BO40: =IFERROR(MAX((((CashFlowsLedgers!BB39/(CashFlowsLedgers!BB39+CashFlowsLedgers!BF39+CashFlowsLedgers!BJ39)*ClassASwap))+((CashFlowsLedgers!BF39/(CashFlowsLedgers!BB39+CashFlowsLedgers!BF39+CashFlowsLedgers!BJ39)*ClassBSwap))+((CashFlowsLedgers!BJ39/(CashFlowsLedgers!BB39+CashFlowsLedgers!BF39+CashFlowsLedgers!BJ39)*SubLoan_Rate))+ServicerFeePercentage+ThirdPartyFeePercentage+InterestCompensationRate-DiscountRate)/12,0),0) -> 6.120392202e-06 | BP40: =IFERROR(MAX((DiscountRate-(((CashFlowsLedgers!BB39/(CashFlowsLedgers!BB39+CashFlowsLedgers!BF39+CashFlowsLedgers!BJ39)*ClassASwap))+((CashFlowsLedgers!BF39/(CashFlowsLedgers!BB39+CashFlowsLedgers!BF39+CashFlowsLedgers!BJ39)*ClassBSwap))+((CashFlowsLedgers!BJ39/(CashFlowsLedgers!BB39+CashFlowsLedgers!BF39+CashFlowsLedgers!BJ39)*SubLoan_Rate))+ServicerFeePercentage+ThirdPartyFeePercentage+InterestCompensationRate))/12,0),0) -> 0 | BT40: 0 | BV40: 0.02375431871 | BW40: 0.02489256578 | BX40: 0.02651467328 | BY40: 0.02623118252 | BZ40: 0.02608664125 | CA40: 0.02285451479 | CB40: 0.02066430347 | CC40: 0.02384975813 | CD40: 0.02206128522 | CF40: 406742817.5 | CG40: 5217126.88 | CH40: 5508973.001 | CI40: 5625910.715 | CJ40: 5933660.739 | CK40: 6265363.967 | CL40: 8213719.859 | CM40: 0 | CN40: 0 | CO40: 443507572.6 | CQ40: 0.9171045605 | CR40: 0.01176333213 | CS40: 0.01242137303 | CT40: 0.01268503868 | CU40: 0.01337893895 | CV40: 0.01412684778 | CW40: 0.01851990894 | CX40: 0 | CY40: 0 | DA40: 0.02178519402 | DB40: 0.0002928195188 | DC40: 0.0003293486476 | DD40: 0.0003327435649 | DE40: 0.0003490115808 | DF40: 0.0003228622514 | DG40: 0.0003827010186 | DH40: 0 | DI40: 0
A41: 25 | B41: =Timing!$F41 -> 2026-04-27 | C41: =Timing!B41 -> 2026-03-31 | E41: ='Pool Run Out Schedule 0% CPR'!D28 -> 0.02698146382 | F41: =CashFlowsLedgers!CM40 -> 0 | G41: =CashFlowsLedgers!CP40 -> 432954451.6 | H41: 0.02681241997 | I41: 0 | J41: 0 | K41: 0 | L41: 0 | M41: 11608556.58 | N41: 0 | O41: 0 | P41: 11608556.58 | Q41: 421345895 | R41: =ROUND(G41*DiscountRate*Timing!I41,2) -> 2829824.69 | S41: 14438381.27 | W41: 0 | Y41: 34.26994808 | AA41: 0 | AB41: 0 | AC41: 0 | AE41: =Timing!I41 -> 0.0904109589 | AF41: 0.01 | AG41: 391438.2713 | AI41: 0.0003 | AJ41: 11743.14814 | AM41: 1067.558922 | AN41: 1067.558922 | AO41: 391438.2713 | AP41: 9608.030296 | AT41: 0.0519 | AU41: 0.04903 | AV41: 0.05644 | AW41: 0.0494 | AY41: 0 | AZ41: 0 | BA41: 0 | BB41: =MAX(0,BB40+AZ41-BA41+IF(Triggers!BH40,BJ40-BH40-BI40-BK40,0)) -> 0 | BH41: =IF(Triggers!$BH41,MIN(Swap!I41,BB41),0) -> 0 | BI41: =IF(Triggers!$BH41,MIN(Swap!Q41,BB41-BH41),0) -> 0 | BJ41: =IF(CashFlowsLedgers!$C41="End",NA(),IF(CashFlowsLedgers!$D41,0,IF(CashFlowsLedgers!$C41="Post-Foreclosure",PostForeclosure!BR41,PreForeclosure!CG41))) -> 0 | BK41: =IF(CashFlowsLedgers!BB40+CashFlowsLedgers!BF40<0.01,BB41-BH41-BI41+BJ41,0) -> 0 | BM41: 432954451.6 | BN41: 0 | BO41: =IFERROR(MAX((((CashFlowsLedgers!BB40/(CashFlowsLedgers!BB40+CashFlowsLedgers!BF40+CashFlowsLedgers!BJ40)*ClassASwap))+((CashFlowsLedgers!BF40/(CashFlowsLedgers!BB40+CashFlowsLedgers!BF40+CashFlowsLedgers!BJ40)*ClassBSwap))+((CashFlowsLedgers!BJ40/(CashFlowsLedgers!BB40+CashFlowsLedgers!BF40+CashFlowsLedgers!BJ40)*SubLoan_Rate))+ServicerFeePercentage+ThirdPartyFeePercentage+InterestCompensationRate-DiscountRate)/12,0),0) -> 4.709924261e-08 | BP41: =IFERROR(MAX((DiscountRate-(((CashFlowsLedgers!BB40/(CashFlowsLedgers!BB40+CashFlowsLedgers!BF40+CashFlowsLedgers!BJ40)*ClassASwap))+((CashFlowsLedgers!BF40/(CashFlowsLedgers!BB40+CashFlowsLedgers!BF40+CashFlowsLedgers!BJ40)*ClassBSwap))+((CashFlowsLedgers!BJ40/(CashFlowsLedgers!BB40+CashFlowsLedgers!BF40+CashFlowsLedgers!BJ40)*SubLoan_Rate))+ServicerFeePercentage+ThirdPartyFeePercentage+InterestCompensationRate))/12,0),0) -> 0 | BT41: 0 | BV41: 0.02698146382 | BW41: 0.02375431871 | BX41: 0.02489256578 | BY41: 0.02651467328 | BZ41: 0.02623118252 | CA41: 0.02608664125 | CB41: 0.02285451479 | CC41: 0.02066430347 | CD41: 0.02384975813 | CF41: 397080918.9 | CG41: 5087259.206 | CH41: 5362904.382 | CI41: 5478336.424 | CJ41: 5778871.46 | CK41: 6122172.114 | CL41: 8043989.059 | CM41: 0 | CN41: 0 | CO41: 432954451.6 | CQ41: 0.9171424788 | CR41: 0.01175010255 | CS41: 0.01238676346 | CT41: 0.01265337821 | CU41: 0.01334752753 | CV41: 0.01414045309 | CW41: 0.01857929634 | CX41: 0 | CY41: 0 | DA41: 0.02474584661 | DB41: 0.0002791156809 | DC41: 0.0003083383243 | DD41: 0.0003355001892 | DE41: 0.0003501214307 | DF41: 0.000368876927 | DG41: 0.000424620803 | DH41: 0 | DI41: 0
A42: 26 | B42: =Timing!$F42 -> 2026-05-26 | C42: =Timing!B42 -> 2026-04-30 | E42: ='Pool Run Out Schedule 0% CPR'!D29 -> 0.0324102123 | F42: =CashFlowsLedgers!CM41 -> 0 | G42: =CashFlowsLedgers!CP41 -> 421345895 | H42: 0.03185949813 | I42: 0 | J42: 0 | K42: 0 | L42: 0 | M42: 13423868.75 | N42: 0 | O42: 0 | P42: 13423868.75 | Q42: 407922026.3 | R42: =ROUND(G42*DiscountRate*Timing!I42,2) -> 2420138.1 | S42: 15844006.85 | W42: 0 | Y42: 35.26931269 | AA42: 0 | AB42: 0 | AC42: 0 | AE42: =Timing!I42 -> 0.07945205479 | AF42: 0.01 | AG42: 334767.9714 | AI42: 0.0003 | AJ42: 10043.03914 | AM42: 913.0035583 | AN42: 913.0035583 | AO42: 334767.9714 | AP42: 8217.032025 | AT42: 0.0519 | AU42: 0.04903 | AV42: 0.05644 | AW42: 0.0494 | AY42: 0 | AZ42: 0 | BA42: 0 | BB42: =MAX(0,BB41+AZ42-BA42+IF(Triggers!BH41,BJ41-BH41-BI41-BK41,0)) -> 0 | BH42: =IF(Triggers!$BH42,MIN(Swap!I42,BB42),0) -> 0 | BI42: =IF(Triggers!$BH42,MIN(Swap!Q42,BB42-BH42),0) -> 0 | BJ42: =IF(CashFlowsLedgers!$C42="End",NA(),IF(CashFlowsLedgers!$D42,0,IF(CashFlowsLedgers!$C42="Post-Foreclosure",PostForeclosure!BR42,PreForeclosure!CG42))) -> 0 | BK42: =IF(CashFlowsLedgers!BB41+CashFlowsLedgers!BF41<0.01,BB42-BH42-BI42+BJ42,0) -> 0 | BM42: 421345895 | BN42: 0 | BO42: =IFERROR(MAX((((CashFlowsLedgers!BB41/(CashFlowsLedgers!BB41+CashFlowsLedgers!BF41+CashFlowsLedgers!BJ41)*ClassASwap))+((CashFlowsLedgers!BF41/(CashFlowsLedgers!BB41+CashFlowsLedgers!BF41+CashFlowsLedgers!BJ41)*ClassBSwap))+((CashFlowsLedgers!BJ41/(CashFlowsLedgers!BB41+CashFlowsLedgers!BF41+CashFlowsLedgers!BJ41)*SubLoan_Rate))+ServicerFeePercentage+ThirdPartyFeePercentage+InterestCompensationRate-DiscountRate)/12,0),0) -> 0 | BP42: =IFERROR(MAX((DiscountRate-(((CashFlowsLedgers!BB41/(CashFlowsLedgers!BB41+CashFlowsLedgers!BF41+CashFlowsLedgers!BJ41)*ClassASwap))+((CashFlowsLedgers!BF41/(CashFlowsLedgers!BB41+CashFlowsLedgers!BF41+CashFlowsLedgers!BJ41)*ClassBSwap))+((CashFlowsLedgers!BJ41/(CashFlowsLedgers!BB41+CashFlowsLedgers!BF41+CashFlowsLedgers!BJ41)*SubLoan_Rate))+ServicerFeePercentage+ThirdPartyFeePercentage+InterestCompensationRate))/12,0),0) -> 7.395831342e-06 | BT42: 0 | BV42: 0.0324102123 | BW42: 0.02698146382 | BX42: 0.02375431871 | BY42: 0.02489256578 | BZ42: 0.02651467328 | CA42: 0.02623118252 | CB42: 0.02608664125 | CC42: 0.02285451479 | CD42: 0.02066430347 | CF42: 386367094.5 | CG42: 4966414.829 | CH42: 5229407.932 | CI42: 5333080.124 | CJ42: 5627284.828 | CK42: 5962465.206 | CL42: 7860147.592 | CM42: 0 | CN42: 0 | CO42: 421345895 | CQ42: 0.9169831701 | CR42: 0.01178702555 | CS42: 0.01241119943 | CT42: 0.01265724951 | CU42: 0.01335549935 | CV42: 0.01415099868 | CW42: 0.01865485741 | CX42: 0 | CY42: 0 | DA42: 0.02971961922 | DB42: 0.0003180312034 | DC42: 0.0002948195869 | DD42: 0.000315071416 | DE42: 0.0003541167019 | DF42: 0.0003711974293 | DG42: 0.0004866425729 | DH42: 0 | DI42: 0
A43: 27 | B43: =Timing!$F43 -> 2026-06-25 | C43: =Timing!B43 -> 2026-05-31 | E43: ='Pool Run Out Schedule 0% CPR'!D30 -> 0.03103215563 | F43: =CashFlowsLedgers!CM42 -> 0 | G43: =CashFlowsLedgers!CP42 -> 407922026.3 | H43: 0.03066816153 | I43: 0 | J43: 0 | K43: 0 | L43: 0 | M43: 12510218.59 | N43: 0 | O43: 0 | P43: 12510218.59 | Q43: 395411807.7 | R43: =ROUND(G43*DiscountRate*Timing!I43,2) -> 2423827.98 | S43: 14934046.57 | W43: 0 | Y43: 36.26739856 | AA43: 0 | AB43: 0 | AC43: 0 | AE43: =Timing!I43 -> 0.08219178082 | AF43: 0.01 | AG43: 335278.3777 | AI43: 0.0003 | AJ43: 10058.35133 | AM43: 914.3955757 | AN43: 914.3955757 | AO43: 335278.3777 | AP43: 8229.560181 | AT43: 0.0519 | AU43: 0.04903 | AV43: 0.05644 | AW43: 0.0494 | AY43: 0 | AZ43: 0 | BA43: 0 | BB43: =MAX(0,BB42+AZ43-BA43+IF(Triggers!BH42,BJ42-BH42-BI42-BK42,0)) -> 0 | BH43: =IF(Triggers!$BH43,MIN(Swap!I43,BB43),0) -> 0 | BI43: =IF(Triggers!$BH43,MIN(Swap!Q43,BB43-BH43),0) -> 0 | BJ43: =IF(CashFlowsLedgers!$C43="End",NA(),IF(CashFlowsLedgers!$D43,0,IF(CashFlowsLedgers!$C43="Post-Foreclosure",PostForeclosure!BR43,PreForeclosure!CG43))) -> 0 | BK43: =IF(CashFlowsLedgers!BB42+CashFlowsLedgers!BF42<0.01,BB43-BH43-BI43+BJ43,0) -> 0 | BM43: 407922026.3 | BN43: 0 | BO43: =IFERROR(MAX((((CashFlowsLedgers!BB42/(CashFlowsLedgers!BB42+CashFlowsLedgers!BF42+CashFlowsLedgers!BJ42)*ClassASwap))+((CashFlowsLedgers!BF42/(CashFlowsLedgers!BB42+CashFlowsLedgers!BF42+CashFlowsLedgers!BJ42)*ClassBSwap))+((CashFlowsLedgers!BJ42/(CashFlowsLedgers!BB42+CashFlowsLedgers!BF42+CashFlowsLedgers!BJ42)*SubLoan_Rate))+ServicerFeePercentage+ThirdPartyFeePercentage+InterestCompensationRate-DiscountRate)/12,0),0) -> 0 | BP43: =IFERROR(MAX((DiscountRate-(((CashFlowsLedgers!BB42/(CashFlowsLedgers!BB42+CashFlowsLedgers!BF42+CashFlowsLedgers!BJ42)*ClassASwap))+((CashFlowsLedgers!BF42/(CashFlowsLedgers!BB42+CashFlowsLedgers!BF42+CashFlowsLedgers!BJ42)*ClassBSwap))+((CashFlowsLedgers!BJ42/(CashFlowsLedgers!BB42+CashFlowsLedgers!BF42+CashFlowsLedgers!BJ42)*SubLoan_Rate))+ServicerFeePercentage+ThirdPartyFeePercentage+InterestCompensationRate))/12,0),0) -> 1.600360764e-05 | BT43: 0 | BV43: 0.03103215563 | BW43: 0.0324102123 | BX43: 0.02698146382 | BY43: 0.02375431871 | BZ43: 0.02489256578 | CA43: 0.02651467328 | CB43: 0.02623118252 | CC43: 0.02608664125 | CD43: 0.02285451479 | CF43: 373844854.9 | CG43: 4832413.687 | CH43: 5105186.909 | CI43: 5200326.076 | CJ43: 5478079.21 | CK43: 5806062.693 | CL43: 7655102.742 | CM43: 0 | CN43: 0 | CO43: 407922026.3 | CQ43: 0.9164615561 | CR43: 0.01184641519 | CS43: 0.0125151048 | CT43: 0.01274833361 | CU43: 0.01342923122 | CV43: 0.01423326597 | CW43: 0.01876609315 | CX43: 0 | CY43: 0 | DA43: 0.02843977764 | DB43: 0.0003839448313 | DC43: 0.0003376758475 | DD43: 0.0003028279795 | DE43: 0.0003342880214 | DF43: 0.0003773903968 | DG43: 0.0004922568145 | DH43: 0 | DI43: 0
A44: 28 | B44: =Timing!$F44 -> 2026-07-27 | C44: =Timing!B44 -> 2026-06-30 | E44: ='Pool Run Out Schedule 0% CPR'!D31 -> 0.03487963534 | F44: =CashFlowsLedgers!CM43 -> 0 | G44: =CashFlowsLedgers!CP43 -> 395411807.7 | H44: 0.03425096053 | I44: 0 | J44: 0 | K44: 0 | L44: 0 | M44: 13543234.22 | N44: 0 | O44: 0 | P44: 13543234.22 | Q44: 381868573.4 | R44: =ROUND(G44*DiscountRate*Timing!I44,2) -> 2506126.54 | S44: 16049360.76 | W44: 0 | Y44: 37.26591147 | AA44: 0 | AB44: 0 | AC44: 0 | AE44: =Timing!I44 -> 0.08767123288 | AF44: 0.01 | AG44: 346662.4067 | AI44: 0.0003 | AJ44: 10399.8722 | AM44: 945.4429274 | AN44: 945.4429274 | AO44: 346662.4067 | AP44: 8508.986347 | AT44: 0.0519 | AU44: 0.04903 | AV44: 0.05644 | AW44: 0.0494 | AY44: 0 | AZ44: 0 | BA44: 0 | BB44: =MAX(0,BB43+AZ44-BA44+IF(Triggers!BH43,BJ43-BH43-BI43-BK43,0)) -> 0 | BH44: =IF(Triggers!$BH44,MIN(Swap!I44,BB44),0) -> 0 | BI44: =IF(Triggers!$BH44,MIN(Swap!Q44,BB44-BH44),0) -> 0 | BJ44: =IF(CashFlowsLedgers!$C44="End",NA(),IF(CashFlowsLedgers!$D44,0,IF(CashFlowsLedgers!$C44="Post-Foreclosure",PostForeclosure!BR44,PreForeclosure!CG44))) -> 0 | BK44: =IF(CashFlowsLedgers!BB43+CashFlowsLedgers!BF43<0.01,BB44-BH44-BI44+BJ44,0) -> 0 | BM44: 395411807.7 | BN44: 0 | BO44: =IFERROR(MAX((((CashFlowsLedgers!BB43/(CashFlowsLedgers!BB43+CashFlowsLedgers!BF43+CashFlowsLedgers!BJ43)*ClassASwap))+((CashFlowsLedgers!BF43/(CashFlowsLedgers!BB43+CashFlowsLedgers!BF43+CashFlowsLedgers!BJ43)*ClassBSwap))+((CashFlowsLedgers!BJ43/(CashFlowsLedgers!BB43+CashFlowsLedgers!BF43+CashFlowsLedgers!BJ43)*SubLoan_Rate))+ServicerFeePercentage+ThirdPartyFeePercentage+InterestCompensationRate-DiscountRate)/12,0),0) -> 0 | BP44: =IFERROR(MAX((DiscountRate-(((CashFlowsLedgers!BB43/(CashFlowsLedgers!BB43+CashFlowsLedgers!BF43+CashFlowsLedgers!BJ43)*ClassASwap))+((CashFlowsLedgers!BF43/(CashFlowsLedgers!BB43+CashFlowsLedgers!BF43+CashFlowsLedgers!BJ43)*ClassBSwap))+((CashFlowsLedgers!BJ43/(CashFlowsLedgers!BB43+CashFlowsLedgers!BF43+CashFlowsLedgers!BJ43)*SubLoan_Rate))+ServicerFeePercentage+ThirdPartyFeePercentage+InterestCompensationRate))/12,0),0) -> 2.4820245e-05 | BT44: 0 | BV44: 0.03487963534 | BW44: 0.03103215563 | BX44: 0.0324102123 | BY44: 0.02698146382 | BZ44: 0.02375431871 | CA44: 0.02489256578 | CB44: 0.02651467328 | CC44: 0.02623118252 | CD44: 0.02608664125 | CF44: 362243643.2 | CG44: 4675794.134 | CH44: 4967441.493 | CI44: 5076795.873 | CJ44: 5341715.763 | CK44: 5652116.838 | CL44: 7454300.345 | CM44: 0 | CN44: 0 | CO44: 395411807.7 | CQ44: 0.9161174153 | CR44: 0.01182512521 | CS44: 0.01256270399 | CT44: 0.01283926219 | CU44: 0.01350924696 | CV44: 0.01429425406 | CW44: 0.01885199228 | CX44: 0 | CY44: 0 | DA44: 0.03195384138 | DB44: 0.0003669591257 | DC44: 0.0004071599034 | DD44: 0.0003464220884 | DE44: 0.000320902958 | DF44: 0.0003558206595 | DG44: 0.000499854416 | DH44: 0 | DI44: 0
A45: 29 | B45: =Timing!$F45 -> 2026-08-25 | C45: =Timing!B45 -> 2026-07-31 | E45: ='Pool Run Out Schedule 0% CPR'!D32 -> 0.03459006647 | F45: =CashFlowsLedgers!CM44 -> 0 | G45: =CashFlowsLedgers!CP44 -> 381868573.4 | H45: 0.03407594629 | I45: 0 | J45: 0 | K45: 0 | L45: 0 | M45: 13012533 | N45: 0 | O45: 0 | P45: 13012533 | Q45: 368856040.4 | R45: =ROUND(G45*DiscountRate*Timing!I45,2) -> 2193387.17 | S45: 15205920.17 | W45: 0 | Y45: 38.26334823 | AA45: 0 | AB45: 0 | AC45: 0 | AE45: =Timing!I45 -> 0.07945205479 | AF45: 0.01 | AG45: 303402.4282 | AI45: 0.0003 | AJ45: 9102.072847 | AM45: 827.4611679 | AN45: 827.4611679 | AO45: 303402.4282 | AP45: 7447.150511 | AT45: 0.0519 | AU45: 0.04903 | AV45: 0.05644 | AW45: 0.0494 | AY45: 0 | AZ45: 0 | BA45: 0 | BB45: =MAX(0,BB44+AZ45-BA45+IF(Triggers!BH44,BJ44-BH44-BI44-BK44,0)) -> 0 | BH45: =IF(Triggers!$BH45,MIN(Swap!I45,BB45),0) -> 0 | BI45: =IF(Triggers!$BH45,MIN(Swap!Q45,BB45-BH45),0) -> 0 | BJ45: =IF(CashFlowsLedgers!$C45="End",NA(),IF(CashFlowsLedgers!$D45,0,IF(CashFlowsLedgers!$C45="Post-Foreclosure",PostForeclosure!BR45,PreForeclosure!CG45))) -> 0 | BK45: =IF(CashFlowsLedgers!BB44+CashFlowsLedgers!BF44<0.01,BB45-BH45-BI45+BJ45,0) -> 0 | BM45: 381868573.4 | BN45: 0 | BO45: =IFERROR(MAX((((CashFlowsLedgers!BB44/(CashFlowsLedgers!BB44+CashFlowsLedgers!BF44+CashFlowsLedgers!BJ44)*ClassASwap))+((CashFlowsLedgers!BF44/(CashFlowsLedgers!BB44+CashFlowsLedgers!BF44+CashFlowsLedgers!BJ44)*ClassBSwap))+((CashFlowsLedgers!BJ44/(CashFlowsLedgers!BB44+CashFlowsLedgers!BF44+CashFlowsLedgers!BJ44)*SubLoan_Rate))+ServicerFeePercentage+ThirdPartyFeePercentage+InterestCompensationRate-DiscountRate)/12,0),0) -> 0 | BP45: =IFERROR(MAX((DiscountRate-(((CashFlowsLedgers!BB44/(CashFlowsLedgers!BB44+CashFlowsLedgers!BF44+CashFlowsLedgers!BJ44)*ClassASwap))+((CashFlowsLedgers!BF44/(CashFlowsLedgers!BB44+CashFlowsLedgers!BF44+CashFlowsLedgers!BJ44)*ClassBSwap))+((CashFlowsLedgers!BJ44/(CashFlowsLedgers!BB44+CashFlowsLedgers!BF44+CashFlowsLedgers!BJ44)*SubLoan_Rate))+ServicerFeePercentage+ThirdPartyFeePercentage+InterestCompensationRate))/12,0),0) -> 3.523003037e-05 | BT45: 0 | BV45: 0.03459006647 | BW45: 0.03487963534 | BX45: 0.03103215563 | BY45: 0.0324102123 | BZ45: 0.02698146382 | CA45: 0.02375431871 | CB45: 0.02489256578 | CC45: 0.02651467328 | CD45: 0.02623118252 | CF45: 349608717 | CG45: 4530694.162 | CH45: 4806445.66 | CI45: 4939816.489 | CJ45: 5214826.944 | CK45: 5511421.148 | CL45: 7256652.007 | CM45: 0 | CN45: 0 | CO45: 381868573.4 | CQ45: 0.9155210492 | CR45: 0.0118645379 | CS45: 0.0125866489 | CT45: 0.01293590736 | CU45: 0.01365607779 | CV45: 0.01443276963 | CW45: 0.01900300918 | CX45: 0 | CY45: 0 | DA45: 0.03166793395 | DB45: 0.0004138307554 | DC45: 0.0003905908475 | DD45: 0.0004192555038 | DE45: 0.0003684609688 | DF45: 0.0003428406096 | DG45: 0.000473033656 | DH45: 0 | DI45: 0
A46: 30 | B46: =Timing!$F46 -> 2026-09-25 | C46: =Timing!B46 -> 2026-08-31 | E46: ='Pool Run Out Schedule 0% CPR'!D33 -> 0.0356307882 | F46: =CashFlowsLedgers!CM45 -> 0 | G46: =CashFlowsLedgers!CP45 -> 368856040.4 | H46: 0.03515107096 | I46: 0 | J46: 0 | K46: 0 | L46: 0 | M46: 12965684.85 | N46: 0 | O46: 0 | P46: 12965684.85 | Q46: 355890355.6 | R46: =ROUND(G46*DiscountRate*Timing!I46,2) -> 2264758.91 | S46: 15230443.76 | W46: 0 | Y46: 39.26095551 | AA46: 0 | AB46: 0 | AC46: 0 | AE46: =Timing!I46 -> 0.08493150685 | AF46: 0.01 | AG46: 313274.9933 | AI46: 0.0003 | AJ46: 9398.249798 | AM46: 854.3863453 | AN46: 854.3863453 | AO46: 313274.9933 | AP46: 7689.477107 | AT46: 0.0519 | AU46: 0.04903 | AV46: 0.05644 | AW46: 0.0494 | AY46: 0 | AZ46: 0 | BA46: 0 | BB46: =MAX(0,BB45+AZ46-BA46+IF(Triggers!BH45,BJ45-BH45-BI45-BK45,0)) -> 0 | BH46: =IF(Triggers!$BH46,MIN(Swap!I46,BB46),0) -> 0 | BI46: =IF(Triggers!$BH46,MIN(Swap!Q46,BB46-BH46),0) -> 0 | BJ46: =IF(CashFlowsLedgers!$C46="End",NA(),IF(CashFlowsLedgers!$D46,0,IF(CashFlowsLedgers!$C46="Post-Foreclosure",PostForeclosure!BR46,PreForeclosure!CG46))) -> 0 | BK46: =IF(CashFlowsLedgers!BB45+CashFlowsLedgers!BF45<0.01,BB46-BH46-BI46+BJ46,0) -> 0 | BM46: 368856040.4 | BN46: 0 | BO46: =IFERROR(MAX((((CashFlowsLedgers!BB45/(CashFlowsLedgers!BB45+CashFlowsLedgers!BF45+CashFlowsLedgers!BJ45)*ClassASwap))+((CashFlowsLedgers!BF45/(CashFlowsLedgers!BB45+CashFlowsLedgers!BF45+CashFlowsLedgers!BJ45)*ClassBSwap))+((CashFlowsLedgers!BJ45/(CashFlowsLedgers!BB45+CashFlowsLedgers!BF45+CashFlowsLedgers!BJ45)*SubLoan_Rate))+ServicerFeePercentage+ThirdPartyFeePercentage+InterestCompensationRate-DiscountRate)/12,0),0) -> 0 | BP46: =IFERROR(MAX((DiscountRate-(((CashFlowsLedgers!BB45/(CashFlowsLedgers!BB45+CashFlowsLedgers!BF45+CashFlowsLedgers!BJ45)*ClassASwap))+((CashFlowsLedgers!BF45/(CashFlowsLedgers!BB45+CashFlowsLedgers!BF45+CashFlowsLedgers!BJ45)*ClassBSwap))+((CashFlowsLedgers!BJ45/(CashFlowsLedgers!BB45+CashFlowsLedgers!BF45+CashFlowsLedgers!BJ45)*SubLoan_Rate))+ServicerFeePercentage+ThirdPartyFeePercentage+InterestCompensationRate))/12,0),0) -> 4.582724376e-05 | BT46: 0 | BV46: 0.0356307882 | BW46: 0.03459006647 | BX46: 0.03487963534 | BY46: 0.03103215563 | BZ46: 0.0324102123 | CA46: 0.02698146382 | CB46: 0.02375431871 | CC46: 0.02489256578 | CD46: 0.02651467328 | CF46: 337515728.3 | CG46: 4372665.202 | CH46: 4657291.29 | CI46: 4779715.988 | CJ46: 5074123.279 | CK46: 5380501.093 | CL46: 7076015.319 | CM46: 0 | CN46: 0 | CO46: 368856040.5 | CQ46: 0.9150337564 | CR46: 0.01185466611 | CS46: 0.01262631157 | CT46: 0.0129582153 | CU46: 0.01375637843 | CV46: 0.01458699466 | CW46: 0.01918367749 | CX46: 0 | CY46: 0 | DA46: 0.03260337398 | DB46: 0.0004100536887 | DC46: 0.0004404011432 | DD46: 0.000402121354 | DE46: 0.0004458471455 | DF46: 0.0003935784688 | DG46: 0.0004556951891 | DH46: 0 | DI46: 0
A47: 31 | B47: =Timing!$F47 -> 2026-10-26 | C47: =Timing!B47 -> 2026-09-30 | E47: ='Pool Run Out Schedule 0% CPR'!D34 -> 0.03531164039 | F47: =CashFlowsLedgers!CM46 -> 0 | G47: =CashFlowsLedgers!CP46 -> 355890355.6 | H47: 0.03503728075 | I47: 0 | J47: 0 | K47: 0 | L47: 0 | M47: 12469430.31 | N47: 0 | O47: 0 | P47: 12469430.31 | Q47: 343420925.3 | R47: =ROUND(G47*DiscountRate*Timing!I47,2) -> 2185150.21 | S47: 14654580.52 | W47: 0 | Y47: 40.25864211 | AA47: 0 | AB47: 0 | AC47: 0 | AE47: =Timing!I47 -> 0.08493150685 | AF47: 0.01 | AG47: 302263.0417 | AI47: 0.0003 | AJ47: 9067.891252 | AM47: 824.3537502 | AN47: 824.3537502 | AO47: 302263.0417 | AP47: 7419.183752 | AT47: 0.0519 | AU47: 0.04903 | AV47: 0.05644 | AW47: 0.0494 | AY47: 0 | AZ47: 0 | BA47: 0 | BB47: =MAX(0,BB46+AZ47-BA47+IF(Triggers!BH46,BJ46-BH46-BI46-BK46,0)) -> 0 | BH47: =IF(Triggers!$BH47,MIN(Swap!I47,BB47),0) -> 0 | BI47: =IF(Triggers!$BH47,MIN(Swap!Q47,BB47-BH47),0) -> 0 | BJ47: =IF(CashFlowsLedgers!$C47="End",NA(),IF(CashFlowsLedgers!$D47,0,IF(CashFlowsLedgers!$C47="Post-Foreclosure",PostForeclosure!BR47,PreForeclosure!CG47))) -> 0 | BK47: =IF(CashFlowsLedgers!BB46+CashFlowsLedgers!BF46<0.01,BB47-BH47-BI47+BJ47,0) -> 0 | BM47: 355890355.6 | BN47: 0 | BO47: =IFERROR(MAX((((CashFlowsLedgers!BB46/(CashFlowsLedgers!BB46+CashFlowsLedgers!BF46+CashFlowsLedgers!BJ46)*ClassASwap))+((CashFlowsLedgers!BF46/(CashFlowsLedgers!BB46+CashFlowsLedgers!BF46+CashFlowsLedgers!BJ46)*ClassBSwap))+((CashFlowsLedgers!BJ46/(CashFlowsLedgers!BB46+CashFlowsLedgers!BF46+CashFlowsLedgers!BJ46)*SubLoan_Rate))+ServicerFeePercentage+ThirdPartyFeePercentage+InterestCompensationRate-DiscountRate)/12,0),0) -> 0 | BP47: =IFERROR(MAX((DiscountRate-(((CashFlowsLedgers!BB46/(CashFlowsLedgers!BB46+CashFlowsLedgers!BF46+CashFlowsLedgers!BJ46)*ClassASwap))+((CashFlowsLedgers!BF46/(CashFlowsLedgers!BB46+CashFlowsLedgers!BF46+CashFlowsLedgers!BJ46)*ClassBSwap))+((CashFlowsLedgers!BJ46/(CashFlowsLedgers!BB46+CashFlowsLedgers!BF46+CashFlowsLedgers!BJ46)*SubLoan_Rate))+ServicerFeePercentage+ThirdPartyFeePercentage+InterestCompensationRate))/12,0),0) -> 5.753199415e-05 | BT47: 0 | BV47: 0.03531164039 | BW47: 0.0356307882 | BX47: 0.03459006647 | BY47: 0.03487963534 | BZ47: 0.03103215563 | CA47: 0.0324102123 | CB47: 0.02698146382 | CC47: 0.02375431871 | CD47: 0.02489256578 | CF47: 325489776.9 | CG47: 4221414.422 | CH47: 4494846.668 | CI47: 4631391.097 | CJ47: 4909669.867 | CK47: 5235327.298 | CL47: 6907929.396 | CM47: 0 | CN47: 0 | CO47: 355890355.6 | CQ47: 0.914578807 | CR47: 0.01186155892 | CS47: 0.01262986366 | CT47: 0.01301353359 | CU47: 0.01379545635 | CV47: 0.01471050624 | CW47: 0.01941027422 | CX47: 0 | CY47: 0 | DA47: 0.03229527794 | DB47: 0.0004226366937 | DC47: 0.0004368678234 | DD47: 0.0004539073062 | DE47: 0.0004281027485 | DF47: 0.0004767706304 | DG47: 0.0005237176118 | DH47: 0 | DI47: 0
A48: 32 | B48: =Timing!$F48 -> 2026-11-25 | C48: =Timing!B48 -> 2026-10-31 | E48: ='Pool Run Out Schedule 0% CPR'!D35 -> 0.04915856668 | F48: =CashFlowsLedgers!CM47 -> 0 | G48: =CashFlowsLedgers!CP47 -> 343420925.3 | H48: 0.04784088905 | I48: 0 | J48: 0 | K48: 0 | L48: 0 | M48: 16429562.38 | N48: 0 | O48: 0 | P48: 16429562.38 | Q48: 326991362.9 | R48: =ROUND(G48*DiscountRate*Timing!I48,2) -> 2040569.5 | S48: 18470131.88 | W48: 0 | Y48: 41.25722978 | AA48: 0 | AB48: 0 | AC48: 0 | AE48: =Timing!I48 -> 0.08219178082 | AF48: 0.01 | AG48: 282263.7742 | AI48: 0.0003 | AJ48: 8467.913226 | AM48: 769.8102933 | AN48: 769.8102933 | AO48: 282263.7742 | AP48: 6928.29264 | AT48: 0.0519 | AU48: 0.04903 | AV48: 0.05644 | AW48: 0.0494 | AY48: 0 | AZ48: 0 | BA48: 0 | BB48: =MAX(0,BB47+AZ48-BA48+IF(Triggers!BH47,BJ47-BH47-BI47-BK47,0)) -> 0 | BH48: =IF(Triggers!$BH48,MIN(Swap!I48,BB48),0) -> 0 | BI48: =IF(Triggers!$BH48,MIN(Swap!Q48,BB48-BH48),0) -> 0 | BJ48: =IF(CashFlowsLedgers!$C48="End",NA(),IF(CashFlowsLedgers!$D48,0,IF(CashFlowsLedgers!$C48="Post-Foreclosure",PostForeclosure!BR48,PreForeclosure!CG48))) -> 0 | BK48: =IF(CashFlowsLedgers!BB47+CashFlowsLedgers!BF47<0.01,BB48-BH48-BI48+BJ48,0) -> 0 | BM48: 343420925.3 | BN48: 0 | BO48: =IFERROR(MAX((((CashFlowsLedgers!BB47/(CashFlowsLedgers!BB47+CashFlowsLedgers!BF47+CashFlowsLedgers!BJ47)*ClassASwap))+((CashFlowsLedgers!BF47/(CashFlowsLedgers!BB47+CashFlowsLedgers!BF47+CashFlowsLedgers!BJ47)*ClassBSwap))+((CashFlowsLedgers!BJ47/(CashFlowsLedgers!BB47+CashFlowsLedgers!BF47+CashFlowsLedgers!BJ47)*SubLoan_Rate))+ServicerFeePercentage+ThirdPartyFeePercentage+InterestCompensationRate-DiscountRate)/12,0),0) -> 0 | BP48: =IFERROR(MAX((DiscountRate-(((CashFlowsLedgers!BB47/(CashFlowsLedgers!BB47+CashFlowsLedgers!BF47+CashFlowsLedgers!BJ47)*ClassASwap))+((CashFlowsLedgers!BF47/(CashFlowsLedgers!BB47+CashFlowsLedgers!BF47+CashFlowsLedgers!BJ47)*ClassBSwap))+((CashFlowsLedgers!BJ47/(CashFlowsLedgers!BB47+CashFlowsLedgers!BF47+CashFlowsLedgers!BJ47)*SubLoan_Rate))+ServicerFeePercentage+ThirdPartyFeePercentage+InterestCompensationRate))/12,0),0) -> 6.985378019e-05 | BT48: 0 | BV48: 0.04915856668 | BW48: 0.03531164039 | BX48: 0.0356307882 | BY48: 0.03459006647 | BZ48: 0.03487963534 | CA48: 0.03103215563 | CB48: 0.0324102123 | CC48: 0.02698146382 | CD48: 0.02375431871 | CF48: 313996198.9 | CG48: 4071002.099 | CH48: 4339369.623 | CI48: 4469849.865 | CJ48: 4757312.227 | CK48: 5065649.228 | CL48: 6721543.349 | CM48: 0 | CN48: 0 | CO48: 343420925.3 | CQ48: 0.9143187726 | CR48: 0.01185426338 | CS48: 0.012635717 | CT48: 0.0130156596 | CU48: 0.01385271507 | CV48: 0.01475055495 | CW48: 0.01957231739 | CX48: 0 | CY48: 0 | DA48: 0.04494660035 | DB48: 0.0004185934856 | DC48: 0.0004502205562 | DD48: 0.0004502125308 | DE48: 0.0004831776501 | DF48: 0.0004577415167 | DG48: 0.000634342962 | DH48: 0 | DI48: 0
A49: 33 | B49: =Timing!$F49 -> 2026-12-29 | C49: =Timing!B49 -> 2026-11-30 | E49: ='Pool Run Out Schedule 0% CPR'!D36 -> 0.05338618503 | F49: =CashFlowsLedgers!CM48 -> 0 | G49: =CashFlowsLedgers!CP48 -> 326991362.9 | H49: =SUM(DA49:DI49) -> 0.05188344926 | I49: 0 | J49: 0 | K49: 0 | L49: 0 | M49: =ROUND(MIN(G49-K49,G49*H49),2) -> 16965439.78 | N49: =ROUND(MIN(G49-K49-M49,(G49-M49)*(1-(1-I49)^(1/12))),2) -> 0 | O49: 0 | P49: =SUM(M49:N49) -> 16965439.78 | Q49: =ROUND(G49-K49-M49-N49,2) -> 310025923.1 | R49: =ROUND(G49*DiscountRate*Timing!I49,2) -> 2202006.42 | S49: 19167446.2 | W49: 0 | Y49: 42.25224693 | AA49: 0 | AB49: 0 | AC49: 0 | AE49: =Timing!I49 -> 0.09315068493 | AF49: =ServicerFeePercentage -> 0.01 | AG49: =G49*AF49*AE49 -> 304594.6942 | AI49: =ThirdPartyFeePercentage -> 0.0003 | AJ49: =G49*AI49*AE49 -> 9137.840827 | AM49: 830.7128024 | AN49: 830.7128024 | AO49: =AG49 -> 304594.6942 | AP49: 7476.415222 | AT49: 0.0519 | AU49: =ClassASwap -> 0.04903 | AV49: =ClassBSwap -> 0.05644 | AW49: 0.0494 | AY49: 0 | AZ49: 0 | BA49: 0 | BB49: =MAX(0,BB48+AZ49-BA49+IF(Triggers!BH48,BJ48-BH48-BI48-BK48,0)) -> 0 | BH49: =IF(Triggers!$BH49,MIN(Swap!I49,BB49),0) -> 0 | BI49: =IF(Triggers!$BH49,MIN(Swap!Q49,BB49-BH49),0) -> 0 | BJ49: =IF(CashFlowsLedgers!$C49="End",NA(),IF(CashFlowsLedgers!$D49,0,IF(CashFlowsLedgers!$C49="Post-Foreclosure",PostForeclosure!BR49,PreForeclosure!CG49))) -> 0 | BK49: =IF(CashFlowsLedgers!BB48+CashFlowsLedgers!BF48<0.01,BB49-BH49-BI49+BJ49,0) -> 0 | BM49: =G49 -> 326991362.9 | BN49: =N49-O49 -> 0 | BO49: =IFERROR(MAX((((CashFlowsLedgers!BB48/(CashFlowsLedgers!BB48+CashFlowsLedgers!BF48+CashFlowsLedgers!BJ48)*ClassASwap))+((CashFlowsLedgers!BF48/(CashFlowsLedgers!BB48+CashFlowsLedgers!BF48+CashFlowsLedgers!BJ48)*ClassBSwap))+((CashFlowsLedgers!BJ48/(CashFlowsLedgers!BB48+CashFlowsLedgers!BF48+CashFlowsLedgers!BJ48)*SubLoan_Rate))+ServicerFeePercentage+ThirdPartyFeePercentage+InterestCompensationRate-DiscountRate)/12,0),0) -> 0 | BP49: =IFERROR(MAX((DiscountRate-(((CashFlowsLedgers!BB48/(CashFlowsLedgers!BB48+CashFlowsLedgers!BF48+CashFlowsLedgers!BJ48)*ClassASwap))+((CashFlowsLedgers!BF48/(CashFlowsLedgers!BB48+CashFlowsLedgers!BF48+CashFlowsLedgers!BJ48)*ClassBSwap))+((CashFlowsLedgers!BJ48/(CashFlowsLedgers!BB48+CashFlowsLedgers!BF48+CashFlowsLedgers!BJ48)*SubLoan_Rate))+ServicerFeePercentage+ThirdPartyFeePercentage+InterestCompensationRate))/12,0),0) -> 8.714101373e-05 | BT49: =1-(1-I49)^(1/12) -> 0 | BV49: =E49 -> 0.05338618503 | BW49: 0.04915856668 | BX49: 0.03531164039 | BY49: 0.0356307882 | BZ49: 0.03459006647 | CA49: 0.03487963534 | CB49: 0.03103215563 | CC49: 0.0324102123 | CD49: 0.02698146382 | CF49: 298560595.8 | CG49: 3927248.337 | CH49: 4184754.463 | CI49: 4315237.461 | CJ49: 4591378.912 | CK49: 4908451.213 | CL49: 6503696.702 | CM49: 0 | CN49: 0 | CO49: =SUM($CF49:$CN49) -> 326991362.9 | CQ49: =IF($CO49>0,CF49/$CO49,0) -> 0.9130534616 | CR49: 0.01201025098 | CS49: 0.01279775229 | CT49: 0.0131967934 | CU49: 0.01404128498 | CV49: 0.01501095065 | CW49: 0.01988950608 | CX49: 0 | CY49: 0 | DA49: =CQ49*BV49 -> 0.04874444104 | DB49: 0.0005904067236 | DC49: 0.0004519096266 | DD49: 0.0004702121507 | DE49: 0.0004856889806 | DF49: 0.000523576485 | DG49: 0.0006172142482 | DH49: 0 | DI49: 0
A50: 34 | B50: =Timing!$F50 -> 2027-01-25 | C50: =Timing!B50 -> 2026-12-31 | E50: ='Pool Run Out Schedule 0% CPR'!D37 -> 0.05627084542 | F50: =CashFlowsLedgers!CM49 -> 0 | G50: =CashFlowsLedgers!CP49 -> 310025923.1 | H50: 0.05480095024 | I50: 0 | J50: 0 | K50: 0 | L50: 0 | M50: 16989715.19 | N50: 0 | O50: 0 | P50: 16989715.19 | Q50: 293036207.9 | R50: =ROUND(G50*DiscountRate*Timing!I50,2) -> 1657926.05 | S50: 18647641.24 | W50: 0 | Y50: 43.24609139 | AA50: 0 | AB50: 0 | AC50: 0 | AE50: =Timing!I50 -> 0.07397260274 | AF50: 0.01 | AG50: 229334.2445 | AI50: 0.0003 | AJ50: 6880.027335 | AM50: =$AJ50/11 -> 625.4570305 | AN50: 625.4570305 | AO50: 229334.2445 | AP50: 5629.113274 | AT50: 0.0519 | AU50: 0.04903 | AV50: 0.05644 | AW50: 0.0494 | AY50: 0 | AZ50: 0 | BA50: 0 | BB50: =MAX(0,BB49+AZ50-BA50+IF(Triggers!BH49,BJ49-BH49-BI49-BK49,0)) -> 0 | BH50: =IF(Triggers!$BH50,MIN(Swap!I50,BB50),0) -> 0 | BI50: =IF(Triggers!$BH50,MIN(Swap!Q50,BB50-BH50),0) -> 0 | BJ50: =IF(CashFlowsLedgers!$C50="End",NA(),IF(CashFlowsLedgers!$D50,0,IF(CashFlowsLedgers!$C50="Post-Foreclosure",PostForeclosure!BR50,PreForeclosure!CG50))) -> 0 | BK50: =IF(CashFlowsLedgers!BB49+CashFlowsLedgers!BF49<0.01,BB50-BH50-BI50+BJ50,0) -> 0 | BM50: 310025923.1 | BN50: 0 | BO50: =IFERROR(MAX((((CashFlowsLedgers!BB49/(CashFlowsLedgers!BB49+CashFlowsLedgers!BF49+CashFlowsLedgers!BJ49)*ClassASwap))+((CashFlowsLedgers!BF49/(CashFlowsLedgers!BB49+CashFlowsLedgers!BF49+CashFlowsLedgers!BJ49)*ClassBSwap))+((CashFlowsLedgers!BJ49/(CashFlowsLedgers!BB49+CashFlowsLedgers!BF49+CashFlowsLedgers!BJ49)*SubLoan_Rate))+ServicerFeePercentage+ThirdPartyFeePercentage+InterestCompensationRate-DiscountRate)/12,0),0) -> 0 | BP50: =IFERROR(MAX((DiscountRate-(((CashFlowsLedgers!BB49/(CashFlowsLedgers!BB49+CashFlowsLedgers!BF49+CashFlowsLedgers!BJ49)*ClassASwap))+((CashFlowsLedgers!BF49/(CashFlowsLedgers!BB49+CashFlowsLedgers!BF49+CashFlowsLedgers!BJ49)*ClassBSwap))+((CashFlowsLedgers!BJ49/(CashFlowsLedgers!BB49+CashFlowsLedgers!BF49+CashFlowsLedgers!BJ49)*SubLoan_Rate))+ServicerFeePercentage+ThirdPartyFeePercentage+InterestCompensationRate))/12,0),0) -> 0.0001078062497 | BT50: 0 | BV50: 0.05627084542 | BW50: 0.05338618503 | BX50: 0.04915856668 | BY50: 0.03531164039 | BZ50: 0.0356307882 | CA50: 0.03459006647 | CB50: 0.03487963534 | CC50: 0.03103215563 | CD50: 0.0324102123 | CF50: 282621584.6 | CG50: 3734190.438 | CH50: 4036983.919 | CI50: 4161482.149 | CJ50: 4432562.81 | CK50: 4737246.225 | CL50: 6301872.974 | CM50: 0 | CN50: 0 | CO50: 310025923.1 | CQ50: 0.9116062998 | CR50: =IF($CO50>0,CG50/$CO50,0) -> 0.01204476839 | CS50: 0.01302143988 | CT50: 0.01342301349 | CU50: 0.01429739412 | CV50: 0.01528016166 | CW50: 0.0203269227 | CX50: 0 | CY50: 0 | DA50: 0.05129685718 | DB50: =CR50*BW50 -> 0.0006430242336 | DC50: 0.0006401153205 | DD50: 0.0004739886253 | DE50: 0.0005094274217 | DF50: 0.0005285418075 | DG50: 0.0007089956513 | DH50: 0 | DI50: 0
A51: 35 | B51: =Timing!$F51 -> 2027-02-25 | C51: =Timing!B51 -> 2027-01-31 | E51: ='Pool Run Out Schedule 0% CPR'!D38 -> 0.05244823362 | F51: =CashFlowsLedgers!CM50 -> 0 | G51: =CashFlowsLedgers!CP50 -> 293036207.9 | H51: 0.05157846548 | I51: 0 | J51: 0 | K51: 0 | L51: 0 | M51: 15114357.94 | N51: 0 | O51: 0 | P51: 15114357.94 | Q51: 277921850 | R51: =ROUND(G51*DiscountRate*Timing!I51,2) -> 1799228.67 | S51: 16913586.61 | W51: 0 | Y51: 44.23972353 | AA51: 0 | AB51: 0 | AC51: 0 | AE51: =Timing!I51 -> 0.08493150685 | AF51: 0.01 | AG51: 248880.067 | AI51: 0.0003 | AJ51: 7466.402011 | AM51: 678.7638191 | AN51: 678.7638191 | AO51: 248880.067 | AP51: 6108.874372 | AT51: 0.0519 | AU51: 0.04903 | AV51: 0.05644 | AW51: 0.0494 | AY51: 0 | AZ51: 0 | BA51: 0 | BB51: =MAX(0,BB50+AZ51-BA51+IF(Triggers!BH50,BJ50-BH50-BI50-BK50,0)) -> 0 | BH51: =IF(Triggers!$BH51,MIN(Swap!I51,BB51),0) -> 0 | BI51: =IF(Triggers!$BH51,MIN(Swap!Q51,BB51-BH51),0) -> 0 | BJ51: =IF(CashFlowsLedgers!$C51="End",NA(),IF(CashFlowsLedgers!$D51,0,IF(CashFlowsLedgers!$C51="Post-Foreclosure",PostForeclosure!BR51,PreForeclosure!CG51))) -> 0 | BK51: =IF(CashFlowsLedgers!BB50+CashFlowsLedgers!BF50<0.01,BB51-BH51-BI51+BJ51,0) -> 0 | BM51: 293036207.9 | BN51: 0 | BO51: =IFERROR(MAX((((CashFlowsLedgers!BB50/(CashFlowsLedgers!BB50+CashFlowsLedgers!BF50+CashFlowsLedgers!BJ50)*ClassASwap))+((CashFlowsLedgers!BF50/(CashFlowsLedgers!BB50+CashFlowsLedgers!BF50+CashFlowsLedgers!BJ50)*ClassBSwap))+((CashFlowsLedgers!BJ50/(CashFlowsLedgers!BB50+CashFlowsLedgers!BF50+CashFlowsLedgers!BJ50)*SubLoan_Rate))+ServicerFeePercentage+ThirdPartyFeePercentage+InterestCompensationRate-DiscountRate)/12,0),0) -> 0 | BP51: =IFERROR(MAX((DiscountRate-(((CashFlowsLedgers!BB50/(CashFlowsLedgers!BB50+CashFlowsLedgers!BF50+CashFlowsLedgers!BJ50)*ClassASwap))+((CashFlowsLedgers!BF50/(CashFlowsLedgers!BB50+CashFlowsLedgers!BF50+CashFlowsLedgers!BJ50)*ClassBSwap))+((CashFlowsLedgers!BJ50/(CashFlowsLedgers!BB50+CashFlowsLedgers!BF50+CashFlowsLedgers!BJ50)*SubLoan_Rate))+ServicerFeePercentage+ThirdPartyFeePercentage+InterestCompensationRate))/12,0),0) -> 0.0001304685979 | BT51: 0 | BV51: 0.05244823362 | BW51: 0.05627084542 | BX51: 0.05338618503 | BY51: 0.04915856668 | BZ51: 0.03531164039 | CA51: 0.0356307882 | CB51: 0.03459006647 | CC51: 0.03487963534 | CD51: 0.03103215563 | CF51: 266718229.1 | CG51: 3534836.256 | CH51: 3838531.576 | CI51: 4014533.388 | CJ51: 4274627.103 | CK51: 4573384.563 | CL51: 6082065.943 | CM51: 0 | CN51: 0 | CO51: 293036207.9 | CQ51: 0.9101886452 | CR51: 0.01206279688 | CS51: =IF($CO51>0,CH51/$CO51,0) -> 0.01309917161 | CT51: 0.01369978617 | CU51: 0.01458736834 | CV51: 0.01560689239 | CW51: 0.02075533937 | CX51: 0 | CY51: 0 | DA51: 0.0477377867 | DB51: 0.0006787837788 | DC51: =CS51*BX51 -> 0.0006993147992 | DD51: 0.0006734618517 | DE51: 0.0005151039051 | DF51: 0.0005560858772 | DG51: 0.0007179285683 | DH51: 0 | DI51: 0
A52: 36 | B52: =Timing!$F52 -> 2027-03-25 | C52: =Timing!B52 -> 2027-02-28 | E52: ='Pool Run Out Schedule 0% CPR'!D39 -> 0.03963250346 | F52: =CashFlowsLedgers!CM51 -> 0 | G52: =CashFlowsLedgers!CP51 -> 277921850 | H52: 0.04018099818 | I52: 0 | J52: 0 | K52: 0 | L52: 0 | M52: 11167177.35 | N52: 0 | O52: 0 | P52: 11167177.35 | Q52: 266754672.7 | R52: =ROUND(G52*DiscountRate*Timing!I52,2) -> 1541289.1 | S52: 12708466.45 | W52: 0 | Y52: 45.2351847 | AA52: 0 | AB52: 0 | AC52: 0 | AE52: =Timing!I52 -> 0.07671232877 | AF52: 0.01 | AG52: 213200.3233 | AI52: 0.0003 | AJ52: 6396.009699 | AM52: 581.4554271 | AN52: 581.4554271 | AO52: 213200.3233 | AP52: 5233.098844 | AT52: 0.0519 | AU52: 0.04903 | AV52: 0.05644 | AW52: 0.0494 | AY52: 0 | AZ52: 0 | BA52: 0 | BB52: =MAX(0,BB51+AZ52-BA52+IF(Triggers!BH51,BJ51-BH51-BI51-BK51,0)) -> 0 | BH52: =IF(Triggers!$BH52,MIN(Swap!I52,BB52),0) -> 0 | BI52: =IF(Triggers!$BH52,MIN(Swap!Q52,BB52-BH52),0) -> 0 | BJ52: =IF(CashFlowsLedgers!$C52="End",NA(),IF(CashFlowsLedgers!$D52,0,IF(CashFlowsLedgers!$C52="Post-Foreclosure",PostForeclosure!BR52,PreForeclosure!CG52))) -> 0 | BK52: =IF(CashFlowsLedgers!BB51+CashFlowsLedgers!BF51<0.01,BB52-BH52-BI52+BJ52,0) -> 0 | BM52: 277921850 | BN52: 0 | BO52: =IFERROR(MAX((((CashFlowsLedgers!BB51/(CashFlowsLedgers!BB51+CashFlowsLedgers!BF51+CashFlowsLedgers!BJ51)*ClassASwap))+((CashFlowsLedgers!BF51/(CashFlowsLedgers!BB51+CashFlowsLedgers!BF51+CashFlowsLedgers!BJ51)*ClassBSwap))+((CashFlowsLedgers!BJ51/(CashFlowsLedgers!BB51+CashFlowsLedgers!BF51+CashFlowsLedgers!BJ51)*SubLoan_Rate))+ServicerFeePercentage+ThirdPartyFeePercentage+InterestCompensationRate-DiscountRate)/12,0),0) -> 0 | BP52: =IFERROR(MAX((DiscountRate-(((CashFlowsLedgers!BB51/(CashFlowsLedgers!BB51+CashFlowsLedgers!BF51+CashFlowsLedgers!BJ51)*ClassASwap))+((CashFlowsLedgers!BF51/(CashFlowsLedgers!BB51+CashFlowsLedgers!BF51+CashFlowsLedgers!BJ51)*ClassBSwap))+((CashFlowsLedgers!BJ51/(CashFlowsLedgers!BB51+CashFlowsLedgers!BF51+CashFlowsLedgers!BJ51)*SubLoan_Rate))+ServicerFeePercentage+ThirdPartyFeePercentage+InterestCompensationRate))/12,0),0) -> 0.0001543151072 | BT52: 0 | BV52: 0.03963250346 | BW52: 0.05244823362 | BX52: 0.05627084542 | BY52: 0.05338618503 | BZ52: 0.04915856668 | CA52: 0.03531164039 | CB52: 0.0356307882 | CC52: 0.03459006647 | CD52: 0.03487963534 | CF52: 252729329.1 | CG52: 3335928.031 | CH52: 3633607.019 | CI52: 3817184.68 | CJ52: 4123683.008 | CK52: 4410431.266 | CL52: 5871686.877 | CM52: 0 | CN52: 0 | CO52: 277921850 | CQ52: 0.9093539393 | CR52: 0.01200311538 | CS52: 0.0130742042 | CT52: =IF($CO52>0,CI52/$CO52,0) -> 0.01373474119 | CU52: 0.01483756318 | CV52: 0.01586932178 | CW52: 0.02112711497 | CX52: 0 | CY52: 0 | DA52: 0.03603997314 | DB52: 0.0006295421994 | DC52: 0.0007356965235 | DD52: =CT52*BY52 -> 0.0007332454344 | DE52: 0.0007293933388 | DF52: 0.0005603717837 | DG52: 0.0007527757588 | DH52: 0 | DI52: 0
A53: 37 | B53: =Timing!$F53 -> 2027-04-26 | C53: =Timing!B53 -> 2027-03-31 | E53: ='Pool Run Out Schedule 0% CPR'!D40 -> 0.04047506545 | F53: =CashFlowsLedgers!CM52 -> 0 | G53: =CashFlowsLedgers!CP52 -> 266754672.7 | H53: 0.04105163565 | I53: 0 | J53: 0 | K53: 0 | L53: 0 | M53: 10950715.63 | N53: 0 | O53: 0 | P53: 10950715.63 | Q53: 255803957 | R53: =ROUND(G53*DiscountRate*Timing!I53,2) -> 1690695.5 | S53: 12641411.13 | W53: 0 | Y53: 46.23589498 | AA53: 0 | AB53: 0 | AC53: 0 | AE53: =Timing!I53 -> 0.08767123288 | AF53: 0.01 | AG53: 233867.1103 | AI53: 0.0003 | AJ53: 7016.013308 | AM53: 637.8193916 | AN53: 637.8193916 | AO53: 233867.1103 | AP53: 5740.374525 | AT53: 0.0519 | AU53: 0.04903 | AV53: 0.05644 | AW53: 0.0494 | AY53: 0 | AZ53: 0 | BA53: 0 | BB53: =MAX(0,BB52+AZ53-BA53+IF(Triggers!BH52,BJ52-BH52-BI52-BK52,0)) -> 0 | BH53: =IF(Triggers!$BH53,MIN(Swap!I53,BB53),0) -> 0 | BI53: =IF(Triggers!$BH53,MIN(Swap!Q53,BB53-BH53),0) -> 0 | BJ53: =IF(CashFlowsLedgers!$C53="End",NA(),IF(CashFlowsLedgers!$D53,0,IF(CashFlowsLedgers!$C53="Post-Foreclosure",PostForeclosure!BR53,PreForeclosure!CG53))) -> 0 | BK53: =IF(CashFlowsLedgers!BB52+CashFlowsLedgers!BF52<0.01,BB53-BH53-BI53+BJ53,0) -> 0 | BM53: 266754672.7 | BN53: 0 | BO53: =IFERROR(MAX((((CashFlowsLedgers!BB52/(CashFlowsLedgers!BB52+CashFlowsLedgers!BF52+CashFlowsLedgers!BJ52)*ClassASwap))+((CashFlowsLedgers!BF52/(CashFlowsLedgers!BB52+CashFlowsLedgers!BF52+CashFlowsLedgers!BJ52)*ClassBSwap))+((CashFlowsLedgers!BJ52/(CashFlowsLedgers!BB52+CashFlowsLedgers!BF52+CashFlowsLedgers!BJ52)*SubLoan_Rate))+ServicerFeePercentage+ThirdPartyFeePercentage+InterestCompensationRate-DiscountRate)/12,0),0) -> 0 | BP53: =IFERROR(MAX((DiscountRate-(((CashFlowsLedgers!BB52/(CashFlowsLedgers!BB52+CashFlowsLedgers!BF52+CashFlowsLedgers!BJ52)*ClassASwap))+((CashFlowsLedgers!BF52/(CashFlowsLedgers!BB52+CashFlowsLedgers!BF52+CashFlowsLedgers!BJ52)*ClassBSwap))+((CashFlowsLedgers!BJ52/(CashFlowsLedgers!BB52+CashFlowsLedgers!BF52+CashFlowsLedgers!BJ52)*SubLoan_Rate))+ServicerFeePercentage+ThirdPartyFeePercentage+InterestCompensationRate))/12,0),0) -> 0.0001742865912 | BT53: 0 | BV53: 0.04047506545 | BW53: 0.03963250346 | BX53: 0.05244823362 | BY53: 0.05627084542 | BZ53: 0.05338618503 | CA53: 0.04915856668 | CB53: 0.03531164039 | CC53: 0.0356307882 | CD53: 0.03459006647 | CF53: 242713033.1 | CG53: 3160964.499 | CH53: 3429140.88 | CI53: 3613399.753 | CJ53: 3920968.662 | CK53: 4254691.703 | CL53: 5662474.046 | CM53: 0 | CN53: 0 | CO53: 266754672.7 | CQ53: 0.9098735955 | CR53: 0.0118497062 | CS53: 0.01285503585 | CT53: 0.01354577866 | CU53: =IF($CO53>0,CJ53/$CO53,0) -> 0.01469878155 | CV53: 0.01594983009 | CW53: 0.0212272722 | CX53: 0 | CY53: 0 | DA53: 0.03682719332 | DB53: 0.000469633522 | DC53: 0.0006742239233 | DD53: 0.0007622324172 | DE53: =CU53*BZ53 -> 0.0007847118717 | DF53: 0.0007840707858 | DG53: 0.0007495698022 | DH53: 0 | DI53: 0
A54: 38 | B54: =Timing!$F54 -> 2027-05-25 | C54: =Timing!B54 -> 2027-04-30 | E54: ='Pool Run Out Schedule 0% CPR'!D41 -> 0.04833714419 | F54: =CashFlowsLedgers!CM53 -> 0 | G54: =CashFlowsLedgers!CP53 -> 255803957 | H54: 0.04840058571 | I54: 0 | J54: 0 | K54: 0 | L54: 0 | M54: 12381061.35 | N54: 0 | O54: 0 | P54: 12381061.35 | Q54: 243422895.7 | R54: =ROUND(G54*DiscountRate*Timing!I54,2) -> 1469293.78 | S54: 13850355.13 | W54: 0 | Y54: 47.23749603 | AA54: 0 | AB54: 0 | AC54: 0 | AE54: =Timing!I54 -> 0.07945205479 | AF54: 0.01 | AG54: 203241.5001 | AI54: 0.0003 | AJ54: 6097.245003 | AM54: 554.2950003 | AN54: 554.2950003 | AO54: 203241.5001 | AP54: 4988.655002 | AT54: 0.0519 | AU54: 0.04903 | AV54: 0.05644 | AW54: 0.0494 | AY54: 0 | AZ54: 0 | BA54: 0 | BB54: =MAX(0,BB53+AZ54-BA54+IF(Triggers!BH53,BJ53-BH53-BI53-BK53,0)) -> 0 | BH54: =IF(Triggers!$BH54,MIN(Swap!I54,BB54),0) -> 0 | BI54: =IF(Triggers!$BH54,MIN(Swap!Q54,BB54-BH54),0) -> 0 | BJ54: =IF(CashFlowsLedgers!$C54="End",NA(),IF(CashFlowsLedgers!$D54,0,IF(CashFlowsLedgers!$C54="Post-Foreclosure",PostForeclosure!BR54,PreForeclosure!CG54))) -> 0 | BK54: =IF(CashFlowsLedgers!BB53+CashFlowsLedgers!BF53<0.01,BB54-BH54-BI54+BJ54,0) -> 0 | BM54: 255803957 | BN54: 0 | BO54: =IFERROR(MAX((((CashFlowsLedgers!BB53/(CashFlowsLedgers!BB53+CashFlowsLedgers!BF53+CashFlowsLedgers!BJ53)*ClassASwap))+((CashFlowsLedgers!BF53/(CashFlowsLedgers!BB53+CashFlowsLedgers!BF53+CashFlowsLedgers!BJ53)*ClassBSwap))+((CashFlowsLedgers!BJ53/(CashFlowsLedgers!BB53+CashFlowsLedgers!BF53+CashFlowsLedgers!BJ53)*SubLoan_Rate))+ServicerFeePercentage+ThirdPartyFeePercentage+InterestCompensationRate-DiscountRate)/12,0),0) -> 0 | BP54: =IFERROR(MAX((DiscountRate-(((CashFlowsLedgers!BB53/(CashFlowsLedgers!BB53+CashFlowsLedgers!BF53+CashFlowsLedgers!BJ53)*ClassASwap))+((CashFlowsLedgers!BF53/(CashFlowsLedgers!BB53+CashFlowsLedgers!BF53+CashFlowsLedgers!BJ53)*ClassBSwap))+((CashFlowsLedgers!BJ53/(CashFlowsLedgers!BB53+CashFlowsLedgers!BF53+CashFlowsLedgers!BJ53)*SubLoan_Rate))+ServicerFeePercentage+ThirdPartyFeePercentage+InterestCompensationRate))/12,0),0) -> 0.0001967410695 | BT54: 0 | BV54: 0.04833714419 | BW54: 0.04047506545 | BX54: 0.03963250346 | BY54: 0.05244823362 | BZ54: 0.05627084542 | CA54: 0.05338618503 | CB54: 0.04915856668 | CC54: 0.03531164039 | CD54: 0.0356307882 | CF54: 232889207.2 | CG54: 3035687.562 | CH54: 3249288.498 | CI54: 3410070.694 | CJ54: 3711643.103 | CK54: 4045537.158 | CL54: 5462522.799 | CM54: 0 | CN54: 0 | CO54: 255803957 | CQ54: 0.9104206593 | CR54: 0.01186724239 | CS54: 0.0127022605 | CT54: 0.01333079728 | CU54: 0.01450971731 | CV54: =IF($CO54>0,CK54/$CO54,0) -> 0.01581499053 | CW54: 0.02135433268 | CX54: 0 | CY54: 0 | DA54: 0.04400713469 | DB54: 0.0004803274124 | DC54: 0.000503422383 | DD54: 0.0006991767699 | DE54: 0.0008164740599 | DF54: =CV54*CA54 -> 0.0008443020106 | DG54: 0.001049748387 | DH54: 0 | DI54: 0
A55: 39 | B55: =Timing!$F55 -> 2027-06-25 | C55: =Timing!B55 -> 2027-05-31 | E55: ='Pool Run Out Schedule 0% CPR'!D42 -> 0.04703266763 | F55: =CashFlowsLedgers!CM54 -> 0 | G55: =CashFlowsLedgers!CP54 -> 243422895.7 | H55: 0.0472248145 | I55: 0 | J55: 0 | K55: 0 | L55: =ROUND(SUMPRODUCT(K49:K55,$L$3:$L$9),2) -> 0 | M55: 11495601.09 | N55: 0 | O55: 0 | P55: 11495601.09 | Q55: 231927294.6 | R55: =ROUND(G55*DiscountRate*Timing!I55,2) -> 1494605.24 | S55: 12990206.33 | W55: 0 | Y55: 48.23832958 | AA55: 0 | AB55: 0 | AC55: 0 | AE55: =Timing!I55 -> 0.08493150685 | AF55: 0.01 | AG55: 206742.7333 | AI55: 0.0003 | AJ55: 6202.281999 | AM55: 563.8438181 | AN55: 563.8438181 | AO55: 206742.7333 | AP55: 5074.594363 | AT55: 0.0519 | AU55: 0.04903 | AV55: 0.05644 | AW55: 0.0494 | AY55: 0 | AZ55: 0 | BA55: 0 | BB55: =MAX(0,BB54+AZ55-BA55+IF(Triggers!BH54,BJ54-BH54-BI54-BK54,0)) -> 0 | BH55: =IF(Triggers!$BH55,MIN(Swap!I55,BB55),0) -> 0 | BI55: =IF(Triggers!$BH55,MIN(Swap!Q55,BB55-BH55),0) -> 0 | BJ55: =IF(CashFlowsLedgers!$C55="End",NA(),IF(CashFlowsLedgers!$D55,0,IF(CashFlowsLedgers!$C55="Post-Foreclosure",PostForeclosure!BR55,PreForeclosure!CG55))) -> 0 | BK55: =IF(CashFlowsLedgers!BB54+CashFlowsLedgers!BF54<0.01,BB55-BH55-BI55+BJ55,0) -> 0 | BM55: 243422895.7 | BN55: 0 | BO55: =IFERROR(MAX((((CashFlowsLedgers!BB54/(CashFlowsLedgers!BB54+CashFlowsLedgers!BF54+CashFlowsLedgers!BJ54)*ClassASwap))+((CashFlowsLedgers!BF54/(CashFlowsLedgers!BB54+CashFlowsLedgers!BF54+CashFlowsLedgers!BJ54)*ClassBSwap))+((CashFlowsLedgers!BJ54/(CashFlowsLedgers!BB54+CashFlowsLedgers!BF54+CashFlowsLedgers!BJ54)*SubLoan_Rate))+ServicerFeePercentage+ThirdPartyFeePercentage+InterestCompensationRate-DiscountRate)/12,0),0) -> 0 | BP55: =IFERROR(MAX((DiscountRate-(((CashFlowsLedgers!BB54/(CashFlowsLedgers!BB54+CashFlowsLedgers!BF54+CashFlowsLedgers!BJ54)*ClassASwap))+((CashFlowsLedgers!BF54/(CashFlowsLedgers!BB54+CashFlowsLedgers!BF54+CashFlowsLedgers!BJ54)*ClassBSwap))+((CashFlowsLedgers!BJ54/(CashFlowsLedgers!BB54+CashFlowsLedgers!BF54+CashFlowsLedgers!BJ54)*SubLoan_Rate))+ServicerFeePercentage+ThirdPartyFeePercentage+InterestCompensationRate))/12,0),0) -> 0.0002244012621 | BT55: 0 | BV55: 0.04703266763 | BW55: 0.04833714419 | BX55: 0.04047506545 | BY55: 0.03963250346 | BZ55: 0.05244823362 | CA55: 0.05627084542 | CB55: 0.05338618503 | CC55: 0.04915856668 | CD55: 0.03531164039 | CF55: 221632008 | CG55: 2912817.91 | CH55: 3120511.06 | CI55: 3231218.51 | CJ55: 3502785.808 | CK55: 3829561.362 | CL55: 5193993.007 | CM55: 0 | CN55: 0 | CO55: 243422895.7 | CQ55: 0.9104813555 | CR55: 0.01196608027 | CS55: 0.01281929973 | CT55: 0.01327409445 | CU55: 0.01438971383 | CV55: 0.01573213297 | CW55: =IF($CO55>0,CL55/$CO55,0) -> 0.02133732323 | CX55: 0 | CY55: 0 | DA55: 0.04282236698 | DB55: 0.0005784061475 | DC55: 0.0005188619954 | DD55: 0.0005260855943 | DE55: 0.0007547150726 | DF55: 0.0008852604224 | DG55: =CW55*CB55 -> 0.001139118286 | DH55: 0 | DI55: 0
A56: 40 | B56: =Timing!$F56 -> 2027-07-26 | C56: =Timing!B56 -> 2027-06-30 | E56: ='Pool Run Out Schedule 0% CPR'!D43 -> 0.05974933908 | F56: =CashFlowsLedgers!CM55 -> 0 | G56: =CashFlowsLedgers!CP55 -> 231927294.6 | H56: 0.05871672628 | I56: 0 | J56: 0 | K56: 0 | L56: =ROUND(SUMPRODUCT(K50:K56,$L$3:$L$9),2) -> 0 | M56: 13618011.47 | N56: 0 | O56: 0 | P56: 13618011.47 | Q56: 218309283.1 | R56: =ROUND(G56*DiscountRate*Timing!I56,2) -> 1424022.79 | S56: 15042034.26 | W56: 0 | Y56: 49.23973488 | AA56: 0 | AB56: 0 | AC56: 0 | AE56: =Timing!I56 -> 0.08493150685 | AF56: 0.01 | AG56: 196979.3461 | AI56: 0.0003 | AJ56: 5909.380382 | AM56: 537.2163984 | AN56: 537.2163984 | AO56: 196979.3461 | AP56: 4834.947586 | AT56: 0.0519 | AU56: 0.04903 | AV56: 0.05644 | AW56: 0.0494 | AY56: 0 | AZ56: 0 | BA56: 0 | BB56: =MAX(0,BB55+AZ56-BA56+IF(Triggers!BH55,BJ55-BH55-BI55-BK55,0)) -> 0 | BH56: =IF(Triggers!$BH56,MIN(Swap!I56,BB56),0) -> 0 | BI56: =IF(Triggers!$BH56,MIN(Swap!Q56,BB56-BH56),0) -> 0 | BJ56: =IF(CashFlowsLedgers!$C56="End",NA(),IF(CashFlowsLedgers!$D56,0,IF(CashFlowsLedgers!$C56="Post-Foreclosure",PostForeclosure!BR56,PreForeclosure!CG56))) -> 0 | BK56: =IF(CashFlowsLedgers!BB55+CashFlowsLedgers!BF55<0.01,BB56-BH56-BI56+BJ56,0) -> 0 | BM56: 231927294.6 | BN56: 0 | BO56: =IFERROR(MAX((((CashFlowsLedgers!BB55/(CashFlowsLedgers!BB55+CashFlowsLedgers!BF55+CashFlowsLedgers!BJ55)*ClassASwap))+((CashFlowsLedgers!BF55/(CashFlowsLedgers!BB55+CashFlowsLedgers!BF55+CashFlowsLedgers!BJ55)*ClassBSwap))+((CashFlowsLedgers!BJ55/(CashFlowsLedgers!BB55+CashFlowsLedgers!BF55+CashFlowsLedgers!BJ55)*SubLoan_Rate))+ServicerFeePercentage+ThirdPartyFeePercentage+InterestCompensationRate-DiscountRate)/12,0),0) -> 0 | BP56: =IFERROR(MAX((DiscountRate-(((CashFlowsLedgers!BB55/(CashFlowsLedgers!BB55+CashFlowsLedgers!BF55+CashFlowsLedgers!BJ55)*ClassASwap))+((CashFlowsLedgers!BF55/(CashFlowsLedgers!BB55+CashFlowsLedgers!BF55+CashFlowsLedgers!BJ55)*ClassBSwap))+((CashFlowsLedgers!BJ55/(CashFlowsLedgers!BB55+CashFlowsLedgers!BF55+CashFlowsLedgers!BJ55)*SubLoan_Rate))+ServicerFeePercentage+ThirdPartyFeePercentage+InterestCompensationRate))/12,0),0) -> 0.0002444198842 | BT56: 0 | BV56: 0.05974933908 | BW56: 0.04703266763 | BX56: 0.04833714419 | BY56: 0.04047506545 | BZ56: 0.03963250346 | CA56: 0.05244823362 | CB56: 0.05627084542 | CC56: 0.05338618503 | CD56: 0.04915856668 | CF56: 211208063.4 | CG56: 2772020.61 | CH56: 2994208.171 | CI56: 3103157.231 | CJ56: 3319070.88 | CK56: 3614068.707 | CL56: 4916705.536 | CM56: 0 | CN56: 0 | CO56: 231927294.6 | CQ56: 0.910664973 | CR56: 0.01195211032 | CS56: 0.01291011554 | CT56: 0.01337987078 | CU56: 0.0143108248 | CV56: 0.01558276577 | CW56: 0.02119933984 | CX56: =IF($CO56>0,CM56/$CO56,0) -> 0 | CY56: 0 | DA56: 0.05441163026 | DB56: 0.000562139632 | DC56: 0.0006240381166 | DD56: 0.0005415511453 | DE56: 0.0005671738135 | DF56: 0.0008172885394 | DG56: 0.001192904775 | DH56: =CX56*CC56 -> 0 | DI56: 0
A57: 41 | B57: =Timing!$F57 -> 2027-08-25 | C57: =Timing!B57 -> 2027-07-31 | E57: ='Pool Run Out Schedule 0% CPR'!D44 -> 0.06099555349 | F57: =CashFlowsLedgers!CM56 -> 0 | G57: =CashFlowsLedgers!CP56 -> 218309283.1 | H57: 0.05980917354 | I57: 0 | J57: 0 | K57: 0 | L57: 0 | M57: 13056897.8 | N57: 0 | O57: 0 | P57: 13056897.8 | Q57: 205252385.3 | R57: =ROUND(G57*DiscountRate*Timing!I57,2) -> 1297169.84 | S57: 14354067.64 | W57: 0 | Y57: 50.23651394 | AA57: 0 | AB57: 0 | AC57: 0 | AE57: =Timing!I57 -> 0.08219178082 | AF57: 0.01 | AG57: 179432.2875 | AI57: 0.0003 | AJ57: 5382.968625 | AM57: 489.3607841 | AN57: 489.3607841 | AO57: 179432.2875 | AP57: 4404.247057 | AT57: 0.0519 | AU57: 0.04903 | AV57: 0.05644 | AW57: 0.0494 | AY57: 0 | AZ57: 0 | BA57: 0 | BB57: =MAX(0,BB56+AZ57-BA57+IF(Triggers!BH56,BJ56-BH56-BI56-BK56,0)) -> 0 | BH57: =IF(Triggers!$BH57,MIN(Swap!I57,BB57),0) -> 0 | BI57: =IF(Triggers!$BH57,MIN(Swap!Q57,BB57-BH57),0) -> 0 | BJ57: =IF(CashFlowsLedgers!$C57="End",NA(),IF(CashFlowsLedgers!$D57,0,IF(CashFlowsLedgers!$C57="Post-Foreclosure",PostForeclosure!BR57,PreForeclosure!CG57))) -> 0 | BK57: =IF(CashFlowsLedgers!BB56+CashFlowsLedgers!BF56<0.01,BB57-BH57-BI57+BJ57,0) -> 0 | BM57: 218309283.1 | BN57: 0 | BO57: =IFERROR(MAX((((CashFlowsLedgers!BB56/(CashFlowsLedgers!BB56+CashFlowsLedgers!BF56+CashFlowsLedgers!BJ56)*ClassASwap))+((CashFlowsLedgers!BF56/(CashFlowsLedgers!BB56+CashFlowsLedgers!BF56+CashFlowsLedgers!BJ56)*ClassBSwap))+((CashFlowsLedgers!BJ56/(CashFlowsLedgers!BB56+CashFlowsLedgers!BF56+CashFlowsLedgers!BJ56)*SubLoan_Rate))+ServicerFeePercentage+ThirdPartyFeePercentage+InterestCompensationRate-DiscountRate)/12,0),0) -> 0 | BP57: =IFERROR(MAX((DiscountRate-(((CashFlowsLedgers!BB56/(CashFlowsLedgers!BB56+CashFlowsLedgers!BF56+CashFlowsLedgers!BJ56)*ClassASwap))+((CashFlowsLedgers!BF56/(CashFlowsLedgers!BB56+CashFlowsLedgers!BF56+CashFlowsLedgers!BJ56)*ClassBSwap))+((CashFlowsLedgers!BJ56/(CashFlowsLedgers!BB56+CashFlowsLedgers!BF56+CashFlowsLedgers!BJ56)*SubLoan_Rate))+ServicerFeePercentage+ThirdPartyFeePercentage+InterestCompensationRate))/12,0),0) -> 0.0002444198842 | BT57: 0 | BV57: 0.06099555349 | BW57: 0.05974933908 | BX57: 0.04703266763 | BY57: 0.04833714419 | BZ57: 0.04047506545 | CA57: 0.03963250346 | CB57: 0.05244823362 | CC57: 0.05627084542 | CD57: 0.05338618503 | CF57: 198588521.2 | CG57: 2641645.086 | CH57: 2849476.699 | CI57: 2977556.739 | CJ57: 3187527.792 | CK57: 3424517.187 | CL57: 4640038.359 | CM57: 0 | CN57: 0 | CO57: 218309283.1 | CQ57: 0.9096659492 | CR57: 0.01210047071 | CS57: 0.01305247609 | CT57: 0.01363916686 | CU57: 0.01460097228 | CV57: 0.01568653947 | CW57: 0.02125442534 | CX57: 0 | CY57: =IF($CO57>0,CN57/$CO57,0) -> 0 | DA57: 0.05548557806 | DB57: 0.0007229951276 | DC57: 0.0006138927699 | DD57: 0.000659278375 | DE57: 0.0005909753087 | DF57: 0.0006216968299 | DG57: 0.001114757066 | DH57: 0 | DI57: =CY57*CD57 -> 0
A58: 42 | B58: =Timing!$F58 -> 2027-09-27 | C58: =Timing!B58 -> 2027-08-31 | E58: ='Pool Run Out Schedule 0% CPR'!D45 -> 0.04800769653 | F58: =CashFlowsLedgers!CM57 -> 0 | G58: =CashFlowsLedgers!CP57 -> 205252385.3 | H58: 0.04801155395 | I58: 0 | J58: 0 | K58: 0 | L58: 0 | M58: 9854485.97 | N58: 0 | O58: 0 | P58: 9854485.97 | Q58: 195397899.3 | R58: =ROUND(G58*DiscountRate*Timing!I58,2) -> 1341545.9 | S58: 11196031.87 | W58: 0 | Y58: 51.23177652 | AA58: 0 | AB58: 0 | AC58: 0 | AE58: =Timing!I58 -> 0.0904109589 | AF58: 0.01 | AG58: 185570.6497 | AI58: 0.0003 | AJ58: 5567.119492 | AM58: 506.101772 | AN58: 506.101772 | AO58: 185570.6497 | AP58: 4554.915948 | AT58: 0.0519 | AU58: 0.04903 | AV58: 0.05644 | AW58: 0.0494 | AY58: 0 | AZ58: 0 | BA58: 0 | BB58: =MAX(0,BB57+AZ58-BA58+IF(Triggers!BH57,BJ57-BH57-BI57-BK57,0)) -> 0 | BH58: =IF(Triggers!$BH58,MIN(Swap!I58,BB58),0) -> 0 | BI58: =IF(Triggers!$BH58,MIN(Swap!Q58,BB58-BH58),0) -> 0 | BJ58: =IF(CashFlowsLedgers!$C58="End",NA(),IF(CashFlowsLedgers!$D58,0,IF(CashFlowsLedgers!$C58="Post-Foreclosure",PostForeclosure!BR58,PreForeclosure!CG58))) -> 0 | BK58: =IF(CashFlowsLedgers!BB57+CashFlowsLedgers!BF57<0.01,BB58-BH58-BI58+BJ58,0) -> 0 | BM58: 205252385.3 | BN58: 0 | BO58: =IFERROR(MAX((((CashFlowsLedgers!BB57/(CashFlowsLedgers!BB57+CashFlowsLedgers!BF57+CashFlowsLedgers!BJ57)*ClassASwap))+((CashFlowsLedgers!BF57/(CashFlowsLedgers!BB57+CashFlowsLedgers!BF57+CashFlowsLedgers!BJ57)*ClassBSwap))+((CashFlowsLedgers!BJ57/(CashFlowsLedgers!BB57+CashFlowsLedgers!BF57+CashFlowsLedgers!BJ57)*SubLoan_Rate))+ServicerFeePercentage+ThirdPartyFeePercentage+InterestCompensationRate-DiscountRate)/12,0),0) -> 0 | BP58: =IFERROR(MAX((DiscountRate-(((CashFlowsLedgers!BB57/(CashFlowsLedgers!BB57+CashFlowsLedgers!BF57+CashFlowsLedgers!BJ57)*ClassASwap))+((CashFlowsLedgers!BF57/(CashFlowsLedgers!BB57+CashFlowsLedgers!BF57+CashFlowsLedgers!BJ57)*ClassBSwap))+((CashFlowsLedgers!BJ57/(CashFlowsLedgers!BB57+CashFlowsLedgers!BF57+CashFlowsLedgers!BJ57)*SubLoan_Rate))+ServicerFeePercentage+ThirdPartyFeePercentage+InterestCompensationRate))/12,0),0) -> 0.0002444198841 | BT58: 0 | BV58: 0.04800769653 | BW58: 0.06099555349 | BX58: 0.05974933908 | BY58: 0.04703266763 | BZ58: 0.04833714419 | CA58: 0.04047506545 | CB58: 0.03963250346 | CC58: 0.05244823362 | CD58: 0.05627084542 | CF58: 186475504.5 | CG58: 2483808.538 | CH58: 2715458.208 | CI58: 2833630.149 | CJ58: 3058512.396 | CK58: 3288794.998 | CL58: 4396676.543 | CM58: 0 | CN58: 0 | CO58: 205252385.3 | CQ58: 0.9085180871 | CR58: 0.01210124079 | CS58: 0.0132298497 | CT58: 0.01380558937 | CU58: 0.01490122705 | CV58: 0.01602317553 | CW58: 0.02142083044 | CX58: 0 | CY58: 0 | DA58: 0.04361586062 | DB58: 0.0007381218801 | DC58: 0.0007904747757 | DD58: 0.0006493136964 | DE58: 0.0007202827605 | DF58: 0.0006485390782 | DG58: 0.0008489611364 | DH58: 0 | DI58: 0
A59: 43 | B59: =Timing!$F59 -> 2027-10-25 | C59: =Timing!B59 -> 2027-09-30 | E59: ='Pool Run Out Schedule 0% CPR'!D46 -> 0.04845953378 | F59: =CashFlowsLedgers!CM58 -> 0 | G59: =CashFlowsLedgers!CP58 -> 195397899.3 | H59: 0.04857819732 | I59: 0 | J59: 0 | K59: 0 | L59: 0 | M59: 9492077.71 | N59: 0 | O59: 0 | P59: 9492077.71 | Q59: 185905821.6 | R59: =ROUND(G59*DiscountRate*Timing!I59,2) -> 1083630.71 | S59: 10575708.42 | W59: 0 | Y59: 52.23048014 | AA59: 0 | AB59: 0 | AC59: 0 | AE59: =Timing!I59 -> 0.07671232877 | AF59: 0.01 | AG59: 149894.2789 | AI59: 0.0003 | AJ59: 4496.828368 | AM59: 408.8025789 | AN59: 408.8025789 | AO59: 149894.2789 | AP59: 3679.22321 | AT59: 0.0519 | AU59: 0.04903 | AV59: 0.05644 | AW59: 0.0494 | AY59: 0 | AZ59: 0 | BA59: 0 | BB59: =MAX(0,BB58+AZ59-BA59+IF(Triggers!BH58,BJ58-BH58-BI58-BK58,0)) -> 0 | BH59: =IF(Triggers!$BH59,MIN(Swap!I59,BB59),0) -> 0 | BI59: =IF(Triggers!$BH59,MIN(Swap!Q59,BB59-BH59),0) -> 0 | BJ59: =IF(CashFlowsLedgers!$C59="End",NA(),IF(CashFlowsLedgers!$D59,0,IF(CashFlowsLedgers!$C59="Post-Foreclosure",PostForeclosure!BR59,PreForeclosure!CG59))) -> 0 | BK59: =IF(CashFlowsLedgers!BB58+CashFlowsLedgers!BF58<0.01,BB59-BH59-BI59+BJ59,0) -> 0 | BM59: 195397899.3 | BN59: 0 | BO59: =IFERROR(MAX((((CashFlowsLedgers!BB58/(CashFlowsLedgers!BB58+CashFlowsLedgers!BF58+CashFlowsLedgers!BJ58)*ClassASwap))+((CashFlowsLedgers!BF58/(CashFlowsLedgers!BB58+CashFlowsLedgers!BF58+CashFlowsLedgers!BJ58)*ClassBSwap))+((CashFlowsLedgers!BJ58/(CashFlowsLedgers!BB58+CashFlowsLedgers!BF58+CashFlowsLedgers!BJ58)*SubLoan_Rate))+ServicerFeePercentage+ThirdPartyFeePercentage+InterestCompensationRate-DiscountRate)/12,0),0) -> 0 | BP59: =IFERROR(MAX((DiscountRate-(((CashFlowsLedgers!BB58/(CashFlowsLedgers!BB58+CashFlowsLedgers!BF58+CashFlowsLedgers!BJ58)*ClassASwap))+((CashFlowsLedgers!BF58/(CashFlowsLedgers!BB58+CashFlowsLedgers!BF58+CashFlowsLedgers!BJ58)*ClassBSwap))+((CashFlowsLedgers!BJ58/(CashFlowsLedgers!BB58+CashFlowsLedgers!BF58+CashFlowsLedgers!BJ58)*SubLoan_Rate))+ServicerFeePercentage+ThirdPartyFeePercentage+InterestCompensationRate))/12,0),0) -> 0.0002444198842 | BT59: 0 | BV59: 0.04845953378 | BW59: 0.04800769653 | BX59: 0.06099555349 | BY59: 0.05974933908 | BZ59: 0.04703266763 | CA59: 0.04833714419 | CB59: 0.04047506545 | CC59: 0.03963250346 | CD59: 0.05244823362 | CF59: 177523245.1 | CG59: 2332307.262 | CH59: 2553211.375 | CI59: 2700356.964 | CJ59: 2910672.641 | CK59: 3155680.805 | CL59: 4222425.244 | CM59: 0 | CN59: 0 | CO59: 195397899.3 | CQ59: 0.9085217684 | CR59: 0.01193619414 | CS59: 0.01306672888 | CT59: 0.01381978503 | CU59: 0.01489613067 | CV59: 0.01615002421 | CW59: 0.02160936867 | CX59: 0 | CY59: 0 | DA59: 0.04402654132 | DB59: 0.0005730291862 | DC59: 0.0007970123605 | DD59: 0.0008257230218 | DE59: 0.0007006047628 | DF59: 0.000780646049 | DG59: 0.0008746406112 | DH59: 0 | DI59: 0
A60: 44 | B60: =Timing!$F60 -> 2027-11-25 | C60: =Timing!B60 -> 2027-10-31 | E60: ='Pool Run Out Schedule 0% CPR'!D47 -> 0.1040520884 | F60: =CashFlowsLedgers!CM59 -> 0 | G60: =CashFlowsLedgers!CP59 -> 185905821.6 | H60: 0.09928099367 | I60: 0 | J60: 0 | K60: 0 | L60: 0 | M60: 18456914.7 | N60: 0 | O60: 0 | P60: 18456914.7 | Q60: 167448906.9 | R60: =ROUND(G60*DiscountRate*Timing!I60,2) -> 1141453.09 | S60: 19598367.79 | W60: 0 | Y60: 53.23007934 | AA60: 0 | AB60: 0 | AC60: 0 | AE60: =Timing!I60 -> 0.08493150685 | AF60: 0.01 | AG60: 157892.6156 | AI60: 0.0003 | AJ60: 4736.778469 | AM60: 430.6162244 | AN60: 430.6162244 | AO60: 157892.6156 | AP60: 3875.54602 | AT60: 0.0519 | AU60: 0.04903 | AV60: 0.05644 | AW60: 0.0494 | AY60: 0 | AZ60: 0 | BA60: 0 | BB60: =MAX(0,BB59+AZ60-BA60+IF(Triggers!BH59,BJ59-BH59-BI59-BK59,0)) -> 0 | BH60: =IF(Triggers!$BH60,MIN(Swap!I60,BB60),0) -> 0 | BI60: =IF(Triggers!$BH60,MIN(Swap!Q60,BB60-BH60),0) -> 0 | BJ60: =IF(CashFlowsLedgers!$C60="End",NA(),IF(CashFlowsLedgers!$D60,0,IF(CashFlowsLedgers!$C60="Post-Foreclosure",PostForeclosure!BR60,PreForeclosure!CG60))) -> 0 | BK60: =IF(CashFlowsLedgers!BB59+CashFlowsLedgers!BF59<0.01,BB60-BH60-BI60+BJ60,0) -> 0 | BM60: 185905821.6 | BN60: 0 | BO60: =IFERROR(MAX((((CashFlowsLedgers!BB59/(CashFlowsLedgers!BB59+CashFlowsLedgers!BF59+CashFlowsLedgers!BJ59)*ClassASwap))+((CashFlowsLedgers!BF59/(CashFlowsLedgers!BB59+CashFlowsLedgers!BF59+CashFlowsLedgers!BJ59)*ClassBSwap))+((CashFlowsLedgers!BJ59/(CashFlowsLedgers!BB59+CashFlowsLedgers!BF59+CashFlowsLedgers!BJ59)*SubLoan_Rate))+ServicerFeePercentage+ThirdPartyFeePercentage+InterestCompensationRate-DiscountRate)/12,0),0) -> 0 | BP60: =IFERROR(MAX((DiscountRate-(((CashFlowsLedgers!BB59/(CashFlowsLedgers!BB59+CashFlowsLedgers!BF59+CashFlowsLedgers!BJ59)*ClassASwap))+((CashFlowsLedgers!BF59/(CashFlowsLedgers!BB59+CashFlowsLedgers!BF59+CashFlowsLedgers!BJ59)*ClassBSwap))+((CashFlowsLedgers!BJ59/(CashFlowsLedgers!BB59+CashFlowsLedgers!BF59+CashFlowsLedgers!BJ59)*SubLoan_Rate))+ServicerFeePercentage+ThirdPartyFeePercentage+InterestCompensationRate))/12,0),0) -> 0.0002444198842 | BT60: 0 | BV60: 0.1040520884 | BW60: 0.04845953378 | BX60: 0.04800769653 | BY60: 0.06099555349 | BZ60: 0.05974933908 | CA60: =BZ59 -> 0.04703266763 | CB60: 0.04833714419 | CC60: 0.04047506545 | CD60: 0.03963250346 | CF60: 168920551.4 | CG60: 2220338.562 | CH60: 2397476.834 | CI60: 2539012.42 | CJ60: 2773775.942 | CK60: 3003144.207 | CL60: 4051522.306 | CM60: 0 | CN60: 0 | CO60: 185905821.6 | CQ60: 0.9086350813 | CR60: 0.01194335144 | CS60: 0.01289619019 | CT60: 0.0136575197 | CU60: 0.01492032857 | CV60: 0.016154116 | CW60: 0.02179341277 | CX60: 0 | CY60: 0 | DA60: 0.09454537779 | DB60: 0.0005787692425 | DC60: 0.0006191163853 | DD60: 0.0008330479731 | DE60: 0.000891479771 | DF60: 0.0007597711685 | DG60: 0.001053431335 | DH60: 0 | DI60: 0
A61: 45 | B61: =Timing!$F61 -> 2027-12-29 | C61: =Timing!B61 -> 2027-11-30 | E61: ='Pool Run Out Schedule 0% CPR'!D48 -> 0.2564172685 | F61: =CashFlowsLedgers!CM60 -> 0 | G61: =CashFlowsLedgers!CP60 -> 167448906.9 | H61: 0.2374666635 | I61: 0 | J61: 0 | K61: 0 | L61: 0 | M61: 39763533.23 | N61: 0 | O61: 0 | P61: 39763533.23 | Q61: 127685373.7 | R61: =ROUND(G61*DiscountRate*Timing!I61,2) -> 1127624.8 | S61: 40891158.03 | W61: 0 | Y61: 54.21149534 | AA61: 0 | AB61: 0 | AC61: 0 | AE61: =Timing!I61 -> 0.09315068493 | AF61: 0.01 | AG61: 155979.8037 | AI61: 0.0003 | AJ61: 4679.394111 | AM61: 425.3994647 | AN61: 425.3994647 | AO61: 155979.8037 | AP61: 3828.595182 | AT61: 0.0519 | AU61: 0.04903 | AV61: 0.05644 | AW61: 0.0494 | AY61: 0 | AZ61: 0 | BA61: 0 | BB61: =MAX(0,BB60+AZ61-BA61+IF(Triggers!BH60,BJ60-BH60-BI60-BK60,0)) -> 0 | BH61: =IF(Triggers!$BH61,MIN(Swap!I61,BB61),0) -> 0 | BI61: =IF(Triggers!$BH61,MIN(Swap!Q61,BB61-BH61),0) -> 0 | BJ61: =IF(CashFlowsLedgers!$C61="End",NA(),IF(CashFlowsLedgers!$D61,0,IF(CashFlowsLedgers!$C61="Post-Foreclosure",PostForeclosure!BR61,PreForeclosure!CG61))) -> 0 | BK61: =IF(CashFlowsLedgers!BB60+CashFlowsLedgers!BF60<0.01,BB61-BH61-BI61+BJ61,0) -> 0 | BM61: 167448906.9 | BN61: 0 | BO61: =IFERROR(MAX((((CashFlowsLedgers!BB60/(CashFlowsLedgers!BB60+CashFlowsLedgers!BF60+CashFlowsLedgers!BJ60)*ClassASwap))+((CashFlowsLedgers!BF60/(CashFlowsLedgers!BB60+CashFlowsLedgers!BF60+CashFlowsLedgers!BJ60)*ClassBSwap))+((CashFlowsLedgers!BJ60/(CashFlowsLedgers!BB60+CashFlowsLedgers!BF60+CashFlowsLedgers!BJ60)*SubLoan_Rate))+ServicerFeePercentage+ThirdPartyFeePercentage+InterestCompensationRate-DiscountRate)/12,0),0) -> 0 | BP61: =IFERROR(MAX((DiscountRate-(((CashFlowsLedgers!BB60/(CashFlowsLedgers!BB60+CashFlowsLedgers!BF60+CashFlowsLedgers!BJ60)*ClassASwap))+((CashFlowsLedgers!BF60/(CashFlowsLedgers!BB60+CashFlowsLedgers!BF60+CashFlowsLedgers!BJ60)*ClassBSwap))+((CashFlowsLedgers!BJ60/(CashFlowsLedgers!BB60+CashFlowsLedgers!BF60+CashFlowsLedgers!BJ60)*SubLoan_Rate))+ServicerFeePercentage+ThirdPartyFeePercentage+InterestCompensationRate))/12,0),0) -> 0.0002444198842 | BT61: 0 | BV61: 0.2564172685 | BW61: 0.1040520884 | BX61: 0.04845953378 | BY61: 0.04800769653 | BZ61: 0.06099555349 | CA61: 0.05974933908 | CB61: 0.04703266763 | CC61: 0.04833714419 | CD61: 0.04047506545 | CF61: 151344015.2 | CG61: 2112741.991 | CH61: 2282379.494 | CI61: 2384143.953 | CJ61: 2608044.663 | CK61: 2861898.324 | CL61: 3855683.288 | CM61: 0 | CN61: 0 | CO61: 167448906.9 | CQ61: 0.9038220553 | CR61: 0.0126172337 | CS61: 0.01363030393 | CT61: 0.01423803831 | CU61: 0.01557516684 | CV61: 0.01709117352 | CW61: 0.02302602841 | CX61: 0 | CY61: 0 | DA61: 0.2317555826 | DB61: 0.001312849516 | DC61: 0.0006605181735 | DD61: 0.0006835354226 | DE61: 0.0009500159221 | DF61: 0.001021186322 | DG61: 0.001082975541 | DH61: 0 | DI61: 0
A62: 46 | B62: =Timing!$F62 -> 2028-01-25 | C62: =Timing!B62 -> 2027-12-31 | E62: ='Pool Run Out Schedule 0% CPR'!D49 -> 0.3452614198 | F62: =CashFlowsLedgers!CM61 -> 0 | G62: =CashFlowsLedgers!CP61 -> 127685373.7 | H62: 0.3146577744 | I62: 0 | J62: 0 | K62: 0 | L62: 0 | M62: 40177195.51 | N62: 0 | O62: 0 | P62: 40177195.51 | Q62: 87508178.19 | R62: =ROUND(G62*DiscountRate*Timing!I62,2) -> 682823.25 | S62: 40860018.76 | W62: 0 | Y62: 55.12308054 | AA62: 0 | AB62: 0 | AC62: 0 | AE62: =Timing!I62 -> 0.07397260274 | AF62: 0.01 | AG62: 94452.19424 | AI62: 0.0003 | AJ62: 2833.565827 | AM62: 257.5968934 | AN62: 257.5968934 | AO62: 94452.19424 | AP62: 2318.372041 | AT62: 0.0519 | AU62: 0.04903 | AV62: 0.05644 | AW62: 0.0494 | AY62: 0 | AZ62: 0 | BA62: 0 | BB62: =MAX(0,BB61+AZ62-BA62+IF(Triggers!BH61,BJ61-BH61-BI61-BK61,0)) -> 0 | BH62: =IF(Triggers!$BH62,MIN(Swap!I62,BB62),0) -> 0 | BI62: =IF(Triggers!$BH62,MIN(Swap!Q62,BB62-BH62),0) -> 0 | BJ62: =IF(CashFlowsLedgers!$C62="End",NA(),IF(CashFlowsLedgers!$D62,0,IF(CashFlowsLedgers!$C62="Post-Foreclosure",PostForeclosure!BR62,PreForeclosure!CG62))) -> 0 | BK62: =IF(CashFlowsLedgers!BB61+CashFlowsLedgers!BF61<0.01,BB62-BH62-BI62+BJ62,0) -> 0 | BM62: 127685373.7 | BN62: 0 | BO62: =IFERROR(MAX((((CashFlowsLedgers!BB61/(CashFlowsLedgers!BB61+CashFlowsLedgers!BF61+CashFlowsLedgers!BJ61)*ClassASwap))+((CashFlowsLedgers!BF61/(CashFlowsLedgers!BB61+CashFlowsLedgers!BF61+CashFlowsLedgers!BJ61)*ClassBSwap))+((CashFlowsLedgers!BJ61/(CashFlowsLedgers!BB61+CashFlowsLedgers!BF61+CashFlowsLedgers!BJ61)*SubLoan_Rate))+ServicerFeePercentage+ThirdPartyFeePercentage+InterestCompensationRate-DiscountRate)/12,0),0) -> 0 | BP62: =IFERROR(MAX((DiscountRate-(((CashFlowsLedgers!BB61/(CashFlowsLedgers!BB61+CashFlowsLedgers!BF61+CashFlowsLedgers!BJ61)*ClassASwap))+((CashFlowsLedgers!BF61/(CashFlowsLedgers!BB61+CashFlowsLedgers!BF61+CashFlowsLedgers!BJ61)*ClassBSwap))+((CashFlowsLedgers!BJ61/(CashFlowsLedgers!BB61+CashFlowsLedgers!BF61+CashFlowsLedgers!BJ61)*SubLoan_Rate))+ServicerFeePercentage+ThirdPartyFeePercentage+InterestCompensationRate))/12,0),0) -> 0.0002444198842 | BT62: 0 | BV62: 0.3452614198 | BW62: 0.2564172685 | BX62: 0.1040520884 | BY62: 0.04845953378 | BZ62: 0.04800769653 | CA62: 0.06099555349 | CB62: 0.05974933908 | CC62: 0.04703266763 | CD62: 0.04833714419 | CF62: 112536796.2 | CG62: 1892906.775 | CH62: 2171776.447 | CI62: 2269686.693 | CJ62: 2448965.535 | CK62: 2690901.79 | CL62: 3674340.218 | CM62: 0 | CN62: 0 | CO62: 127685373.7 | CQ62: 0.8813601196 | CR62: 0.01482477374 | CS62: 0.01700881146 | CT62: 0.01777562008 | CU62: 0.01917968726 | CV62: 0.02107447167 | CW62: 0.02877651615 | CX62: 0 | CY62: 0 | DA62: 0.3042996463 | DB62: 0.003801327987 | DC62: 0.001769802353 | DD62: 0.0008613982619 | DE62: 0.0009207726055 | DF62: 0.001285449064 | DG62: 0.001719377821 | DH62: 0 | DI62: 0
A63: 47 | B63: =Timing!$F63 -> 2028-02-25 | C63: =Timing!B63 -> 2028-01-31 | E63: ='Pool Run Out Schedule 0% CPR'!D50 -> 0.5242315515 | F63: =CashFlowsLedgers!CM62 -> 0 | G63: =CashFlowsLedgers!CP62 -> 87508178.19 | H63: 0.4603130819 | I63: 0 | J63: 0 | K63: 0 | L63: 0 | M63: 40281159.19 | N63: 0 | O63: 0 | P63: 40281159.19 | Q63: 47227019 | R63: =ROUND(G63*DiscountRate*Timing!I63,2) -> 537296.14 | S63: 40818455.33 | W63: 0 | Y63: 55.95758434 | AA63: 0 | AB63: 0 | AC63: 0 | AE63: =Timing!I63 -> 0.08493150685 | AF63: 0.01 | AG63: 74322.01435 | AI63: 0.0003 | AJ63: 2229.660431 | AM63: 202.6964028 | AN63: 202.6964028 | AO63: 74322.01435 | AP63: 1824.267625 | AT63: 0.0519 | AU63: 0.04903 | AV63: 0.05644 | AW63: 0.0494 | AY63: 0 | AZ63: 0 | BA63: 0 | BB63: =MAX(0,BB62+AZ63-BA63+IF(Triggers!BH62,BJ62-BH62-BI62-BK62,0)) -> 0 | BH63: =IF(Triggers!$BH63,MIN(Swap!I63,BB63),0) -> 0 | BI63: =IF(Triggers!$BH63,MIN(Swap!Q63,BB63-BH63),0) -> 0 | BJ63: =IF(CashFlowsLedgers!$C63="End",NA(),IF(CashFlowsLedgers!$D63,0,IF(CashFlowsLedgers!$C63="Post-Foreclosure",PostForeclosure!BR63,PreForeclosure!CG63))) -> 0 | BK63: =IF(CashFlowsLedgers!BB62+CashFlowsLedgers!BF62<0.01,BB63-BH63-BI63+BJ63,0) -> 0 | BM63: 87508178.19 | BN63: 0 | BO63: =IFERROR(MAX((((CashFlowsLedgers!BB62/(CashFlowsLedgers!BB62+CashFlowsLedgers!BF62+CashFlowsLedgers!BJ62)*ClassASwap))+((CashFlowsLedgers!BF62/(CashFlowsLedgers!BB62+CashFlowsLedgers!BF62+CashFlowsLedgers!BJ62)*ClassBSwap))+((CashFlowsLedgers!BJ62/(CashFlowsLedgers!BB62+CashFlowsLedgers!BF62+CashFlowsLedgers!BJ62)*SubLoan_Rate))+ServicerFeePercentage+ThirdPartyFeePercentage+InterestCompensationRate-DiscountRate)/12,0),0) -> 0 | BP63: =IFERROR(MAX((DiscountRate-(((CashFlowsLedgers!BB62/(CashFlowsLedgers!BB62+CashFlowsLedgers!BF62+CashFlowsLedgers!BJ62)*ClassASwap))+((CashFlowsLedgers!BF62/(CashFlowsLedgers!BB62+CashFlowsLedgers!BF62+CashFlowsLedgers!BJ62)*ClassBSwap))+((CashFlowsLedgers!BJ62/(CashFlowsLedgers!BB62+CashFlowsLedgers!BF62+CashFlowsLedgers!BJ62)*SubLoan_Rate))+ServicerFeePercentage+ThirdPartyFeePercentage+InterestCompensationRate))/12,0),0) -> 0.0002444198841 | BT63: 0 | BV63: 0.5242315515 | BW63: 0.3452614198 | BX63: 0.2564172685 | BY63: 0.1040520884 | BZ63: 0.04845953378 | CA63: 0.04800769653 | CB63: 0.06099555349 | CC63: 0.05974933908 | CD63: 0.04703266763 | CF63: 73682182.19 | CG63: 1407532.79 | CH63: 1945798.573 | CI63: 2159698.734 | CJ63: 2331396.341 | CK63: 2526768.746 | CL63: 3454800.818 | CM63: 0 | CN63: 0 | CO63: 87508178.19 | CQ63: 0.8420033843 | CR63: 0.01608458568 | CS63: 0.02223561972 | CT63: 0.02467996453 | CU63: 0.02664203951 | CV63: 0.02887465833 | CW63: 0.03947974795 | CX63: 0 | CY63: 0 | DA63: 0.4414047405 | DB63: 0.005553386889 | DC63: 0.005701596871 | DD63: 0.002568001851 | DE63: 0.001291060814 | DF63: 0.001386205834 | DG63: 0.002408089078 | DH63: 0 | DI63: 0
A64: 48 | B64: =Timing!$F64 -> 2028-03-27 | C64: =Timing!B64 -> 2028-02-29 | E64: ='Pool Run Out Schedule 0% CPR'!D51 -> 0.8933877041 | F64: =CashFlowsLedgers!CM63 -> 0 | G64: =CashFlowsLedgers!CP63 -> 47227019 | H64: 0.7051102233 | I64: 0 | J64: 0 | K64: 0 | L64: 0 | M64: 33300253.92 | N64: 0 | O64: 0 | P64: 33300253.92 | Q64: 13926765.08 | R64: =ROUND(G64*DiscountRate*Timing!I64,2) -> 289971.7 | S64: 33590225.62 | W64: 0 | Y64: 56.52158772 | AA64: 0 | AB64: 0 | AC64: 0 | AE64: =Timing!I64 -> 0.08493150685 | AF64: 0.01 | AG64: 40110.61888 | AI64: 0.0003 | AJ64: 1203.318566 | AM64: 109.3925969 | AN64: 109.3925969 | AO64: 40110.61888 | AP64: 984.5333724 | AT64: 0.0519 | AU64: 0.04903 | AV64: 0.05644 | AW64: 0.0494 | AY64: 0 | AZ64: 0 | BA64: 0 | BB64: =MAX(0,BB63+AZ64-BA64+IF(Triggers!BH63,BJ63-BH63-BI63-BK63,0)) -> 0 | BH64: =IF(Triggers!$BH64,MIN(Swap!I64,BB64),0) -> 0 | BI64: =IF(Triggers!$BH64,MIN(Swap!Q64,BB64-BH64),0) -> 0 | BJ64: =IF(CashFlowsLedgers!$C64="End",NA(),IF(CashFlowsLedgers!$D64,0,IF(CashFlowsLedgers!$C64="Post-Foreclosure",PostForeclosure!BR64,PreForeclosure!CG64))) -> 0 | BK64: =IF(CashFlowsLedgers!BB63+CashFlowsLedgers!BF63<0.01,BB64-BH64-BI64+BJ64,0) -> 0 | BM64: 47227019 | BN64: 0 | BO64: =IFERROR(MAX((((CashFlowsLedgers!BB63/(CashFlowsLedgers!BB63+CashFlowsLedgers!BF63+CashFlowsLedgers!BJ63)*ClassASwap))+((CashFlowsLedgers!BF63/(CashFlowsLedgers!BB63+CashFlowsLedgers!BF63+CashFlowsLedgers!BJ63)*ClassBSwap))+((CashFlowsLedgers!BJ63/(CashFlowsLedgers!BB63+CashFlowsLedgers!BF63+CashFlowsLedgers!BJ63)*SubLoan_Rate))+ServicerFeePercentage+ThirdPartyFeePercentage+InterestCompensationRate-DiscountRate)/12,0),0) -> 0 | BP64: =IFERROR(MAX((DiscountRate-(((CashFlowsLedgers!BB63/(CashFlowsLedgers!BB63+CashFlowsLedgers!BF63+CashFlowsLedgers!BJ63)*ClassASwap))+((CashFlowsLedgers!BF63/(CashFlowsLedgers!BB63+CashFlowsLedgers!BF63+CashFlowsLedgers!BJ63)*ClassBSwap))+((CashFlowsLedgers!BJ63/(CashFlowsLedgers!BB63+CashFlowsLedgers!BF63+CashFlowsLedgers!BJ63)*SubLoan_Rate))+ServicerFeePercentage+ThirdPartyFeePercentage+InterestCompensationRate))/12,0),0) -> 0.0001183561459 | BT64: 0 | BV64: 0.8933877041 | BW64: 0.5242315515 | BX64: 0.3452614198 | BY64: 0.2564172685 | BZ64: 0.1040520884 | CA64: 0.04845953378 | CB64: 0.04800769653 | CC64: 0.06099555349 | CD64: 0.05974933908 | CF64: 35055657.5 | CG64: 921566.0205 | CH64: 1446862.218 | CI64: 1934977.571 | CJ64: 2218417.961 | CK64: 2405464.399 | CL64: 3244073.33 | CM64: 0 | CN64: 0 | CO64: 47227019 | CQ64: 0.7422797001 | CR64: 0.01951353357 | CS64: 0.0306363232 | CT64: 0.04097183374 | CU64: 0.04697349119 | CV64: 0.05093407227 | CW64: 0.06869104591 | CX64: 0 | CY64: 0 | DA64: 0.6631435571 | DB64: 0.01022960998 | DC64: 0.01057754044 | DD64: 0.01050588569 | DE64: 0.004887689857 | DF64: 0.002468241396 | DG64: 0.003297698886 | DH64: 0 | DI64: 0
A65: 49 | B65: =Timing!$F65 -> 2028-04-25 | C65: =Timing!B65 -> 2028-03-31 | E65: ='Pool Run Out Schedule 0% CPR'!D52 -> 0.1877752757 | F65: =CashFlowsLedgers!CM64 -> 0 | G65: =CashFlowsLedgers!CP64 -> 0 | H65: 0.2142886963 | I65: 0 | J65: 0 | K65: 0 | L65: 0 | M65: 0 | N65: 0 | O65: 0 | P65: 0 | Q65: 0 | R65: =ROUND(G65*DiscountRate*Timing!I65,2) -> 0 | S65: 0 | W65: 0 | Y65: 0 | AA65: 0 | AB65: 0 | AC65: 0 | AE65: =Timing!I65 -> 0.07945205479 | AF65: 0.01 | AG65: 0 | AI65: 0.0003 | AJ65: 0 | AM65: 0 | AN65: 0 | AO65: 0 | AP65: 0 | AT65: 0.0519 | AU65: 0.04903 | AV65: 0.05644 | AW65: 0.0494 | AY65: 0 | AZ65: 0 | BA65: 0 | BB65: =MAX(0,BB64+AZ65-BA65+IF(Triggers!BH64,BJ64-BH64-BI64-BK64,0)) -> 0 | BH65: =IF(Triggers!$BH65,MIN(Swap!I65,BB65),0) -> 0 | BI65: =IF(Triggers!$BH65,MIN(Swap!Q65,BB65-BH65),0) -> 0 | BJ65: =IF(CashFlowsLedgers!$C65="End",NA(),IF(CashFlowsLedgers!$D65,0,IF(CashFlowsLedgers!$C65="Post-Foreclosure",PostForeclosure!BR65,PreForeclosure!CG65))) ->  | BK65: =IF(CashFlowsLedgers!BB64+CashFlowsLedgers!BF64<0.01,BB65-BH65-BI65+BJ65,0) ->  | BM65: 0 | BN65: 0 | BO65: =IFERROR(MAX((((CashFlowsLedgers!BB64/(CashFlowsLedgers!BB64+CashFlowsLedgers!BF64+CashFlowsLedgers!BJ64)*ClassASwap))+((CashFlowsLedgers!BF64/(CashFlowsLedgers!BB64+CashFlowsLedgers!BF64+CashFlowsLedgers!BJ64)*ClassBSwap))+((CashFlowsLedgers!BJ64/(CashFlowsLedgers!BB64+CashFlowsLedgers!BF64+CashFlowsLedgers!BJ64)*SubLoan_Rate))+ServicerFeePercentage+ThirdPartyFeePercentage+InterestCompensationRate-DiscountRate)/12,0),0) -> 0 | BP65: =IFERROR(MAX((DiscountRate-(((CashFlowsLedgers!BB64/(CashFlowsLedgers!BB64+CashFlowsLedgers!BF64+CashFlowsLedgers!BJ64)*ClassASwap))+((CashFlowsLedgers!BF64/(CashFlowsLedgers!BB64+CashFlowsLedgers!BF64+CashFlowsLedgers!BJ64)*ClassBSwap))+((CashFlowsLedgers!BJ64/(CashFlowsLedgers!BB64+CashFlowsLedgers!BF64+CashFlowsLedgers!BJ64)*SubLoan_Rate))+ServicerFeePercentage+ThirdPartyFeePercentage+InterestCompensationRate))/12,0),0) -> 0 | BT65: 0 | BV65: 0.1877752757 | BW65: 0.8933877041 | BX65: 0.5242315515 | BY65: 0.3452614198 | BZ65: 0.2564172685 | CA65: 0.1040520884 | CB65: 0.04845953378 | CC65: 0.04800769653 | CD65: 0.06099555349 | CF65: 3737364.13 | CG65: 438452.0357 | CH65: 947316.5141 | CI65: 1438815.907 | CJ65: 1987586.939 | CK65: 2288896.716 | CL65: 3088332.842 | CM65: 0 | CN65: 0 | CO65: 13926765.08 | CQ65: 0.268358381 | CR65: 0.03148269056 | CS65: 0.06802128911 | CT65: 0.1033130019 | CU65: 0.1427170579 | CV65: 0.1643523605 | CW65: 0.2217552191 | CX65: 0 | CY65: 0 | DA65: 0.05039106898 | DB65: 0.02812624864 | DC65: 0.03565890593 | DD65: 0.03566999372 | DE65: 0.03659511816 | DF65: 0.01710120634 | DG65: 0.01074615453 | DH65: 0 | DI65: 0
A66: 50 | B66: =Timing!$F66 -> 2028-05-26 | C66: =Timing!B66 -> 2028-04-30 | E66: ='Pool Run Out Schedule 0% CPR'!D53 -> 0.1193936986 | F66: =CashFlowsLedgers!CM65 -> 0 | G66: =CashFlowsLedgers!CP65 -> 0 | H66: 0.2384850746 | I66: 0 | J66: 0 | K66: 0 | L66: 0 | M66: 0 | N66: 0 | O66: 0 | P66: 0 | Q66: 0 | R66: =ROUND(G66*DiscountRate*Timing!I66,2) -> 0 | S66: 0 | W66: 0 | Y66: 0 | AA66: 0 | AB66: 0 | AC66: 0 | AE66: =Timing!I66 -> 0.08493150685 | AF66: 0.01 | AG66: 0 | AI66: 0.0003 | AJ66: 0 | AM66: 0 | AN66: 0 | AO66: 0 | AP66: 0 | AT66: 0.0519 | AU66: 0.04903 | AV66: 0.05644 | AW66: 0.0494 | AY66: 0 | AZ66: 0 | BA66: 0 | BB66: =MAX(0,BB65+AZ66-BA66+IF(Triggers!BH65,BJ65-BH65-BI65-BK65,0)) -> 0 | BH66: =IF(Triggers!$BH66,MIN(Swap!I66,BB66),0) -> 0 | BI66: =IF(Triggers!$BH66,MIN(Swap!Q66,BB66-BH66),0) -> 0 | BJ66: =IF(CashFlowsLedgers!$C66="End",NA(),IF(CashFlowsLedgers!$D66,0,IF(CashFlowsLedgers!$C66="Post-Foreclosure",PostForeclosure!BR66,PreForeclosure!CG66))) ->  | BK66: =IF(CashFlowsLedgers!BB65+CashFlowsLedgers!BF65<0.01,BB66-BH66-BI66+BJ66,0) ->  | BM66: 0 | BN66: 0 | BO66: =IFERROR(MAX((((CashFlowsLedgers!BB65/(CashFlowsLedgers!BB65+CashFlowsLedgers!BF65+CashFlowsLedgers!BJ65)*ClassASwap))+((CashFlowsLedgers!BF65/(CashFlowsLedgers!BB65+CashFlowsLedgers!BF65+CashFlowsLedgers!BJ65)*ClassBSwap))+((CashFlowsLedgers!BJ65/(CashFlowsLedgers!BB65+CashFlowsLedgers!BF65+CashFlowsLedgers!BJ65)*SubLoan_Rate))+ServicerFeePercentage+ThirdPartyFeePercentage+InterestCompensationRate-DiscountRate)/12,0),0) -> 0 | BP66: =IFERROR(MAX((DiscountRate-(((CashFlowsLedgers!BB65/(CashFlowsLedgers!BB65+CashFlowsLedgers!BF65+CashFlowsLedgers!BJ65)*ClassASwap))+((CashFlowsLedgers!BF65/(CashFlowsLedgers!BB65+CashFlowsLedgers!BF65+CashFlowsLedgers!BJ65)*ClassBSwap))+((CashFlowsLedgers!BJ65/(CashFlowsLedgers!BB65+CashFlowsLedgers!BF65+CashFlowsLedgers!BJ65)*SubLoan_Rate))+ServicerFeePercentage+ThirdPartyFeePercentage+InterestCompensationRate))/12,0),0) -> 0 | BT66: 0 | BV66: 0.1193936986 | BW66: 0.1877752757 | BX66: 0.8933877041 | BY66: 0.5242315515 | BZ66: 0.3452614198 | CA66: 0.2564172685 | CB66: 0.1040520884 | CC66: 0.04845953378 | CD66: 0.04800769653 | CF66: 3035579.55 | CG66: 46744.37817 | CH66: 450703.3081 | CI66: 942048.2844 | CJ66: 1477935.326 | CK66: 2050732.232 | CL66: 2938673.672 | CM66: 0 | CN66: 0 | CO66: 10942416.75 | CQ66: 0.2774139954 | CR66: 0.004271851386 | CS66: 0.04118864401 | CT66: 0.08609142805 | CU66: 0.1350647996 | CV66: 0.1874112711 | CW66: 0.2685580105 | CX66: 0 | CY66: 0 | DA66: 0.03312148296 | DB66: 0.0008021480719 | DC66: 0.03679742811 | DD66: 0.0451318429 | DE66: 0.04663266447 | DF66: 0.04805548622 | DG66: 0.02794402184 | DH66: 0 | DI66: 0
A67: 51 | B67: =Timing!$F67 -> 2028-06-26 | C67: =Timing!B67 -> 2028-05-31 | E67: ='Pool Run Out Schedule 0% CPR'!D54 -> 0.1463639002 | F67: =CashFlowsLedgers!CM66 ->  | G67: =CashFlowsLedgers!CP66 ->  | H67: 0.301711605 | I67: 0 | J67: 0 | R67: =ROUND(G67*DiscountRate*Timing!I67,2) ->  | W67: 0 | AA67: 0 | AB67: 0 | AE67: =Timing!I67 -> 0.08493150685 | AF67: 0.01 | AI67: 0.0003 | AT67: 0.0519 | AU67: 0.04903 | AV67: 0.05644 | AW67: 0.0494 | AY67: 0 | AZ67: 0 | BA67: 0 | BB67: =MAX(0,BB66+AZ67-BA67+IF(Triggers!BH66,BJ66-BH66-BI66-BK66,0)) -> 0 | BH67: =IF(Triggers!$BH67,MIN(Swap!I67,BB67),0) -> 0 | BI67: =IF(Triggers!$BH67,MIN(Swap!Q67,BB67-BH67),0) -> 0 | BJ67: =IF(CashFlowsLedgers!$C67="End",NA(),IF(CashFlowsLedgers!$D67,0,IF(CashFlowsLedgers!$C67="Post-Foreclosure",PostForeclosure!BR67,PreForeclosure!CG67))) ->  | BK67: =IF(CashFlowsLedgers!BB66+CashFlowsLedgers!BF66<0.01,BB67-BH67-BI67+BJ67,0) ->  | BO67: =IFERROR(MAX((((CashFlowsLedgers!BB66/(CashFlowsLedgers!BB66+CashFlowsLedgers!BF66+CashFlowsLedgers!BJ66)*ClassASwap))+((CashFlowsLedgers!BF66/(CashFlowsLedgers!BB66+CashFlowsLedgers!BF66+CashFlowsLedgers!BJ66)*ClassBSwap))+((CashFlowsLedgers!BJ66/(CashFlowsLedgers!BB66+CashFlowsLedgers!BF66+CashFlowsLedgers!BJ66)*SubLoan_Rate))+ServicerFeePercentage+ThirdPartyFeePercentage+InterestCompensationRate-DiscountRate)/12,0),0) -> 0 | BP67: =IFERROR(MAX((DiscountRate-(((CashFlowsLedgers!BB66/(CashFlowsLedgers!BB66+CashFlowsLedgers!BF66+CashFlowsLedgers!BJ66)*ClassASwap))+((CashFlowsLedgers!BF66/(CashFlowsLedgers!BB66+CashFlowsLedgers!BF66+CashFlowsLedgers!BJ66)*ClassBSwap))+((CashFlowsLedgers!BJ66/(CashFlowsLedgers!BB66+CashFlowsLedgers!BF66+CashFlowsLedgers!BJ66)*SubLoan_Rate))+ServicerFeePercentage+ThirdPartyFeePercentage+InterestCompensationRate))/12,0),0) -> 0 | BT67: 0 | BV67: 0.1463639002 | BW67: 0.1193936986 | BX67: 0.1877752757 | BY67: 0.8933877041 | BZ67: 0.5242315515 | CA67: 0.3452614198 | CB67: 0.2564172685 | CC67: 0.1040520884 | CD67: 0.04845953378 | CF67: 2673150.48 | CG67: 37966.93967 | CH67: 48050.51445 | CI67: 448196.8506 | CJ67: 967661.2767 | CK67: 1524889.075 | CL67: 2632898.54 | CM67: 0 | CN67: 0 | CO67: 8332813.676 | CQ67: 0.3207980622 | CR67: 0.004556316887 | CS67: 0.005766421321 | CT67: 0.05378697617 | CU67: 0.1161265947 | CV67: 0.1829981006 | CW67: 0.3159675281 | CX67: 0 | CY67: 0 | DA67: 0.04695325555 | DB67: 0.0005439955253 | DC67: 0.001082791353 | DD67: 0.04805262315 | DE67: 0.06087722493 | DF67: 0.06318218402 | DG67: 0.08101953049 | DH67: 0 | DI67: 0
A68: 52 | B68: =Timing!$F68 -> 2028-07-25 | C68: =Timing!B68 -> 2028-06-30 | E68: ='Pool Run Out Schedule 0% CPR'!D55 -> 0.1668134604 | F68: =CashFlowsLedgers!CM67 ->  | G68: =CashFlowsLedgers!CP67 ->  | H68: 0.3454061343 | I68: 0 | J68: 0 | R68: =ROUND(G68*DiscountRate*Timing!I68,2) ->  | W68: 0 | AA68: 0 | AB68: 0 | AE68: =Timing!I68 -> 0.07945205479 | AF68: 0.01 | AI68: 0.0003 | AT68: 0.0519 | AU68: 0.04903 | AV68: 0.05644 | AW68: 0.0494 | AY68: 0 | AZ68: 0 | BA68: 0 | BB68: =MAX(0,BB67+AZ68-BA68+IF(Triggers!BH67,BJ67-BH67-BI67-BK67,0)) -> 0 | BH68: =IF(Triggers!$BH68,MIN(Swap!I68,BB68),0) -> 0 | BI68: =IF(Triggers!$BH68,MIN(Swap!Q68,BB68-BH68),0) -> 0 | BJ68: =IF(CashFlowsLedgers!$C68="End",NA(),IF(CashFlowsLedgers!$D68,0,IF(CashFlowsLedgers!$C68="Post-Foreclosure",PostForeclosure!BR68,PreForeclosure!CG68))) ->  | BK68: =IF(CashFlowsLedgers!BB67+CashFlowsLedgers!BF67<0.01,BB68-BH68-BI68+BJ68,0) ->  | BO68: =IFERROR(MAX((((CashFlowsLedgers!BB67/(CashFlowsLedgers!BB67+CashFlowsLedgers!BF67+CashFlowsLedgers!BJ67)*ClassASwap))+((CashFlowsLedgers!BF67/(CashFlowsLedgers!BB67+CashFlowsLedgers!BF67+CashFlowsLedgers!BJ67)*ClassBSwap))+((CashFlowsLedgers!BJ67/(CashFlowsLedgers!BB67+CashFlowsLedgers!BF67+CashFlowsLedgers!BJ67)*SubLoan_Rate))+ServicerFeePercentage+ThirdPartyFeePercentage+InterestCompensationRate-DiscountRate)/12,0),0) -> 0 | BP68: =IFERROR(MAX((DiscountRate-(((CashFlowsLedgers!BB67/(CashFlowsLedgers!BB67+CashFlowsLedgers!BF67+CashFlowsLedgers!BJ67)*ClassASwap))+((CashFlowsLedgers!BF67/(CashFlowsLedgers!BB67+CashFlowsLedgers!BF67+CashFlowsLedgers!BJ67)*ClassBSwap))+((CashFlowsLedgers!BJ67/(CashFlowsLedgers!BB67+CashFlowsLedgers!BF67+CashFlowsLedgers!BJ67)*SubLoan_Rate))+ServicerFeePercentage+ThirdPartyFeePercentage+InterestCompensationRate))/12,0),0) -> 0 | BT68: 0 | BV68: 0.1668134604 | BW68: 0.1463639002 | BX68: 0.1193936986 | BY68: 0.1877752757 | BZ68: 0.8933877041 | CA68: 0.5242315515 | CB68: 0.3452614198 | CC68: 0.2564172685 | CD68: 0.1040520884 | CF68: 2281897.75 | CG68: 33433.92631 | CH68: 39027.81585 | CI68: 47783.29526 | CJ68: 460382.7042 | CK68: 998403.7079 | CL68: 1957777.888 | CM68: 0 | CN68: 0 | CO68: 5818707.088 | CQ68: 0.3921657708 | CR68: 0.005745937338 | CS68: 0.006707300309 | CT68: 0.008212012486 | CU68: 0.07912113418 | CV68: 0.1715851465 | CW68: 0.3364626984 | CX68: 0 | CY68: 0 | DA68: 0.06541852928 | DB68: 0.0008409977989 | DC68: 0.0008008093918 | DD68: 0.001542012909 | DE68: 0.07068584841 | DF68: 0.08995034756 | DG68: 0.116167589 | DH68: 0 | DI68: 0
A69: 53 | B69: =Timing!$F69 -> 2028-08-25 | C69: =Timing!B69 -> 2028-07-31 | E69: ='Pool Run Out Schedule 0% CPR'!D56 -> 0.1704563831 | F69: =CashFlowsLedgers!CM68 ->  | G69: =CashFlowsLedgers!CP68 ->  | H69: 0.3791302357 | I69: 0 | J69: 0 | R69: =ROUND(G69*DiscountRate*Timing!I69,2) ->  | W69: 0 | AA69: 0 | AB69: 0 | AE69: =Timing!I69 -> 0.08493150685 | AF69: 0.01 | AI69: 0.0003 | AT69: 0.0519 | AU69: 0.04903 | AV69: 0.05644 | AW69: 0.0494 | AY69: 0 | AZ69: 0 | BA69: 0 | BB69: =MAX(0,BB68+AZ69-BA69+IF(Triggers!BH68,BJ68-BH68-BI68-BK68,0)) -> 0 | BH69: =IF(Triggers!$BH69,MIN(Swap!I69,BB69),0) -> 0 | BI69: =IF(Triggers!$BH69,MIN(Swap!Q69,BB69-BH69),0) -> 0 | BJ69: =IF(CashFlowsLedgers!$C69="End",NA(),IF(CashFlowsLedgers!$D69,0,IF(CashFlowsLedgers!$C69="Post-Foreclosure",PostForeclosure!BR69,PreForeclosure!CG69))) ->  | BK69: =IF(CashFlowsLedgers!BB68+CashFlowsLedgers!BF68<0.01,BB69-BH69-BI69+BJ69,0) ->  | BO69: =IFERROR(MAX((((CashFlowsLedgers!BB68/(CashFlowsLedgers!BB68+CashFlowsLedgers!BF68+CashFlowsLedgers!BJ68)*ClassASwap))+((CashFlowsLedgers!BF68/(CashFlowsLedgers!BB68+CashFlowsLedgers!BF68+CashFlowsLedgers!BJ68)*ClassBSwap))+((CashFlowsLedgers!BJ68/(CashFlowsLedgers!BB68+CashFlowsLedgers!BF68+CashFlowsLedgers!BJ68)*SubLoan_Rate))+ServicerFeePercentage+ThirdPartyFeePercentage+InterestCompensationRate-DiscountRate)/12,0),0) -> 0 | BP69: =IFERROR(MAX((DiscountRate-(((CashFlowsLedgers!BB68/(CashFlowsLedgers!BB68+CashFlowsLedgers!BF68+CashFlowsLedgers!BJ68)*ClassASwap))+((CashFlowsLedgers!BF68/(CashFlowsLedgers!BB68+CashFlowsLedgers!BF68+CashFlowsLedgers!BJ68)*ClassBSwap))+((CashFlowsLedgers!BJ68/(CashFlowsLedgers!BB68+CashFlowsLedgers!BF68+CashFlowsLedgers!BJ68)*SubLoan_Rate))+ServicerFeePercentage+ThirdPartyFeePercentage+InterestCompensationRate))/12,0),0) -> 0 | BT69: 0 | BV69: 0.1704563831 | BW69: 0.1668134604 | BX69: 0.1463639002 | BY69: 0.1193936986 | BZ69: 0.1877752757 | CA69: 0.8933877041 | CB69: 0.5242315515 | CC69: 0.3452614198 | CD69: 0.2564172685 | CF69: 1901246.49 | CG69: 28540.40646 | CH69: 34368.14056 | CI69: 38810.77382 | CJ69: 49082.45709 | CK69: 475008.9831 | CL69: 1281832.715 | CM69: 0 | CN69: 0 | CO69: 3808889.966 | CQ69: 0.4991602559 | CR69: 0.007493103428 | CS69: 0.009023138203 | CT69: 0.0101895235 | CU69: 0.01288628906 | CV69: 0.1247106079 | CW69: 0.336537082 | CX69: 0 | CY69: 0 | DA69: 0.08508505179 | DB69: 0.001249950512 | DC69: 0.001320661699 | DD69: 0.001216564898 | DE69: 0.002419726481 | DF69: 0.1114149237 | DG69: 0.1764233567 | DH69: 0 | DI69: 0
A70: 54 | B70: =Timing!$F70 -> 2028-09-25 | C70: =Timing!B70 -> 2028-08-31 | E70: ='Pool Run Out Schedule 0% CPR'!D57 -> 0.2010106616 | F70: =CashFlowsLedgers!CM69 ->  | G70: =CashFlowsLedgers!CP69 ->  | H70: 0.3763845484 | I70: 0 | J70: 0 | R70: =ROUND(G70*DiscountRate*Timing!I70,2) ->  | W70: 0 | AA70: 0 | AB70: 0 | AE70: =Timing!I70 -> 0.08493150685 | AF70: 0.01 | AI70: 0.0003 | AT70: 0.0519 | AU70: 0.04903 | AV70: 0.05644 | AW70: 0.0494 | AY70: 0 | AZ70: 0 | BA70: 0 | BB70: =MAX(0,BB69+AZ70-BA70+IF(Triggers!BH69,BJ69-BH69-BI69-BK69,0)) -> 0 | BH70: =IF(Triggers!$BH70,MIN(Swap!I70,BB70),0) -> 0 | BI70: =IF(Triggers!$BH70,MIN(Swap!Q70,BB70-BH70),0) -> 0 | BJ70: =IF(CashFlowsLedgers!$C70="End",NA(),IF(CashFlowsLedgers!$D70,0,IF(CashFlowsLedgers!$C70="Post-Foreclosure",PostForeclosure!BR70,PreForeclosure!CG70))) ->  | BK70: =IF(CashFlowsLedgers!BB69+CashFlowsLedgers!BF69<0.01,BB70-BH70-BI70+BJ70,0) ->  | BO70: =IFERROR(MAX((((CashFlowsLedgers!BB69/(CashFlowsLedgers!BB69+CashFlowsLedgers!BF69+CashFlowsLedgers!BJ69)*ClassASwap))+((CashFlowsLedgers!BF69/(CashFlowsLedgers!BB69+CashFlowsLedgers!BF69+CashFlowsLedgers!BJ69)*ClassBSwap))+((CashFlowsLedgers!BJ69/(CashFlowsLedgers!BB69+CashFlowsLedgers!BF69+CashFlowsLedgers!BJ69)*SubLoan_Rate))+ServicerFeePercentage+ThirdPartyFeePercentage+InterestCompensationRate-DiscountRate)/12,0),0) -> 0 | BP70: =IFERROR(MAX((DiscountRate-(((CashFlowsLedgers!BB69/(CashFlowsLedgers!BB69+CashFlowsLedgers!BF69+CashFlowsLedgers!BJ69)*ClassASwap))+((CashFlowsLedgers!BF69/(CashFlowsLedgers!BB69+CashFlowsLedgers!BF69+CashFlowsLedgers!BJ69)*ClassBSwap))+((CashFlowsLedgers!BJ69/(CashFlowsLedgers!BB69+CashFlowsLedgers!BF69+CashFlowsLedgers!BJ69)*SubLoan_Rate))+ServicerFeePercentage+ThirdPartyFeePercentage+InterestCompensationRate))/12,0),0) -> 0 | BT70: 0 | BV70: 0.2010106616 | BW70: 0.1704563831 | BX70: 0.1668134604 | BY70: 0.1463639002 | BZ70: 0.1193936986 | CA70: 0.1877752757 | CB70: 0.8933877041 | CC70: 0.5242315515 | CD70: 0.3452614198 | CF70: 1577166.89 | CG70: 23779.4825 | CH70: 29337.88547 | CI70: 34177.01198 | CJ70: 39865.98517 | CK70: 50641.79825 | CL70: 609855.5619 | CM70: 0 | CN70: 0 | CO70: 2364824.615 | CQ70: 0.6669276359 | CR70: 0.01005549517 | CS70: 0.01240594557 | CT70: 0.01445223961 | CU70: 0.01685790351 | CV70: 0.02141461059 | CW70: 0.2578861696 | CX70: 0 | CY70: 0 | DA70: 0.1340595653 | DB70: 0.001714023337 | DC70: 0.002069478711 | DD70: 0.002115286156 | DE70: 0.002012727451 | DF70: 0.004021134408 | DG70: 0.230392333 | DH70: 0 | DI70: 0
A71: 55 | B71: =Timing!$F71 -> 2028-10-25 | C71: =Timing!B71 -> 2028-09-30 | E71: ='Pool Run Out Schedule 0% CPR'!D58 -> 0.276972281 | F71: =CashFlowsLedgers!CM70 ->  | G71: =CashFlowsLedgers!CP70 ->  | H71: 0.2605747309 | I71: 0 | J71: 0 | R71: =ROUND(G71*DiscountRate*Timing!I71,2) ->  | W71: 0 | AA71: 0 | AB71: 0 | AE71: =Timing!I71 -> 0.08219178082 | AF71: 0.01 | AI71: 0.0003 | AT71: 0.0519 | AU71: 0.04903 | AV71: 0.05644 | AW71: 0.0494 | AY71: 0 | AZ71: 0 | BA71: 0 | BB71: =MAX(0,BB70+AZ71-BA71+IF(Triggers!BH70,BJ70-BH70-BI70-BK70,0)) -> 0 | BH71: =IF(Triggers!$BH71,MIN(Swap!I71,BB71),0) -> 0 | BI71: =IF(Triggers!$BH71,MIN(Swap!Q71,BB71-BH71),0) -> 0 | BJ71: =IF(CashFlowsLedgers!$C71="End",NA(),IF(CashFlowsLedgers!$D71,0,IF(CashFlowsLedgers!$C71="Post-Foreclosure",PostForeclosure!BR71,PreForeclosure!CG71))) ->  | BK71: =IF(CashFlowsLedgers!BB70+CashFlowsLedgers!BF70<0.01,BB71-BH71-BI71+BJ71,0) ->  | BO71: =IFERROR(MAX((((CashFlowsLedgers!BB70/(CashFlowsLedgers!BB70+CashFlowsLedgers!BF70+CashFlowsLedgers!BJ70)*ClassASwap))+((CashFlowsLedgers!BF70/(CashFlowsLedgers!BB70+CashFlowsLedgers!BF70+CashFlowsLedgers!BJ70)*ClassBSwap))+((CashFlowsLedgers!BJ70/(CashFlowsLedgers!BB70+CashFlowsLedgers!BF70+CashFlowsLedgers!BJ70)*SubLoan_Rate))+ServicerFeePercentage+ThirdPartyFeePercentage+InterestCompensationRate-DiscountRate)/12,0),0) -> 0 | BP71: =IFERROR(MAX((DiscountRate-(((CashFlowsLedgers!BB70/(CashFlowsLedgers!BB70+CashFlowsLedgers!BF70+CashFlowsLedgers!BJ70)*ClassASwap))+((CashFlowsLedgers!BF70/(CashFlowsLedgers!BB70+CashFlowsLedgers!BF70+CashFlowsLedgers!BJ70)*ClassBSwap))+((CashFlowsLedgers!BJ70/(CashFlowsLedgers!BB70+CashFlowsLedgers!BF70+CashFlowsLedgers!BJ70)*SubLoan_Rate))+ServicerFeePercentage+ThirdPartyFeePercentage+InterestCompensationRate))/12,0),0) -> 0 | BT71: 0 | BV71: 0.276972281 | BW71: 0.2010106616 | BX71: 0.1704563831 | BY71: 0.1668134604 | BZ71: 0.1463639002 | CA71: 0.1193936986 | CB71: 0.1877752757 | CC71: 0.8933877041 | CD71: 0.5242315515 | CF71: 1260139.53 | CG71: 19726.11792 | CH71: 24443.93127 | CI71: 29174.73121 | CJ71: 35106.23775 | CK71: 41132.52062 | CL71: 65018.10162 | CM71: 0 | CN71: 0 | CO71: 1474741.17 | CQ71: 0.8544818273 | CR71: 0.01337598645 | CS71: 0.01657506535 | CT71: 0.01978295025 | CU71: 0.0238050164 | CV71: 0.02789134897 | CW71: 0.04408780532 | CX71: 0 | CY71: 0 | DA71: 0.2366677808 | DB71: 0.002688715887 | DC71: 0.002825325688 | DD71: 0.003300062389 | DE71: 0.003484195045 | DF71: 0.003330051313 | DG71: 0.0082785998 | DH71: 0 | DI71: 0
A72: 56 | B72: =Timing!$F72 -> 2028-11-27 | C72: =Timing!B72 -> 2028-10-31 | E72: ='Pool Run Out Schedule 0% CPR'!D59 -> 0.3718756346 | F72: =CashFlowsLedgers!CM71 ->  | G72: =CashFlowsLedgers!CP71 ->  | H72: 0.3374831829 | I72: 0 | J72: 0 | R72: =ROUND(G72*DiscountRate*Timing!I72,2) ->  | W72: 0 | AA72: 0 | AB72: 0 | AE72: =Timing!I72 -> 0.0904109589 | AF72: 0.01 | AI72: 0.0003 | AT72: 0.0519 | AU72: 0.04903 | AV72: 0.05644 | AW72: 0.0494 | AY72: 0 | AZ72: 0 | BA72: 0 | BB72: =MAX(0,BB71+AZ72-BA72+IF(Triggers!BH71,BJ71-BH71-BI71-BK71,0)) -> 0 | BH72: =IF(Triggers!$BH72,MIN(Swap!I72,BB72),0) -> 0 | BI72: =IF(Triggers!$BH72,MIN(Swap!Q72,BB72-BH72),0) -> 0 | BJ72: =IF(CashFlowsLedgers!$C72="End",NA(),IF(CashFlowsLedgers!$D72,0,IF(CashFlowsLedgers!$C72="Post-Foreclosure",PostForeclosure!BR72,PreForeclosure!CG72))) ->  | BK72: =IF(CashFlowsLedgers!BB71+CashFlowsLedgers!BF71<0.01,BB72-BH72-BI72+BJ72,0) ->  | BO72: =IFERROR(MAX((((CashFlowsLedgers!BB71/(CashFlowsLedgers!BB71+CashFlowsLedgers!BF71+CashFlowsLedgers!BJ71)*ClassASwap))+((CashFlowsLedgers!BF71/(CashFlowsLedgers!BB71+CashFlowsLedgers!BF71+CashFlowsLedgers!BJ71)*ClassBSwap))+((CashFlowsLedgers!BJ71/(CashFlowsLedgers!BB71+CashFlowsLedgers!BF71+CashFlowsLedgers!BJ71)*SubLoan_Rate))+ServicerFeePercentage+ThirdPartyFeePercentage+InterestCompensationRate-DiscountRate)/12,0),0) -> 0 | BP72: =IFERROR(MAX((DiscountRate-(((CashFlowsLedgers!BB71/(CashFlowsLedgers!BB71+CashFlowsLedgers!BF71+CashFlowsLedgers!BJ71)*ClassASwap))+((CashFlowsLedgers!BF71/(CashFlowsLedgers!BB71+CashFlowsLedgers!BF71+CashFlowsLedgers!BJ71)*ClassBSwap))+((CashFlowsLedgers!BJ71/(CashFlowsLedgers!BB71+CashFlowsLedgers!BF71+CashFlowsLedgers!BJ71)*SubLoan_Rate))+ServicerFeePercentage+ThirdPartyFeePercentage+InterestCompensationRate))/12,0),0) -> 0 | BT72: 0 | BV72: 0.3718756346 | BW72: 0.276972281 | BX72: 0.2010106616 | BY72: 0.1704563831 | BZ72: 0.1668134604 | CA72: 0.1463639002 | CB72: 0.1193936986 | CC72: 0.1877752757 | CD72: 0.8933877041 | CF72: 911115.81 | CG72: 15760.95791 | CH72: 20277.30716 | CI72: 24307.99334 | CJ72: 29967.95188 | CK72: 36221.55685 | CL72: 52809.30966 | CM72: 0 | CN72: 0 | CO72: 1090460.887 | CQ72: 0.8355327743 | CR72: 0.01445348301 | CS72: 0.01859517146 | CT72: 0.02229148577 | CU72: 0.0274819136 | CV72: 0.033216741 | CW72: 0.04842843086 | CX72: 0 | CY72: 0 | DA72: 0.3107142806 | DB72: 0.004003214159 | DC72: 0.003737827717 | DD72: 0.003799726038 | DE72: 0.004584353107 | DF72: 0.004861731764 | DG72: 0.005782049479 | DH72: 0 | DI72: 0
A73: 57 | B73: =Timing!$F73 -> 2028-12-27 | C73: =Timing!B73 -> 2028-11-30 | E73: ='Pool Run Out Schedule 0% CPR'!D60 -> 0.443029356 | F73: =CashFlowsLedgers!CM72 ->  | G73: =CashFlowsLedgers!CP72 ->  | H73: 0.3910892968 | I73: 0 | J73: 0 | R73: =ROUND(G73*DiscountRate*Timing!I73,2) ->  | W73: 0 | AA73: 0 | AB73: 0 | AE73: =Timing!I73 -> 0.08219178082 | AF73: 0.01 | AI73: 0.0003 | AT73: 0.0519 | AU73: 0.04903 | AV73: 0.05644 | AW73: 0.0494 | AY73: 0 | AZ73: 0 | BA73: 0 | BB73: =MAX(0,BB72+AZ73-BA73+IF(Triggers!BH72,BJ72-BH72-BI72-BK72,0)) -> 0 | BH73: =IF(Triggers!$BH73,MIN(Swap!I73,BB73),0) -> 0 | BI73: =IF(Triggers!$BH73,MIN(Swap!Q73,BB73-BH73),0) -> 0 | BJ73: =IF(CashFlowsLedgers!$C73="End",NA(),IF(CashFlowsLedgers!$D73,0,IF(CashFlowsLedgers!$C73="Post-Foreclosure",PostForeclosure!BR73,PreForeclosure!CG73))) ->  | BK73: =IF(CashFlowsLedgers!BB72+CashFlowsLedgers!BF72<0.01,BB73-BH73-BI73+BJ73,0) ->  | BO73: =IFERROR(MAX((((CashFlowsLedgers!BB72/(CashFlowsLedgers!BB72+CashFlowsLedgers!BF72+CashFlowsLedgers!BJ72)*ClassASwap))+((CashFlowsLedgers!BF72/(CashFlowsLedgers!BB72+CashFlowsLedgers!BF72+CashFlowsLedgers!BJ72)*ClassBSwap))+((CashFlowsLedgers!BJ72/(CashFlowsLedgers!BB72+CashFlowsLedgers!BF72+CashFlowsLedgers!BJ72)*SubLoan_Rate))+ServicerFeePercentage+ThirdPartyFeePercentage+InterestCompensationRate-DiscountRate)/12,0),0) -> 0 | BP73: =IFERROR(MAX((DiscountRate-(((CashFlowsLedgers!BB72/(CashFlowsLedgers!BB72+CashFlowsLedgers!BF72+CashFlowsLedgers!BJ72)*ClassASwap))+((CashFlowsLedgers!BF72/(CashFlowsLedgers!BB72+CashFlowsLedgers!BF72+CashFlowsLedgers!BJ72)*ClassBSwap))+((CashFlowsLedgers!BJ72/(CashFlowsLedgers!BB72+CashFlowsLedgers!BF72+CashFlowsLedgers!BJ72)*SubLoan_Rate))+ServicerFeePercentage+ThirdPartyFeePercentage+InterestCompensationRate))/12,0),0) -> 0 | BT73: 0 | BV73: 0.443029356 | BW73: 0.3718756346 | BX73: 0.276972281 | BY73: 0.2010106616 | BZ73: 0.1704563831 | CA73: 0.1668134604 | CB73: 0.1463639002 | CC73: 0.1193936986 | CD73: 0.1877752757 | CF73: 572294.04 | CG73: 11395.60944 | CH73: 16201.35223 | CI73: 20164.54072 | CJ73: 24968.89412 | CK73: 30920.02852 | CL73: 46504.21085 | CM73: 0 | CN73: 0 | CO73: 722448.6759 | CQ73: 0.79215875 | CR73: 0.01577359032 | CS73: 0.02242560997 | CT73: 0.02791138165 | CU73: 0.03456147814 | CV73: 0.04279892752 | CW73: 0.06437026242 | CX73: 0 | CY73: 0 | DA73: 0.3509495809 | DB73: 0.005865813911 | DC73: 0.006211272347 | DD73: 0.005610485292 | DE73: 0.005891224558 | DF73: 0.007139437202 | DG73: 0.009421482663 | DH73: 0 | DI73: 0
A74: 58 | B74: =Timing!$F74 -> 2029-01-25 | C74: =Timing!B74 -> 2028-12-31 | E74: ='Pool Run Out Schedule 0% CPR'!D61 -> 0.5563258504 | F74: =CashFlowsLedgers!CM73 ->  | G74: =CashFlowsLedgers!CP73 ->  | H74: 0.4648621846 | I74: 0 | J74: 0 | R74: =ROUND(G74*DiscountRate*Timing!I74,2) ->  | W74: 0 | AA74: 0 | AB74: 0 | AE74: =Timing!I74 -> 0.07945205479 | AF74: 0.01 | AI74: 0.0003 | AT74: 0.0519 | AU74: 0.04903 | AV74: 0.05644 | AW74: 0.0494 | AY74: 0 | AZ74: 0 | BA74: 0 | BB74: =MAX(0,BB73+AZ74-BA74+IF(Triggers!BH73,BJ73-BH73-BI73-BK73,0)) -> 0 | BH74: =IF(Triggers!$BH74,MIN(Swap!I74,BB74),0) -> 0 | BI74: =IF(Triggers!$BH74,MIN(Swap!Q74,BB74-BH74),0) -> 0 | BJ74: =IF(CashFlowsLedgers!$C74="End",NA(),IF(CashFlowsLedgers!$D74,0,IF(CashFlowsLedgers!$C74="Post-Foreclosure",PostForeclosure!BR74,PreForeclosure!CG74))) ->  | BK74: =IF(CashFlowsLedgers!BB73+CashFlowsLedgers!BF73<0.01,BB74-BH74-BI74+BJ74,0) ->  | BO74: =IFERROR(MAX((((CashFlowsLedgers!BB73/(CashFlowsLedgers!BB73+CashFlowsLedgers!BF73+CashFlowsLedgers!BJ73)*ClassASwap))+((CashFlowsLedgers!BF73/(CashFlowsLedgers!BB73+CashFlowsLedgers!BF73+CashFlowsLedgers!BJ73)*ClassBSwap))+((CashFlowsLedgers!BJ73/(CashFlowsLedgers!BB73+CashFlowsLedgers!BF73+CashFlowsLedgers!BJ73)*SubLoan_Rate))+ServicerFeePercentage+ThirdPartyFeePercentage+InterestCompensationRate-DiscountRate)/12,0),0) -> 0 | BP74: =IFERROR(MAX((DiscountRate-(((CashFlowsLedgers!BB73/(CashFlowsLedgers!BB73+CashFlowsLedgers!BF73+CashFlowsLedgers!BJ73)*ClassASwap))+((CashFlowsLedgers!BF73/(CashFlowsLedgers!BB73+CashFlowsLedgers!BF73+CashFlowsLedgers!BJ73)*ClassBSwap))+((CashFlowsLedgers!BJ73/(CashFlowsLedgers!BB73+CashFlowsLedgers!BF73+CashFlowsLedgers!BJ73)*SubLoan_Rate))+ServicerFeePercentage+ThirdPartyFeePercentage+InterestCompensationRate))/12,0),0) -> 0 | BT74: 0 | BV74: 0.5563258504 | BW74: 0.443029356 | BX74: 0.3718756346 | BY74: 0.276972281 | BZ74: 0.2010106616 | CA74: 0.1704563831 | CB74: 0.1668134604 | CC74: 0.1463639002 | CD74: 0.1193936986 | CF74: 318750.98 | CG74: 7157.859951 | CH74: 11714.02675 | CI74: 16111.25305 | CJ74: 20712.78674 | CK74: 25762.15157 | CL74: 39697.67318 | CM74: 0 | CN74: 0 | CO74: 439906.7312 | CQ74: 0.7245876395 | CR74: 0.01627131263 | CS74: 0.02662843261 | CT74: 0.0366242476 | CU74: 0.04708449603 | CV74: 0.05856275828 | CW74: 0.09024111331 | CX74: 0 | CY74: 0 | DA74: 0.4031068347 | DB74: 0.007208669155 | DC74: 0.009902465276 | DD74: 0.0101439014 | DE74: 0.009464485698 | DF74: 0.009982395958 | DG74: 0.01505343238 | DH74: 0 | DI74: 0
A75: 59 | B75: =Timing!$F75 -> 2029-02-26 | C75: =Timing!B75 -> 2029-01-31 | E75: ='Pool Run Out Schedule 0% CPR'!D62 -> 0.9927306704 | F75: =CashFlowsLedgers!CM74 ->  | G75: =CashFlowsLedgers!CP74 ->  | H75: 0.6997154901 | I75: 0 | J75: 0 | R75: =ROUND(G75*DiscountRate*Timing!I75,2) ->  | W75: 0 | AA75: 0 | AB75: 0 | AE75: =Timing!I75 -> 0.08767123288 | AF75: 0.01 | AI75: 0.0003 | AT75: 0.0519 | AU75: 0.04903 | AV75: 0.05644 | AW75: 0.0494 | AY75: 0 | AZ75: 0 | BA75: 0 | BB75: =MAX(0,BB74+AZ75-BA75+IF(Triggers!BH74,BJ74-BH74-BI74-BK74,0)) -> 0 | BH75: =IF(Triggers!$BH75,MIN(Swap!I75,BB75),0) -> 0 | BI75: =IF(Triggers!$BH75,MIN(Swap!Q75,BB75-BH75),0) -> 0 | BJ75: =IF(CashFlowsLedgers!$C75="End",NA(),IF(CashFlowsLedgers!$D75,0,IF(CashFlowsLedgers!$C75="Post-Foreclosure",PostForeclosure!BR75,PreForeclosure!CG75))) ->  | BK75: =IF(CashFlowsLedgers!BB74+CashFlowsLedgers!BF74<0.01,BB75-BH75-BI75+BJ75,0) ->  | BO75: =IFERROR(MAX((((CashFlowsLedgers!BB74/(CashFlowsLedgers!BB74+CashFlowsLedgers!BF74+CashFlowsLedgers!BJ74)*ClassASwap))+((CashFlowsLedgers!BF74/(CashFlowsLedgers!BB74+CashFlowsLedgers!BF74+CashFlowsLedgers!BJ74)*ClassBSwap))+((CashFlowsLedgers!BJ74/(CashFlowsLedgers!BB74+CashFlowsLedgers!BF74+CashFlowsLedgers!BJ74)*SubLoan_Rate))+ServicerFeePercentage+ThirdPartyFeePercentage+InterestCompensationRate-DiscountRate)/12,0),0) -> 0 | BP75: =IFERROR(MAX((DiscountRate-(((CashFlowsLedgers!BB74/(CashFlowsLedgers!BB74+CashFlowsLedgers!BF74+CashFlowsLedgers!BJ74)*ClassASwap))+((CashFlowsLedgers!BF74/(CashFlowsLedgers!BB74+CashFlowsLedgers!BF74+CashFlowsLedgers!BJ74)*ClassBSwap))+((CashFlowsLedgers!BJ74/(CashFlowsLedgers!BB74+CashFlowsLedgers!BF74+CashFlowsLedgers!BJ74)*SubLoan_Rate))+ServicerFeePercentage+ThirdPartyFeePercentage+InterestCompensationRate))/12,0),0) -> 0 | BT75: 0 | BV75: 0.9927306704 | BW75: 0.5563258504 | BX75: 0.443029356 | BY75: 0.3718756346 | BZ75: 0.276972281 | CA75: 0.2010106616 | CB75: 0.1704563831 | CC75: 0.1668134604 | CD75: 0.1463639002 | CF75: 141421.57 | CG75: 3986.717866 | CH75: 7357.865619 | CI75: 11648.88254 | CJ75: 16549.29577 | CK75: 21370.82839 | CL75: 33075.56695 | CM75: 0 | CN75: 0 | CO75: 235410.7271 | CQ75: 0.6007439496 | CR75: 0.01693515803 | CS75: 0.03125543899 | CT75: 0.04948322739 | CU75: 0.07029966721 | CV75: 0.09078103046 | CW75: 0.1405015283 | CX75: 0 | CY75: 0 | DA75: 0.5963769439 | DB75: 0.009421466192 | DC75: 0.01384707701 | DD75: 0.01840160659 | DE75: 0.01947105918 | DF75: 0.01824795499 | DG75: 0.02394938233 | DH75: 0 | DI75: 0
A76: 60 | B76: =Timing!$F76 -> 2029-03-26 | C76: =Timing!B76 -> 2029-02-28 | E76: ='Pool Run Out Schedule 0% CPR'!D63 -> 1 | F76: =CashFlowsLedgers!CM75 ->  | G76: =CashFlowsLedgers!CP75 ->  | H76: 0.3253603277 | I76: 0 | J76: 0 | R76: =ROUND(G76*DiscountRate*Timing!I76,2) ->  | W76: 0 | AA76: 0 | AB76: 0 | AE76: =Timing!I76 -> 0.07671232877 | AF76: 0.01 | AI76: 0.0003 | AT76: 0.0519 | AU76: 0.04903 | AV76: 0.05644 | AW76: 0.0494 | AY76: 0 | AZ76: 0 | BA76: 0 | BB76: =MAX(0,BB75+AZ76-BA76+IF(Triggers!BH75,BJ75-BH75-BI75-BK75,0)) -> 0 | BH76: =IF(Triggers!$BH76,MIN(Swap!I76,BB76),0) -> 0 | BI76: =IF(Triggers!$BH76,MIN(Swap!Q76,BB76-BH76),0) -> 0 | BJ76: =IF(CashFlowsLedgers!$C76="End",NA(),IF(CashFlowsLedgers!$D76,0,IF(CashFlowsLedgers!$C76="Post-Foreclosure",PostForeclosure!BR76,PreForeclosure!CG76))) ->  | BK76: =IF(CashFlowsLedgers!BB75+CashFlowsLedgers!BF75<0.01,BB76-BH76-BI76+BJ76,0) ->  | BO76: =IFERROR(MAX((((CashFlowsLedgers!BB75/(CashFlowsLedgers!BB75+CashFlowsLedgers!BF75+CashFlowsLedgers!BJ75)*ClassASwap))+((CashFlowsLedgers!BF75/(CashFlowsLedgers!BB75+CashFlowsLedgers!BF75+CashFlowsLedgers!BJ75)*ClassBSwap))+((CashFlowsLedgers!BJ75/(CashFlowsLedgers!BB75+CashFlowsLedgers!BF75+CashFlowsLedgers!BJ75)*SubLoan_Rate))+ServicerFeePercentage+ThirdPartyFeePercentage+InterestCompensationRate-DiscountRate)/12,0),0) -> 0 | BP76: =IFERROR(MAX((DiscountRate-(((CashFlowsLedgers!BB75/(CashFlowsLedgers!BB75+CashFlowsLedgers!BF75+CashFlowsLedgers!BJ75)*ClassASwap))+((CashFlowsLedgers!BF75/(CashFlowsLedgers!BB75+CashFlowsLedgers!BF75+CashFlowsLedgers!BJ75)*ClassBSwap))+((CashFlowsLedgers!BJ75/(CashFlowsLedgers!BB75+CashFlowsLedgers!BF75+CashFlowsLedgers!BJ75)*SubLoan_Rate))+ServicerFeePercentage+ThirdPartyFeePercentage+InterestCompensationRate))/12,0),0) -> 0 | BT76: 0 | BV76: 1 | BW76: 0.9927306704 | BX76: 0.5563258504 | BY76: 0.443029356 | BZ76: 0.3718756346 | CA76: 0.276972281 | CB76: 0.2010106616 | CC76: 0.1704563831 | CD76: 0.1668134604 | CF76: 1028.04 | CG76: 1768.803659 | CH76: 4098.115152 | CI76: 7316.946954 | CJ76: 11965.59957 | CK76: 17075.06404 | CL76: 27437.62544 | CM76: 0 | CN76: 0 | CO76: 70690.19481 | CQ76: 0.01454289386 | CR76: 0.02502190953 | CS76: 0.05797289373 | CT76: 0.1035072399 | CU76: 0.1692681652 | CV76: 0.2415478424 | CW76: 0.3881390553 | CX76: 0 | CY76: 0 | DA76: 0.01454289386 | DB76: 0.02484001702 | DC76: 0.0322518194 | DD76: 0.04585674584 | DE76: 0.06294670635 | DF76: 0.06690205688 | DG76: 0.0780200883 | DH76: 0 | DI76: 0
A77: 61 | B77: =Timing!$F77 -> 2029-04-25 | C77: =Timing!B77 -> 2029-03-31 | F77: =CashFlowsLedgers!CM76 ->  | G77: =CashFlowsLedgers!CP76 ->  | H77: 0.3790658331 | I77: 0 | J77: 0 | R77: =ROUND(G77*DiscountRate*Timing!I77,2) ->  | W77: 0 | AA77: 0 | AB77: 0 | AE77: =Timing!I77 -> 0.08219178082 | AF77: 0.01 | AI77: 0.0003 | AT77: 0.0519 | AU77: 0.04903 | AV77: 0.05644 | AW77: 0.0494 | AY77: 0 | AZ77: 0 | BA77: 0 | BB77: =MAX(0,BB76+AZ77-BA77+IF(Triggers!BH76,BJ76-BH76-BI76-BK76,0)) -> 0 | BH77: =IF(Triggers!$BH77,MIN(Swap!I77,BB77),0) -> 0 | BI77: =IF(Triggers!$BH77,MIN(Swap!Q77,BB77-BH77),0) -> 0 | BJ77: =IF(CashFlowsLedgers!$C77="End",NA(),IF(CashFlowsLedgers!$D77,0,IF(CashFlowsLedgers!$C77="Post-Foreclosure",PostForeclosure!BR77,PreForeclosure!CG77))) ->  | BK77: =IF(CashFlowsLedgers!BB76+CashFlowsLedgers!BF76<0.01,BB77-BH77-BI77+BJ77,0) ->  | BO77: =IFERROR(MAX((((CashFlowsLedgers!BB76/(CashFlowsLedgers!BB76+CashFlowsLedgers!BF76+CashFlowsLedgers!BJ76)*ClassASwap))+((CashFlowsLedgers!BF76/(CashFlowsLedgers!BB76+CashFlowsLedgers!BF76+CashFlowsLedgers!BJ76)*ClassBSwap))+((CashFlowsLedgers!BJ76/(CashFlowsLedgers!BB76+CashFlowsLedgers!BF76+CashFlowsLedgers!BJ76)*SubLoan_Rate))+ServicerFeePercentage+ThirdPartyFeePercentage+InterestCompensationRate-DiscountRate)/12,0),0) -> 0 | BP77: =IFERROR(MAX((DiscountRate-(((CashFlowsLedgers!BB76/(CashFlowsLedgers!BB76+CashFlowsLedgers!BF76+CashFlowsLedgers!BJ76)*ClassASwap))+((CashFlowsLedgers!BF76/(CashFlowsLedgers!BB76+CashFlowsLedgers!BF76+CashFlowsLedgers!BJ76)*ClassBSwap))+((CashFlowsLedgers!BJ76/(CashFlowsLedgers!BB76+CashFlowsLedgers!BF76+CashFlowsLedgers!BJ76)*SubLoan_Rate))+ServicerFeePercentage+ThirdPartyFeePercentage+InterestCompensationRate))/12,0),0) -> 0 | BT77: 0 | BV77: 0 | BW77: 1 | BX77: 0.9927306704 | BY77: 0.5563258504 | BZ77: 0.443029356 | CA77: 0.3718756346 | CB77: 0.276972281 | CC77: 0.2010106616 | CD77: 0.1704563831 | CF77: 0 | CG77: 12.85801674 | CH77: 1818.227755 | CI77: 4075.324657 | CJ77: 7515.88464 | CK77: 12345.7446 | CL77: 21922.37019 | CM77: 0 | CN77: 0 | CO77: 47690.40987 | CQ77: 0 | CR77: 0.0002696143055 | CS77: 0.03812564749 | CT77: 0.08545375618 | CU77: 0.1575974008 | CV77: 0.2588726882 | CW77: 0.459680893 | CX77: 0 | CY77: 0 | DA77: 0 | DB77: 0.0002696143055 | DC77: 0.03784849959 | DD77: 0.04754013357 | DE77: 0.06982027501 | DF77: 0.09626844518 | DG77: 0.1273188655 | DH77: 0 | DI77: 0
A78: 62 | B78: =Timing!$F78 -> 2029-05-25 | C78: =Timing!B78 -> 2029-04-30 | F78: =CashFlowsLedgers!CM77 ->  | G78: =CashFlowsLedgers!CP77 ->  | H78: 0.4547722707 | I78: 0 | J78: 0 | R78: =ROUND(G78*DiscountRate*Timing!I78,2) ->  | W78: 0 | AA78: 0 | AB78: 0 | AE78: =Timing!I78 -> 0.08219178082 | AF78: 0.01 | AI78: 0.0003 | AT78: 0.0519 | AU78: 0.04903 | AV78: 0.05644 | AW78: 0.0494 | AY78: 0 | AZ78: 0 | BA78: 0 | BB78: =MAX(0,BB77+AZ78-BA78+IF(Triggers!BH77,BJ77-BH77-BI77-BK77,0)) -> 0 | BH78: =IF(Triggers!$BH78,MIN(Swap!I78,BB78),0) -> 0 | BI78: =IF(Triggers!$BH78,MIN(Swap!Q78,BB78-BH78),0) -> 0 | BJ78: =IF(CashFlowsLedgers!$C78="End",NA(),IF(CashFlowsLedgers!$D78,0,IF(CashFlowsLedgers!$C78="Post-Foreclosure",PostForeclosure!BR78,PreForeclosure!CG78))) ->  | BK78: =IF(CashFlowsLedgers!BB77+CashFlowsLedgers!BF77<0.01,BB78-BH78-BI78+BJ78,0) ->  | BO78: =IFERROR(MAX((((CashFlowsLedgers!BB77/(CashFlowsLedgers!BB77+CashFlowsLedgers!BF77+CashFlowsLedgers!BJ77)*ClassASwap))+((CashFlowsLedgers!BF77/(CashFlowsLedgers!BB77+CashFlowsLedgers!BF77+CashFlowsLedgers!BJ77)*ClassBSwap))+((CashFlowsLedgers!BJ77/(CashFlowsLedgers!BB77+CashFlowsLedgers!BF77+CashFlowsLedgers!BJ77)*SubLoan_Rate))+ServicerFeePercentage+ThirdPartyFeePercentage+InterestCompensationRate-DiscountRate)/12,0),0) -> 0 | BP78: =IFERROR(MAX((DiscountRate-(((CashFlowsLedgers!BB77/(CashFlowsLedgers!BB77+CashFlowsLedgers!BF77+CashFlowsLedgers!BJ77)*ClassASwap))+((CashFlowsLedgers!BF77/(CashFlowsLedgers!BB77+CashFlowsLedgers!BF77+CashFlowsLedgers!BJ77)*ClassBSwap))+((CashFlowsLedgers!BJ77/(CashFlowsLedgers!BB77+CashFlowsLedgers!BF77+CashFlowsLedgers!BJ77)*SubLoan_Rate))+ServicerFeePercentage+ThirdPartyFeePercentage+InterestCompensationRate))/12,0),0) -> 0 | BT78: 0 | BV78: 0 | BW78: 0 | BX78: 1 | BY78: 0.9927306704 | BZ78: 0.5563258504 | CA78: 0.443029356 | CB78: 0.3718756346 | CC78: 0.276972281 | CD78: 0.2010106616 | CF78: 0 | CG78: 0 | CH78: 13.21729678 | CI78: 1808.116202 | CJ78: 4186.127108 | CK78: 7754.662994 | CL78: 15850.48132 | CM78: 0 | CN78: 0 | CO78: 29612.60492 | CQ78: 0 | CR78: 0 | CS78: 0.0004463402262 | CT78: 0.06105900534 | CU78: 0.1413630148 | CV78: 0.2618703426 | CW78: 0.535261297 | CX78: 0 | CY78: 0 | DA78: 0 | DB78: 0 | DC78: 0.0004463402262 | DD78: 0.0606151473 | DE78: 0.07864389943 | DF78: 0.1160162492 | DG78: 0.1990506345 | DH78: 0 | DI78: 0
A79: 63 | B79: =Timing!$F79 -> 2029-06-25 | C79: =Timing!B79 -> 2029-05-31 | F79: =CashFlowsLedgers!CM78 ->  | G79: =CashFlowsLedgers!CP78 ->  | H79: 0.5370244901 | I79: 0 | J79: 0 | R79: =ROUND(G79*DiscountRate*Timing!I79,2) ->  | W79: 0 | AA79: 0 | AB79: 0 | AE79: =Timing!I79 -> 0.08493150685 | AF79: 0.01 | AI79: 0.0003 | AT79: 0.0519 | AU79: 0.04903 | AV79: 0.05644 | AW79: 0.0494 | AY79: 0 | AZ79: 0 | BA79: 0 | BB79: =MAX(0,BB78+AZ79-BA79+IF(Triggers!BH78,BJ78-BH78-BI78-BK78,0)) -> 0 | BH79: =IF(Triggers!$BH79,MIN(Swap!I79,BB79),0) -> 0 | BI79: =IF(Triggers!$BH79,MIN(Swap!Q79,BB79-BH79),0) -> 0 | BJ79: =IF(CashFlowsLedgers!$C79="End",NA(),IF(CashFlowsLedgers!$D79,0,IF(CashFlowsLedgers!$C79="Post-Foreclosure",PostForeclosure!BR79,PreForeclosure!CG79))) ->  | BK79: =IF(CashFlowsLedgers!BB78+CashFlowsLedgers!BF78<0.01,BB79-BH79-BI79+BJ79,0) ->  | BO79: =IFERROR(MAX((((CashFlowsLedgers!BB78/(CashFlowsLedgers!BB78+CashFlowsLedgers!BF78+CashFlowsLedgers!BJ78)*ClassASwap))+((CashFlowsLedgers!BF78/(CashFlowsLedgers!BB78+CashFlowsLedgers!BF78+CashFlowsLedgers!BJ78)*ClassBSwap))+((CashFlowsLedgers!BJ78/(CashFlowsLedgers!BB78+CashFlowsLedgers!BF78+CashFlowsLedgers!BJ78)*SubLoan_Rate))+ServicerFeePercentage+ThirdPartyFeePercentage+InterestCompensationRate-DiscountRate)/12,0),0) -> 0 | BP79: =IFERROR(MAX((DiscountRate-(((CashFlowsLedgers!BB78/(CashFlowsLedgers!BB78+CashFlowsLedgers!BF78+CashFlowsLedgers!BJ78)*ClassASwap))+((CashFlowsLedgers!BF78/(CashFlowsLedgers!BB78+CashFlowsLedgers!BF78+CashFlowsLedgers!BJ78)*ClassBSwap))+((CashFlowsLedgers!BJ78/(CashFlowsLedgers!BB78+CashFlowsLedgers!BF78+CashFlowsLedgers!BJ78)*SubLoan_Rate))+ServicerFeePercentage+ThirdPartyFeePercentage+InterestCompensationRate))/12,0),0) -> 0 | BT79: 0 | BV79: 0 | BW79: 0 | BX79: 0 | BY79: 1 | BZ79: 0.9927306704 | CA79: 0.5563258504 | CB79: 0.443029356 | CC79: 0.3718756346 | CD79: 0.276972281 | CF79: 0 | CG79: 0 | CH79: 0 | CI79: 13.14379256 | CJ79: 1857.276385 | CK79: 4319.119642 | CL79: 9956.073519 | CM79: 0 | CN79: 0 | CO79: 16145.61334 | CQ79: 0 | CR79: 0 | CS79: 0 | CT79: 0.0008140782445 | CU79: 0.115032879 | CV79: 0.2675104099 | CW79: 0.6166426329 | CX79: 0 | CY79: 0 | DA79: 0 | DB79: 0 | DC79: 0 | DD79: 0.0008140782445 | DE79: 0.1141966671 | DF79: 0.1488229562 | DG79: 0.2731907886 | DH79: 0 | DI79: 0
A80: 64 | B80: =Timing!$F80 -> 2029-07-25 | C80: =Timing!B80 -> 2029-06-30 | F80: =CashFlowsLedgers!CM79 ->  | G80: =CashFlowsLedgers!CP79 ->  | H80: 0.6690030467 | I80: 0 | J80: 0 | R80: =ROUND(G80*DiscountRate*Timing!I80,2) ->  | W80: 0 | AA80: 0 | AB80: 0 | AE80: =Timing!I80 -> 0.08219178082 | AF80: 0.01 | AI80: 0.0003 | AT80: 0.0519 | AU80: 0.04903 | AV80: 0.05644 | AW80: 0.0494 | AY80: 0 | AZ80: 0 | BA80: 0 | BB80: =MAX(0,BB79+AZ80-BA80+IF(Triggers!BH79,BJ79-BH79-BI79-BK79,0)) -> 0 | BH80: =IF(Triggers!$BH80,MIN(Swap!I80,BB80),0) -> 0 | BI80: =IF(Triggers!$BH80,MIN(Swap!Q80,BB80-BH80),0) -> 0 | BJ80: =IF(CashFlowsLedgers!$C80="End",NA(),IF(CashFlowsLedgers!$D80,0,IF(CashFlowsLedgers!$C80="Post-Foreclosure",PostForeclosure!BR80,PreForeclosure!CG80))) ->  | BK80: =IF(CashFlowsLedgers!BB79+CashFlowsLedgers!BF79<0.01,BB80-BH80-BI80+BJ80,0) ->  | BO80: =IFERROR(MAX((((CashFlowsLedgers!BB79/(CashFlowsLedgers!BB79+CashFlowsLedgers!BF79+CashFlowsLedgers!BJ79)*ClassASwap))+((CashFlowsLedgers!BF79/(CashFlowsLedgers!BB79+CashFlowsLedgers!BF79+CashFlowsLedgers!BJ79)*ClassBSwap))+((CashFlowsLedgers!BJ79/(CashFlowsLedgers!BB79+CashFlowsLedgers!BF79+CashFlowsLedgers!BJ79)*SubLoan_Rate))+ServicerFeePercentage+ThirdPartyFeePercentage+InterestCompensationRate-DiscountRate)/12,0),0) -> 0 | BP80: =IFERROR(MAX((DiscountRate-(((CashFlowsLedgers!BB79/(CashFlowsLedgers!BB79+CashFlowsLedgers!BF79+CashFlowsLedgers!BJ79)*ClassASwap))+((CashFlowsLedgers!BF79/(CashFlowsLedgers!BB79+CashFlowsLedgers!BF79+CashFlowsLedgers!BJ79)*ClassBSwap))+((CashFlowsLedgers!BJ79/(CashFlowsLedgers!BB79+CashFlowsLedgers!BF79+CashFlowsLedgers!BJ79)*SubLoan_Rate))+ServicerFeePercentage+ThirdPartyFeePercentage+InterestCompensationRate))/12,0),0) -> 0 | BT80: 0 | BV80: 0 | BW80: 0 | BX80: 0 | BY80: 0 | BZ80: 1 | CA80: 0.9927306704 | CB80: 0.5563258504 | CC80: 0.443029356 | CD80: 0.3718756346 | CF80: 0 | CG80: 0 | CH80: 0 | CI80: 0 | CJ80: 13.50115414 | CK80: 1916.281734 | CL80: 5545.240679 | CM80: 0 | CN80: 0 | CO80: 7475.023568 | CQ80: 0 | CR80: 0 | CS80: 0 | CT80: 0 | CU80: 0.001806168772 | CV80: 0.2563579522 | CW80: 0.7418358791 | CX80: 0 | CY80: 0 | DA80: 0 | DB80: 0 | DC80: 0 | DD80: 0 | DE80: 0.001806168772 | DF80: 0.2544944017 | DG80: 0.4127024762 | DH80: 0 | DI80: 0
A81: 65 | B81: =Timing!$F81 -> 2029-08-28 | C81: =Timing!B81 -> 2029-07-31 | F81: =CashFlowsLedgers!CM80 ->  | G81: =CashFlowsLedgers!CP80 ->  | H81: =SUM(DA81:DI81) -> 0.9927715976 | I81: 0 | J81: 0 | M81: =ROUND(MIN(G81-K81,G81*H81),2) ->  | N81: =ROUND(MIN(G81-K81-M81,(G81-M81)*(1-(1-I81)^(1/12))),2) ->  | P81: =SUM(M81:N81) ->  | Q81: =ROUND(G81-K81-M81-N81,2) ->  | R81: =ROUND(G81*DiscountRate*Timing!I81,2) ->  | W81: 0 | AA81: 0 | AB81: 0 | AE81: =Timing!I81 -> 0.09315068493 | AF81: =ServicerFeePercentage -> 0.01 | AG81: =G81*AF81*AE81 ->  | AI81: =ThirdPartyFeePercentage -> 0.0003 | AJ81: =G81*AI81*AE81 ->  | AO81: =AG81 ->  | AT81: 0.0519 | AU81: =ClassASwap -> 0.04903 | AV81: =ClassBSwap -> 0.05644 | AW81: =AT81-0.25% -> 0.0494 | AY81: 0 | AZ81: 0 | BA81: 0 | BB81: =MAX(0,BB80+AZ81-BA81+IF(Triggers!BH80,BJ80-BH80-BI80-BK80,0)) -> 0 | BH81: =IF(Triggers!$BH81,MIN(Swap!I81,BB81),0) -> 0 | BI81: =IF(Triggers!$BH81,MIN(Swap!Q81,BB81-BH81),0) -> 0 | BJ81: =IF(CashFlowsLedgers!$C81="End",NA(),IF(CashFlowsLedgers!$D81,0,IF(CashFlowsLedgers!$C81="Post-Foreclosure",PostForeclosure!BR81,PreForeclosure!CG81))) ->  | BK81: =IF(CashFlowsLedgers!BB80+CashFlowsLedgers!BF80<0.01,BB81-BH81-BI81+BJ81,0) ->  | BM81: =G81 ->  | BN81: =N81-O81 ->  | BO81: =IFERROR(MAX((((CashFlowsLedgers!BB80/(CashFlowsLedgers!BB80+CashFlowsLedgers!BF80+CashFlowsLedgers!BJ80)*ClassASwap))+((CashFlowsLedgers!BF80/(CashFlowsLedgers!BB80+CashFlowsLedgers!BF80+CashFlowsLedgers!BJ80)*ClassBSwap))+((CashFlowsLedgers!BJ80/(CashFlowsLedgers!BB80+CashFlowsLedgers!BF80+CashFlowsLedgers!BJ80)*SubLoan_Rate))+ServicerFeePercentage+ThirdPartyFeePercentage+InterestCompensationRate-DiscountRate)/12,0),0) -> 0 | BP81: =IFERROR(MAX((DiscountRate-(((CashFlowsLedgers!BB80/(CashFlowsLedgers!BB80+CashFlowsLedgers!BF80+CashFlowsLedgers!BJ80)*ClassASwap))+((CashFlowsLedgers!BF80/(CashFlowsLedgers!BB80+CashFlowsLedgers!BF80+CashFlowsLedgers!BJ80)*ClassBSwap))+((CashFlowsLedgers!BJ80/(CashFlowsLedgers!BB80+CashFlowsLedgers!BF80+CashFlowsLedgers!BJ80)*SubLoan_Rate))+ServicerFeePercentage+ThirdPartyFeePercentage+InterestCompensationRate))/12,0),0) -> 0 | BT81: =1-(1-I81)^(1/12) -> 0 | BV81: =E81 -> 0 | BW81: 0 | BX81: 0 | BY81: 0 | BZ81: 0 | CA81: 1 | CB81: 0.9927306704 | CC81: 0.5563258504 | CD81: 0.443029356 | CF81: 0 | CG81: 0 | CH81: 0 | CI81: 0 | CJ81: 0 | CK81: 13.93008347 | CL81: 2460.279943 | CM81: 0 | CN81: 0 | CO81: =SUM($CF81:$CN81) -> 2474.210027 | CQ81: =IF($CO81>0,CF81/$CO81,0) -> 0 | CR81: 0 | CS81: 0 | CT81: 0 | CU81: 0 | CV81: 0.005630113578 | CW81: 0.9943698864 | CX81: 0 | CY81: 0 | DA81: =CQ81*BV81 -> 0 | DB81: 0 | DC81: 0 | DD81: 0 | DE81: 0 | DF81: 0.005630113578 | DG81: 0.987141484 | DH81: 0 | DI81: 0
A82: 66 | B82: =Timing!$F82 -> 2029-09-25 | C82: =Timing!B82 -> 2029-08-31 | F82: =CashFlowsLedgers!CM81 ->  | G82: =CashFlowsLedgers!CP81 ->  | H82: 1 | I82: 0 | J82: 0 | K82: =ROUND(MIN(G82,G82*(1-(1-J82)^(1/12))),2) ->  | O82: =N82*(1-0.092*MAX(1-A82/60,0)) ->  | R82: =ROUND(G82*DiscountRate*Timing!I82,2) ->  | S82: =ROUND(L82+M82+O82+R82,2) ->  | W82: 0 | Y82: =IF(Q82<0.01,0,(($Y$16+($A82-$CF$15))*(CF82/$CO82))+(($Y$16+($A82-$CG$15))*(CG82/$CO82))+(($Y$16+($A82-$CH$15))*(CH82/$CO82))+(($Y$16+($A82-$CI$15))*(CI82/$CO82))+(($Y$16+($A82-$CJ$15))*(CJ82/$CO82))+(($Y$16+($A82-$CK$15))*(CK82/$CO82))+(($Y$16+($A82-$CL$15))*(CL82/$CO82))+(($Y$16+($A82-$CM$15))*(CM82/$CO82))+(($Y$16+($A82-$CN$15))*(CN82/$CO82))) ->  | AA82: 0 | AB82: 0 | AC82: =IF(Q82<0.01,0,AA82/(G82-AB82)) ->  | AE82: =Timing!I82 -> 0.07671232877 | AF82: 0.01 | AI82: 0.0003 | AM82: =$AJ82/11 ->  | AP82: =MAX(0,AJ82-AM82-AN82)+AK82 ->  | AT82: 0.0519 | AU82: 0.04903 | AV82: 0.05644 | AW82: 0.0494 | AY82: 0 | AZ82: 0 | BA82: =MAX(0,BB81-AY82) -> 0 | BB82: =MAX(0,BB81+AZ82-BA82+IF(Triggers!BH81,BJ81-BH81-BI81-BK81,0)) -> 0 | BH82: =IF(Triggers!$BH82,MIN(Swap!I82,BB82),0) -> 0 | BI82: =IF(Triggers!$BH82,MIN(Swap!Q82,BB82-BH82),0) -> 0 | BJ82: =IF(CashFlowsLedgers!$C82="End",NA(),IF(CashFlowsLedgers!$D82,0,IF(CashFlowsLedgers!$C82="Post-Foreclosure",PostForeclosure!BR82,PreForeclosure!CG82))) ->  | BK82: =IF(CashFlowsLedgers!BB81+CashFlowsLedgers!BF81<0.01,BB82-BH82-BI82+BJ82,0) ->  | BO82: =IFERROR(MAX((((CashFlowsLedgers!BB81/(CashFlowsLedgers!BB81+CashFlowsLedgers!BF81+CashFlowsLedgers!BJ81)*ClassASwap))+((CashFlowsLedgers!BF81/(CashFlowsLedgers!BB81+CashFlowsLedgers!BF81+CashFlowsLedgers!BJ81)*ClassBSwap))+((CashFlowsLedgers!BJ81/(CashFlowsLedgers!BB81+CashFlowsLedgers!BF81+CashFlowsLedgers!BJ81)*SubLoan_Rate))+ServicerFeePercentage+ThirdPartyFeePercentage+InterestCompensationRate-DiscountRate)/12,0),0) -> 0 | BP82: =IFERROR(MAX((DiscountRate-(((CashFlowsLedgers!BB81/(CashFlowsLedgers!BB81+CashFlowsLedgers!BF81+CashFlowsLedgers!BJ81)*ClassASwap))+((CashFlowsLedgers!BF81/(CashFlowsLedgers!BB81+CashFlowsLedgers!BF81+CashFlowsLedgers!BJ81)*ClassBSwap))+((CashFlowsLedgers!BJ81/(CashFlowsLedgers!BB81+CashFlowsLedgers!BF81+CashFlowsLedgers!BJ81)*SubLoan_Rate))+ServicerFeePercentage+ThirdPartyFeePercentage+InterestCompensationRate))/12,0),0) -> 0 | BT82: 0 | BV82: 0 | BW82: 0 | BX82: 0 | BY82: 0 | BZ82: 0 | CA82: 0 | CB82: 1 | CC82: 0.9927306704 | CD82: 0.5563258504 | CF82: 0 | CG82: 0 | CH82: 0 | CI82: 0 | CJ82: 0 | CK82: 0 | CL82: 17.88458573 | CM82: 0 | CN82: 0 | CO82: 17.88458573 | CQ82: 0 | CR82: =IF($CO82>0,CG82/$CO82,0) -> 0 | CS82: 0 | CT82: 0 | CU82: 0 | CV82: 0 | CW82: 1 | CX82: 0 | CY82: 0 | DA82: 0 | DB82: =CR82*BW82 -> 0 | DC82: 0 | DD82: 0 | DE82: 0 | DF82: 0 | DG82: 1 | DH82: 0 | DI82: 0
A83: 67 | B83: =Timing!$F83 -> 2029-10-25 | C83: =Timing!B83 -> 2029-09-30 | F83: =CashFlowsLedgers!CM82 ->  | G83: =CashFlowsLedgers!CP82 ->  | H83: 0 | I83: 0 | J83: 0 | R83: =ROUND(G83*DiscountRate*Timing!I83,2) ->  | W83: 0 | AA83: 0 | AB83: 0 | AE83: =Timing!I83 -> 0.08219178082 | AF83: 0.01 | AI83: 0.0003 | AT83: 0.0519 | AU83: 0.04903 | AV83: 0.05644 | AW83: 0.0494 | AY83: 0 | AZ83: 0 | BA83: 0 | BB83: =MAX(0,BB82+AZ83-BA83+IF(Triggers!BH82,BJ82-BH82-BI82-BK82,0)) -> 0 | BH83: =IF(Triggers!$BH83,MIN(Swap!I83,BB83),0) -> 0 | BI83: =IF(Triggers!$BH83,MIN(Swap!Q83,BB83-BH83),0) -> 0 | BJ83: =IF(CashFlowsLedgers!$C83="End",NA(),IF(CashFlowsLedgers!$D83,0,IF(CashFlowsLedgers!$C83="Post-Foreclosure",PostForeclosure!BR83,PreForeclosure!CG83))) ->  | BK83: =IF(CashFlowsLedgers!BB82+CashFlowsLedgers!BF82<0.01,BB83-BH83-BI83+BJ83,0) ->  | BO83: =IFERROR(MAX((((CashFlowsLedgers!BB82/(CashFlowsLedgers!BB82+CashFlowsLedgers!BF82+CashFlowsLedgers!BJ82)*ClassASwap))+((CashFlowsLedgers!BF82/(CashFlowsLedgers!BB82+CashFlowsLedgers!BF82+CashFlowsLedgers!BJ82)*ClassBSwap))+((CashFlowsLedgers!BJ82/(CashFlowsLedgers!BB82+CashFlowsLedgers!BF82+CashFlowsLedgers!BJ82)*SubLoan_Rate))+ServicerFeePercentage+ThirdPartyFeePercentage+InterestCompensationRate-DiscountRate)/12,0),0) -> 0 | BP83: =IFERROR(MAX((DiscountRate-(((CashFlowsLedgers!BB82/(CashFlowsLedgers!BB82+CashFlowsLedgers!BF82+CashFlowsLedgers!BJ82)*ClassASwap))+((CashFlowsLedgers!BF82/(CashFlowsLedgers!BB82+CashFlowsLedgers!BF82+CashFlowsLedgers!BJ82)*ClassBSwap))+((CashFlowsLedgers!BJ82/(CashFlowsLedgers!BB82+CashFlowsLedgers!BF82+CashFlowsLedgers!BJ82)*SubLoan_Rate))+ServicerFeePercentage+ThirdPartyFeePercentage+InterestCompensationRate))/12,0),0) -> 0 | BT83: 0 | BV83: 0 | BW83: =BV82 -> 0 | BX83: 0 | BY83: 0 | BZ83: 0 | CA83: 0 | CB83: 0 | CC83: 1 | CD83: 0.9927306704 | CF83: =CF82*(1-BV82)*(1-$BT82) -> 0 | CG83: 0 | CH83: 0 | CI83: 0 | CJ83: 0 | CK83: 0 | CL83: 0 | CM83: 0 | CN83: 0 | CO83: 0 | CQ83: 0 | CR83: 0 | CS83: =IF($CO83>0,CH83/$CO83,0) -> 0 | CT83: 0 | CU83: 0 | CV83: 0 | CW83: 0 | CX83: 0 | CY83: 0 | DA83: 0 | DB83: 0 | DC83: =CS83*BX83 -> 0 | DD83: 0 | DE83: 0 | DF83: 0 | DG83: 0 | DH83: 0 | DI83: 0
A84: 68 | B84: =Timing!$F84 -> 2029-11-26 | C84: =Timing!B84 -> 2029-10-31 | F84: =CashFlowsLedgers!CM83 ->  | G84: =CashFlowsLedgers!CP83 ->  | H84: 0 | I84: 0 | J84: 0 | R84: =ROUND(G84*DiscountRate*Timing!I84,2) ->  | W84: 0 | AA84: 0 | AB84: 0 | AE84: =Timing!I84 -> 0.08767123288 | AF84: 0.01 | AI84: 0.0003 | AT84: 0.0519 | AU84: 0.04903 | AV84: 0.05644 | AW84: 0.0494 | AY84: 0 | AZ84: 0 | BA84: 0 | BB84: =MAX(0,BB83+AZ84-BA84+IF(Triggers!BH83,BJ83-BH83-BI83-BK83,0)) -> 0 | BH84: =IF(Triggers!$BH84,MIN(Swap!I84,BB84),0) -> 0 | BI84: =IF(Triggers!$BH84,MIN(Swap!Q84,BB84-BH84),0) -> 0 | BJ84: =IF(CashFlowsLedgers!$C84="End",NA(),IF(CashFlowsLedgers!$D84,0,IF(CashFlowsLedgers!$C84="Post-Foreclosure",PostForeclosure!BR84,PreForeclosure!CG84))) ->  | BK84: =IF(CashFlowsLedgers!BB83+CashFlowsLedgers!BF83<0.01,BB84-BH84-BI84+BJ84,0) ->  | BO84: =IFERROR(MAX((((CashFlowsLedgers!BB83/(CashFlowsLedgers!BB83+CashFlowsLedgers!BF83+CashFlowsLedgers!BJ83)*ClassASwap))+((CashFlowsLedgers!BF83/(CashFlowsLedgers!BB83+CashFlowsLedgers!BF83+CashFlowsLedgers!BJ83)*ClassBSwap))+((CashFlowsLedgers!BJ83/(CashFlowsLedgers!BB83+CashFlowsLedgers!BF83+CashFlowsLedgers!BJ83)*SubLoan_Rate))+ServicerFeePercentage+ThirdPartyFeePercentage+InterestCompensationRate-DiscountRate)/12,0),0) -> 0 | BP84: =IFERROR(MAX((DiscountRate-(((CashFlowsLedgers!BB83/(CashFlowsLedgers!BB83+CashFlowsLedgers!BF83+CashFlowsLedgers!BJ83)*ClassASwap))+((CashFlowsLedgers!BF83/(CashFlowsLedgers!BB83+CashFlowsLedgers!BF83+CashFlowsLedgers!BJ83)*ClassBSwap))+((CashFlowsLedgers!BJ83/(CashFlowsLedgers!BB83+CashFlowsLedgers!BF83+CashFlowsLedgers!BJ83)*SubLoan_Rate))+ServicerFeePercentage+ThirdPartyFeePercentage+InterestCompensationRate))/12,0),0) -> 0 | BT84: 0 | BV84: 0 | BW84: 0 | BX84: 0 | BY84: 0 | BZ84: 0 | CA84: 0 | CB84: 0 | CC84: 0 | CD84: 1 | CF84: 0 | CG84: =CG83*(1-BW83)*(1-$BT83) -> 0 | CH84: 0 | CI84: 0 | CJ84: 0 | CK84: 0 | CL84: 0 | CM84: 0 | CN84: 0 | CO84: 0 | CQ84: 0 | CR84: 0 | CS84: 0 | CT84: =IF($CO84>0,CI84/$CO84,0) -> 0 | CU84: 0 | CV84: 0 | CW84: 0 | CX84: 0 | CY84: 0 | DA84: 0 | DB84: 0 | DC84: 0 | DD84: =CT84*BY84 -> 0 | DE84: 0 | DF84: 0 | DG84: 0 | DH84: 0 | DI84: 0
A85: 69 | B85: =Timing!$F85 -> 2029-12-27 | C85: =Timing!B85 -> 2029-11-30 | F85: =CashFlowsLedgers!CM84 ->  | G85: =CashFlowsLedgers!CP84 ->  | H85: 0 | I85: 0 | J85: 0 | R85: =ROUND(G85*DiscountRate*Timing!I85,2) ->  | W85: 0 | AA85: 0 | AB85: 0 | AE85: =Timing!I85 -> 0.08493150685 | AF85: 0.01 | AI85: 0.0003 | AT85: 0.0519 | AU85: 0.04903 | AV85: 0.05644 | AW85: 0.0494 | AY85: 0 | AZ85: 0 | BA85: 0 | BB85: =MAX(0,BB84+AZ85-BA85+IF(Triggers!BH84,BJ84-BH84-BI84-BK84,0)) -> 0 | BH85: =IF(Triggers!$BH85,MIN(Swap!I85,BB85),0) -> 0 | BI85: =IF(Triggers!$BH85,MIN(Swap!Q85,BB85-BH85),0) -> 0 | BJ85: =IF(CashFlowsLedgers!$C85="End",NA(),IF(CashFlowsLedgers!$D85,0,IF(CashFlowsLedgers!$C85="Post-Foreclosure",PostForeclosure!BR85,PreForeclosure!CG85))) ->  | BK85: =IF(CashFlowsLedgers!BB84+CashFlowsLedgers!BF84<0.01,BB85-BH85-BI85+BJ85,0) ->  | BO85: =IFERROR(MAX((((CashFlowsLedgers!BB84/(CashFlowsLedgers!BB84+CashFlowsLedgers!BF84+CashFlowsLedgers!BJ84)*ClassASwap))+((CashFlowsLedgers!BF84/(CashFlowsLedgers!BB84+CashFlowsLedgers!BF84+CashFlowsLedgers!BJ84)*ClassBSwap))+((CashFlowsLedgers!BJ84/(CashFlowsLedgers!BB84+CashFlowsLedgers!BF84+CashFlowsLedgers!BJ84)*SubLoan_Rate))+ServicerFeePercentage+ThirdPartyFeePercentage+InterestCompensationRate-DiscountRate)/12,0),0) -> 0 | BP85: =IFERROR(MAX((DiscountRate-(((CashFlowsLedgers!BB84/(CashFlowsLedgers!BB84+CashFlowsLedgers!BF84+CashFlowsLedgers!BJ84)*ClassASwap))+((CashFlowsLedgers!BF84/(CashFlowsLedgers!BB84+CashFlowsLedgers!BF84+CashFlowsLedgers!BJ84)*ClassBSwap))+((CashFlowsLedgers!BJ84/(CashFlowsLedgers!BB84+CashFlowsLedgers!BF84+CashFlowsLedgers!BJ84)*SubLoan_Rate))+ServicerFeePercentage+ThirdPartyFeePercentage+InterestCompensationRate))/12,0),0) -> 0 | BT85: 0 | BV85: 0 | BW85: 0 | BX85: 0 | BY85: 0 | BZ85: 0 | CA85: 0 | CB85: 0 | CC85: 0 | CD85: 0 | CF85: 0 | CG85: 0 | CH85: =CH84*(1-BX84)*(1-$BT84) -> 0 | CI85: 0 | CJ85: 0 | CK85: 0 | CL85: 0 | CM85: 0 | CN85: 0 | CO85: 0 | CQ85: 0 | CR85: 0 | CS85: 0 | CT85: 0 | CU85: =IF($CO85>0,CJ85/$CO85,0) -> 0 | CV85: 0 | CW85: 0 | CX85: 0 | CY85: 0 | DA85: 0 | DB85: 0 | DC85: 0 | DD85: 0 | DE85: =CU85*BZ85 -> 0 | DF85: 0 | DG85: 0 | DH85: 0 | DI85: 0
A86: 70 | B86: =Timing!$F86 -> 2030-01-25 | C86: =Timing!B86 -> 2029-12-31 | F86: =CashFlowsLedgers!CM85 ->  | G86: =CashFlowsLedgers!CP85 ->  | H86: 0 | I86: 0 | J86: 0 | R86: =ROUND(G86*DiscountRate*Timing!I86,2) ->  | W86: 0 | AA86: 0 | AB86: 0 | AE86: =Timing!I86 -> 0.07945205479 | AF86: 0.01 | AI86: 0.0003 | AT86: 0.0519 | AU86: 0.04903 | AV86: 0.05644 | AW86: 0.0494 | AY86: 0 | AZ86: 0 | BA86: 0 | BB86: =MAX(0,BB85+AZ86-BA86+IF(Triggers!BH85,BJ85-BH85-BI85-BK85,0)) -> 0 | BH86: =IF(Triggers!$BH86,MIN(Swap!I86,BB86),0) -> 0 | BI86: =IF(Triggers!$BH86,MIN(Swap!Q86,BB86-BH86),0) -> 0 | BJ86: =IF(CashFlowsLedgers!$C86="End",NA(),IF(CashFlowsLedgers!$D86,0,IF(CashFlowsLedgers!$C86="Post-Foreclosure",PostForeclosure!BR86,PreForeclosure!CG86))) ->  | BK86: =IF(CashFlowsLedgers!BB85+CashFlowsLedgers!BF85<0.01,BB86-BH86-BI86+BJ86,0) ->  | BO86: =IFERROR(MAX((((CashFlowsLedgers!BB85/(CashFlowsLedgers!BB85+CashFlowsLedgers!BF85+CashFlowsLedgers!BJ85)*ClassASwap))+((CashFlowsLedgers!BF85/(CashFlowsLedgers!BB85+CashFlowsLedgers!BF85+CashFlowsLedgers!BJ85)*ClassBSwap))+((CashFlowsLedgers!BJ85/(CashFlowsLedgers!BB85+CashFlowsLedgers!BF85+CashFlowsLedgers!BJ85)*SubLoan_Rate))+ServicerFeePercentage+ThirdPartyFeePercentage+InterestCompensationRate-DiscountRate)/12,0),0) -> 0 | BP86: =IFERROR(MAX((DiscountRate-(((CashFlowsLedgers!BB85/(CashFlowsLedgers!BB85+CashFlowsLedgers!BF85+CashFlowsLedgers!BJ85)*ClassASwap))+((CashFlowsLedgers!BF85/(CashFlowsLedgers!BB85+CashFlowsLedgers!BF85+CashFlowsLedgers!BJ85)*ClassBSwap))+((CashFlowsLedgers!BJ85/(CashFlowsLedgers!BB85+CashFlowsLedgers!BF85+CashFlowsLedgers!BJ85)*SubLoan_Rate))+ServicerFeePercentage+ThirdPartyFeePercentage+InterestCompensationRate))/12,0),0) -> 0 | BT86: 0 | BV86: 0 | BW86: 0 | BX86: 0 | BY86: 0 | BZ86: 0 | CA86: 0 | CB86: 0 | CC86: 0 | CD86: 0 | CF86: 0 | CG86: 0 | CH86: 0 | CI86: =CI85*(1-BY85)*(1-$BT85) -> 0 | CJ86: 0 | CK86: 0 | CL86: 0 | CM86: 0 | CN86: 0 | CO86: 0 | CQ86: 0 | CR86: 0 | CS86: 0 | CT86: 0 | CU86: 0 | CV86: =IF($CO86>0,CK86/$CO86,0) -> 0 | CW86: 0 | CX86: 0 | CY86: 0 | DA86: 0 | DB86: 0 | DC86: 0 | DD86: 0 | DE86: 0 | DF86: =CV86*CA86 -> 0 | DG86: 0 | DH86: 0 | DI86: 0
A87: 71 | B87: =Timing!$F87 -> 2030-02-25 | C87: =Timing!B87 -> 2030-01-31 | F87: =CashFlowsLedgers!CM86 ->  | G87: =CashFlowsLedgers!CP86 ->  | H87: 0 | I87: 0 | J87: 0 | L87: =ROUND(SUMPRODUCT(K81:K87,$L$3:$L$9),2) ->  | R87: =ROUND(G87*DiscountRate*Timing!I87,2) ->  | W87: 0 | AA87: 0 | AB87: 0 | AE87: =Timing!I87 -> 0.08493150685 | AF87: 0.01 | AI87: 0.0003 | AT87: 0.0519 | AU87: 0.04903 | AV87: 0.05644 | AW87: 0.0494 | AY87: 0 | AZ87: 0 | BA87: 0 | BB87: =MAX(0,BB86+AZ87-BA87+IF(Triggers!BH86,BJ86-BH86-BI86-BK86,0)) -> 0 | BH87: =IF(Triggers!$BH87,MIN(Swap!I87,BB87),0) -> 0 | BI87: =IF(Triggers!$BH87,MIN(Swap!Q87,BB87-BH87),0) -> 0 | BJ87: =IF(CashFlowsLedgers!$C87="End",NA(),IF(CashFlowsLedgers!$D87,0,IF(CashFlowsLedgers!$C87="Post-Foreclosure",PostForeclosure!BR87,PreForeclosure!CG87))) ->  | BK87: =IF(CashFlowsLedgers!BB86+CashFlowsLedgers!BF86<0.01,BB87-BH87-BI87+BJ87,0) ->  | BO87: =IFERROR(MAX((((CashFlowsLedgers!BB86/(CashFlowsLedgers!BB86+CashFlowsLedgers!BF86+CashFlowsLedgers!BJ86)*ClassASwap))+((CashFlowsLedgers!BF86/(CashFlowsLedgers!BB86+CashFlowsLedgers!BF86+CashFlowsLedgers!BJ86)*ClassBSwap))+((CashFlowsLedgers!BJ86/(CashFlowsLedgers!BB86+CashFlowsLedgers!BF86+CashFlowsLedgers!BJ86)*SubLoan_Rate))+ServicerFeePercentage+ThirdPartyFeePercentage+InterestCompensationRate-DiscountRate)/12,0),0) -> 0 | BP87: =IFERROR(MAX((DiscountRate-(((CashFlowsLedgers!BB86/(CashFlowsLedgers!BB86+CashFlowsLedgers!BF86+CashFlowsLedgers!BJ86)*ClassASwap))+((CashFlowsLedgers!BF86/(CashFlowsLedgers!BB86+CashFlowsLedgers!BF86+CashFlowsLedgers!BJ86)*ClassBSwap))+((CashFlowsLedgers!BJ86/(CashFlowsLedgers!BB86+CashFlowsLedgers!BF86+CashFlowsLedgers!BJ86)*SubLoan_Rate))+ServicerFeePercentage+ThirdPartyFeePercentage+InterestCompensationRate))/12,0),0) -> 0 | BT87: 0 | BV87: 0 | BW87: 0 | BX87: 0 | BY87: 0 | BZ87: 0 | CA87: 0 | CB87: 0 | CC87: 0 | CD87: 0 | CF87: 0 | CG87: 0 | CH87: 0 | CI87: 0 | CJ87: =CJ86*(1-BZ86)*(1-$BT86) -> 0 | CK87: 0 | CL87: 0 | CM87: 0 | CN87: 0 | CO87: 0 | CQ87: 0 | CR87: 0 | CS87: 0 | CT87: 0 | CU87: 0 | CV87: 0 | CW87: =IF($CO87>0,CL87/$CO87,0) -> 0 | CX87: 0 | CY87: 0 | DA87: 0 | DB87: 0 | DC87: 0 | DD87: 0 | DE87: 0 | DF87: 0 | DG87: =CW87*CB87 -> 0 | DH87: 0 | DI87: 0
A88: 72 | B88: =Timing!$F88 -> 2030-03-25 | C88: =Timing!B88 -> 2030-02-28 | F88: =CashFlowsLedgers!CM87 ->  | G88: =CashFlowsLedgers!CP87 ->  | H88: 0 | I88: 0 | J88: 0 | R88: =ROUND(G88*DiscountRate*Timing!I88,2) ->  | W88: 0 | AA88: 0 | AB88: 0 | AE88: =Timing!I88 -> 0.07671232877 | AF88: 0.01 | AI88: 0.0003 | AT88: 0.0519 | AU88: 0.04903 | AV88: 0.05644 | AW88: 0.0494 | AY88: 0 | AZ88: 0 | BA88: 0 | BB88: =MAX(0,BB87+AZ88-BA88+IF(Triggers!BH87,BJ87-BH87-BI87-BK87,0)) -> 0 | BH88: =IF(Triggers!$BH88,MIN(Swap!I88,BB88),0) -> 0 | BI88: =IF(Triggers!$BH88,MIN(Swap!Q88,BB88-BH88),0) -> 0 | BJ88: =IF(CashFlowsLedgers!$C88="End",NA(),IF(CashFlowsLedgers!$D88,0,IF(CashFlowsLedgers!$C88="Post-Foreclosure",PostForeclosure!BR88,PreForeclosure!CG88))) ->  | BK88: =IF(CashFlowsLedgers!BB87+CashFlowsLedgers!BF87<0.01,BB88-BH88-BI88+BJ88,0) ->  | BO88: =IFERROR(MAX((((CashFlowsLedgers!BB87/(CashFlowsLedgers!BB87+CashFlowsLedgers!BF87+CashFlowsLedgers!BJ87)*ClassASwap))+((CashFlowsLedgers!BF87/(CashFlowsLedgers!BB87+CashFlowsLedgers!BF87+CashFlowsLedgers!BJ87)*ClassBSwap))+((CashFlowsLedgers!BJ87/(CashFlowsLedgers!BB87+CashFlowsLedgers!BF87+CashFlowsLedgers!BJ87)*SubLoan_Rate))+ServicerFeePercentage+ThirdPartyFeePercentage+InterestCompensationRate-DiscountRate)/12,0),0) -> 0 | BP88: =IFERROR(MAX((DiscountRate-(((CashFlowsLedgers!BB87/(CashFlowsLedgers!BB87+CashFlowsLedgers!BF87+CashFlowsLedgers!BJ87)*ClassASwap))+((CashFlowsLedgers!BF87/(CashFlowsLedgers!BB87+CashFlowsLedgers!BF87+CashFlowsLedgers!BJ87)*ClassBSwap))+((CashFlowsLedgers!BJ87/(CashFlowsLedgers!BB87+CashFlowsLedgers!BF87+CashFlowsLedgers!BJ87)*SubLoan_Rate))+ServicerFeePercentage+ThirdPartyFeePercentage+InterestCompensationRate))/12,0),0) -> 0 | BT88: 0 | BV88: 0 | BW88: 0 | BX88: 0 | BY88: 0 | BZ88: 0 | CA88: 0 | CB88: =CA87 -> 0 | CC88: 0 | CD88: 0 | CF88: 0 | CG88: 0 | CH88: 0 | CI88: 0 | CJ88: 0 | CK88: =CK87*(1-CA87)*(1-$BT87) -> 0 | CL88: 0 | CM88: 0 | CN88: 0 | CO88: 0 | CQ88: 0 | CR88: 0 | CS88: 0 | CT88: 0 | CU88: 0 | CV88: 0 | CW88: 0 | CX88: =IF($CO88>0,CM88/$CO88,0) -> 0 | CY88: 0 | DA88: 0 | DB88: 0 | DC88: 0 | DD88: 0 | DE88: 0 | DF88: 0 | DG88: 0 | DH88: =CX88*CC88 -> 0 | DI88: 0
A89: 73 | B89: =Timing!$F89 -> 2030-04-25 | C89: =Timing!B89 -> 2030-03-31 | F89: =CashFlowsLedgers!CM88 ->  | G89: =CashFlowsLedgers!CP88 ->  | H89: 0 | I89: 0 | J89: 0 | R89: =ROUND(G89*DiscountRate*Timing!I89,2) ->  | W89: 0 | AA89: 0 | AB89: 0 | AE89: =Timing!I89 -> 0.08493150685 | AF89: 0.01 | AI89: 0.0003 | AT89: 0.0519 | AU89: 0.04903 | AV89: 0.05644 | AW89: 0.0494 | AY89: 0 | AZ89: 0 | BA89: 0 | BB89: =MAX(0,BB88+AZ89-BA89+IF(Triggers!BH88,BJ88-BH88-BI88-BK88,0)) -> 0 | BH89: =IF(Triggers!$BH89,MIN(Swap!I89,BB89),0) -> 0 | BI89: =IF(Triggers!$BH89,MIN(Swap!Q89,BB89-BH89),0) -> 0 | BJ89: =IF(CashFlowsLedgers!$C89="End",NA(),IF(CashFlowsLedgers!$D89,0,IF(CashFlowsLedgers!$C89="Post-Foreclosure",PostForeclosure!BR89,PreForeclosure!CG89))) ->  | BK89: =IF(CashFlowsLedgers!BB88+CashFlowsLedgers!BF88<0.01,BB89-BH89-BI89+BJ89,0) ->  | BO89: =IFERROR(MAX((((CashFlowsLedgers!BB88/(CashFlowsLedgers!BB88+CashFlowsLedgers!BF88+CashFlowsLedgers!BJ88)*ClassASwap))+((CashFlowsLedgers!BF88/(CashFlowsLedgers!BB88+CashFlowsLedgers!BF88+CashFlowsLedgers!BJ88)*ClassBSwap))+((CashFlowsLedgers!BJ88/(CashFlowsLedgers!BB88+CashFlowsLedgers!BF88+CashFlowsLedgers!BJ88)*SubLoan_Rate))+ServicerFeePercentage+ThirdPartyFeePercentage+InterestCompensationRate-DiscountRate)/12,0),0) -> 0 | BP89: =IFERROR(MAX((DiscountRate-(((CashFlowsLedgers!BB88/(CashFlowsLedgers!BB88+CashFlowsLedgers!BF88+CashFlowsLedgers!BJ88)*ClassASwap))+((CashFlowsLedgers!BF88/(CashFlowsLedgers!BB88+CashFlowsLedgers!BF88+CashFlowsLedgers!BJ88)*ClassBSwap))+((CashFlowsLedgers!BJ88/(CashFlowsLedgers!BB88+CashFlowsLedgers!BF88+CashFlowsLedgers!BJ88)*SubLoan_Rate))+ServicerFeePercentage+ThirdPartyFeePercentage+InterestCompensationRate))/12,0),0) -> 0 | BT89: 0 | BV89: 0 | BW89: 0 | BX89: 0 | BY89: 0 | BZ89: 0 | CA89: 0 | CB89: 0 | CC89: 0 | CD89: 0 | CF89: 0 | CG89: 0 | CH89: 0 | CI89: 0 | CJ89: 0 | CK89: 0 | CL89: =CL88*(1-CB88)*(1-$BT88) -> 0 | CM89: 0 | CN89: 0 | CO89: 0 | CQ89: 0 | CR89: 0 | CS89: 0 | CT89: 0 | CU89: 0 | CV89: 0 | CW89: 0 | CX89: 0 | CY89: =IF($CO89>0,CN89/$CO89,0) -> 0 | DA89: 0 | DB89: 0 | DC89: 0 | DD89: 0 | DE89: 0 | DF89: 0 | DG89: 0 | DH89: 0 | DI89: =CY89*CD89 -> 0
A90: 74 | B90: =Timing!$F90 -> 2030-05-28 | C90: =Timing!B90 -> 2030-04-30 | F90: =CashFlowsLedgers!CM89 ->  | G90: =CashFlowsLedgers!CP89 ->  | H90: 0 | I90: 0 | J90: 0 | R90: =ROUND(G90*DiscountRate*Timing!I90,2) ->  | W90: 0 | AA90: 0 | AB90: 0 | AE90: =Timing!I90 -> 0.0904109589 | AF90: 0.01 | AI90: 0.0003 | AT90: 0.0519 | AU90: 0.04903 | AV90: 0.05644 | AW90: 0.0494 | AY90: 0 | AZ90: 0 | BA90: 0 | BB90: =MAX(0,BB89+AZ90-BA90+IF(Triggers!BH89,BJ89-BH89-BI89-BK89,0)) -> 0 | BH90: =IF(Triggers!$BH90,MIN(Swap!I90,BB90),0) -> 0 | BI90: =IF(Triggers!$BH90,MIN(Swap!Q90,BB90-BH90),0) -> 0 | BJ90: =IF(CashFlowsLedgers!$C90="End",NA(),IF(CashFlowsLedgers!$D90,0,IF(CashFlowsLedgers!$C90="Post-Foreclosure",PostForeclosure!BR90,PreForeclosure!CG90))) ->  | BK90: =IF(CashFlowsLedgers!BB89+CashFlowsLedgers!BF89<0.01,BB90-BH90-BI90+BJ90,0) ->  | BO90: =IFERROR(MAX((((CashFlowsLedgers!BB89/(CashFlowsLedgers!BB89+CashFlowsLedgers!BF89+CashFlowsLedgers!BJ89)*ClassASwap))+((CashFlowsLedgers!BF89/(CashFlowsLedgers!BB89+CashFlowsLedgers!BF89+CashFlowsLedgers!BJ89)*ClassBSwap))+((CashFlowsLedgers!BJ89/(CashFlowsLedgers!BB89+CashFlowsLedgers!BF89+CashFlowsLedgers!BJ89)*SubLoan_Rate))+ServicerFeePercentage+ThirdPartyFeePercentage+InterestCompensationRate-DiscountRate)/12,0),0) -> 0 | BP90: =IFERROR(MAX((DiscountRate-(((CashFlowsLedgers!BB89/(CashFlowsLedgers!BB89+CashFlowsLedgers!BF89+CashFlowsLedgers!BJ89)*ClassASwap))+((CashFlowsLedgers!BF89/(CashFlowsLedgers!BB89+CashFlowsLedgers!BF89+CashFlowsLedgers!BJ89)*ClassBSwap))+((CashFlowsLedgers!BJ89/(CashFlowsLedgers!BB89+CashFlowsLedgers!BF89+CashFlowsLedgers!BJ89)*SubLoan_Rate))+ServicerFeePercentage+ThirdPartyFeePercentage+InterestCompensationRate))/12,0),0) -> 0 | BT90: 0 | BV90: 0 | BW90: 0 | BX90: 0 | BY90: 0 | BZ90: 0 | CA90: 0 | CB90: 0 | CC90: 0 | CD90: 0 | CF90: 0 | CG90: 0 | CH90: 0 | CI90: 0 | CJ90: 0 | CK90: 0 | CL90: 0 | CM90: =CM89*(1-CC89)*(1-$BT89) -> 0 | CN90: 0 | CO90: 0 | CQ90: 0 | CR90: 0 | CS90: 0 | CT90: 0 | CU90: 0 | CV90: 0 | CW90: 0 | CX90: 0 | CY90: 0 | DA90: 0 | DB90: 0 | DC90: 0 | DD90: 0 | DE90: 0 | DF90: 0 | DG90: 0 | DH90: 0 | DI90: 0
A91: 75 | B91: =Timing!$F91 -> 2030-06-25 | C91: =Timing!B91 -> 2030-05-31 | F91: =CashFlowsLedgers!CM90 ->  | G91: =CashFlowsLedgers!CP90 ->  | H91: 0 | I91: 0 | J91: 0 | R91: =ROUND(G91*DiscountRate*Timing!I91,2) ->  | W91: 0 | AA91: 0 | AB91: 0 | AE91: =Timing!I91 -> 0.07671232877 | AF91: 0.01 | AI91: 0.0003 | AT91: 0.0519 | AU91: 0.04903 | AV91: 0.05644 | AW91: 0.0494 | AY91: 0 | AZ91: 0 | BA91: 0 | BB91: =MAX(0,BB90+AZ91-BA91+IF(Triggers!BH90,BJ90-BH90-BI90-BK90,0)) -> 0 | BH91: =IF(Triggers!$BH91,MIN(Swap!I91,BB91),0) -> 0 | BI91: =IF(Triggers!$BH91,MIN(Swap!Q91,BB91-BH91),0) -> 0 | BJ91: =IF(CashFlowsLedgers!$C91="End",NA(),IF(CashFlowsLedgers!$D91,0,IF(CashFlowsLedgers!$C91="Post-Foreclosure",PostForeclosure!BR91,PreForeclosure!CG91))) ->  | BK91: =IF(CashFlowsLedgers!BB90+CashFlowsLedgers!BF90<0.01,BB91-BH91-BI91+BJ91,0) ->  | BO91: =IFERROR(MAX((((CashFlowsLedgers!BB90/(CashFlowsLedgers!BB90+CashFlowsLedgers!BF90+CashFlowsLedgers!BJ90)*ClassASwap))+((CashFlowsLedgers!BF90/(CashFlowsLedgers!BB90+CashFlowsLedgers!BF90+CashFlowsLedgers!BJ90)*ClassBSwap))+((CashFlowsLedgers!BJ90/(CashFlowsLedgers!BB90+CashFlowsLedgers!BF90+CashFlowsLedgers!BJ90)*SubLoan_Rate))+ServicerFeePercentage+ThirdPartyFeePercentage+InterestCompensationRate-DiscountRate)/12,0),0) -> 0 | BP91: =IFERROR(MAX((DiscountRate-(((CashFlowsLedgers!BB90/(CashFlowsLedgers!BB90+CashFlowsLedgers!BF90+CashFlowsLedgers!BJ90)*ClassASwap))+((CashFlowsLedgers!BF90/(CashFlowsLedgers!BB90+CashFlowsLedgers!BF90+CashFlowsLedgers!BJ90)*ClassBSwap))+((CashFlowsLedgers!BJ90/(CashFlowsLedgers!BB90+CashFlowsLedgers!BF90+CashFlowsLedgers!BJ90)*SubLoan_Rate))+ServicerFeePercentage+ThirdPartyFeePercentage+InterestCompensationRate))/12,0),0) -> 0 | BT91: 0 | BV91: 0 | BW91: 0 | BX91: 0 | BY91: 0 | BZ91: 0 | CA91: 0 | CB91: 0 | CC91: 0 | CD91: 0 | CF91: 0 | CG91: 0 | CH91: 0 | CI91: 0 | CJ91: 0 | CK91: 0 | CL91: 0 | CM91: 0 | CN91: =CN90*(1-CD90)*(1-$BT90) -> 0 | CO91: 0 | CQ91: 0 | CR91: 0 | CS91: 0 | CT91: 0 | CU91: 0 | CV91: 0 | CW91: 0 | CX91: 0 | CY91: 0 | DA91: 0 | DB91: 0 | DC91: 0 | DD91: 0 | DE91: 0 | DF91: 0 | DG91: 0 | DH91: 0 | DI91: 0
A92: 76 | B92: =Timing!$F92 -> 2030-07-25 | C92: =Timing!B92 -> 2030-06-30 | F92: =CashFlowsLedgers!CM91 ->  | G92: =CashFlowsLedgers!CP91 ->  | H92: 0 | I92: 0 | J92: 0 | R92: =ROUND(G92*DiscountRate*Timing!I92,2) ->  | W92: 0 | AA92: 0 | AB92: 0 | AE92: =Timing!I92 -> 0.08219178082 | AF92: 0.01 | AI92: 0.0003 | AT92: 0.0519 | AU92: 0.04903 | AV92: 0.05644 | AW92: 0.0494 | AY92: 0 | AZ92: 0 | BA92: 0 | BB92: =MAX(0,BB91+AZ92-BA92+IF(Triggers!BH91,BJ91-BH91-BI91-BK91,0)) -> 0 | BH92: =IF(Triggers!$BH92,MIN(Swap!I92,BB92),0) -> 0 | BI92: =IF(Triggers!$BH92,MIN(Swap!Q92,BB92-BH92),0) -> 0 | BJ92: =IF(CashFlowsLedgers!$C92="End",NA(),IF(CashFlowsLedgers!$D92,0,IF(CashFlowsLedgers!$C92="Post-Foreclosure",PostForeclosure!BR92,PreForeclosure!CG92))) ->  | BK92: =IF(CashFlowsLedgers!BB91+CashFlowsLedgers!BF91<0.01,BB92-BH92-BI92+BJ92,0) ->  | BO92: =IFERROR(MAX((((CashFlowsLedgers!BB91/(CashFlowsLedgers!BB91+CashFlowsLedgers!BF91+CashFlowsLedgers!BJ91)*ClassASwap))+((CashFlowsLedgers!BF91/(CashFlowsLedgers!BB91+CashFlowsLedgers!BF91+CashFlowsLedgers!BJ91)*ClassBSwap))+((CashFlowsLedgers!BJ91/(CashFlowsLedgers!BB91+CashFlowsLedgers!BF91+CashFlowsLedgers!BJ91)*SubLoan_Rate))+ServicerFeePercentage+ThirdPartyFeePercentage+InterestCompensationRate-DiscountRate)/12,0),0) -> 0 | BP92: =IFERROR(MAX((DiscountRate-(((CashFlowsLedgers!BB91/(CashFlowsLedgers!BB91+CashFlowsLedgers!BF91+CashFlowsLedgers!BJ91)*ClassASwap))+((CashFlowsLedgers!BF91/(CashFlowsLedgers!BB91+CashFlowsLedgers!BF91+CashFlowsLedgers!BJ91)*ClassBSwap))+((CashFlowsLedgers!BJ91/(CashFlowsLedgers!BB91+CashFlowsLedgers!BF91+CashFlowsLedgers!BJ91)*SubLoan_Rate))+ServicerFeePercentage+ThirdPartyFeePercentage+InterestCompensationRate))/12,0),0) -> 0 | BT92: 0 | BV92: 0 | BW92: 0 | BX92: 0 | BY92: 0 | BZ92: 0 | CA92: 0 | CB92: =CA91 -> 0 | CC92: 0 | CD92: 0 | CF92: 0 | CG92: 0 | CH92: 0 | CI92: 0 | CJ92: 0 | CK92: 0 | CL92: 0 | CM92: 0 | CN92: 0 | CO92: 0 | CQ92: 0 | CR92: 0 | CS92: 0 | CT92: 0 | CU92: 0 | CV92: 0 | CW92: 0 | CX92: 0 | CY92: 0 | DA92: 0 | DB92: 0 | DC92: 0 | DD92: 0 | DE92: 0 | DF92: 0 | DG92: 0 | DH92: 0 | DI92: 0
A93: 77 | B93: =Timing!$F93 -> 2030-08-27 | C93: =Timing!B93 -> 2030-07-31 | F93: =CashFlowsLedgers!CM92 ->  | G93: =CashFlowsLedgers!CP92 ->  | H93: 0 | I93: 0 | J93: 0 | R93: =ROUND(G93*DiscountRate*Timing!I93,2) ->  | W93: 0 | AA93: 0 | AB93: 0 | AE93: =Timing!I93 -> 0.0904109589 | AF93: 0.01 | AI93: 0.0003 | AT93: 0.0519 | AU93: 0.04903 | AV93: 0.05644 | AW93: 0.0494 | AY93: 0 | AZ93: 0 | BA93: 0 | BB93: =MAX(0,BB92+AZ93-BA93+IF(Triggers!BH92,BJ92-BH92-BI92-BK92,0)) -> 0 | BH93: =IF(Triggers!$BH93,MIN(Swap!I93,BB93),0) -> 0 | BI93: =IF(Triggers!$BH93,MIN(Swap!Q93,BB93-BH93),0) -> 0 | BJ93: =IF(CashFlowsLedgers!$C93="End",NA(),IF(CashFlowsLedgers!$D93,0,IF(CashFlowsLedgers!$C93="Post-Foreclosure",PostForeclosure!BR93,PreForeclosure!CG93))) ->  | BK93: =IF(CashFlowsLedgers!BB92+CashFlowsLedgers!BF92<0.01,BB93-BH93-BI93+BJ93,0) ->  | BO93: =IFERROR(MAX((((CashFlowsLedgers!BB92/(CashFlowsLedgers!BB92+CashFlowsLedgers!BF92+CashFlowsLedgers!BJ92)*ClassASwap))+((CashFlowsLedgers!BF92/(CashFlowsLedgers!BB92+CashFlowsLedgers!BF92+CashFlowsLedgers!BJ92)*ClassBSwap))+((CashFlowsLedgers!BJ92/(CashFlowsLedgers!BB92+CashFlowsLedgers!BF92+CashFlowsLedgers!BJ92)*SubLoan_Rate))+ServicerFeePercentage+ThirdPartyFeePercentage+InterestCompensationRate-DiscountRate)/12,0),0) -> 0 | BP93: =IFERROR(MAX((DiscountRate-(((CashFlowsLedgers!BB92/(CashFlowsLedgers!BB92+CashFlowsLedgers!BF92+CashFlowsLedgers!BJ92)*ClassASwap))+((CashFlowsLedgers!BF92/(CashFlowsLedgers!BB92+CashFlowsLedgers!BF92+CashFlowsLedgers!BJ92)*ClassBSwap))+((CashFlowsLedgers!BJ92/(CashFlowsLedgers!BB92+CashFlowsLedgers!BF92+CashFlowsLedgers!BJ92)*SubLoan_Rate))+ServicerFeePercentage+ThirdPartyFeePercentage+InterestCompensationRate))/12,0),0) -> 0 | BT93: 0 | BV93: 0 | BW93: 0 | BX93: 0 | BY93: 0 | BZ93: 0 | CA93: 0 | CB93: 0 | CC93: 0 | CD93: 0 | CF93: 0 | CG93: 0 | CH93: 0 | CI93: 0 | CJ93: 0 | CK93: 0 | CL93: 0 | CM93: 0 | CN93: 0 | CO93: 0 | CQ93: 0 | CR93: 0 | CS93: 0 | CT93: 0 | CU93: 0 | CV93: 0 | CW93: 0 | CX93: 0 | CY93: 0 | DA93: 0 | DB93: 0 | DC93: 0 | DD93: 0 | DE93: 0 | DF93: 0 | DG93: 0 | DH93: 0 | DI93: 0
A94: 78 | B94: =Timing!$F94 -> 2030-09-25 | C94: =Timing!B94 -> 2030-08-31 | F94: =CashFlowsLedgers!CM93 ->  | G94: =CashFlowsLedgers!CP93 ->  | H94: 0 | I94: 0 | J94: 0 | R94: =ROUND(G94*DiscountRate*Timing!I94,2) ->  | W94: 0 | AA94: 0 | AB94: 0 | AE94: =Timing!I94 -> 0.07945205479 | AF94: 0.01 | AI94: 0.0003 | AT94: 0.0519 | AU94: 0.04903 | AV94: 0.05644 | AW94: 0.0494 | AY94: 0 | AZ94: 0 | BA94: 0 | BB94: =MAX(0,BB93+AZ94-BA94+IF(Triggers!BH93,BJ93-BH93-BI93-BK93,0)) -> 0 | BH94: =IF(Triggers!$BH94,MIN(Swap!I94,BB94),0) -> 0 | BI94: =IF(Triggers!$BH94,MIN(Swap!Q94,BB94-BH94),0) -> 0 | BJ94: =IF(CashFlowsLedgers!$C94="End",NA(),IF(CashFlowsLedgers!$D94,0,IF(CashFlowsLedgers!$C94="Post-Foreclosure",PostForeclosure!BR94,PreForeclosure!CG94))) ->  | BK94: =IF(CashFlowsLedgers!BB93+CashFlowsLedgers!BF93<0.01,BB94-BH94-BI94+BJ94,0) ->  | BO94: =IFERROR(MAX((((CashFlowsLedgers!BB93/(CashFlowsLedgers!BB93+CashFlowsLedgers!BF93+CashFlowsLedgers!BJ93)*ClassASwap))+((CashFlowsLedgers!BF93/(CashFlowsLedgers!BB93+CashFlowsLedgers!BF93+CashFlowsLedgers!BJ93)*ClassBSwap))+((CashFlowsLedgers!BJ93/(CashFlowsLedgers!BB93+CashFlowsLedgers!BF93+CashFlowsLedgers!BJ93)*SubLoan_Rate))+ServicerFeePercentage+ThirdPartyFeePercentage+InterestCompensationRate-DiscountRate)/12,0),0) -> 0 | BP94: =IFERROR(MAX((DiscountRate-(((CashFlowsLedgers!BB93/(CashFlowsLedgers!BB93+CashFlowsLedgers!BF93+CashFlowsLedgers!BJ93)*ClassASwap))+((CashFlowsLedgers!BF93/(CashFlowsLedgers!BB93+CashFlowsLedgers!BF93+CashFlowsLedgers!BJ93)*ClassBSwap))+((CashFlowsLedgers!BJ93/(CashFlowsLedgers!BB93+CashFlowsLedgers!BF93+CashFlowsLedgers!BJ93)*SubLoan_Rate))+ServicerFeePercentage+ThirdPartyFeePercentage+InterestCompensationRate))/12,0),0) -> 0 | BT94: 0 | BV94: 0 | BW94: 0 | BX94: 0 | BY94: 0 | BZ94: 0 | CA94: 0 | CB94: 0 | CC94: 0 | CD94: 0 | CF94: 0 | CG94: 0 | CH94: 0 | CI94: 0 | CJ94: 0 | CK94: 0 | CL94: 0 | CM94: 0 | CN94: 0 | CO94: 0 | CQ94: 0 | CR94: 0 | CS94: 0 | CT94: 0 | CU94: 0 | CV94: 0 | CW94: 0 | CX94: 0 | CY94: 0 | DA94: 0 | DB94: 0 | DC94: 0 | DD94: 0 | DE94: 0 | DF94: 0 | DG94: 0 | DH94: 0 | DI94: 0
A95: 79 | B95: =Timing!$F95 -> 2030-10-25 | C95: =Timing!B95 -> 2030-09-30 | F95: =CashFlowsLedgers!CM94 ->  | G95: =CashFlowsLedgers!CP94 ->  | H95: 0 | I95: 0 | J95: 0 | R95: =ROUND(G95*DiscountRate*Timing!I95,2) ->  | W95: 0 | AA95: 0 | AB95: 0 | AE95: =Timing!I95 -> 0.08219178082 | AF95: 0.01 | AI95: 0.0003 | AT95: 0.0519 | AU95: 0.04903 | AV95: 0.05644 | AW95: 0.0494 | AY95: 0 | AZ95: 0 | BA95: 0 | BB95: =MAX(0,BB94+AZ95-BA95+IF(Triggers!BH94,BJ94-BH94-BI94-BK94,0)) -> 0 | BH95: =IF(Triggers!$BH95,MIN(Swap!I95,BB95),0) -> 0 | BI95: =IF(Triggers!$BH95,MIN(Swap!Q95,BB95-BH95),0) -> 0 | BJ95: =IF(CashFlowsLedgers!$C95="End",NA(),IF(CashFlowsLedgers!$D95,0,IF(CashFlowsLedgers!$C95="Post-Foreclosure",PostForeclosure!BR95,PreForeclosure!CG95))) ->  | BK95: =IF(CashFlowsLedgers!BB94+CashFlowsLedgers!BF94<0.01,BB95-BH95-BI95+BJ95,0) ->  | BO95: =IFERROR(MAX((((CashFlowsLedgers!BB94/(CashFlowsLedgers!BB94+CashFlowsLedgers!BF94+CashFlowsLedgers!BJ94)*ClassASwap))+((CashFlowsLedgers!BF94/(CashFlowsLedgers!BB94+CashFlowsLedgers!BF94+CashFlowsLedgers!BJ94)*ClassBSwap))+((CashFlowsLedgers!BJ94/(CashFlowsLedgers!BB94+CashFlowsLedgers!BF94+CashFlowsLedgers!BJ94)*SubLoan_Rate))+ServicerFeePercentage+ThirdPartyFeePercentage+InterestCompensationRate-DiscountRate)/12,0),0) -> 0 | BP95: =IFERROR(MAX((DiscountRate-(((CashFlowsLedgers!BB94/(CashFlowsLedgers!BB94+CashFlowsLedgers!BF94+CashFlowsLedgers!BJ94)*ClassASwap))+((CashFlowsLedgers!BF94/(CashFlowsLedgers!BB94+CashFlowsLedgers!BF94+CashFlowsLedgers!BJ94)*ClassBSwap))+((CashFlowsLedgers!BJ94/(CashFlowsLedgers!BB94+CashFlowsLedgers!BF94+CashFlowsLedgers!BJ94)*SubLoan_Rate))+ServicerFeePercentage+ThirdPartyFeePercentage+InterestCompensationRate))/12,0),0) -> 0 | BT95: 0 | BV95: 0 | BW95: 0 | BX95: 0 | BY95: 0 | BZ95: 0 | CA95: 0 | CB95: 0 | CC95: 0 | CD95: 0 | CF95: 0 | CG95: 0 | CH95: 0 | CI95: 0 | CJ95: 0 | CK95: 0 | CL95: 0 | CM95: 0 | CN95: 0 | CO95: 0 | CQ95: 0 | CR95: 0 | CS95: 0 | CT95: 0 | CU95: 0 | CV95: 0 | CW95: 0 | CX95: 0 | CY95: 0 | DA95: 0 | DB95: 0 | DC95: 0 | DD95: 0 | DE95: 0 | DF95: 0 | DG95: 0 | DH95: 0 | DI95: 0
A96: 80 | B96: =Timing!$F96 -> 2030-11-25 | C96: =Timing!B96 -> 2030-10-31 | F96: =CashFlowsLedgers!CM95 ->  | G96: =CashFlowsLedgers!CP95 ->  | H96: 0 | I96: 0 | J96: 0 | R96: =ROUND(G96*DiscountRate*Timing!I96,2) ->  | W96: 0 | AA96: 0 | AB96: 0 | AE96: =Timing!I96 -> 0.08493150685 | AF96: 0.01 | AI96: 0.0003 | AT96: 0.0519 | AU96: 0.04903 | AV96: 0.05644 | AW96: 0.0494 | AY96: 0 | AZ96: 0 | BA96: 0 | BB96: =MAX(0,BB95+AZ96-BA96+IF(Triggers!BH95,BJ95-BH95-BI95-BK95,0)) -> 0 | BH96: =IF(Triggers!$BH96,MIN(Swap!I96,BB96),0) -> 0 | BI96: =IF(Triggers!$BH96,MIN(Swap!Q96,BB96-BH96),0) -> 0 | BJ96: =IF(CashFlowsLedgers!$C96="End",NA(),IF(CashFlowsLedgers!$D96,0,IF(CashFlowsLedgers!$C96="Post-Foreclosure",PostForeclosure!BR96,PreForeclosure!CG96))) ->  | BK96: =IF(CashFlowsLedgers!BB95+CashFlowsLedgers!BF95<0.01,BB96-BH96-BI96+BJ96,0) ->  | BO96: =IFERROR(MAX((((CashFlowsLedgers!BB95/(CashFlowsLedgers!BB95+CashFlowsLedgers!BF95+CashFlowsLedgers!BJ95)*ClassASwap))+((CashFlowsLedgers!BF95/(CashFlowsLedgers!BB95+CashFlowsLedgers!BF95+CashFlowsLedgers!BJ95)*ClassBSwap))+((CashFlowsLedgers!BJ95/(CashFlowsLedgers!BB95+CashFlowsLedgers!BF95+CashFlowsLedgers!BJ95)*SubLoan_Rate))+ServicerFeePercentage+ThirdPartyFeePercentage+InterestCompensationRate-DiscountRate)/12,0),0) -> 0 | BP96: =IFERROR(MAX((DiscountRate-(((CashFlowsLedgers!BB95/(CashFlowsLedgers!BB95+CashFlowsLedgers!BF95+CashFlowsLedgers!BJ95)*ClassASwap))+((CashFlowsLedgers!BF95/(CashFlowsLedgers!BB95+CashFlowsLedgers!BF95+CashFlowsLedgers!BJ95)*ClassBSwap))+((CashFlowsLedgers!BJ95/(CashFlowsLedgers!BB95+CashFlowsLedgers!BF95+CashFlowsLedgers!BJ95)*SubLoan_Rate))+ServicerFeePercentage+ThirdPartyFeePercentage+InterestCompensationRate))/12,0),0) -> 0 | BT96: 0 | BV96: 0 | BW96: 0 | BX96: 0 | BY96: 0 | BZ96: 0 | CA96: 0 | CB96: 0 | CC96: 0 | CD96: 0 | CF96: 0 | CG96: 0 | CH96: 0 | CI96: 0 | CJ96: 0 | CK96: 0 | CL96: 0 | CM96: 0 | CN96: 0 | CO96: 0 | CQ96: 0 | CR96: 0 | CS96: 0 | CT96: 0 | CU96: 0 | CV96: 0 | CW96: 0 | CX96: 0 | CY96: 0 | DA96: 0 | DB96: 0 | DC96: 0 | DD96: 0 | DE96: 0 | DF96: 0 | DG96: 0 | DH96: 0 | DI96: 0
A97: 81 | B97: =Timing!$F97 -> 2030-12-27 | C97: =Timing!B97 -> 2030-11-30 | F97: =CashFlowsLedgers!CM96 ->  | G97: =CashFlowsLedgers!CP96 ->  | H97: 0 | I97: 0 | J97: 0 | R97: =ROUND(G97*DiscountRate*Timing!I97,2) ->  | W97: 0 | AA97: 0 | AB97: 0 | AE97: =Timing!I97 -> 0.08767123288 | AF97: 0.01 | AI97: 0.0003 | AT97: 0.0519 | AU97: 0.04903 | AV97: 0.05644 | AW97: 0.0494 | AY97: 0 | AZ97: 0 | BA97: 0 | BB97: =MAX(0,BB96+AZ97-BA97+IF(Triggers!BH96,BJ96-BH96-BI96-BK96,0)) -> 0 | BH97: =IF(Triggers!$BH97,MIN(Swap!I97,BB97),0) -> 0 | BI97: =IF(Triggers!$BH97,MIN(Swap!Q97,BB97-BH97),0) -> 0 | BJ97: =IF(CashFlowsLedgers!$C97="End",NA(),IF(CashFlowsLedgers!$D97,0,IF(CashFlowsLedgers!$C97="Post-Foreclosure",PostForeclosure!BR97,PreForeclosure!CG97))) ->  | BK97: =IF(CashFlowsLedgers!BB96+CashFlowsLedgers!BF96<0.01,BB97-BH97-BI97+BJ97,0) ->  | BO97: =IFERROR(MAX((((CashFlowsLedgers!BB96/(CashFlowsLedgers!BB96+CashFlowsLedgers!BF96+CashFlowsLedgers!BJ96)*ClassASwap))+((CashFlowsLedgers!BF96/(CashFlowsLedgers!BB96+CashFlowsLedgers!BF96+CashFlowsLedgers!BJ96)*ClassBSwap))+((CashFlowsLedgers!BJ96/(CashFlowsLedgers!BB96+CashFlowsLedgers!BF96+CashFlowsLedgers!BJ96)*SubLoan_Rate))+ServicerFeePercentage+ThirdPartyFeePercentage+InterestCompensationRate-DiscountRate)/12,0),0) -> 0 | BP97: =IFERROR(MAX((DiscountRate-(((CashFlowsLedgers!BB96/(CashFlowsLedgers!BB96+CashFlowsLedgers!BF96+CashFlowsLedgers!BJ96)*ClassASwap))+((CashFlowsLedgers!BF96/(CashFlowsLedgers!BB96+CashFlowsLedgers!BF96+CashFlowsLedgers!BJ96)*ClassBSwap))+((CashFlowsLedgers!BJ96/(CashFlowsLedgers!BB96+CashFlowsLedgers!BF96+CashFlowsLedgers!BJ96)*SubLoan_Rate))+ServicerFeePercentage+ThirdPartyFeePercentage+InterestCompensationRate))/12,0),0) -> 0 | BT97: 0 | BV97: 0 | BW97: 0 | BX97: 0 | BY97: 0 | BZ97: 0 | CA97: 0 | CB97: 0 | CC97: 0 | CD97: 0 | CF97: 0 | CG97: 0 | CH97: 0 | CI97: 0 | CJ97: 0 | CK97: 0 | CL97: 0 | CM97: 0 | CN97: 0 | CO97: 0 | CQ97: 0 | CR97: 0 | CS97: 0 | CT97: 0 | CU97: 0 | CV97: 0 | CW97: 0 | CX97: 0 | CY97: 0 | DA97: 0 | DB97: 0 | DC97: 0 | DD97: 0 | DE97: 0 | DF97: 0 | DG97: 0 | DH97: 0 | DI97: 0
A98: 82 | B98: =Timing!$F98 -> 2031-01-27 | C98: =Timing!B98 -> 2030-12-31 | F98: =CashFlowsLedgers!CM97 ->  | G98: =CashFlowsLedgers!CP97 ->  | H98: 0 | I98: 0 | J98: 0 | R98: =ROUND(G98*DiscountRate*Timing!I98,2) ->  | W98: 0 | AA98: 0 | AB98: 0 | AE98: =Timing!I98 -> 0.08493150685 | AF98: 0.01 | AI98: 0.0003 | AT98: 0.0519 | AU98: 0.04903 | AV98: 0.05644 | AW98: 0.0494 | AY98: 0 | AZ98: 0 | BA98: 0 | BB98: =MAX(0,BB97+AZ98-BA98+IF(Triggers!BH97,BJ97-BH97-BI97-BK97,0)) -> 0 | BH98: =IF(Triggers!$BH98,MIN(Swap!I98,BB98),0) -> 0 | BI98: =IF(Triggers!$BH98,MIN(Swap!Q98,BB98-BH98),0) -> 0 | BJ98: =IF(CashFlowsLedgers!$C98="End",NA(),IF(CashFlowsLedgers!$D98,0,IF(CashFlowsLedgers!$C98="Post-Foreclosure",PostForeclosure!BR98,PreForeclosure!CG98))) ->  | BK98: =IF(CashFlowsLedgers!BB97+CashFlowsLedgers!BF97<0.01,BB98-BH98-BI98+BJ98,0) ->  | BO98: =IFERROR(MAX((((CashFlowsLedgers!BB97/(CashFlowsLedgers!BB97+CashFlowsLedgers!BF97+CashFlowsLedgers!BJ97)*ClassASwap))+((CashFlowsLedgers!BF97/(CashFlowsLedgers!BB97+CashFlowsLedgers!BF97+CashFlowsLedgers!BJ97)*ClassBSwap))+((CashFlowsLedgers!BJ97/(CashFlowsLedgers!BB97+CashFlowsLedgers!BF97+CashFlowsLedgers!BJ97)*SubLoan_Rate))+ServicerFeePercentage+ThirdPartyFeePercentage+InterestCompensationRate-DiscountRate)/12,0),0) -> 0 | BP98: =IFERROR(MAX((DiscountRate-(((CashFlowsLedgers!BB97/(CashFlowsLedgers!BB97+CashFlowsLedgers!BF97+CashFlowsLedgers!BJ97)*ClassASwap))+((CashFlowsLedgers!BF97/(CashFlowsLedgers!BB97+CashFlowsLedgers!BF97+CashFlowsLedgers!BJ97)*ClassBSwap))+((CashFlowsLedgers!BJ97/(CashFlowsLedgers!BB97+CashFlowsLedgers!BF97+CashFlowsLedgers!BJ97)*SubLoan_Rate))+ServicerFeePercentage+ThirdPartyFeePercentage+InterestCompensationRate))/12,0),0) -> 0 | BT98: 0 | BV98: 0 | BW98: 0 | BX98: 0 | BY98: 0 | BZ98: 0 | CA98: 0 | CB98: 0 | CC98: 0 | CD98: 0 | CF98: 0 | CG98: 0 | CH98: 0 | CI98: 0 | CJ98: 0 | CK98: 0 | CL98: 0 | CM98: 0 | CN98: 0 | CO98: 0 | CQ98: 0 | CR98: 0 | CS98: 0 | CT98: 0 | CU98: 0 | CV98: 0 | CW98: 0 | CX98: 0 | CY98: 0 | DA98: 0 | DB98: 0 | DC98: 0 | DD98: 0 | DE98: 0 | DF98: 0 | DG98: 0 | DH98: 0 | DI98: 0
A99: 83 | B99: =Timing!$F99 -> 2031-02-25 | C99: =Timing!B99 -> 2031-01-31 | F99: =CashFlowsLedgers!CM98 ->  | G99: =CashFlowsLedgers!CP98 ->  | H99: 0 | I99: 0 | J99: 0 | R99: =ROUND(G99*DiscountRate*Timing!I99,2) ->  | W99: 0 | AA99: 0 | AB99: 0 | AE99: =Timing!I99 -> 0.07945205479 | AF99: 0.01 | AI99: 0.0003 | AT99: 0.0519 | AU99: 0.04903 | AV99: 0.05644 | AW99: 0.0494 | AY99: 0 | AZ99: 0 | BA99: 0 | BB99: =MAX(0,BB98+AZ99-BA99+IF(Triggers!BH98,BJ98-BH98-BI98-BK98,0)) -> 0 | BH99: =IF(Triggers!$BH99,MIN(Swap!I99,BB99),0) -> 0 | BI99: =IF(Triggers!$BH99,MIN(Swap!Q99,BB99-BH99),0) -> 0 | BJ99: =IF(CashFlowsLedgers!$C99="End",NA(),IF(CashFlowsLedgers!$D99,0,IF(CashFlowsLedgers!$C99="Post-Foreclosure",PostForeclosure!BR99,PreForeclosure!CG99))) ->  | BK99: =IF(CashFlowsLedgers!BB98+CashFlowsLedgers!BF98<0.01,BB99-BH99-BI99+BJ99,0) ->  | BO99: =IFERROR(MAX((((CashFlowsLedgers!BB98/(CashFlowsLedgers!BB98+CashFlowsLedgers!BF98+CashFlowsLedgers!BJ98)*ClassASwap))+((CashFlowsLedgers!BF98/(CashFlowsLedgers!BB98+CashFlowsLedgers!BF98+CashFlowsLedgers!BJ98)*ClassBSwap))+((CashFlowsLedgers!BJ98/(CashFlowsLedgers!BB98+CashFlowsLedgers!BF98+CashFlowsLedgers!BJ98)*SubLoan_Rate))+ServicerFeePercentage+ThirdPartyFeePercentage+InterestCompensationRate-DiscountRate)/12,0),0) -> 0 | BP99: =IFERROR(MAX((DiscountRate-(((CashFlowsLedgers!BB98/(CashFlowsLedgers!BB98+CashFlowsLedgers!BF98+CashFlowsLedgers!BJ98)*ClassASwap))+((CashFlowsLedgers!BF98/(CashFlowsLedgers!BB98+CashFlowsLedgers!BF98+CashFlowsLedgers!BJ98)*ClassBSwap))+((CashFlowsLedgers!BJ98/(CashFlowsLedgers!BB98+CashFlowsLedgers!BF98+CashFlowsLedgers!BJ98)*SubLoan_Rate))+ServicerFeePercentage+ThirdPartyFeePercentage+InterestCompensationRate))/12,0),0) -> 0 | BT99: 0 | BV99: 0 | BW99: 0 | BX99: 0 | BY99: 0 | BZ99: 0 | CA99: 0 | CB99: 0 | CC99: 0 | CD99: 0 | CF99: 0 | CG99: 0 | CH99: 0 | CI99: 0 | CJ99: 0 | CK99: 0 | CL99: 0 | CM99: 0 | CN99: 0 | CO99: 0 | CQ99: 0 | CR99: 0 | CS99: 0 | CT99: 0 | CU99: 0 | CV99: 0 | CW99: 0 | CX99: 0 | CY99: 0 | DA99: 0 | DB99: 0 | DC99: 0 | DD99: 0 | DE99: 0 | DF99: 0 | DG99: 0 | DH99: 0 | DI99: 0
A100: 84 | B100: =Timing!$F100 -> 2031-03-25 | C100: =Timing!B100 -> 2031-02-28 | F100: =CashFlowsLedgers!CM99 ->  | G100: =CashFlowsLedgers!CP99 ->  | H100: 0 | I100: 0 | J100: 0 | R100: =ROUND(G100*DiscountRate*Timing!I100,2) ->  | W100: 0 | AA100: 0 | AB100: 0 | AE100: =Timing!I100 -> 0.07671232877 | AF100: 0.01 | AI100: 0.0003 | AT100: 0.0519 | AU100: 0.04903 | AV100: 0.05644 | AW100: 0.0494 | AY100: 0 | AZ100: 0 | BA100: 0 | BB100: =MAX(0,BB99+AZ100-BA100+IF(Triggers!BH99,BJ99-BH99-BI99-BK99,0)) -> 0 | BH100: =IF(Triggers!$BH100,MIN(Swap!I100,BB100),0) -> 0 | BI100: =IF(Triggers!$BH100,MIN(Swap!Q100,BB100-BH100),0) -> 0 | BJ100: =IF(CashFlowsLedgers!$C100="End",NA(),IF(CashFlowsLedgers!$D100,0,IF(CashFlowsLedgers!$C100="Post-Foreclosure",PostForeclosure!BR100,PreForeclosure!CG100))) ->  | BK100: =IF(CashFlowsLedgers!BB99+CashFlowsLedgers!BF99<0.01,BB100-BH100-BI100+BJ100,0) ->  | BO100: =IFERROR(MAX((((CashFlowsLedgers!BB99/(CashFlowsLedgers!BB99+CashFlowsLedgers!BF99+CashFlowsLedgers!BJ99)*ClassASwap))+((CashFlowsLedgers!BF99/(CashFlowsLedgers!BB99+CashFlowsLedgers!BF99+CashFlowsLedgers!BJ99)*ClassBSwap))+((CashFlowsLedgers!BJ99/(CashFlowsLedgers!BB99+CashFlowsLedgers!BF99+CashFlowsLedgers!BJ99)*SubLoan_Rate))+ServicerFeePercentage+ThirdPartyFeePercentage+InterestCompensationRate-DiscountRate)/12,0),0) -> 0 | BP100: =IFERROR(MAX((DiscountRate-(((CashFlowsLedgers!BB99/(CashFlowsLedgers!BB99+CashFlowsLedgers!BF99+CashFlowsLedgers!BJ99)*ClassASwap))+((CashFlowsLedgers!BF99/(CashFlowsLedgers!BB99+CashFlowsLedgers!BF99+CashFlowsLedgers!BJ99)*ClassBSwap))+((CashFlowsLedgers!BJ99/(CashFlowsLedgers!BB99+CashFlowsLedgers!BF99+CashFlowsLedgers!BJ99)*SubLoan_Rate))+ServicerFeePercentage+ThirdPartyFeePercentage+InterestCompensationRate))/12,0),0) -> 0 | BT100: 0 | BV100: 0 | BW100: 0 | BX100: 0 | BY100: 0 | BZ100: 0 | CA100: 0 | CB100: 0 | CC100: 0 | CD100: 0 | CF100: 0 | CG100: 0 | CH100: 0 | CI100: 0 | CJ100: 0 | CK100: 0 | CL100: 0 | CM100: 0 | CN100: 0 | CO100: 0 | CQ100: 0 | CR100: 0 | CS100: 0 | CT100: 0 | CU100: 0 | CV100: 0 | CW100: 0 | CX100: 0 | CY100: 0 | DA100: 0 | DB100: 0 | DC100: 0 | DD100: 0 | DE100: 0 | DF100: 0 | DG100: 0 | DH100: 0 | DI100: 0
A101: 85 | B101: =Timing!$F101 -> 2031-04-25 | C101: =Timing!B101 -> 2031-03-31 | F101: =CashFlowsLedgers!CM100 ->  | G101: =CashFlowsLedgers!CP100 ->  | H101: 0 | I101: 0 | J101: 0 | R101: =ROUND(G101*DiscountRate*Timing!I101,2) ->  | W101: 0 | AA101: 0 | AB101: 0 | AE101: =Timing!I101 -> 0.08493150685 | AF101: 0.01 | AI101: 0.0003 | AT101: 0.0519 | AU101: 0.04903 | AV101: 0.05644 | AW101: 0.0494 | AY101: 0 | AZ101: 0 | BA101: 0 | BB101: =MAX(0,BB100+AZ101-BA101+IF(Triggers!BH100,BJ100-BH100-BI100-BK100,0)) -> 0 | BH101: =IF(Triggers!$BH101,MIN(Swap!I101,BB101),0) -> 0 | BI101: =IF(Triggers!$BH101,MIN(Swap!Q101,BB101-BH101),0) -> 0 | BJ101: =IF(CashFlowsLedgers!$C101="End",NA(),IF(CashFlowsLedgers!$D101,0,IF(CashFlowsLedgers!$C101="Post-Foreclosure",PostForeclosure!BR101,PreForeclosure!CG101))) ->  | BK101: =IF(CashFlowsLedgers!BB100+CashFlowsLedgers!BF100<0.01,BB101-BH101-BI101+BJ101,0) ->  | BO101: =IFERROR(MAX((((CashFlowsLedgers!BB100/(CashFlowsLedgers!BB100+CashFlowsLedgers!BF100+CashFlowsLedgers!BJ100)*ClassASwap))+((CashFlowsLedgers!BF100/(CashFlowsLedgers!BB100+CashFlowsLedgers!BF100+CashFlowsLedgers!BJ100)*ClassBSwap))+((CashFlowsLedgers!BJ100/(CashFlowsLedgers!BB100+CashFlowsLedgers!BF100+CashFlowsLedgers!BJ100)*SubLoan_Rate))+ServicerFeePercentage+ThirdPartyFeePercentage+InterestCompensationRate-DiscountRate)/12,0),0) -> 0 | BP101: =IFERROR(MAX((DiscountRate-(((CashFlowsLedgers!BB100/(CashFlowsLedgers!BB100+CashFlowsLedgers!BF100+CashFlowsLedgers!BJ100)*ClassASwap))+((CashFlowsLedgers!BF100/(CashFlowsLedgers!BB100+CashFlowsLedgers!BF100+CashFlowsLedgers!BJ100)*ClassBSwap))+((CashFlowsLedgers!BJ100/(CashFlowsLedgers!BB100+CashFlowsLedgers!BF100+CashFlowsLedgers!BJ100)*SubLoan_Rate))+ServicerFeePercentage+ThirdPartyFeePercentage+InterestCompensationRate))/12,0),0) -> 0 | BT101: 0 | BV101: 0 | BW101: 0 | BX101: 0 | BY101: 0 | BZ101: 0 | CA101: 0 | CB101: 0 | CC101: 0 | CD101: 0 | CF101: 0 | CG101: 0 | CH101: 0 | CI101: 0 | CJ101: 0 | CK101: 0 | CL101: 0 | CM101: 0 | CN101: 0 | CO101: 0 | CQ101: 0 | CR101: 0 | CS101: 0 | CT101: 0 | CU101: 0 | CV101: 0 | CW101: 0 | CX101: 0 | CY101: 0 | DA101: 0 | DB101: 0 | DC101: 0 | DD101: 0 | DE101: 0 | DF101: 0 | DG101: 0 | DH101: 0 | DI101: 0
A102: 86 | B102: =Timing!$F102 -> 2031-05-27 | C102: =Timing!B102 -> 2031-04-30 | F102: =CashFlowsLedgers!CM101 ->  | G102: =CashFlowsLedgers!CP101 ->  | H102: 0 | I102: 0 | J102: 0 | R102: =ROUND(G102*DiscountRate*Timing!I102,2) ->  | W102: 0 | AA102: 0 | AB102: 0 | AE102: =Timing!I102 -> 0.08767123288 | AF102: 0.01 | AI102: 0.0003 | AT102: 0.0519 | AU102: 0.04903 | AV102: 0.05644 | AW102: 0.0494 | AY102: 0 | AZ102: 0 | BA102: 0 | BB102: =MAX(0,BB101+AZ102-BA102+IF(Triggers!BH101,BJ101-BH101-BI101-BK101,0)) -> 0 | BH102: =IF(Triggers!$BH102,MIN(Swap!I102,BB102),0) -> 0 | BI102: =IF(Triggers!$BH102,MIN(Swap!Q102,BB102-BH102),0) -> 0 | BJ102: =IF(CashFlowsLedgers!$C102="End",NA(),IF(CashFlowsLedgers!$D102,0,IF(CashFlowsLedgers!$C102="Post-Foreclosure",PostForeclosure!BR102,PreForeclosure!CG102))) ->  | BK102: =IF(CashFlowsLedgers!BB101+CashFlowsLedgers!BF101<0.01,BB102-BH102-BI102+BJ102,0) ->  | BO102: =IFERROR(MAX((((CashFlowsLedgers!BB101/(CashFlowsLedgers!BB101+CashFlowsLedgers!BF101+CashFlowsLedgers!BJ101)*ClassASwap))+((CashFlowsLedgers!BF101/(CashFlowsLedgers!BB101+CashFlowsLedgers!BF101+CashFlowsLedgers!BJ101)*ClassBSwap))+((CashFlowsLedgers!BJ101/(CashFlowsLedgers!BB101+CashFlowsLedgers!BF101+CashFlowsLedgers!BJ101)*SubLoan_Rate))+ServicerFeePercentage+ThirdPartyFeePercentage+InterestCompensationRate-DiscountRate)/12,0),0) -> 0 | BP102: =IFERROR(MAX((DiscountRate-(((CashFlowsLedgers!BB101/(CashFlowsLedgers!BB101+CashFlowsLedgers!BF101+CashFlowsLedgers!BJ101)*ClassASwap))+((CashFlowsLedgers!BF101/(CashFlowsLedgers!BB101+CashFlowsLedgers!BF101+CashFlowsLedgers!BJ101)*ClassBSwap))+((CashFlowsLedgers!BJ101/(CashFlowsLedgers!BB101+CashFlowsLedgers!BF101+CashFlowsLedgers!BJ101)*SubLoan_Rate))+ServicerFeePercentage+ThirdPartyFeePercentage+InterestCompensationRate))/12,0),0) -> 0 | BT102: 0 | BV102: 0 | BW102: 0 | BX102: 0 | BY102: 0 | BZ102: 0 | CA102: 0 | CB102: 0 | CC102: 0 | CD102: 0 | CF102: 0 | CG102: 0 | CH102: 0 | CI102: 0 | CJ102: 0 | CK102: 0 | CL102: 0 | CM102: 0 | CN102: 0 | CO102: 0 | CQ102: 0 | CR102: 0 | CS102: 0 | CT102: 0 | CU102: 0 | CV102: 0 | CW102: 0 | CX102: 0 | CY102: 0 | DA102: 0 | DB102: 0 | DC102: 0 | DD102: 0 | DE102: 0 | DF102: 0 | DG102: 0 | DH102: 0 | DI102: 0
A103: 87 | B103: =Timing!$F103 -> 2031-06-25 | C103: =Timing!B103 -> 2031-05-31 | F103: =CashFlowsLedgers!CM102 ->  | G103: =CashFlowsLedgers!CP102 ->  | H103: 0 | I103: 0 | J103: 0 | R103: =ROUND(G103*DiscountRate*Timing!I103,2) ->  | W103: 0 | AA103: 0 | AB103: 0 | AE103: =Timing!I103 -> 0.07945205479 | AF103: 0.01 | AI103: 0.0003 | AT103: 0.0519 | AU103: 0.04903 | AV103: 0.05644 | AW103: 0.0494 | AY103: 0 | AZ103: 0 | BA103: 0 | BB103: =MAX(0,BB102+AZ103-BA103+IF(Triggers!BH102,BJ102-BH102-BI102-BK102,0)) -> 0 | BH103: =IF(Triggers!$BH103,MIN(Swap!I103,BB103),0) -> 0 | BI103: =IF(Triggers!$BH103,MIN(Swap!Q103,BB103-BH103),0) -> 0 | BJ103: =IF(CashFlowsLedgers!$C103="End",NA(),IF(CashFlowsLedgers!$D103,0,IF(CashFlowsLedgers!$C103="Post-Foreclosure",PostForeclosure!BR103,PreForeclosure!CG103))) ->  | BK103: =IF(CashFlowsLedgers!BB102+CashFlowsLedgers!BF102<0.01,BB103-BH103-BI103+BJ103,0) ->  | BO103: =IFERROR(MAX((((CashFlowsLedgers!BB102/(CashFlowsLedgers!BB102+CashFlowsLedgers!BF102+CashFlowsLedgers!BJ102)*ClassASwap))+((CashFlowsLedgers!BF102/(CashFlowsLedgers!BB102+CashFlowsLedgers!BF102+CashFlowsLedgers!BJ102)*ClassBSwap))+((CashFlowsLedgers!BJ102/(CashFlowsLedgers!BB102+CashFlowsLedgers!BF102+CashFlowsLedgers!BJ102)*SubLoan_Rate))+ServicerFeePercentage+ThirdPartyFeePercentage+InterestCompensationRate-DiscountRate)/12,0),0) -> 0 | BP103: =IFERROR(MAX((DiscountRate-(((CashFlowsLedgers!BB102/(CashFlowsLedgers!BB102+CashFlowsLedgers!BF102+CashFlowsLedgers!BJ102)*ClassASwap))+((CashFlowsLedgers!BF102/(CashFlowsLedgers!BB102+CashFlowsLedgers!BF102+CashFlowsLedgers!BJ102)*ClassBSwap))+((CashFlowsLedgers!BJ102/(CashFlowsLedgers!BB102+CashFlowsLedgers!BF102+CashFlowsLedgers!BJ102)*SubLoan_Rate))+ServicerFeePercentage+ThirdPartyFeePercentage+InterestCompensationRate))/12,0),0) -> 0 | BT103: 0 | BV103: 0 | BW103: 0 | BX103: 0 | BY103: 0 | BZ103: 0 | CA103: 0 | CB103: 0 | CC103: 0 | CD103: 0 | CF103: 0 | CG103: 0 | CH103: 0 | CI103: 0 | CJ103: 0 | CK103: 0 | CL103: 0 | CM103: 0 | CN103: 0 | CO103: 0 | CQ103: 0 | CR103: 0 | CS103: 0 | CT103: 0 | CU103: 0 | CV103: 0 | CW103: 0 | CX103: 0 | CY103: 0 | DA103: 0 | DB103: 0 | DC103: 0 | DD103: 0 | DE103: 0 | DF103: 0 | DG103: 0 | DH103: 0 | DI103: 0
A104: 88 | B104: =Timing!$F104 -> 2031-07-25 | C104: =Timing!B104 -> 2031-06-30 | F104: =CashFlowsLedgers!CM103 ->  | G104: =CashFlowsLedgers!CP103 ->  | H104: 0 | I104: 0 | J104: 0 | R104: =ROUND(G104*DiscountRate*Timing!I104,2) ->  | W104: 0 | AA104: 0 | AB104: 0 | AE104: =Timing!I104 -> 0.08219178082 | AF104: 0.01 | AI104: 0.0003 | AT104: 0.0519 | AU104: 0.04903 | AV104: 0.05644 | AW104: 0.0494 | AY104: 0 | AZ104: 0 | BA104: 0 | BB104: =MAX(0,BB103+AZ104-BA104+IF(Triggers!BH103,BJ103-BH103-BI103-BK103,0)) -> 0 | BH104: =IF(Triggers!$BH104,MIN(Swap!I104,BB104),0) -> 0 | BI104: =IF(Triggers!$BH104,MIN(Swap!Q104,BB104-BH104),0) -> 0 | BJ104: =IF(CashFlowsLedgers!$C104="End",NA(),IF(CashFlowsLedgers!$D104,0,IF(CashFlowsLedgers!$C104="Post-Foreclosure",PostForeclosure!BR104,PreForeclosure!CG104))) ->  | BK104: =IF(CashFlowsLedgers!BB103+CashFlowsLedgers!BF103<0.01,BB104-BH104-BI104+BJ104,0) ->  | BO104: =IFERROR(MAX((((CashFlowsLedgers!BB103/(CashFlowsLedgers!BB103+CashFlowsLedgers!BF103+CashFlowsLedgers!BJ103)*ClassASwap))+((CashFlowsLedgers!BF103/(CashFlowsLedgers!BB103+CashFlowsLedgers!BF103+CashFlowsLedgers!BJ103)*ClassBSwap))+((CashFlowsLedgers!BJ103/(CashFlowsLedgers!BB103+CashFlowsLedgers!BF103+CashFlowsLedgers!BJ103)*SubLoan_Rate))+ServicerFeePercentage+ThirdPartyFeePercentage+InterestCompensationRate-DiscountRate)/12,0),0) -> 0 | BP104: =IFERROR(MAX((DiscountRate-(((CashFlowsLedgers!BB103/(CashFlowsLedgers!BB103+CashFlowsLedgers!BF103+CashFlowsLedgers!BJ103)*ClassASwap))+((CashFlowsLedgers!BF103/(CashFlowsLedgers!BB103+CashFlowsLedgers!BF103+CashFlowsLedgers!BJ103)*ClassBSwap))+((CashFlowsLedgers!BJ103/(CashFlowsLedgers!BB103+CashFlowsLedgers!BF103+CashFlowsLedgers!BJ103)*SubLoan_Rate))+ServicerFeePercentage+ThirdPartyFeePercentage+InterestCompensationRate))/12,0),0) -> 0 | BT104: 0 | BV104: 0 | BW104: 0 | BX104: 0 | BY104: 0 | BZ104: 0 | CA104: 0 | CB104: 0 | CC104: 0 | CD104: 0 | CF104: 0 | CG104: 0 | CH104: 0 | CI104: 0 | CJ104: 0 | CK104: 0 | CL104: 0 | CM104: 0 | CN104: 0 | CO104: 0 | CQ104: 0 | CR104: 0 | CS104: 0 | CT104: 0 | CU104: 0 | CV104: 0 | CW104: 0 | CX104: 0 | CY104: 0 | DA104: 0 | DB104: 0 | DC104: 0 | DD104: 0 | DE104: 0 | DF104: 0 | DG104: 0 | DH104: 0 | DI104: 0
A105: 89 | B105: =Timing!$F105 -> 2031-08-26 | C105: =Timing!B105 -> 2031-07-31 | F105: =CashFlowsLedgers!CM104 ->  | G105: =CashFlowsLedgers!CP104 ->  | H105: 0 | I105: 0 | J105: 0 | R105: =ROUND(G105*DiscountRate*Timing!I105,2) ->  | W105: 0 | AA105: 0 | AB105: 0 | AE105: =Timing!I105 -> 0.08767123288 | AF105: 0.01 | AI105: 0.0003 | AT105: 0.0519 | AU105: 0.04903 | AV105: 0.05644 | AW105: 0.0494 | AY105: 0 | AZ105: 0 | BA105: 0 | BB105: =MAX(0,BB104+AZ105-BA105+IF(Triggers!BH104,BJ104-BH104-BI104-BK104,0)) -> 0 | BH105: =IF(Triggers!$BH105,MIN(Swap!I105,BB105),0) -> 0 | BI105: =IF(Triggers!$BH105,MIN(Swap!Q105,BB105-BH105),0) -> 0 | BJ105: =IF(CashFlowsLedgers!$C105="End",NA(),IF(CashFlowsLedgers!$D105,0,IF(CashFlowsLedgers!$C105="Post-Foreclosure",PostForeclosure!BR105,PreForeclosure!CG105))) ->  | BK105: =IF(CashFlowsLedgers!BB104+CashFlowsLedgers!BF104<0.01,BB105-BH105-BI105+BJ105,0) ->  | BO105: =IFERROR(MAX((((CashFlowsLedgers!BB104/(CashFlowsLedgers!BB104+CashFlowsLedgers!BF104+CashFlowsLedgers!BJ104)*ClassASwap))+((CashFlowsLedgers!BF104/(CashFlowsLedgers!BB104+CashFlowsLedgers!BF104+CashFlowsLedgers!BJ104)*ClassBSwap))+((CashFlowsLedgers!BJ104/(CashFlowsLedgers!BB104+CashFlowsLedgers!BF104+CashFlowsLedgers!BJ104)*SubLoan_Rate))+ServicerFeePercentage+ThirdPartyFeePercentage+InterestCompensationRate-DiscountRate)/12,0),0) -> 0 | BP105: =IFERROR(MAX((DiscountRate-(((CashFlowsLedgers!BB104/(CashFlowsLedgers!BB104+CashFlowsLedgers!BF104+CashFlowsLedgers!BJ104)*ClassASwap))+((CashFlowsLedgers!BF104/(CashFlowsLedgers!BB104+CashFlowsLedgers!BF104+CashFlowsLedgers!BJ104)*ClassBSwap))+((CashFlowsLedgers!BJ104/(CashFlowsLedgers!BB104+CashFlowsLedgers!BF104+CashFlowsLedgers!BJ104)*SubLoan_Rate))+ServicerFeePercentage+ThirdPartyFeePercentage+InterestCompensationRate))/12,0),0) -> 0 | BT105: 0 | BV105: 0 | BW105: 0 | BX105: 0 | BY105: 0 | BZ105: 0 | CA105: 0 | CB105: 0 | CC105: 0 | CD105: 0 | CF105: 0 | CG105: 0 | CH105: 0 | CI105: 0 | CJ105: 0 | CK105: 0 | CL105: 0 | CM105: 0 | CN105: 0 | CO105: 0 | CQ105: 0 | CR105: 0 | CS105: 0 | CT105: 0 | CU105: 0 | CV105: 0 | CW105: 0 | CX105: 0 | CY105: 0 | DA105: 0 | DB105: 0 | DC105: 0 | DD105: 0 | DE105: 0 | DF105: 0 | DG105: 0 | DH105: 0 | DI105: 0
A106: 90 | B106: =Timing!$F106 -> 2031-09-25 | C106: =Timing!B106 -> 2031-08-31 | F106: =CashFlowsLedgers!CM105 ->  | G106: =CashFlowsLedgers!CP105 ->  | H106: 0 | I106: 0 | J106: 0 | R106: =ROUND(G106*DiscountRate*Timing!I106,2) ->  | W106: 0 | AA106: 0 | AB106: 0 | AE106: =Timing!I106 -> 0.08219178082 | AF106: 0.01 | AI106: 0.0003 | AT106: 0.0519 | AU106: 0.04903 | AV106: 0.05644 | AW106: 0.0494 | AY106: 0 | AZ106: 0 | BA106: 0 | BB106: =MAX(0,BB105+AZ106-BA106+IF(Triggers!BH105,BJ105-BH105-BI105-BK105,0)) -> 0 | BH106: =IF(Triggers!$BH106,MIN(Swap!I106,BB106),0) -> 0 | BI106: =IF(Triggers!$BH106,MIN(Swap!Q106,BB106-BH106),0) -> 0 | BJ106: =IF(CashFlowsLedgers!$C106="End",NA(),IF(CashFlowsLedgers!$D106,0,IF(CashFlowsLedgers!$C106="Post-Foreclosure",PostForeclosure!BR106,PreForeclosure!CG106))) ->  | BK106: =IF(CashFlowsLedgers!BB105+CashFlowsLedgers!BF105<0.01,BB106-BH106-BI106+BJ106,0) ->  | BO106: =IFERROR(MAX((((CashFlowsLedgers!BB105/(CashFlowsLedgers!BB105+CashFlowsLedgers!BF105+CashFlowsLedgers!BJ105)*ClassASwap))+((CashFlowsLedgers!BF105/(CashFlowsLedgers!BB105+CashFlowsLedgers!BF105+CashFlowsLedgers!BJ105)*ClassBSwap))+((CashFlowsLedgers!BJ105/(CashFlowsLedgers!BB105+CashFlowsLedgers!BF105+CashFlowsLedgers!BJ105)*SubLoan_Rate))+ServicerFeePercentage+ThirdPartyFeePercentage+InterestCompensationRate-DiscountRate)/12,0),0) -> 0 | BP106: =IFERROR(MAX((DiscountRate-(((CashFlowsLedgers!BB105/(CashFlowsLedgers!BB105+CashFlowsLedgers!BF105+CashFlowsLedgers!BJ105)*ClassASwap))+((CashFlowsLedgers!BF105/(CashFlowsLedgers!BB105+CashFlowsLedgers!BF105+CashFlowsLedgers!BJ105)*ClassBSwap))+((CashFlowsLedgers!BJ105/(CashFlowsLedgers!BB105+CashFlowsLedgers!BF105+CashFlowsLedgers!BJ105)*SubLoan_Rate))+ServicerFeePercentage+ThirdPartyFeePercentage+InterestCompensationRate))/12,0),0) -> 0 | BT106: 0 | BV106: 0 | BW106: 0 | BX106: 0 | BY106: 0 | BZ106: 0 | CA106: 0 | CB106: 0 | CC106: 0 | CD106: 0 | CF106: 0 | CG106: 0 | CH106: 0 | CI106: 0 | CJ106: 0 | CK106: 0 | CL106: 0 | CM106: 0 | CN106: 0 | CO106: 0 | CQ106: 0 | CR106: 0 | CS106: 0 | CT106: 0 | CU106: 0 | CV106: 0 | CW106: 0 | CX106: 0 | CY106: 0 | DA106: 0 | DB106: 0 | DC106: 0 | DD106: 0 | DE106: 0 | DF106: 0 | DG106: 0 | DH106: 0 | DI106: 0
A107: 91 | B107: =Timing!$F107 -> 2031-10-27 | C107: =Timing!B107 -> 2031-09-30 | F107: =CashFlowsLedgers!CM106 ->  | G107: =CashFlowsLedgers!CP106 ->  | H107: 0 | I107: 0 | J107: 0 | R107: =ROUND(G107*DiscountRate*Timing!I107,2) ->  | W107: 0 | AA107: 0 | AB107: 0 | AE107: =Timing!I107 -> 0.08767123288 | AF107: 0.01 | AI107: 0.0003 | AT107: 0.0519 | AU107: 0.04903 | AV107: 0.05644 | AW107: 0.0494 | AY107: 0 | AZ107: 0 | BA107: 0 | BB107: =MAX(0,BB106+AZ107-BA107+IF(Triggers!BH106,BJ106-BH106-BI106-BK106,0)) -> 0 | BH107: =IF(Triggers!$BH107,MIN(Swap!I107,BB107),0) -> 0 | BI107: =IF(Triggers!$BH107,MIN(Swap!Q107,BB107-BH107),0) -> 0 | BJ107: =IF(CashFlowsLedgers!$C107="End",NA(),IF(CashFlowsLedgers!$D107,0,IF(CashFlowsLedgers!$C107="Post-Foreclosure",PostForeclosure!BR107,PreForeclosure!CG107))) ->  | BK107: =IF(CashFlowsLedgers!BB106+CashFlowsLedgers!BF106<0.01,BB107-BH107-BI107+BJ107,0) ->  | BO107: =IFERROR(MAX((((CashFlowsLedgers!BB106/(CashFlowsLedgers!BB106+CashFlowsLedgers!BF106+CashFlowsLedgers!BJ106)*ClassASwap))+((CashFlowsLedgers!BF106/(CashFlowsLedgers!BB106+CashFlowsLedgers!BF106+CashFlowsLedgers!BJ106)*ClassBSwap))+((CashFlowsLedgers!BJ106/(CashFlowsLedgers!BB106+CashFlowsLedgers!BF106+CashFlowsLedgers!BJ106)*SubLoan_Rate))+ServicerFeePercentage+ThirdPartyFeePercentage+InterestCompensationRate-DiscountRate)/12,0),0) -> 0 | BP107: =IFERROR(MAX((DiscountRate-(((CashFlowsLedgers!BB106/(CashFlowsLedgers!BB106+CashFlowsLedgers!BF106+CashFlowsLedgers!BJ106)*ClassASwap))+((CashFlowsLedgers!BF106/(CashFlowsLedgers!BB106+CashFlowsLedgers!BF106+CashFlowsLedgers!BJ106)*ClassBSwap))+((CashFlowsLedgers!BJ106/(CashFlowsLedgers!BB106+CashFlowsLedgers!BF106+CashFlowsLedgers!BJ106)*SubLoan_Rate))+ServicerFeePercentage+ThirdPartyFeePercentage+InterestCompensationRate))/12,0),0) -> 0 | BT107: 0 | BV107: 0 | BW107: 0 | BX107: 0 | BY107: 0 | BZ107: 0 | CA107: 0 | CB107: 0 | CC107: 0 | CD107: 0 | CF107: 0 | CG107: 0 | CH107: 0 | CI107: 0 | CJ107: 0 | CK107: 0 | CL107: 0 | CM107: 0 | CN107: 0 | CO107: 0 | CQ107: 0 | CR107: 0 | CS107: 0 | CT107: 0 | CU107: 0 | CV107: 0 | CW107: 0 | CX107: 0 | CY107: 0 | DA107: 0 | DB107: 0 | DC107: 0 | DD107: 0 | DE107: 0 | DF107: 0 | DG107: 0 | DH107: 0 | DI107: 0
A108: 92 | B108: =Timing!$F108 -> 2031-11-25 | C108: =Timing!B108 -> 2031-10-31 | F108: =CashFlowsLedgers!CM107 ->  | G108: =CashFlowsLedgers!CP107 ->  | H108: 0 | I108: 0 | J108: 0 | R108: =ROUND(G108*DiscountRate*Timing!I108,2) ->  | W108: 0 | AA108: 0 | AB108: 0 | AE108: =Timing!I108 -> 0.07945205479 | AF108: 0.01 | AI108: 0.0003 | AT108: 0.0519 | AU108: 0.04903 | AV108: 0.05644 | AW108: 0.0494 | AY108: 0 | AZ108: 0 | BA108: 0 | BB108: =MAX(0,BB107+AZ108-BA108+IF(Triggers!BH107,BJ107-BH107-BI107-BK107,0)) -> 0 | BH108: =IF(Triggers!$BH108,MIN(Swap!I108,BB108),0) -> 0 | BI108: =IF(Triggers!$BH108,MIN(Swap!Q108,BB108-BH108),0) -> 0 | BJ108: =IF(CashFlowsLedgers!$C108="End",NA(),IF(CashFlowsLedgers!$D108,0,IF(CashFlowsLedgers!$C108="Post-Foreclosure",PostForeclosure!BR108,PreForeclosure!CG108))) ->  | BK108: =IF(CashFlowsLedgers!BB107+CashFlowsLedgers!BF107<0.01,BB108-BH108-BI108+BJ108,0) ->  | BO108: =IFERROR(MAX((((CashFlowsLedgers!BB107/(CashFlowsLedgers!BB107+CashFlowsLedgers!BF107+CashFlowsLedgers!BJ107)*ClassASwap))+((CashFlowsLedgers!BF107/(CashFlowsLedgers!BB107+CashFlowsLedgers!BF107+CashFlowsLedgers!BJ107)*ClassBSwap))+((CashFlowsLedgers!BJ107/(CashFlowsLedgers!BB107+CashFlowsLedgers!BF107+CashFlowsLedgers!BJ107)*SubLoan_Rate))+ServicerFeePercentage+ThirdPartyFeePercentage+InterestCompensationRate-DiscountRate)/12,0),0) -> 0 | BP108: =IFERROR(MAX((DiscountRate-(((CashFlowsLedgers!BB107/(CashFlowsLedgers!BB107+CashFlowsLedgers!BF107+CashFlowsLedgers!BJ107)*ClassASwap))+((CashFlowsLedgers!BF107/(CashFlowsLedgers!BB107+CashFlowsLedgers!BF107+CashFlowsLedgers!BJ107)*ClassBSwap))+((CashFlowsLedgers!BJ107/(CashFlowsLedgers!BB107+CashFlowsLedgers!BF107+CashFlowsLedgers!BJ107)*SubLoan_Rate))+ServicerFeePercentage+ThirdPartyFeePercentage+InterestCompensationRate))/12,0),0) -> 0 | BT108: 0 | BV108: 0 | BW108: 0 | BX108: 0 | BY108: 0 | BZ108: 0 | CA108: 0 | CB108: 0 | CC108: 0 | CD108: 0 | CF108: 0 | CG108: 0 | CH108: 0 | CI108: 0 | CJ108: 0 | CK108: 0 | CL108: 0 | CM108: 0 | CN108: 0 | CO108: 0 | CQ108: 0 | CR108: 0 | CS108: 0 | CT108: 0 | CU108: 0 | CV108: 0 | CW108: 0 | CX108: 0 | CY108: 0 | DA108: 0 | DB108: 0 | DC108: 0 | DD108: 0 | DE108: 0 | DF108: 0 | DG108: 0 | DH108: 0 | DI108: 0
A109: 93 | B109: =Timing!$F109 -> 2031-12-29 | C109: =Timing!B109 -> 2031-11-30 | F109: =CashFlowsLedgers!CM108 ->  | G109: =CashFlowsLedgers!CP108 ->  | H109: 0 | I109: 0 | J109: 0 | R109: =ROUND(G109*DiscountRate*Timing!I109,2) ->  | W109: 0 | AA109: 0 | AB109: 0 | AE109: =Timing!I109 -> 0.09315068493 | AF109: 0.01 | AI109: 0.0003 | AT109: 0.0519 | AU109: 0.04903 | AV109: 0.05644 | AW109: 0.0494 | AY109: 0 | AZ109: 0 | BA109: 0 | BB109: =MAX(0,BB108+AZ109-BA109+IF(Triggers!BH108,BJ108-BH108-BI108-BK108,0)) -> 0 | BH109: =IF(Triggers!$BH109,MIN(Swap!I109,BB109),0) -> 0 | BI109: =IF(Triggers!$BH109,MIN(Swap!Q109,BB109-BH109),0) -> 0 | BJ109: =IF(CashFlowsLedgers!$C109="End",NA(),IF(CashFlowsLedgers!$D109,0,IF(CashFlowsLedgers!$C109="Post-Foreclosure",PostForeclosure!BR109,PreForeclosure!CG109))) ->  | BK109: =IF(CashFlowsLedgers!BB108+CashFlowsLedgers!BF108<0.01,BB109-BH109-BI109+BJ109,0) ->  | BO109: =IFERROR(MAX((((CashFlowsLedgers!BB108/(CashFlowsLedgers!BB108+CashFlowsLedgers!BF108+CashFlowsLedgers!BJ108)*ClassASwap))+((CashFlowsLedgers!BF108/(CashFlowsLedgers!BB108+CashFlowsLedgers!BF108+CashFlowsLedgers!BJ108)*ClassBSwap))+((CashFlowsLedgers!BJ108/(CashFlowsLedgers!BB108+CashFlowsLedgers!BF108+CashFlowsLedgers!BJ108)*SubLoan_Rate))+ServicerFeePercentage+ThirdPartyFeePercentage+InterestCompensationRate-DiscountRate)/12,0),0) -> 0 | BP109: =IFERROR(MAX((DiscountRate-(((CashFlowsLedgers!BB108/(CashFlowsLedgers!BB108+CashFlowsLedgers!BF108+CashFlowsLedgers!BJ108)*ClassASwap))+((CashFlowsLedgers!BF108/(CashFlowsLedgers!BB108+CashFlowsLedgers!BF108+CashFlowsLedgers!BJ108)*ClassBSwap))+((CashFlowsLedgers!BJ108/(CashFlowsLedgers!BB108+CashFlowsLedgers!BF108+CashFlowsLedgers!BJ108)*SubLoan_Rate))+ServicerFeePercentage+ThirdPartyFeePercentage+InterestCompensationRate))/12,0),0) -> 0 | BT109: 0 | BV109: 0 | BW109: 0 | BX109: 0 | BY109: 0 | BZ109: 0 | CA109: 0 | CB109: 0 | CC109: 0 | CD109: 0 | CF109: 0 | CG109: 0 | CH109: 0 | CI109: 0 | CJ109: 0 | CK109: 0 | CL109: 0 | CM109: 0 | CN109: 0 | CO109: 0 | CQ109: 0 | CR109: 0 | CS109: 0 | CT109: 0 | CU109: 0 | CV109: 0 | CW109: 0 | CX109: 0 | CY109: 0 | DA109: 0 | DB109: 0 | DC109: 0 | DD109: 0 | DE109: 0 | DF109: 0 | DG109: 0 | DH109: 0 | DI109: 0
A110: 94 | B110: =Timing!$F110 -> 2032-01-26 | C110: =Timing!B110 -> 2031-12-31 | F110: =CashFlowsLedgers!CM109 ->  | G110: =CashFlowsLedgers!CP109 ->  | H110: 0 | I110: 0 | J110: 0 | R110: =ROUND(G110*DiscountRate*Timing!I110,2) ->  | W110: 0 | AA110: 0 | AB110: 0 | AE110: =Timing!I110 -> 0.07671232877 | AF110: 0.01 | AI110: 0.0003 | AT110: 0.0519 | AU110: 0.04903 | AV110: 0.05644 | AW110: 0.0494 | AY110: 0 | AZ110: 0 | BA110: 0 | BB110: =MAX(0,BB109+AZ110-BA110+IF(Triggers!BH109,BJ109-BH109-BI109-BK109,0)) -> 0 | BH110: =IF(Triggers!$BH110,MIN(Swap!I110,BB110),0) -> 0 | BI110: =IF(Triggers!$BH110,MIN(Swap!Q110,BB110-BH110),0) -> 0 | BJ110: =IF(CashFlowsLedgers!$C110="End",NA(),IF(CashFlowsLedgers!$D110,0,IF(CashFlowsLedgers!$C110="Post-Foreclosure",PostForeclosure!BR110,PreForeclosure!CG110))) ->  | BK110: =IF(CashFlowsLedgers!BB109+CashFlowsLedgers!BF109<0.01,BB110-BH110-BI110+BJ110,0) ->  | BO110: =IFERROR(MAX((((CashFlowsLedgers!BB109/(CashFlowsLedgers!BB109+CashFlowsLedgers!BF109+CashFlowsLedgers!BJ109)*ClassASwap))+((CashFlowsLedgers!BF109/(CashFlowsLedgers!BB109+CashFlowsLedgers!BF109+CashFlowsLedgers!BJ109)*ClassBSwap))+((CashFlowsLedgers!BJ109/(CashFlowsLedgers!BB109+CashFlowsLedgers!BF109+CashFlowsLedgers!BJ109)*SubLoan_Rate))+ServicerFeePercentage+ThirdPartyFeePercentage+InterestCompensationRate-DiscountRate)/12,0),0) -> 0 | BP110: =IFERROR(MAX((DiscountRate-(((CashFlowsLedgers!BB109/(CashFlowsLedgers!BB109+CashFlowsLedgers!BF109+CashFlowsLedgers!BJ109)*ClassASwap))+((CashFlowsLedgers!BF109/(CashFlowsLedgers!BB109+CashFlowsLedgers!BF109+CashFlowsLedgers!BJ109)*ClassBSwap))+((CashFlowsLedgers!BJ109/(CashFlowsLedgers!BB109+CashFlowsLedgers!BF109+CashFlowsLedgers!BJ109)*SubLoan_Rate))+ServicerFeePercentage+ThirdPartyFeePercentage+InterestCompensationRate))/12,0),0) -> 0 | BT110: 0 | BV110: 0 | BW110: 0 | BX110: 0 | BY110: 0 | BZ110: 0 | CA110: 0 | CB110: 0 | CC110: 0 | CD110: 0 | CF110: 0 | CG110: 0 | CH110: 0 | CI110: 0 | CJ110: 0 | CK110: 0 | CL110: 0 | CM110: 0 | CN110: 0 | CO110: 0 | CQ110: 0 | CR110: 0 | CS110: 0 | CT110: 0 | CU110: 0 | CV110: 0 | CW110: 0 | CX110: 0 | CY110: 0 | DA110: 0 | DB110: 0 | DC110: 0 | DD110: 0 | DE110: 0 | DF110: 0 | DG110: 0 | DH110: 0 | DI110: 0
A111: 95 | B111: =Timing!$F111 -> 2032-02-25 | C111: =Timing!B111 -> 2032-01-31 | F111: =CashFlowsLedgers!CM110 ->  | G111: =CashFlowsLedgers!CP110 ->  | H111: 0 | I111: 0 | J111: 0 | R111: =ROUND(G111*DiscountRate*Timing!I111,2) ->  | W111: 0 | AA111: 0 | AB111: 0 | AE111: =Timing!I111 -> 0.08219178082 | AF111: 0.01 | AI111: 0.0003 | AT111: 0.0519 | AU111: 0.04903 | AV111: 0.05644 | AW111: 0.0494 | AY111: 0 | AZ111: 0 | BA111: 0 | BB111: =MAX(0,BB110+AZ111-BA111+IF(Triggers!BH110,BJ110-BH110-BI110-BK110,0)) -> 0 | BH111: =IF(Triggers!$BH111,MIN(Swap!I111,BB111),0) -> 0 | BI111: =IF(Triggers!$BH111,MIN(Swap!Q111,BB111-BH111),0) -> 0 | BJ111: =IF(CashFlowsLedgers!$C111="End",NA(),IF(CashFlowsLedgers!$D111,0,IF(CashFlowsLedgers!$C111="Post-Foreclosure",PostForeclosure!BR111,PreForeclosure!CG111))) ->  | BK111: =IF(CashFlowsLedgers!BB110+CashFlowsLedgers!BF110<0.01,BB111-BH111-BI111+BJ111,0) ->  | BO111: =IFERROR(MAX((((CashFlowsLedgers!BB110/(CashFlowsLedgers!BB110+CashFlowsLedgers!BF110+CashFlowsLedgers!BJ110)*ClassASwap))+((CashFlowsLedgers!BF110/(CashFlowsLedgers!BB110+CashFlowsLedgers!BF110+CashFlowsLedgers!BJ110)*ClassBSwap))+((CashFlowsLedgers!BJ110/(CashFlowsLedgers!BB110+CashFlowsLedgers!BF110+CashFlowsLedgers!BJ110)*SubLoan_Rate))+ServicerFeePercentage+ThirdPartyFeePercentage+InterestCompensationRate-DiscountRate)/12,0),0) -> 0 | BP111: =IFERROR(MAX((DiscountRate-(((CashFlowsLedgers!BB110/(CashFlowsLedgers!BB110+CashFlowsLedgers!BF110+CashFlowsLedgers!BJ110)*ClassASwap))+((CashFlowsLedgers!BF110/(CashFlowsLedgers!BB110+CashFlowsLedgers!BF110+CashFlowsLedgers!BJ110)*ClassBSwap))+((CashFlowsLedgers!BJ110/(CashFlowsLedgers!BB110+CashFlowsLedgers!BF110+CashFlowsLedgers!BJ110)*SubLoan_Rate))+ServicerFeePercentage+ThirdPartyFeePercentage+InterestCompensationRate))/12,0),0) -> 0 | BT111: 0 | BV111: 0 | BW111: 0 | BX111: 0 | BY111: 0 | BZ111: 0 | CA111: 0 | CB111: 0 | CC111: 0 | CD111: 0 | CF111: 0 | CG111: 0 | CH111: 0 | CI111: 0 | CJ111: 0 | CK111: 0 | CL111: 0 | CM111: 0 | CN111: 0 | CO111: 0 | CQ111: 0 | CR111: 0 | CS111: 0 | CT111: 0 | CU111: 0 | CV111: 0 | CW111: 0 | CX111: 0 | CY111: 0 | DA111: 0 | DB111: 0 | DC111: 0 | DD111: 0 | DE111: 0 | DF111: 0 | DG111: 0 | DH111: 0 | DI111: 0
A112: 96 | B112: =Timing!$F112 -> 2032-03-25 | C112: =Timing!B112 -> 2032-02-29 | F112: =CashFlowsLedgers!CM111 ->  | G112: =CashFlowsLedgers!CP111 ->  | H112: 0 | I112: 0 | J112: 0 | R112: =ROUND(G112*DiscountRate*Timing!I112,2) ->  | W112: 0 | AA112: 0 | AB112: 0 | AE112: =Timing!I112 -> 0.07945205479 | AF112: 0.01 | AI112: 0.0003 | AT112: 0.0519 | AU112: 0.04903 | AV112: 0.05644 | AW112: 0.0494 | AY112: 0 | AZ112: 0 | BA112: 0 | BB112: =MAX(0,BB111+AZ112-BA112+IF(Triggers!BH111,BJ111-BH111-BI111-BK111,0)) -> 0 | BH112: =IF(Triggers!$BH112,MIN(Swap!I112,BB112),0) -> 0 | BI112: =IF(Triggers!$BH112,MIN(Swap!Q112,BB112-BH112),0) -> 0 | BJ112: =IF(CashFlowsLedgers!$C112="End",NA(),IF(CashFlowsLedgers!$D112,0,IF(CashFlowsLedgers!$C112="Post-Foreclosure",PostForeclosure!BR112,PreForeclosure!CG112))) ->  | BK112: =IF(CashFlowsLedgers!BB111+CashFlowsLedgers!BF111<0.01,BB112-BH112-BI112+BJ112,0) ->  | BO112: =IFERROR(MAX((((CashFlowsLedgers!BB111/(CashFlowsLedgers!BB111+CashFlowsLedgers!BF111+CashFlowsLedgers!BJ111)*ClassASwap))+((CashFlowsLedgers!BF111/(CashFlowsLedgers!BB111+CashFlowsLedgers!BF111+CashFlowsLedgers!BJ111)*ClassBSwap))+((CashFlowsLedgers!BJ111/(CashFlowsLedgers!BB111+CashFlowsLedgers!BF111+CashFlowsLedgers!BJ111)*SubLoan_Rate))+ServicerFeePercentage+ThirdPartyFeePercentage+InterestCompensationRate-DiscountRate)/12,0),0) -> 0 | BP112: =IFERROR(MAX((DiscountRate-(((CashFlowsLedgers!BB111/(CashFlowsLedgers!BB111+CashFlowsLedgers!BF111+CashFlowsLedgers!BJ111)*ClassASwap))+((CashFlowsLedgers!BF111/(CashFlowsLedgers!BB111+CashFlowsLedgers!BF111+CashFlowsLedgers!BJ111)*ClassBSwap))+((CashFlowsLedgers!BJ111/(CashFlowsLedgers!BB111+CashFlowsLedgers!BF111+CashFlowsLedgers!BJ111)*SubLoan_Rate))+ServicerFeePercentage+ThirdPartyFeePercentage+InterestCompensationRate))/12,0),0) -> 0 | BT112: 0 | BV112: 0 | BW112: 0 | BX112: 0 | BY112: 0 | BZ112: 0 | CA112: 0 | CB112: 0 | CC112: 0 | CD112: 0 | CF112: 0 | CG112: 0 | CH112: 0 | CI112: 0 | CJ112: 0 | CK112: 0 | CL112: 0 | CM112: 0 | CN112: 0 | CO112: 0 | CQ112: 0 | CR112: 0 | CS112: 0 | CT112: 0 | CU112: 0 | CV112: 0 | CW112: 0 | CX112: 0 | CY112: 0 | DA112: 0 | DB112: 0 | DC112: 0 | DD112: 0 | DE112: 0 | DF112: 0 | DG112: 0 | DH112: 0 | DI112: 0
A113: 97 | B113: =Timing!$F113 -> 2032-04-26 | C113: =Timing!B113 -> 2032-03-31 | F113: =CashFlowsLedgers!CM112 ->  | G113: =CashFlowsLedgers!CP112 ->  | H113: =SUM(DA113:DI113) -> 0 | I113: 0 | J113: 0 | M113: =ROUND(MIN(G113-K113,G113*H113),2) ->  | N113: =ROUND(MIN(G113-K113-M113,(G113-M113)*(1-(1-I113)^(1/12))),2) ->  | P113: =SUM(M113:N113) ->  | Q113: =ROUND(G113-K113-M113-N113,2) ->  | R113: =ROUND(G113*DiscountRate*Timing!I113,2) ->  | W113: 0 | AA113: 0 | AB113: 0 | AE113: =Timing!I113 -> 0.08767123288 | AF113: 0.01 | AG113: =G113*AF113*AE113 ->  | AI113: 0.0003 | AJ113: =G113*AI113*AE113 ->  | AT113: 0.0519 | AU113: 0.04903 | AV113: 0.05644 | AW113: 0.0494 | AY113: 0 | AZ113: 0 | BA113: 0 | BB113: =MAX(0,BB112+AZ113-BA113+IF(Triggers!BH112,BJ112-BH112-BI112-BK112,0)) -> 0 | BH113: =IF(Triggers!$BH113,MIN(Swap!I113,BB113),0) -> 0 | BI113: =IF(Triggers!$BH113,MIN(Swap!Q113,BB113-BH113),0) -> 0 | BJ113: =IF(CashFlowsLedgers!$C113="End",NA(),IF(CashFlowsLedgers!$D113,0,IF(CashFlowsLedgers!$C113="Post-Foreclosure",PostForeclosure!BR113,PreForeclosure!CG113))) ->  | BK113: =IF(CashFlowsLedgers!BB112+CashFlowsLedgers!BF112<0.01,BB113-BH113-BI113+BJ113,0) ->  | BM113: =G113 ->  | BN113: =N113-O113 ->  | BO113: =IFERROR(MAX((((CashFlowsLedgers!BB112/(CashFlowsLedgers!BB112+CashFlowsLedgers!BF112+CashFlowsLedgers!BJ112)*ClassASwap))+((CashFlowsLedgers!BF112/(CashFlowsLedgers!BB112+CashFlowsLedgers!BF112+CashFlowsLedgers!BJ112)*ClassBSwap))+((CashFlowsLedgers!BJ112/(CashFlowsLedgers!BB112+CashFlowsLedgers!BF112+CashFlowsLedgers!BJ112)*SubLoan_Rate))+ServicerFeePercentage+ThirdPartyFeePercentage+InterestCompensationRate-DiscountRate)/12,0),0) -> 0 | BP113: =IFERROR(MAX((DiscountRate-(((CashFlowsLedgers!BB112/(CashFlowsLedgers!BB112+CashFlowsLedgers!BF112+CashFlowsLedgers!BJ112)*ClassASwap))+((CashFlowsLedgers!BF112/(CashFlowsLedgers!BB112+CashFlowsLedgers!BF112+CashFlowsLedgers!BJ112)*ClassBSwap))+((CashFlowsLedgers!BJ112/(CashFlowsLedgers!BB112+CashFlowsLedgers!BF112+CashFlowsLedgers!BJ112)*SubLoan_Rate))+ServicerFeePercentage+ThirdPartyFeePercentage+InterestCompensationRate))/12,0),0) -> 0 | BT113: =1-(1-I113)^(1/12) -> 0 | BV113: =E113 -> 0 | BW113: 0 | BX113: 0 | BY113: 0 | BZ113: 0 | CA113: 0 | CB113: 0 | CC113: 0 | CD113: 0 | CF113: 0 | CG113: 0 | CH113: 0 | CI113: 0 | CJ113: 0 | CK113: 0 | CL113: 0 | CM113: 0 | CN113: 0 | CO113: =SUM($CF113:$CN113) -> 0 | CQ113: =IF($CO113>0,CF113/$CO113,0) -> 0 | CR113: 0 | CS113: 0 | CT113: 0 | CU113: 0 | CV113: 0 | CW113: 0 | CX113: 0 | CY113: 0 | DA113: =CQ113*BV113 -> 0 | DB113: 0 | DC113: 0 | DD113: 0 | DE113: 0 | DF113: 0 | DG113: 0 | DH113: 0 | DI113: 0
A114: 98 | B114: =Timing!$F114 -> 2032-05-25 | C114: =Timing!B114 -> 2032-04-30 | F114: =CashFlowsLedgers!CM113 ->  | G114: =CashFlowsLedgers!CP113 ->  | H114: 0 | I114: 0 | J114: 0 | R114: =ROUND(G114*DiscountRate*Timing!I114,2) ->  | W114: 0 | AA114: 0 | AB114: 0 | AE114: =Timing!I114 -> 0.07945205479 | AF114: 0.01 | AI114: 0.0003 | AM114: =$AJ114/11 ->  | AT114: 0.0519 | AU114: 0.04903 | AV114: 0.05644 | AW114: 0.0494 | AY114: 0 | AZ114: 0 | BA114: 0 | BB114: =MAX(0,BB113+AZ114-BA114+IF(Triggers!BH113,BJ113-BH113-BI113-BK113,0)) -> 0 | BH114: =IF(Triggers!$BH114,MIN(Swap!I114,BB114),0) -> 0 | BI114: =IF(Triggers!$BH114,MIN(Swap!Q114,BB114-BH114),0) -> 0 | BJ114: =IF(CashFlowsLedgers!$C114="End",NA(),IF(CashFlowsLedgers!$D114,0,IF(CashFlowsLedgers!$C114="Post-Foreclosure",PostForeclosure!BR114,PreForeclosure!CG114))) ->  | BK114: =IF(CashFlowsLedgers!BB113+CashFlowsLedgers!BF113<0.01,BB114-BH114-BI114+BJ114,0) ->  | BO114: =IFERROR(MAX((((CashFlowsLedgers!BB113/(CashFlowsLedgers!BB113+CashFlowsLedgers!BF113+CashFlowsLedgers!BJ113)*ClassASwap))+((CashFlowsLedgers!BF113/(CashFlowsLedgers!BB113+CashFlowsLedgers!BF113+CashFlowsLedgers!BJ113)*ClassBSwap))+((CashFlowsLedgers!BJ113/(CashFlowsLedgers!BB113+CashFlowsLedgers!BF113+CashFlowsLedgers!BJ113)*SubLoan_Rate))+ServicerFeePercentage+ThirdPartyFeePercentage+InterestCompensationRate-DiscountRate)/12,0),0) -> 0 | BP114: =IFERROR(MAX((DiscountRate-(((CashFlowsLedgers!BB113/(CashFlowsLedgers!BB113+CashFlowsLedgers!BF113+CashFlowsLedgers!BJ113)*ClassASwap))+((CashFlowsLedgers!BF113/(CashFlowsLedgers!BB113+CashFlowsLedgers!BF113+CashFlowsLedgers!BJ113)*ClassBSwap))+((CashFlowsLedgers!BJ113/(CashFlowsLedgers!BB113+CashFlowsLedgers!BF113+CashFlowsLedgers!BJ113)*SubLoan_Rate))+ServicerFeePercentage+ThirdPartyFeePercentage+InterestCompensationRate))/12,0),0) -> 0 | BT114: 0 | BV114: 0 | BW114: 0 | BX114: 0 | BY114: 0 | BZ114: 0 | CA114: 0 | CB114: 0 | CC114: 0 | CD114: 0 | CF114: 0 | CG114: 0 | CH114: 0 | CI114: 0 | CJ114: 0 | CK114: 0 | CL114: 0 | CM114: 0 | CN114: 0 | CO114: 0 | CQ114: 0 | CR114: =IF($CO114>0,CG114/$CO114,0) -> 0 | CS114: 0 | CT114: 0 | CU114: 0 | CV114: 0 | CW114: 0 | CX114: 0 | CY114: 0 | DA114: 0 | DB114: =CR114*BW114 -> 0 | DC114: 0 | DD114: 0 | DE114: 0 | DF114: 0 | DG114: 0 | DH114: 0 | DI114: 0
A115: 99 | B115: =Timing!$F115 -> 2032-06-25 | C115: =Timing!B115 -> 2032-05-31 | F115: =CashFlowsLedgers!CM114 ->  | G115: =CashFlowsLedgers!CP114 ->  | H115: 0 | I115: 0 | J115: 0 | R115: =ROUND(G115*DiscountRate*Timing!I115,2) ->  | W115: 0 | AA115: 0 | AB115: 0 | AE115: =Timing!I115 -> 0.08493150685 | AF115: 0.01 | AI115: 0.0003 | AO115: =AG115 ->  | AP115: =MAX(0,AJ115-AM115-AN115)+AK115 ->  | AT115: 0.0519 | AU115: 0.04903 | AV115: 0.05644 | AW115: 0.0494 | AY115: 0 | AZ115: 0 | BA115: 0 | BB115: =MAX(0,BB114+AZ115-BA115+IF(Triggers!BH114,BJ114-BH114-BI114-BK114,0)) -> 0 | BH115: =IF(Triggers!$BH115,MIN(Swap!I115,BB115),0) -> 0 | BI115: =IF(Triggers!$BH115,MIN(Swap!Q115,BB115-BH115),0) -> 0 | BJ115: =IF(CashFlowsLedgers!$C115="End",NA(),IF(CashFlowsLedgers!$D115,0,IF(CashFlowsLedgers!$C115="Post-Foreclosure",PostForeclosure!BR115,PreForeclosure!CG115))) ->  | BK115: =IF(CashFlowsLedgers!BB114+CashFlowsLedgers!BF114<0.01,BB115-BH115-BI115+BJ115,0) ->  | BO115: =IFERROR(MAX((((CashFlowsLedgers!BB114/(CashFlowsLedgers!BB114+CashFlowsLedgers!BF114+CashFlowsLedgers!BJ114)*ClassASwap))+((CashFlowsLedgers!BF114/(CashFlowsLedgers!BB114+CashFlowsLedgers!BF114+CashFlowsLedgers!BJ114)*ClassBSwap))+((CashFlowsLedgers!BJ114/(CashFlowsLedgers!BB114+CashFlowsLedgers!BF114+CashFlowsLedgers!BJ114)*SubLoan_Rate))+ServicerFeePercentage+ThirdPartyFeePercentage+InterestCompensationRate-DiscountRate)/12,0),0) -> 0 | BP115: =IFERROR(MAX((DiscountRate-(((CashFlowsLedgers!BB114/(CashFlowsLedgers!BB114+CashFlowsLedgers!BF114+CashFlowsLedgers!BJ114)*ClassASwap))+((CashFlowsLedgers!BF114/(CashFlowsLedgers!BB114+CashFlowsLedgers!BF114+CashFlowsLedgers!BJ114)*ClassBSwap))+((CashFlowsLedgers!BJ114/(CashFlowsLedgers!BB114+CashFlowsLedgers!BF114+CashFlowsLedgers!BJ114)*SubLoan_Rate))+ServicerFeePercentage+ThirdPartyFeePercentage+InterestCompensationRate))/12,0),0) -> 0 | BT115: 0 | BV115: 0 | BW115: 0 | BX115: 0 | BY115: 0 | BZ115: 0 | CA115: 0 | CB115: 0 | CC115: 0 | CD115: 0 | CF115: 0 | CG115: 0 | CH115: 0 | CI115: 0 | CJ115: 0 | CK115: 0 | CL115: 0 | CM115: 0 | CN115: 0 | CO115: 0 | CQ115: 0 | CR115: 0 | CS115: =IF($CO115>0,CH115/$CO115,0) -> 0 | CT115: 0 | CU115: 0 | CV115: 0 | CW115: 0 | CX115: 0 | CY115: 0 | DA115: 0 | DB115: 0 | DC115: =CS115*BX115 -> 0 | DD115: 0 | DE115: 0 | DF115: 0 | DG115: 0 | DH115: 0 | DI115: 0
A116: 100 | B116: =Timing!$F116 -> 2032-07-26 | C116: =Timing!B116 -> 2032-06-30 | F116: =CashFlowsLedgers!CM115 ->  | G116: =CashFlowsLedgers!CP115 ->  | H116: 0 | I116: 0 | J116: 0 | R116: =ROUND(G116*DiscountRate*Timing!I116,2) ->  | W116: 0 | AA116: 0 | AB116: 0 | AE116: =Timing!I116 -> 0.08493150685 | AF116: 0.01 | AI116: 0.0003 | AT116: 0.0519 | AU116: 0.04903 | AV116: 0.05644 | AW116: 0.0494 | AY116: 0 | AZ116: 0 | BA116: 0 | BB116: =MAX(0,BB115+AZ116-BA116+IF(Triggers!BH115,BJ115-BH115-BI115-BK115,0)) -> 0 | BH116: =IF(Triggers!$BH116,MIN(Swap!I116,BB116),0) -> 0 | BI116: =IF(Triggers!$BH116,MIN(Swap!Q116,BB116-BH116),0) -> 0 | BJ116: =IF(CashFlowsLedgers!$C116="End",NA(),IF(CashFlowsLedgers!$D116,0,IF(CashFlowsLedgers!$C116="Post-Foreclosure",PostForeclosure!BR116,PreForeclosure!CG116))) ->  | BK116: =IF(CashFlowsLedgers!BB115+CashFlowsLedgers!BF115<0.01,BB116-BH116-BI116+BJ116,0) ->  | BO116: =IFERROR(MAX((((CashFlowsLedgers!BB115/(CashFlowsLedgers!BB115+CashFlowsLedgers!BF115+CashFlowsLedgers!BJ115)*ClassASwap))+((CashFlowsLedgers!BF115/(CashFlowsLedgers!BB115+CashFlowsLedgers!BF115+CashFlowsLedgers!BJ115)*ClassBSwap))+((CashFlowsLedgers!BJ115/(CashFlowsLedgers!BB115+CashFlowsLedgers!BF115+CashFlowsLedgers!BJ115)*SubLoan_Rate))+ServicerFeePercentage+ThirdPartyFeePercentage+InterestCompensationRate-DiscountRate)/12,0),0) -> 0 | BP116: =IFERROR(MAX((DiscountRate-(((CashFlowsLedgers!BB115/(CashFlowsLedgers!BB115+CashFlowsLedgers!BF115+CashFlowsLedgers!BJ115)*ClassASwap))+((CashFlowsLedgers!BF115/(CashFlowsLedgers!BB115+CashFlowsLedgers!BF115+CashFlowsLedgers!BJ115)*ClassBSwap))+((CashFlowsLedgers!BJ115/(CashFlowsLedgers!BB115+CashFlowsLedgers!BF115+CashFlowsLedgers!BJ115)*SubLoan_Rate))+ServicerFeePercentage+ThirdPartyFeePercentage+InterestCompensationRate))/12,0),0) -> 0 | BT116: 0 | BV116: 0 | BW116: 0 | BX116: 0 | BY116: 0 | BZ116: 0 | CA116: 0 | CB116: 0 | CC116: 0 | CD116: 0 | CF116: 0 | CG116: 0 | CH116: 0 | CI116: 0 | CJ116: 0 | CK116: 0 | CL116: 0 | CM116: 0 | CN116: 0 | CO116: 0 | CQ116: 0 | CR116: 0 | CS116: 0 | CT116: =IF($CO116>0,CI116/$CO116,0) -> 0 | CU116: 0 | CV116: 0 | CW116: 0 | CX116: 0 | CY116: 0 | DA116: 0 | DB116: 0 | DC116: 0 | DD116: =CT116*BY116 -> 0 | DE116: 0 | DF116: 0 | DG116: 0 | DH116: 0 | DI116: 0
A117: 101 | B117: =Timing!$F117 -> 2032-08-25 | C117: =Timing!B117 -> 2032-07-31 | F117: =CashFlowsLedgers!CM116 ->  | G117: =CashFlowsLedgers!CP116 ->  | H117: 0 | I117: 0 | J117: 0 | R117: =ROUND(G117*DiscountRate*Timing!I117,2) ->  | W117: 0 | AA117: 0 | AB117: 0 | AE117: =Timing!I117 -> 0.08219178082 | AF117: 0.01 | AI117: 0.0003 | AT117: 0.0519 | AU117: 0.04903 | AV117: 0.05644 | AW117: 0.0494 | AY117: 0 | AZ117: 0 | BA117: 0 | BB117: =MAX(0,BB116+AZ117-BA117+IF(Triggers!BH116,BJ116-BH116-BI116-BK116,0)) -> 0 | BH117: =IF(Triggers!$BH117,MIN(Swap!I117,BB117),0) -> 0 | BI117: =IF(Triggers!$BH117,MIN(Swap!Q117,BB117-BH117),0) -> 0 | BJ117: =IF(CashFlowsLedgers!$C117="End",NA(),IF(CashFlowsLedgers!$D117,0,IF(CashFlowsLedgers!$C117="Post-Foreclosure",PostForeclosure!BR117,PreForeclosure!CG117))) ->  | BK117: =IF(CashFlowsLedgers!BB116+CashFlowsLedgers!BF116<0.01,BB117-BH117-BI117+BJ117,0) ->  | BO117: =IFERROR(MAX((((CashFlowsLedgers!BB116/(CashFlowsLedgers!BB116+CashFlowsLedgers!BF116+CashFlowsLedgers!BJ116)*ClassASwap))+((CashFlowsLedgers!BF116/(CashFlowsLedgers!BB116+CashFlowsLedgers!BF116+CashFlowsLedgers!BJ116)*ClassBSwap))+((CashFlowsLedgers!BJ116/(CashFlowsLedgers!BB116+CashFlowsLedgers!BF116+CashFlowsLedgers!BJ116)*SubLoan_Rate))+ServicerFeePercentage+ThirdPartyFeePercentage+InterestCompensationRate-DiscountRate)/12,0),0) -> 0 | BP117: =IFERROR(MAX((DiscountRate-(((CashFlowsLedgers!BB116/(CashFlowsLedgers!BB116+CashFlowsLedgers!BF116+CashFlowsLedgers!BJ116)*ClassASwap))+((CashFlowsLedgers!BF116/(CashFlowsLedgers!BB116+CashFlowsLedgers!BF116+CashFlowsLedgers!BJ116)*ClassBSwap))+((CashFlowsLedgers!BJ116/(CashFlowsLedgers!BB116+CashFlowsLedgers!BF116+CashFlowsLedgers!BJ116)*SubLoan_Rate))+ServicerFeePercentage+ThirdPartyFeePercentage+InterestCompensationRate))/12,0),0) -> 0 | BT117: 0 | BV117: 0 | BW117: 0 | BX117: 0 | BY117: 0 | BZ117: 0 | CA117: 0 | CB117: 0 | CC117: 0 | CD117: 0 | CF117: 0 | CG117: 0 | CH117: 0 | CI117: 0 | CJ117: 0 | CK117: 0 | CL117: 0 | CM117: 0 | CN117: 0 | CO117: 0 | CQ117: 0 | CR117: 0 | CS117: 0 | CT117: 0 | CU117: =IF($CO117>0,CJ117/$CO117,0) -> 0 | CV117: 0 | CW117: 0 | CX117: 0 | CY117: 0 | DA117: 0 | DB117: 0 | DC117: 0 | DD117: 0 | DE117: =CU117*BZ117 -> 0 | DF117: 0 | DG117: 0 | DH117: 0 | DI117: 0
A118: 102 | B118: =Timing!$F118 -> 2032-09-27 | C118: =Timing!B118 -> 2032-08-31 | F118: =CashFlowsLedgers!CM117 ->  | G118: =CashFlowsLedgers!CP117 ->  | H118: 0 | I118: 0 | J118: 0 | R118: =ROUND(G118*DiscountRate*Timing!I118,2) ->  | W118: 0 | AA118: 0 | AB118: 0 | AE118: =Timing!I118 -> 0.0904109589 | AF118: 0.01 | AI118: 0.0003 | AT118: 0.0519 | AU118: 0.04903 | AV118: 0.05644 | AW118: 0.0494 | AY118: 0 | AZ118: 0 | BA118: 0 | BB118: =MAX(0,BB117+AZ118-BA118+IF(Triggers!BH117,BJ117-BH117-BI117-BK117,0)) -> 0 | BH118: =IF(Triggers!$BH118,MIN(Swap!I118,BB118),0) -> 0 | BI118: =IF(Triggers!$BH118,MIN(Swap!Q118,BB118-BH118),0) -> 0 | BJ118: =IF(CashFlowsLedgers!$C118="End",NA(),IF(CashFlowsLedgers!$D118,0,IF(CashFlowsLedgers!$C118="Post-Foreclosure",PostForeclosure!BR118,PreForeclosure!CG118))) ->  | BK118: =IF(CashFlowsLedgers!BB117+CashFlowsLedgers!BF117<0.01,BB118-BH118-BI118+BJ118,0) ->  | BO118: =IFERROR(MAX((((CashFlowsLedgers!BB117/(CashFlowsLedgers!BB117+CashFlowsLedgers!BF117+CashFlowsLedgers!BJ117)*ClassASwap))+((CashFlowsLedgers!BF117/(CashFlowsLedgers!BB117+CashFlowsLedgers!BF117+CashFlowsLedgers!BJ117)*ClassBSwap))+((CashFlowsLedgers!BJ117/(CashFlowsLedgers!BB117+CashFlowsLedgers!BF117+CashFlowsLedgers!BJ117)*SubLoan_Rate))+ServicerFeePercentage+ThirdPartyFeePercentage+InterestCompensationRate-DiscountRate)/12,0),0) -> 0 | BP118: =IFERROR(MAX((DiscountRate-(((CashFlowsLedgers!BB117/(CashFlowsLedgers!BB117+CashFlowsLedgers!BF117+CashFlowsLedgers!BJ117)*ClassASwap))+((CashFlowsLedgers!BF117/(CashFlowsLedgers!BB117+CashFlowsLedgers!BF117+CashFlowsLedgers!BJ117)*ClassBSwap))+((CashFlowsLedgers!BJ117/(CashFlowsLedgers!BB117+CashFlowsLedgers!BF117+CashFlowsLedgers!BJ117)*SubLoan_Rate))+ServicerFeePercentage+ThirdPartyFeePercentage+InterestCompensationRate))/12,0),0) -> 0 | BT118: 0 | BV118: 0 | BW118: 0 | BX118: 0 | BY118: 0 | BZ118: 0 | CA118: 0 | CB118: 0 | CC118: 0 | CD118: 0 | CF118: 0 | CG118: 0 | CH118: 0 | CI118: 0 | CJ118: 0 | CK118: 0 | CL118: 0 | CM118: 0 | CN118: 0 | CO118: 0 | CQ118: 0 | CR118: 0 | CS118: 0 | CT118: 0 | CU118: 0 | CV118: =IF($CO118>0,CK118/$CO118,0) -> 0 | CW118: 0 | CX118: 0 | CY118: 0 | DA118: 0 | DB118: 0 | DC118: 0 | DD118: 0 | DE118: 0 | DF118: =CV118*CA118 -> 0 | DG118: 0 | DH118: 0 | DI118: 0
A119: 103 | B119: =Timing!$F119 -> 2032-10-25 | C119: =Timing!B119 -> 2032-09-30 | F119: =CashFlowsLedgers!CM118 ->  | G119: =CashFlowsLedgers!CP118 ->  | H119: 0 | I119: 0 | J119: 0 | L119: =ROUND(SUMPRODUCT(K113:K119,$L$3:$L$9),2) ->  | R119: =ROUND(G119*DiscountRate*Timing!I119,2) ->  | W119: 0 | AA119: 0 | AB119: 0 | AE119: =Timing!I119 -> 0.07671232877 | AF119: 0.01 | AI119: 0.0003 | AT119: 0.0519 | AU119: 0.04903 | AV119: 0.05644 | AW119: 0.0494 | AY119: 0 | AZ119: 0 | BA119: 0 | BB119: =MAX(0,BB118+AZ119-BA119+IF(Triggers!BH118,BJ118-BH118-BI118-BK118,0)) -> 0 | BH119: =IF(Triggers!$BH119,MIN(Swap!I119,BB119),0) -> 0 | BI119: =IF(Triggers!$BH119,MIN(Swap!Q119,BB119-BH119),0) -> 0 | BJ119: =IF(CashFlowsLedgers!$C119="End",NA(),IF(CashFlowsLedgers!$D119,0,IF(CashFlowsLedgers!$C119="Post-Foreclosure",PostForeclosure!BR119,PreForeclosure!CG119))) ->  | BK119: =IF(CashFlowsLedgers!BB118+CashFlowsLedgers!BF118<0.01,BB119-BH119-BI119+BJ119,0) ->  | BO119: =IFERROR(MAX((((CashFlowsLedgers!BB118/(CashFlowsLedgers!BB118+CashFlowsLedgers!BF118+CashFlowsLedgers!BJ118)*ClassASwap))+((CashFlowsLedgers!BF118/(CashFlowsLedgers!BB118+CashFlowsLedgers!BF118+CashFlowsLedgers!BJ118)*ClassBSwap))+((CashFlowsLedgers!BJ118/(CashFlowsLedgers!BB118+CashFlowsLedgers!BF118+CashFlowsLedgers!BJ118)*SubLoan_Rate))+ServicerFeePercentage+ThirdPartyFeePercentage+InterestCompensationRate-DiscountRate)/12,0),0) -> 0 | BP119: =IFERROR(MAX((DiscountRate-(((CashFlowsLedgers!BB118/(CashFlowsLedgers!BB118+CashFlowsLedgers!BF118+CashFlowsLedgers!BJ118)*ClassASwap))+((CashFlowsLedgers!BF118/(CashFlowsLedgers!BB118+CashFlowsLedgers!BF118+CashFlowsLedgers!BJ118)*ClassBSwap))+((CashFlowsLedgers!BJ118/(CashFlowsLedgers!BB118+CashFlowsLedgers!BF118+CashFlowsLedgers!BJ118)*SubLoan_Rate))+ServicerFeePercentage+ThirdPartyFeePercentage+InterestCompensationRate))/12,0),0) -> 0 | BT119: 0 | BV119: 0 | BW119: 0 | BX119: 0 | BY119: 0 | BZ119: 0 | CA119: 0 | CB119: 0 | CC119: 0 | CD119: 0 | CF119: 0 | CG119: 0 | CH119: 0 | CI119: 0 | CJ119: 0 | CK119: 0 | CL119: 0 | CM119: 0 | CN119: 0 | CO119: 0 | CQ119: 0 | CR119: 0 | CS119: 0 | CT119: 0 | CU119: 0 | CV119: 0 | CW119: =IF($CO119>0,CL119/$CO119,0) -> 0 | CX119: 0 | CY119: 0 | DA119: 0 | DB119: 0 | DC119: 0 | DD119: 0 | DE119: 0 | DF119: 0 | DG119: =CW119*CB119 -> 0 | DH119: 0 | DI119: 0
A120: 104 | B120: =Timing!$F120 -> 2032-11-25 | C120: =Timing!B120 -> 2032-10-31 | F120: =CashFlowsLedgers!CM119 ->  | G120: =CashFlowsLedgers!CP119 ->  | H120: 0 | I120: 0 | J120: 0 | R120: =ROUND(G120*DiscountRate*Timing!I120,2) ->  | W120: 0 | AA120: 0 | AB120: 0 | AE120: =Timing!I120 -> 0.08493150685 | AF120: 0.01 | AI120: 0.0003 | AT120: 0.0519 | AU120: 0.04903 | AV120: 0.05644 | AW120: 0.0494 | AY120: 0 | AZ120: 0 | BA120: 0 | BB120: =MAX(0,BB119+AZ120-BA120+IF(Triggers!BH119,BJ119-BH119-BI119-BK119,0)) -> 0 | BH120: =IF(Triggers!$BH120,MIN(Swap!I120,BB120),0) -> 0 | BI120: =IF(Triggers!$BH120,MIN(Swap!Q120,BB120-BH120),0) -> 0 | BJ120: =IF(CashFlowsLedgers!$C120="End",NA(),IF(CashFlowsLedgers!$D120,0,IF(CashFlowsLedgers!$C120="Post-Foreclosure",PostForeclosure!BR120,PreForeclosure!CG120))) ->  | BK120: =IF(CashFlowsLedgers!BB119+CashFlowsLedgers!BF119<0.01,BB120-BH120-BI120+BJ120,0) ->  | BO120: =IFERROR(MAX((((CashFlowsLedgers!BB119/(CashFlowsLedgers!BB119+CashFlowsLedgers!BF119+CashFlowsLedgers!BJ119)*ClassASwap))+((CashFlowsLedgers!BF119/(CashFlowsLedgers!BB119+CashFlowsLedgers!BF119+CashFlowsLedgers!BJ119)*ClassBSwap))+((CashFlowsLedgers!BJ119/(CashFlowsLedgers!BB119+CashFlowsLedgers!BF119+CashFlowsLedgers!BJ119)*SubLoan_Rate))+ServicerFeePercentage+ThirdPartyFeePercentage+InterestCompensationRate-DiscountRate)/12,0),0) -> 0 | BP120: =IFERROR(MAX((DiscountRate-(((CashFlowsLedgers!BB119/(CashFlowsLedgers!BB119+CashFlowsLedgers!BF119+CashFlowsLedgers!BJ119)*ClassASwap))+((CashFlowsLedgers!BF119/(CashFlowsLedgers!BB119+CashFlowsLedgers!BF119+CashFlowsLedgers!BJ119)*ClassBSwap))+((CashFlowsLedgers!BJ119/(CashFlowsLedgers!BB119+CashFlowsLedgers!BF119+CashFlowsLedgers!BJ119)*SubLoan_Rate))+ServicerFeePercentage+ThirdPartyFeePercentage+InterestCompensationRate))/12,0),0) -> 0 | BT120: 0 | BV120: 0 | BW120: 0 | BX120: 0 | BY120: 0 | BZ120: 0 | CA120: 0 | CB120: 0 | CC120: 0 | CD120: 0 | CF120: 0 | CG120: 0 | CH120: 0 | CI120: 0 | CJ120: 0 | CK120: 0 | CL120: 0 | CM120: 0 | CN120: 0 | CO120: 0 | CQ120: 0 | CR120: 0 | CS120: 0 | CT120: 0 | CU120: 0 | CV120: 0 | CW120: 0 | CX120: =IF($CO120>0,CM120/$CO120,0) -> 0 | CY120: 0 | DA120: 0 | DB120: 0 | DC120: 0 | DD120: 0 | DE120: 0 | DF120: 0 | DG120: 0 | DH120: =CX120*CC120 -> 0 | DI120: 0
A121: 105 | B121: =Timing!$F121 -> 2032-12-29 | C121: =Timing!B121 -> 2032-11-30 | F121: =CashFlowsLedgers!CM120 ->  | G121: =CashFlowsLedgers!CP120 ->  | H121: 0 | I121: 0 | J121: 0 | R121: =ROUND(G121*DiscountRate*Timing!I121,2) ->  | W121: 0 | AA121: 0 | AB121: 0 | AE121: =Timing!I121 -> 0.09315068493 | AF121: 0.01 | AI121: 0.0003 | AT121: 0.0519 | AU121: 0.04903 | AV121: 0.05644 | AW121: 0.0494 | AY121: 0 | AZ121: 0 | BA121: 0 | BB121: =MAX(0,BB120+AZ121-BA121+IF(Triggers!BH120,BJ120-BH120-BI120-BK120,0)) -> 0 | BH121: =IF(Triggers!$BH121,MIN(Swap!I121,BB121),0) -> 0 | BI121: =IF(Triggers!$BH121,MIN(Swap!Q121,BB121-BH121),0) -> 0 | BJ121: =IF(CashFlowsLedgers!$C121="End",NA(),IF(CashFlowsLedgers!$D121,0,IF(CashFlowsLedgers!$C121="Post-Foreclosure",PostForeclosure!BR121,PreForeclosure!CG121))) ->  | BK121: =IF(CashFlowsLedgers!BB120+CashFlowsLedgers!BF120<0.01,BB121-BH121-BI121+BJ121,0) ->  | BO121: =IFERROR(MAX((((CashFlowsLedgers!BB120/(CashFlowsLedgers!BB120+CashFlowsLedgers!BF120+CashFlowsLedgers!BJ120)*ClassASwap))+((CashFlowsLedgers!BF120/(CashFlowsLedgers!BB120+CashFlowsLedgers!BF120+CashFlowsLedgers!BJ120)*ClassBSwap))+((CashFlowsLedgers!BJ120/(CashFlowsLedgers!BB120+CashFlowsLedgers!BF120+CashFlowsLedgers!BJ120)*SubLoan_Rate))+ServicerFeePercentage+ThirdPartyFeePercentage+InterestCompensationRate-DiscountRate)/12,0),0) -> 0 | BP121: =IFERROR(MAX((DiscountRate-(((CashFlowsLedgers!BB120/(CashFlowsLedgers!BB120+CashFlowsLedgers!BF120+CashFlowsLedgers!BJ120)*ClassASwap))+((CashFlowsLedgers!BF120/(CashFlowsLedgers!BB120+CashFlowsLedgers!BF120+CashFlowsLedgers!BJ120)*ClassBSwap))+((CashFlowsLedgers!BJ120/(CashFlowsLedgers!BB120+CashFlowsLedgers!BF120+CashFlowsLedgers!BJ120)*SubLoan_Rate))+ServicerFeePercentage+ThirdPartyFeePercentage+InterestCompensationRate))/12,0),0) -> 0 | BT121: 0 | BV121: 0 | BW121: 0 | BX121: 0 | BY121: 0 | BZ121: 0 | CA121: 0 | CB121: 0 | CC121: 0 | CD121: 0 | CF121: 0 | CG121: 0 | CH121: 0 | CI121: 0 | CJ121: 0 | CK121: 0 | CL121: 0 | CM121: 0 | CN121: 0 | CO121: 0 | CQ121: 0 | CR121: 0 | CS121: 0 | CT121: 0 | CU121: 0 | CV121: 0 | CW121: 0 | CX121: 0 | CY121: =IF($CO121>0,CN121/$CO121,0) -> 0 | DA121: 0 | DB121: 0 | DC121: 0 | DD121: 0 | DE121: 0 | DF121: 0 | DG121: 0 | DH121: 0 | DI121: =CY121*CD121 -> 0
A122: 106 | B122: =Timing!$F122 -> 2033-01-25 | C122: =Timing!B122 -> 2032-12-31 | F122: =CashFlowsLedgers!CM121 ->  | G122: =CashFlowsLedgers!CP121 ->  | H122: 0 | I122: 0 | J122: 0 | R122: =ROUND(G122*DiscountRate*Timing!I122,2) ->  | W122: 0 | AA122: 0 | AB122: 0 | AE122: =Timing!I122 -> 0.07397260274 | AF122: 0.01 | AI122: 0.0003 | AT122: 0.0519 | AU122: 0.04903 | AV122: 0.05644 | AW122: 0.0494 | AY122: 0 | AZ122: 0 | BA122: 0 | BB122: =MAX(0,BB121+AZ122-BA122+IF(Triggers!BH121,BJ121-BH121-BI121-BK121,0)) -> 0 | BH122: =IF(Triggers!$BH122,MIN(Swap!I122,BB122),0) -> 0 | BI122: =IF(Triggers!$BH122,MIN(Swap!Q122,BB122-BH122),0) -> 0 | BJ122: =IF(CashFlowsLedgers!$C122="End",NA(),IF(CashFlowsLedgers!$D122,0,IF(CashFlowsLedgers!$C122="Post-Foreclosure",PostForeclosure!BR122,PreForeclosure!CG122))) ->  | BK122: =IF(CashFlowsLedgers!BB121+CashFlowsLedgers!BF121<0.01,BB122-BH122-BI122+BJ122,0) ->  | BO122: =IFERROR(MAX((((CashFlowsLedgers!BB121/(CashFlowsLedgers!BB121+CashFlowsLedgers!BF121+CashFlowsLedgers!BJ121)*ClassASwap))+((CashFlowsLedgers!BF121/(CashFlowsLedgers!BB121+CashFlowsLedgers!BF121+CashFlowsLedgers!BJ121)*ClassBSwap))+((CashFlowsLedgers!BJ121/(CashFlowsLedgers!BB121+CashFlowsLedgers!BF121+CashFlowsLedgers!BJ121)*SubLoan_Rate))+ServicerFeePercentage+ThirdPartyFeePercentage+InterestCompensationRate-DiscountRate)/12,0),0) -> 0 | BP122: =IFERROR(MAX((DiscountRate-(((CashFlowsLedgers!BB121/(CashFlowsLedgers!BB121+CashFlowsLedgers!BF121+CashFlowsLedgers!BJ121)*ClassASwap))+((CashFlowsLedgers!BF121/(CashFlowsLedgers!BB121+CashFlowsLedgers!BF121+CashFlowsLedgers!BJ121)*ClassBSwap))+((CashFlowsLedgers!BJ121/(CashFlowsLedgers!BB121+CashFlowsLedgers!BF121+CashFlowsLedgers!BJ121)*SubLoan_Rate))+ServicerFeePercentage+ThirdPartyFeePercentage+InterestCompensationRate))/12,0),0) -> 0 | BT122: 0 | BV122: 0 | BW122: 0 | BX122: 0 | BY122: 0 | BZ122: 0 | CA122: 0 | CB122: 0 | CC122: 0 | CD122: 0 | CF122: 0 | CG122: 0 | CH122: 0 | CI122: 0 | CJ122: 0 | CK122: 0 | CL122: 0 | CM122: 0 | CN122: 0 | CO122: 0 | CQ122: 0 | CR122: 0 | CS122: 0 | CT122: 0 | CU122: 0 | CV122: 0 | CW122: 0 | CX122: 0 | CY122: 0 | DA122: 0 | DB122: 0 | DC122: 0 | DD122: 0 | DE122: 0 | DF122: 0 | DG122: 0 | DH122: 0 | DI122: 0
A123: 107 | B123: =Timing!$F123 -> 2033-02-25 | C123: =Timing!B123 -> 2033-01-31 | F123: =CashFlowsLedgers!CM122 ->  | G123: =CashFlowsLedgers!CP122 ->  | H123: 0 | I123: 0 | J123: 0 | R123: =ROUND(G123*DiscountRate*Timing!I123,2) ->  | W123: 0 | AA123: 0 | AB123: 0 | AE123: =Timing!I123 -> 0.08493150685 | AF123: 0.01 | AI123: 0.0003 | AT123: 0.0519 | AU123: 0.04903 | AV123: 0.05644 | AW123: 0.0494 | AY123: 0 | AZ123: 0 | BA123: 0 | BB123: =MAX(0,BB122+AZ123-BA123+IF(Triggers!BH122,BJ122-BH122-BI122-BK122,0)) -> 0 | BH123: =IF(Triggers!$BH123,MIN(Swap!I123,BB123),0) -> 0 | BI123: =IF(Triggers!$BH123,MIN(Swap!Q123,BB123-BH123),0) -> 0 | BJ123: =IF(CashFlowsLedgers!$C123="End",NA(),IF(CashFlowsLedgers!$D123,0,IF(CashFlowsLedgers!$C123="Post-Foreclosure",PostForeclosure!BR123,PreForeclosure!CG123))) ->  | BK123: =IF(CashFlowsLedgers!BB122+CashFlowsLedgers!BF122<0.01,BB123-BH123-BI123+BJ123,0) ->  | BO123: =IFERROR(MAX((((CashFlowsLedgers!BB122/(CashFlowsLedgers!BB122+CashFlowsLedgers!BF122+CashFlowsLedgers!BJ122)*ClassASwap))+((CashFlowsLedgers!BF122/(CashFlowsLedgers!BB122+CashFlowsLedgers!BF122+CashFlowsLedgers!BJ122)*ClassBSwap))+((CashFlowsLedgers!BJ122/(CashFlowsLedgers!BB122+CashFlowsLedgers!BF122+CashFlowsLedgers!BJ122)*SubLoan_Rate))+ServicerFeePercentage+ThirdPartyFeePercentage+InterestCompensationRate-DiscountRate)/12,0),0) -> 0 | BP123: =IFERROR(MAX((DiscountRate-(((CashFlowsLedgers!BB122/(CashFlowsLedgers!BB122+CashFlowsLedgers!BF122+CashFlowsLedgers!BJ122)*ClassASwap))+((CashFlowsLedgers!BF122/(CashFlowsLedgers!BB122+CashFlowsLedgers!BF122+CashFlowsLedgers!BJ122)*ClassBSwap))+((CashFlowsLedgers!BJ122/(CashFlowsLedgers!BB122+CashFlowsLedgers!BF122+CashFlowsLedgers!BJ122)*SubLoan_Rate))+ServicerFeePercentage+ThirdPartyFeePercentage+InterestCompensationRate))/12,0),0) -> 0 | BT123: 0 | BV123: 0 | BW123: 0 | BX123: 0 | BY123: 0 | BZ123: 0 | CA123: 0 | CB123: 0 | CC123: 0 | CD123: 0 | CF123: 0 | CG123: 0 | CH123: 0 | CI123: 0 | CJ123: 0 | CK123: 0 | CL123: 0 | CM123: 0 | CN123: 0 | CO123: 0 | CQ123: 0 | CR123: 0 | CS123: 0 | CT123: 0 | CU123: 0 | CV123: 0 | CW123: 0 | CX123: 0 | CY123: 0 | DA123: 0 | DB123: 0 | DC123: 0 | DD123: 0 | DE123: 0 | DF123: 0 | DG123: 0 | DH123: 0 | DI123: 0
A124: 108 | B124: =Timing!$F124 -> 2033-03-25 | C124: =Timing!B124 -> 2033-02-28 | F124: =CashFlowsLedgers!CM123 ->  | G124: =CashFlowsLedgers!CP123 ->  | H124: 0 | I124: 0 | J124: 0 | R124: =ROUND(G124*DiscountRate*Timing!I124,2) ->  | W124: 0 | AA124: 0 | AB124: 0 | AE124: =Timing!I124 -> 0.07671232877 | AF124: 0.01 | AI124: 0.0003 | AT124: 0.0519 | AU124: 0.04903 | AV124: 0.05644 | AW124: 0.0494 | AY124: 0 | AZ124: 0 | BA124: 0 | BB124: =MAX(0,BB123+AZ124-BA124+IF(Triggers!BH123,BJ123-BH123-BI123-BK123,0)) -> 0 | BH124: =IF(Triggers!$BH124,MIN(Swap!I124,BB124),0) -> 0 | BI124: =IF(Triggers!$BH124,MIN(Swap!Q124,BB124-BH124),0) -> 0 | BJ124: =IF(CashFlowsLedgers!$C124="End",NA(),IF(CashFlowsLedgers!$D124,0,IF(CashFlowsLedgers!$C124="Post-Foreclosure",PostForeclosure!BR124,PreForeclosure!CG124))) ->  | BK124: =IF(CashFlowsLedgers!BB123+CashFlowsLedgers!BF123<0.01,BB124-BH124-BI124+BJ124,0) ->  | BO124: =IFERROR(MAX((((CashFlowsLedgers!BB123/(CashFlowsLedgers!BB123+CashFlowsLedgers!BF123+CashFlowsLedgers!BJ123)*ClassASwap))+((CashFlowsLedgers!BF123/(CashFlowsLedgers!BB123+CashFlowsLedgers!BF123+CashFlowsLedgers!BJ123)*ClassBSwap))+((CashFlowsLedgers!BJ123/(CashFlowsLedgers!BB123+CashFlowsLedgers!BF123+CashFlowsLedgers!BJ123)*SubLoan_Rate))+ServicerFeePercentage+ThirdPartyFeePercentage+InterestCompensationRate-DiscountRate)/12,0),0) -> 0 | BP124: =IFERROR(MAX((DiscountRate-(((CashFlowsLedgers!BB123/(CashFlowsLedgers!BB123+CashFlowsLedgers!BF123+CashFlowsLedgers!BJ123)*ClassASwap))+((CashFlowsLedgers!BF123/(CashFlowsLedgers!BB123+CashFlowsLedgers!BF123+CashFlowsLedgers!BJ123)*ClassBSwap))+((CashFlowsLedgers!BJ123/(CashFlowsLedgers!BB123+CashFlowsLedgers!BF123+CashFlowsLedgers!BJ123)*SubLoan_Rate))+ServicerFeePercentage+ThirdPartyFeePercentage+InterestCompensationRate))/12,0),0) -> 0 | BT124: 0 | BV124: 0 | BW124: 0 | BX124: 0 | BY124: 0 | BZ124: 0 | CA124: 0 | CB124: 0 | CC124: 0 | CD124: 0 | CF124: 0 | CG124: 0 | CH124: 0 | CI124: 0 | CJ124: 0 | CK124: 0 | CL124: 0 | CM124: 0 | CN124: 0 | CO124: 0 | CQ124: 0 | CR124: 0 | CS124: 0 | CT124: 0 | CU124: 0 | CV124: 0 | CW124: 0 | CX124: 0 | CY124: 0 | DA124: 0 | DB124: 0 | DC124: 0 | DD124: 0 | DE124: 0 | DF124: 0 | DG124: 0 | DH124: 0 | DI124: 0
A125: 109 | B125: =Timing!$F125 -> 2033-04-25 | C125: =Timing!B125 -> 2033-03-31 | F125: =CashFlowsLedgers!CM124 ->  | G125: =CashFlowsLedgers!CP124 ->  | H125: 0 | I125: 0 | J125: 0 | R125: =ROUND(G125*DiscountRate*Timing!I125,2) ->  | W125: 0 | AA125: 0 | AB125: 0 | AE125: =Timing!I125 -> 0.08493150685 | AF125: 0.01 | AI125: 0.0003 | AT125: 0.0519 | AU125: 0.04903 | AV125: 0.05644 | AW125: 0.0494 | AY125: 0 | AZ125: 0 | BA125: 0 | BB125: =MAX(0,BB124+AZ125-BA125+IF(Triggers!BH124,BJ124-BH124-BI124-BK124,0)) -> 0 | BH125: =IF(Triggers!$BH125,MIN(Swap!I125,BB125),0) -> 0 | BI125: =IF(Triggers!$BH125,MIN(Swap!Q125,BB125-BH125),0) -> 0 | BJ125: =IF(CashFlowsLedgers!$C125="End",NA(),IF(CashFlowsLedgers!$D125,0,IF(CashFlowsLedgers!$C125="Post-Foreclosure",PostForeclosure!BR125,PreForeclosure!CG125))) ->  | BK125: =IF(CashFlowsLedgers!BB124+CashFlowsLedgers!BF124<0.01,BB125-BH125-BI125+BJ125,0) ->  | BO125: =IFERROR(MAX((((CashFlowsLedgers!BB124/(CashFlowsLedgers!BB124+CashFlowsLedgers!BF124+CashFlowsLedgers!BJ124)*ClassASwap))+((CashFlowsLedgers!BF124/(CashFlowsLedgers!BB124+CashFlowsLedgers!BF124+CashFlowsLedgers!BJ124)*ClassBSwap))+((CashFlowsLedgers!BJ124/(CashFlowsLedgers!BB124+CashFlowsLedgers!BF124+CashFlowsLedgers!BJ124)*SubLoan_Rate))+ServicerFeePercentage+ThirdPartyFeePercentage+InterestCompensationRate-DiscountRate)/12,0),0) -> 0 | BP125: =IFERROR(MAX((DiscountRate-(((CashFlowsLedgers!BB124/(CashFlowsLedgers!BB124+CashFlowsLedgers!BF124+CashFlowsLedgers!BJ124)*ClassASwap))+((CashFlowsLedgers!BF124/(CashFlowsLedgers!BB124+CashFlowsLedgers!BF124+CashFlowsLedgers!BJ124)*ClassBSwap))+((CashFlowsLedgers!BJ124/(CashFlowsLedgers!BB124+CashFlowsLedgers!BF124+CashFlowsLedgers!BJ124)*SubLoan_Rate))+ServicerFeePercentage+ThirdPartyFeePercentage+InterestCompensationRate))/12,0),0) -> 0 | BT125: 0 | BV125: 0 | BW125: 0 | BX125: 0 | BY125: 0 | BZ125: 0 | CA125: 0 | CB125: 0 | CC125: 0 | CD125: 0 | CF125: 0 | CG125: 0 | CH125: 0 | CI125: 0 | CJ125: 0 | CK125: 0 | CL125: 0 | CM125: 0 | CN125: 0 | CO125: 0 | CQ125: 0 | CR125: 0 | CS125: 0 | CT125: 0 | CU125: 0 | CV125: 0 | CW125: 0 | CX125: 0 | CY125: 0 | DA125: 0 | DB125: 0 | DC125: 0 | DD125: 0 | DE125: 0 | DF125: 0 | DG125: 0 | DH125: 0 | DI125: 0
A126: 110 | B126: =Timing!$F126 -> 2033-05-25 | C126: =Timing!B126 -> 2033-04-30 | F126: =CashFlowsLedgers!CM125 ->  | G126: =CashFlowsLedgers!CP125 ->  | H126: 0 | I126: 0 | J126: 0 | R126: =ROUND(G126*DiscountRate*Timing!I126,2) ->  | W126: 0 | AA126: 0 | AB126: 0 | AE126: =Timing!I126 -> 0.08219178082 | AF126: 0.01 | AI126: 0.0003 | AT126: 0.0519 | AU126: 0.04903 | AV126: 0.05644 | AW126: 0.0494 | AY126: 0 | AZ126: 0 | BA126: 0 | BB126: =MAX(0,BB125+AZ126-BA126+IF(Triggers!BH125,BJ125-BH125-BI125-BK125,0)) -> 0 | BH126: =IF(Triggers!$BH126,MIN(Swap!I126,BB126),0) -> 0 | BI126: =IF(Triggers!$BH126,MIN(Swap!Q126,BB126-BH126),0) -> 0 | BJ126: =IF(CashFlowsLedgers!$C126="End",NA(),IF(CashFlowsLedgers!$D126,0,IF(CashFlowsLedgers!$C126="Post-Foreclosure",PostForeclosure!BR126,PreForeclosure!CG126))) ->  | BK126: =IF(CashFlowsLedgers!BB125+CashFlowsLedgers!BF125<0.01,BB126-BH126-BI126+BJ126,0) ->  | BO126: =IFERROR(MAX((((CashFlowsLedgers!BB125/(CashFlowsLedgers!BB125+CashFlowsLedgers!BF125+CashFlowsLedgers!BJ125)*ClassASwap))+((CashFlowsLedgers!BF125/(CashFlowsLedgers!BB125+CashFlowsLedgers!BF125+CashFlowsLedgers!BJ125)*ClassBSwap))+((CashFlowsLedgers!BJ125/(CashFlowsLedgers!BB125+CashFlowsLedgers!BF125+CashFlowsLedgers!BJ125)*SubLoan_Rate))+ServicerFeePercentage+ThirdPartyFeePercentage+InterestCompensationRate-DiscountRate)/12,0),0) -> 0 | BP126: =IFERROR(MAX((DiscountRate-(((CashFlowsLedgers!BB125/(CashFlowsLedgers!BB125+CashFlowsLedgers!BF125+CashFlowsLedgers!BJ125)*ClassASwap))+((CashFlowsLedgers!BF125/(CashFlowsLedgers!BB125+CashFlowsLedgers!BF125+CashFlowsLedgers!BJ125)*ClassBSwap))+((CashFlowsLedgers!BJ125/(CashFlowsLedgers!BB125+CashFlowsLedgers!BF125+CashFlowsLedgers!BJ125)*SubLoan_Rate))+ServicerFeePercentage+ThirdPartyFeePercentage+InterestCompensationRate))/12,0),0) -> 0 | BT126: 0 | BV126: 0 | BW126: 0 | BX126: 0 | BY126: 0 | BZ126: 0 | CA126: 0 | CB126: 0 | CC126: 0 | CD126: 0 | CF126: 0 | CG126: 0 | CH126: 0 | CI126: 0 | CJ126: 0 | CK126: 0 | CL126: 0 | CM126: 0 | CN126: 0 | CO126: 0 | CQ126: 0 | CR126: 0 | CS126: 0 | CT126: 0 | CU126: 0 | CV126: 0 | CW126: 0 | CX126: 0 | CY126: 0 | DA126: 0 | DB126: 0 | DC126: 0 | DD126: 0 | DE126: 0 | DF126: 0 | DG126: 0 | DH126: 0 | DI126: 0
A127: 111 | B127: =Timing!$F127 -> 2033-06-27 | C127: =Timing!B127 -> 2033-05-31 | F127: =CashFlowsLedgers!CM126 ->  | G127: =CashFlowsLedgers!CP126 ->  | H127: 0 | I127: 0 | J127: 0 | R127: =ROUND(G127*DiscountRate*Timing!I127,2) ->  | W127: 0 | AA127: 0 | AB127: 0 | AE127: =Timing!I127 -> 0.0904109589 | AF127: 0.01 | AI127: 0.0003 | AT127: 0.0519 | AU127: 0.04903 | AV127: 0.05644 | AW127: 0.0494 | AY127: 0 | AZ127: 0 | BA127: 0 | BB127: =MAX(0,BB126+AZ127-BA127+IF(Triggers!BH126,BJ126-BH126-BI126-BK126,0)) -> 0 | BH127: =IF(Triggers!$BH127,MIN(Swap!I127,BB127),0) -> 0 | BI127: =IF(Triggers!$BH127,MIN(Swap!Q127,BB127-BH127),0) -> 0 | BJ127: =IF(CashFlowsLedgers!$C127="End",NA(),IF(CashFlowsLedgers!$D127,0,IF(CashFlowsLedgers!$C127="Post-Foreclosure",PostForeclosure!BR127,PreForeclosure!CG127))) ->  | BK127: =IF(CashFlowsLedgers!BB126+CashFlowsLedgers!BF126<0.01,BB127-BH127-BI127+BJ127,0) ->  | BO127: =IFERROR(MAX((((CashFlowsLedgers!BB126/(CashFlowsLedgers!BB126+CashFlowsLedgers!BF126+CashFlowsLedgers!BJ126)*ClassASwap))+((CashFlowsLedgers!BF126/(CashFlowsLedgers!BB126+CashFlowsLedgers!BF126+CashFlowsLedgers!BJ126)*ClassBSwap))+((CashFlowsLedgers!BJ126/(CashFlowsLedgers!BB126+CashFlowsLedgers!BF126+CashFlowsLedgers!BJ126)*SubLoan_Rate))+ServicerFeePercentage+ThirdPartyFeePercentage+InterestCompensationRate-DiscountRate)/12,0),0) -> 0 | BP127: =IFERROR(MAX((DiscountRate-(((CashFlowsLedgers!BB126/(CashFlowsLedgers!BB126+CashFlowsLedgers!BF126+CashFlowsLedgers!BJ126)*ClassASwap))+((CashFlowsLedgers!BF126/(CashFlowsLedgers!BB126+CashFlowsLedgers!BF126+CashFlowsLedgers!BJ126)*ClassBSwap))+((CashFlowsLedgers!BJ126/(CashFlowsLedgers!BB126+CashFlowsLedgers!BF126+CashFlowsLedgers!BJ126)*SubLoan_Rate))+ServicerFeePercentage+ThirdPartyFeePercentage+InterestCompensationRate))/12,0),0) -> 0 | BT127: 0 | BV127: 0 | BW127: 0 | BX127: 0 | BY127: 0 | BZ127: 0 | CA127: 0 | CB127: 0 | CC127: 0 | CD127: 0 | CF127: 0 | CG127: 0 | CH127: 0 | CI127: 0 | CJ127: 0 | CK127: 0 | CL127: 0 | CM127: 0 | CN127: 0 | CO127: 0 | CQ127: 0 | CR127: 0 | CS127: 0 | CT127: 0 | CU127: 0 | CV127: 0 | CW127: 0 | CX127: 0 | CY127: 0 | DA127: 0 | DB127: 0 | DC127: 0 | DD127: 0 | DE127: 0 | DF127: 0 | DG127: 0 | DH127: 0 | DI127: 0
A128: 112 | B128: =Timing!$F128 -> 2033-07-25 | C128: =Timing!B128 -> 2033-06-30 | F128: =CashFlowsLedgers!CM127 ->  | G128: =CashFlowsLedgers!CP127 ->  | H128: 0 | I128: 0 | J128: 0 | R128: =ROUND(G128*DiscountRate*Timing!I128,2) ->  | W128: 0 | AA128: 0 | AB128: 0 | AE128: =Timing!I128 -> 0.07671232877 | AF128: 0.01 | AI128: 0.0003 | AT128: 0.0519 | AU128: 0.04903 | AV128: 0.05644 | AW128: 0.0494 | AY128: 0 | AZ128: 0 | BA128: 0 | BB128: =MAX(0,BB127+AZ128-BA128+IF(Triggers!BH127,BJ127-BH127-BI127-BK127,0)) -> 0 | BH128: =IF(Triggers!$BH128,MIN(Swap!I128,BB128),0) -> 0 | BI128: =IF(Triggers!$BH128,MIN(Swap!Q128,BB128-BH128),0) -> 0 | BJ128: =IF(CashFlowsLedgers!$C128="End",NA(),IF(CashFlowsLedgers!$D128,0,IF(CashFlowsLedgers!$C128="Post-Foreclosure",PostForeclosure!BR128,PreForeclosure!CG128))) ->  | BK128: =IF(CashFlowsLedgers!BB127+CashFlowsLedgers!BF127<0.01,BB128-BH128-BI128+BJ128,0) ->  | BO128: =IFERROR(MAX((((CashFlowsLedgers!BB127/(CashFlowsLedgers!BB127+CashFlowsLedgers!BF127+CashFlowsLedgers!BJ127)*ClassASwap))+((CashFlowsLedgers!BF127/(CashFlowsLedgers!BB127+CashFlowsLedgers!BF127+CashFlowsLedgers!BJ127)*ClassBSwap))+((CashFlowsLedgers!BJ127/(CashFlowsLedgers!BB127+CashFlowsLedgers!BF127+CashFlowsLedgers!BJ127)*SubLoan_Rate))+ServicerFeePercentage+ThirdPartyFeePercentage+InterestCompensationRate-DiscountRate)/12,0),0) -> 0 | BP128: =IFERROR(MAX((DiscountRate-(((CashFlowsLedgers!BB127/(CashFlowsLedgers!BB127+CashFlowsLedgers!BF127+CashFlowsLedgers!BJ127)*ClassASwap))+((CashFlowsLedgers!BF127/(CashFlowsLedgers!BB127+CashFlowsLedgers!BF127+CashFlowsLedgers!BJ127)*ClassBSwap))+((CashFlowsLedgers!BJ127/(CashFlowsLedgers!BB127+CashFlowsLedgers!BF127+CashFlowsLedgers!BJ127)*SubLoan_Rate))+ServicerFeePercentage+ThirdPartyFeePercentage+InterestCompensationRate))/12,0),0) -> 0 | BT128: 0 | BV128: 0 | BW128: 0 | BX128: 0 | BY128: 0 | BZ128: 0 | CA128: 0 | CB128: 0 | CC128: 0 | CD128: 0 | CF128: 0 | CG128: 0 | CH128: 0 | CI128: 0 | CJ128: 0 | CK128: 0 | CL128: 0 | CM128: 0 | CN128: 0 | CO128: 0 | CQ128: 0 | CR128: 0 | CS128: 0 | CT128: 0 | CU128: 0 | CV128: 0 | CW128: 0 | CX128: 0 | CY128: 0 | DA128: 0 | DB128: 0 | DC128: 0 | DD128: 0 | DE128: 0 | DF128: 0 | DG128: 0 | DH128: 0 | DI128: 0
A129: 113 | B129: =Timing!$F129 -> 2033-08-25 | C129: =Timing!B129 -> 2033-07-31 | F129: =CashFlowsLedgers!CM128 ->  | G129: =CashFlowsLedgers!CP128 ->  | H129: 0 | I129: 0 | J129: 0 | R129: =ROUND(G129*DiscountRate*Timing!I129,2) ->  | W129: 0 | AA129: 0 | AB129: 0 | AE129: =Timing!I129 -> 0.08493150685 | AF129: 0.01 | AI129: 0.0003 | AT129: 0.0519 | AU129: 0.04903 | AV129: 0.05644 | AW129: 0.0494 | AY129: 0 | AZ129: 0 | BA129: 0 | BB129: =MAX(0,BB128+AZ129-BA129+IF(Triggers!BH128,BJ128-BH128-BI128-BK128,0)) -> 0 | BH129: =IF(Triggers!$BH129,MIN(Swap!I129,BB129),0) -> 0 | BI129: =IF(Triggers!$BH129,MIN(Swap!Q129,BB129-BH129),0) -> 0 | BJ129: =IF(CashFlowsLedgers!$C129="End",NA(),IF(CashFlowsLedgers!$D129,0,IF(CashFlowsLedgers!$C129="Post-Foreclosure",PostForeclosure!BR129,PreForeclosure!CG129))) ->  | BK129: =IF(CashFlowsLedgers!BB128+CashFlowsLedgers!BF128<0.01,BB129-BH129-BI129+BJ129,0) ->  | BO129: =IFERROR(MAX((((CashFlowsLedgers!BB128/(CashFlowsLedgers!BB128+CashFlowsLedgers!BF128+CashFlowsLedgers!BJ128)*ClassASwap))+((CashFlowsLedgers!BF128/(CashFlowsLedgers!BB128+CashFlowsLedgers!BF128+CashFlowsLedgers!BJ128)*ClassBSwap))+((CashFlowsLedgers!BJ128/(CashFlowsLedgers!BB128+CashFlowsLedgers!BF128+CashFlowsLedgers!BJ128)*SubLoan_Rate))+ServicerFeePercentage+ThirdPartyFeePercentage+InterestCompensationRate-DiscountRate)/12,0),0) -> 0 | BP129: =IFERROR(MAX((DiscountRate-(((CashFlowsLedgers!BB128/(CashFlowsLedgers!BB128+CashFlowsLedgers!BF128+CashFlowsLedgers!BJ128)*ClassASwap))+((CashFlowsLedgers!BF128/(CashFlowsLedgers!BB128+CashFlowsLedgers!BF128+CashFlowsLedgers!BJ128)*ClassBSwap))+((CashFlowsLedgers!BJ128/(CashFlowsLedgers!BB128+CashFlowsLedgers!BF128+CashFlowsLedgers!BJ128)*SubLoan_Rate))+ServicerFeePercentage+ThirdPartyFeePercentage+InterestCompensationRate))/12,0),0) -> 0 | BT129: 0 | BV129: 0 | BW129: 0 | BX129: 0 | BY129: 0 | BZ129: 0 | CA129: 0 | CB129: 0 | CC129: 0 | CD129: 0 | CF129: 0 | CG129: 0 | CH129: 0 | CI129: 0 | CJ129: 0 | CK129: 0 | CL129: 0 | CM129: 0 | CN129: 0 | CO129: 0 | CQ129: 0 | CR129: 0 | CS129: 0 | CT129: 0 | CU129: 0 | CV129: 0 | CW129: 0 | CX129: 0 | CY129: 0 | DA129: 0 | DB129: 0 | DC129: 0 | DD129: 0 | DE129: 0 | DF129: 0 | DG129: 0 | DH129: 0 | DI129: 0
